Workbook

Sheet ASSIGN
A1: 1 | B1: Proforma | F1: AVISTA UTILITIES | H1: Washington Jurisdiction | J1: 1 | K1: Assign | N1: =$F$1 -> AVISTA UTILITIES | T1: =H2 -> Electric Utility | W1: =TransferP3 -> Washington Jurisdiction | AH1: 1 | AI1: =$K$1 -> Assign | AM1: =$F$1 -> AVISTA UTILITIES | AR1: =$H$1 -> Washington Jurisdiction | AU1: =$H$2 -> Electric Utility | BB1: 1 | BC1: =$K$1 -> Assign | BF1: =$F$1 -> AVISTA UTILITIES | BJ1: =$H$1 -> Washington Jurisdiction | BM1: =$H$2 -> Electric Utility
A2: 2 | B2: Pro Forma Results of Operations | F2: COS Proforma Transfer | H2: Electric Utility | J2: 2 | K2: Scenario: | L2: =B3 -> Allowed Rates Case UE-170485 | N2: Cost of Service Calculation | AC2: 2018-05-01 | AH2: 2 | AI2: =$K$2 -> Scenario: | AJ2: =$L$2 -> Allowed Rates Case UE-170485 | AM2: Functional Allocation Tables | AY2: =$AC$2 -> 2018-05-01 | BB2: 2 | BC2: =$K$2 -> Scenario: | BD2: =$L$2 -> Allowed Rates Case UE-170485 | BF2: Class Allocator Worksheet | BR2: =$AC$2 -> 2018-05-01
A3: 3 | B3: Allowed Rates Case UE-170485 | F3: For the Twelve Months Ended December 31, 2016 | H3: COS Checker | J3: 3 | L3: Load Factor Peak Credit Method | N3: =$F$3 -> For the Twelve Months Ended December 31, 2016 | V3: Functionalization and Classification | AH3: 3 | AJ3: =$L$3 -> Load Factor Peak Credit Method | AM3: =$F$3 -> For the Twelve Months Ended December 31, 2016 | AY3: =$AC$3 ->  | BB3: 3 | BD3: =$L$3 -> Load Factor Peak Credit Method | BF3: =$F$3 -> For the Twelve Months Ended December 31, 2016 | BR3: =$AC$3 -> 
A4: 4 | J4: 4 | L4: AS FILED METHOD | AH4: 4 | AJ4: =$L$4 -> AS FILED METHOD | BB4: 4 | BD4: =$L$4 -> AS FILED METHOD
A5: 5 | B5: =columnheader -> B | C5: =columnheader -> C | D5: D | F5: BO | G5: BP | H5: Checker | J5: 5 | K5: ="(k)" -> (k) | L5: ="(l)" -> (l) | M5: ="(m)" -> (m) | N5: ="(n)" -> (n) | O5: ="(o)" -> (o) | P5: ="(p)" -> (p) | Q5: ="(q)" -> (q) | R5: ="(r)" -> (r) | S5: ="(s)" -> (s) | T5: ="(t)" -> (t) | U5: ="(u)" -> (u) | V5: ="(v)" -> (v) | W5: ="(w)" -> (w) | X5: ="(x)" -> (x) | Y5: ="(y)" -> (y) | Z5: ="(z)" -> (z) | AA5: ="(aa)" -> (aa) | AB5: (ab) | AC5: ="(ac)" -> (ac) | AH5: 5 | AI5: (ai) | AJ5: (aj) | AK5: (ak) | AL5: (al) | AM5: (am) | AN5: (an) | AO5: (ao) | AP5: (ap) | AQ5: (aq) | AR5: (ar) | AS5: (as) | AT5: (at) | AU5: (au) | AV5: (av) | AW5: (aw) | AX5: (ax) | AY5: (ay) | BB5: 5 | BC5: (bc) | BD5: (bd) | BE5: (be) | BF5: (bf) | BG5: (bg) | BH5: (bh) | BI5: (bi) | BJ5: (bj) | BK5: (bk) | BL5: (bl) | BM5: (bm) | BN5: (bn) | BO5: (bo) | BP5: (bp) | BQ5: (bq) | BR5: (br)
A6: 6 | F6: Transfer | G6: Transfer | H6: Description | I6: Amounts | J6: 6 | N6: Notes | O6: Functional | P6: Class | Q6: Proforma | R6: Functional | S6: =BG6 -> Residential | T6: General | U6: Large Gen | V6: Extra Large | W6: Pumping | X6: Street & | AH6: 6 | BB6: 6 | BC6: Class | BF6: Class | BG6: Residential | BH6: General | BI6: Large Gen | BJ6: Extra Large | BK6: Pumping | BL6: Street & | BR6: Source / Description
A7: 7 | B7: Account | D7: Description | F7: Proforma | G7: Labor | J7: 7 | K7: Account Description | O7: Allocation | P7: Allocator | Q7: Totals | R7: Totals | S7: Service | T7: Service | U7: Service | V7: Gen Service | W7: Service | X7: Area Lights | AH7: 7 | BB7: 7 | BC7: Allocator | BF7: Allocator | BG7: Service | BH7: Service | BI7: Service | BJ7: Gen Service | BK7: Service | BL7: Area Lights
A8: 8 | F8: Totals | G8: Totals | H8: Key Items for Checking | J8: 8 | S8: Sch 1-2 | T8: Sch 11-12 | U8: Sch 21-22 | V8: Sch 25 | W8: Sch 31-32 | X8: Sch 41-49 | Y8: Open 1 | Z8: Open 2 | AA8: Open 3 | AB8: Open 4 | AC8: Open 5 | AH8: 8 | BB8: 8 | BC8: Name | BD8: Description | BF8: Total | BG8: Sch 1-2 | BH8: Sch 11-12 | BI8: Sch 21-22 | BJ8: Sch 25 | BK8: Sch 31-32 | BL8: Sch 41-49 | BM8: Open 1 | BN8: Open 2 | BO8: Open 3 | BP8: Open 4 | BQ8: Open 5
A9: 9 | B9: Operation & Maintenance Expenses | J9: 9 | K9: =B9 -> Operation & Maintenance Expenses | AH9: 9 | AI9: Production Function Factor Table (pfactor) | BB9: 9
A10: 10 | C10: Production Expenses | H10: Rate Base | I10: 1523129000 | J10: 10 | L10: =C10 -> Production Expenses | AH10: 10 | AI10: Class | AJ10: Factor Name | AK10: P01 | AL10: P02 | AM10: P03 | AN10: P04 | AO10: P05 | AP10: P06 | AQ10: P07 | AR10: P08 | AS10: P09 | AT10: P10 | BB10: 10 | BD10: Energy Allocators
A11: 11 | B11: 500-OP | C11: Steam | D11: Supervision & Engineering | F11: 212000 | G11: 102713 | H11: Expenses | I11: 437258000 | J11: 11 | K11: =B11 -> 500-OP | L11: =C11 -> Steam | M11: =D11 -> Supervision & Engineering | O11: P01 | P11: =IF(MATCH(O11,P_ref,0)>0,"","error matching functional allocator") ->  | Q11: =F11 -> 212000 | AH11: 11 | AJ11: Total Factor | AK11: =AK12+AK13+AK14+AK15 -> 100 | AL11: 100 | AM11: 100 | AN11: 100 | AO11: 200 | AP11: 194007 | AQ11: 69977 | AR11: 6201 | AS11: =AS12+AS13+AS14+AS15 -> 6525 | AT11: 100 | BB11: 11 | BC11: E01 | BD11: Customer Level Consumption | BF11: =SUM(BG11:BQ11) -> 5658613.709 | BG11: 2361885.986 | BH11: 623243.883 | BI11: 1409459.201 | BJ11: 1107408.158 | BK11: 133495.31 | BL11: 23121.171 | BM11: 0 | BN11: 0 | BO11: 0 | BP11: 0 | BQ11: 0 | BR11: Energy Sales-MWH
A12: 12 | B12: 501-OP | C12: Steam | D12: Fuel | F12: 20090000 | G12: 573043 | H12: Revenue | I12: 551492000 | J12: 12 | L12: P | M12: =HLOOKUP("Factor Name",pfactor,3) -> Coincident Peak | N12: =IF(MATCH(P12,ref,0)>0,"","matching error") ->  | O12: =HLOOKUP(O11,pfactor,3) -> 37.65 | P12: =HLOOKUP("Class",pfactor,3) -> D01 | R12: =Q11*O12/SUM(O12:O15) -> 79818 | S12: =$R12*(VLOOKUP($P12,class,5)/VLOOKUP($P12,class,4)) -> 39453.13867 | T12: =$R12*(VLOOKUP($P12,class,6)/VLOOKUP($P12,class,4)) -> 8182.902207 | U12: =$R12*(VLOOKUP($P12,class,7)/VLOOKUP($P12,class,4)) -> 17723.8672 | V12: =$R12*(VLOOKUP($P12,class,8)/VLOOKUP($P12,class,4)) -> 12808.34196 | W12: =$R12*(VLOOKUP($P12,class,9)/VLOOKUP($P12,class,4)) -> 1508.622488 | X12: =$R12*(VLOOKUP($P12,class,10)/VLOOKUP($P12,class,4)) -> 141.1274783 | Y12: =$R12*(VLOOKUP($P12,class,11)/VLOOKUP($P12,class,4)) -> 0 | Z12: =$R12*(VLOOKUP($P12,class,12)/VLOOKUP($P12,class,4)) -> 0 | AA12: =$R12*(VLOOKUP($P12,class,13)/VLOOKUP($P12,class,4)) -> 0 | AB12: =$R12*(VLOOKUP($P12,class,14)/VLOOKUP($P12,class,4)) -> 0 | AC12: =$R12*(VLOOKUP($P12,class,15)/VLOOKUP($P12,class,4)) -> 0 | AH12: 12 | AI12: D01 | AJ12: =VLOOKUP(AI12,class,2) -> Coincident Peak | AK12: 37.65 | AL12: 42.25 | AM12: 41.47 | AN12: 100 | AO12: =AT12+AL20 -> 41.86 | AP12: 128905 | AQ12: 54151 | AR12: 4113 | AS12: 2919 | AT12: 0 | BB12: 12 | BE12: =IF(SUM(BG12:BQ12)=BF12,"","error") ->  | BF12: =BF11/$BF11 -> 1 | BG12: 0.4173965758 | BH12: 0.1101407368 | BI12: 0.2490820674 | BJ12: 0.1957030847 | BK12: 0.02359152203 | BL12: 0.004086013322 | BM12: 0 | BN12: 0 | BO12: 0 | BP12: 0 | BQ12: 0
A13: 13 | B13: 502-OP | C13: Steam | D13: Steam Expenses | F13: 2953000 | G13: 353728 | H13: Income | I13: 114234000 | J13: 13 | L13: P | M13: =HLOOKUP("Factor Name",pfactor,4) -> Generation Level Consumption | N13: =IF(MATCH(P13,ref,0)>0,"","matching error") ->  | O13: =HLOOKUP(O11,pfactor,4) -> 62.35 | P13: =HLOOKUP("Class",pfactor,4) -> E02 | R13: =Q11*O13/SUM(O12:O15) -> 132182 | S13: =$R13*(VLOOKUP($P13,class,5)/VLOOKUP($P13,class,4)) -> 55463.28422 | T13: =$R13*(VLOOKUP($P13,class,6)/VLOOKUP($P13,class,4)) -> 14635.40274 | U13: =$R13*(VLOOKUP($P13,class,7)/VLOOKUP($P13,class,4)) -> 33039.38767 | V13: =$R13*(VLOOKUP($P13,class,8)/VLOOKUP($P13,class,4)) -> 25366.1592 | W13: =$R13*(VLOOKUP($P13,class,9)/VLOOKUP($P13,class,4)) -> 3134.820379 | X13: =$R13*(VLOOKUP($P13,class,10)/VLOOKUP($P13,class,4)) -> 542.9458011 | Y13: =$R13*(VLOOKUP($P13,class,11)/VLOOKUP($P13,class,4)) -> 0 | Z13: =$R13*(VLOOKUP($P13,class,12)/VLOOKUP($P13,class,4)) -> 0 | AA13: =$R13*(VLOOKUP($P13,class,13)/VLOOKUP($P13,class,4)) -> 0 | AB13: =$R13*(VLOOKUP($P13,class,14)/VLOOKUP($P13,class,4)) -> 0 | AC13: =$R13*(VLOOKUP($P13,class,15)/VLOOKUP($P13,class,4)) -> 0 | AH13: 13 | AI13: E02 | AJ13: =VLOOKUP(AI13,class,2) -> Generation Level Consumption | AK13: 62.35 | AL13: 57.75 | AM13: 58.53 | AN13: 0 | AO13: =AT13+AL21 -> 158.14 | AP13: 65102 | AQ13: 15826 | AR13: 2088 | AS13: 3606 | AT13: 100 | BB13: 13 | BC13: E02 | BD13: Generation Level Consumption | BF13: =SUM(BG13:BQ13) -> 6017323.644 | BG13: =BG11*1.069 -> 2524856.119 | BH13: =BH11*1.069 -> 666247.7109 | BI13: =(BI11*0.9007*1.069)+(BI11*0.0993*1.05) -> 1504052.659 | BJ13: =(29304.32+29682.867+16957.15)*1.069+(59133.312+414735.264)*1.03+(BJ11-29304.32-29682.867-490825.726)*1.05 -> 1154744.137 | BK13: =BK11*1.069 -> 142706.4864 | BL13: =BL11*1.069 -> 24716.5318 | BM13: 0 | BN13: 0 | BO13: 0 | BP13: 0 | BQ13: 0 | BR13: Energy Sales with Losses - MWH
A14: 14 | B14: 503-OP | C14: Steam | D14: From Other Sources | F14: 0 | G14: 0 | H14: Interest | I14: 44018000 | J14: 14 | L14: P | M14: =HLOOKUP("Factor Name",pfactor,5) -> Open | N14: =IF(MATCH(P14,ref,0)>0,"","matching error") ->  | O14: =HLOOKUP(O11,pfactor,5) -> 0 | P14: =HLOOKUP("Class",pfactor,5) -> xxx | R14: =Q11*O14/SUM(O12:O15) -> 0 | S14: =$R14*(VLOOKUP($P14,class,5)/VLOOKUP($P14,class,4)) -> 0 | T14: =$R14*(VLOOKUP($P14,class,6)/VLOOKUP($P14,class,4)) -> 0 | U14: =$R14*(VLOOKUP($P14,class,7)/VLOOKUP($P14,class,4)) -> 0 | V14: =$R14*(VLOOKUP($P14,class,8)/VLOOKUP($P14,class,4)) -> 0 | W14: =$R14*(VLOOKUP($P14,class,9)/VLOOKUP($P14,class,4)) -> 0 | X14: =$R14*(VLOOKUP($P14,class,10)/VLOOKUP($P14,class,4)) -> 0 | Y14: =$R14*(VLOOKUP($P14,class,11)/VLOOKUP($P14,class,4)) -> 0 | Z14: =$R14*(VLOOKUP($P14,class,12)/VLOOKUP($P14,class,4)) -> 0 | AA14: =$R14*(VLOOKUP($P14,class,13)/VLOOKUP($P14,class,4)) -> 0 | AB14: =$R14*(VLOOKUP($P14,class,14)/VLOOKUP($P14,class,4)) -> 0 | AC14: =$R14*(VLOOKUP($P14,class,15)/VLOOKUP($P14,class,4)) -> 0 | AH14: 14 | AI14: xxx | AJ14: =VLOOKUP(AI14,class,2) -> Open | AK14: 0 | AL14: 0 | AM14: 0 | AN14: 0 | AO14: =AK14+AK22 -> 0 | AP14: 0 | AQ14: 0 | AR14: 0 | AS14: 0 | AT14: 0 | BB14: 14 | BE14: =IF(SUM(BG14:BQ14)=BF14,"","error") ->  | BF14: =BF13/$BF13 -> 1 | BG14: 0.4195978592 | BH14: 0.1107216016 | BI14: 0.2499537582 | BJ14: 0.1919032788 | BK14: 0.02371593998 | BL14: 0.004107562309 | BM14: 0 | BN14: 0 | BO14: 0 | BP14: 0 | BQ14: 0
A15: 15 | B15: 504-OP | C15: Steam | D15: Steam Transferred-CR | F15: 0 | G15: 0 | H15: SIT | I15: 0 | J15: 15 | L15: P | M15: =HLOOKUP("Factor Name",pfactor,6) -> Open | N15: =IF(MATCH(P15,ref,0)>0,"","matching error") ->  | O15: =HLOOKUP(O11,pfactor,6) -> 0 | P15: =HLOOKUP("Class",pfactor,6) -> xxx | R15: =Q11*O15/SUM(O12:O15) -> 0 | S15: =$R15*(VLOOKUP($P15,class,5)/VLOOKUP($P15,class,4)) -> 0 | T15: =$R15*(VLOOKUP($P15,class,6)/VLOOKUP($P15,class,4)) -> 0 | U15: =$R15*(VLOOKUP($P15,class,7)/VLOOKUP($P15,class,4)) -> 0 | V15: =$R15*(VLOOKUP($P15,class,8)/VLOOKUP($P15,class,4)) -> 0 | W15: =$R15*(VLOOKUP($P15,class,9)/VLOOKUP($P15,class,4)) -> 0 | X15: =$R15*(VLOOKUP($P15,class,10)/VLOOKUP($P15,class,4)) -> 0 | Y15: =$R15*(VLOOKUP($P15,class,11)/VLOOKUP($P15,class,4)) -> 0 | Z15: =$R15*(VLOOKUP($P15,class,12)/VLOOKUP($P15,class,4)) -> 0 | AA15: =$R15*(VLOOKUP($P15,class,13)/VLOOKUP($P15,class,4)) -> 0 | AB15: =$R15*(VLOOKUP($P15,class,14)/VLOOKUP($P15,class,4)) -> 0 | AC15: =$R15*(VLOOKUP($P15,class,15)/VLOOKUP($P15,class,4)) -> 0 | AH15: 15 | AI15: xxx | AJ15: =VLOOKUP(AI15,class,2) -> Open | AK15: 0 | AL15: 0 | AM15: 0 | AN15: 0 | AO15: 0 | AP15: 0 | AQ15: 0 | AR15: 0 | AS15: 0 | AT15: 0 | BB15: 15 | BC15: E03 | BD15: Open | BF15: =SUM(BG15:BQ15) -> 0 | BG15: 0 | BH15: 0 | BI15: 0 | BJ15: 0 | BK15: 0 | BL15: 0 | BM15: 0 | BN15: 0 | BO15: 0 | BP15: 0 | BQ15: 0 | BR15: Open
A16: 16 | B16: 505-OP | C16: Steam | D16: Electric Expenses | F16: 810000 | G16: 360258 | H16: FIT | I16: -26162000 | J16: 16 | K16: =B12 -> 501-OP | L16: =C12 -> Steam | M16: =D12 -> Fuel | O16: P01 | P16: =IF(MATCH(O16,P_ref,0)>0,"","error matching functional allocator") ->  | Q16: =F12 -> 20090000 | AH16: 16 | AK16: LF PC All Gen | AL16: Thermal PC | AM16: Hydro PC | AN16: Other PC | AO16: P10 + T02 | AP16: CS Plt | AQ16: CS A/D | AR16: CS Depr | AS16: CS O&M | AT16: MWh Gen | BB16: 16
A17: 17 | B17: 506-OP | C17: Steam | D17: Miscellaneous Power Exp. | F17: 2165000 | G17: 200965 | H17: ITC | I17: -326000 | J17: 17 | L17: P | M17: =HLOOKUP("Factor Name",pfactor,3) -> Coincident Peak | N17: =IF(MATCH(P17,ref,0)>0,"","matching error") ->  | O17: =HLOOKUP(O16,pfactor,3) -> 37.65 | P17: =HLOOKUP("Class",pfactor,3) -> D01 | R17: =Q16*O17/SUM(O17:O20) -> 7563885 | S17: =$R17*(VLOOKUP($P17,class,5)/VLOOKUP($P17,class,4)) -> 3738743.188 | T17: =$R17*(VLOOKUP($P17,class,6)/VLOOKUP($P17,class,4)) -> 775445.7799 | U17: =$R17*(VLOOKUP($P17,class,7)/VLOOKUP($P17,class,4)) -> 1679587.226 | V17: =$R17*(VLOOKUP($P17,class,8)/VLOOKUP($P17,class,4)) -> 1213771.651 | W17: =$R17*(VLOOKUP($P17,class,9)/VLOOKUP($P17,class,4)) -> 142963.3292 | X17: =$R17*(VLOOKUP($P17,class,10)/VLOOKUP($P17,class,4)) -> 13373.82565 | Y17: =$R17*(VLOOKUP($P17,class,11)/VLOOKUP($P17,class,4)) -> 0 | Z17: =$R17*(VLOOKUP($P17,class,12)/VLOOKUP($P17,class,4)) -> 0 | AA17: =$R17*(VLOOKUP($P17,class,13)/VLOOKUP($P17,class,4)) -> 0 | AB17: =$R17*(VLOOKUP($P17,class,14)/VLOOKUP($P17,class,4)) -> 0 | AC17: =$R17*(VLOOKUP($P17,class,15)/VLOOKUP($P17,class,4)) -> 0 | AH17: 17 | AI17: Transmission Function Factor Table (tfactor) | BB17: 17 | BD17: Demand Allocators
A18: 18 | B18: 507-OP | C18: Steam | D18: Rents | F18: 27000 | G18: 0 | H18: Deferred Tax | I18: 40701000 | J18: 18 | L18: P | M18: =HLOOKUP("Factor Name",pfactor,4) -> Generation Level Consumption | N18: =IF(MATCH(P18,ref,0)>0,"","matching error") ->  | O18: =HLOOKUP(O16,pfactor,4) -> 62.35 | P18: =HLOOKUP("Class",pfactor,4) -> E02 | R18: =Q16*O18/SUM(O17:O20) -> 12526115 | S18: =$R18*(VLOOKUP($P18,class,5)/VLOOKUP($P18,class,4)) -> 5255931.038 | T18: =$R18*(VLOOKUP($P18,class,6)/VLOOKUP($P18,class,4)) -> 1386911.514 | U18: =$R18*(VLOOKUP($P18,class,7)/VLOOKUP($P18,class,4)) -> 3130949.52 | V18: =$R18*(VLOOKUP($P18,class,8)/VLOOKUP($P18,class,4)) -> 2403802.539 | W18: =$R18*(VLOOKUP($P18,class,9)/VLOOKUP($P18,class,4)) -> 297068.5915 | X18: =$R18*(VLOOKUP($P18,class,10)/VLOOKUP($P18,class,4)) -> 51451.79785 | Y18: =$R18*(VLOOKUP($P18,class,11)/VLOOKUP($P18,class,4)) -> 0 | Z18: =$R18*(VLOOKUP($P18,class,12)/VLOOKUP($P18,class,4)) -> 0 | AA18: =$R18*(VLOOKUP($P18,class,13)/VLOOKUP($P18,class,4)) -> 0 | AB18: =$R18*(VLOOKUP($P18,class,14)/VLOOKUP($P18,class,4)) -> 0 | AC18: =$R18*(VLOOKUP($P18,class,15)/VLOOKUP($P18,class,4)) -> 0 | AH18: 18 | AI18: Class | AJ18: Factor Name | AK18: T01 | AL18: T02 | AM18: T03 | AN18: T04 | BB18: 18 | BC18: D01 | BD18: Coincident Peak | BF18: =SUM(BG18:BQ18) -> 897000 | BG18: 443377 | BH18: 91960 | BI18: =180583+18599 -> 199182 | BJ18: =56837+76672+10432 -> 143941 | BK18: 16954 | BL18: =1001+585 -> 1586 | BM18: 0 | BN18: 0 | BO18: 0 | BP18: 0 | BQ18: 0 | BR18: Coincident Peak 12 Month Average
A19: 19 | C19: Total Steam Operation | H19: Gen Bus Revenue | I19: 502897000 | J19: 19 | L19: P | M19: =HLOOKUP("Factor Name",pfactor,5) -> Open | N19: =IF(MATCH(P19,ref,0)>0,"","matching error") ->  | O19: =HLOOKUP(O16,pfactor,5) -> 0 | P19: =HLOOKUP("Class",pfactor,5) -> xxx | R19: =Q16*O19/SUM(O17:O20) -> 0 | S19: =$R19*(VLOOKUP($P19,class,5)/VLOOKUP($P19,class,4)) -> 0 | T19: =$R19*(VLOOKUP($P19,class,6)/VLOOKUP($P19,class,4)) -> 0 | U19: =$R19*(VLOOKUP($P19,class,7)/VLOOKUP($P19,class,4)) -> 0 | V19: =$R19*(VLOOKUP($P19,class,8)/VLOOKUP($P19,class,4)) -> 0 | W19: =$R19*(VLOOKUP($P19,class,9)/VLOOKUP($P19,class,4)) -> 0 | X19: =$R19*(VLOOKUP($P19,class,10)/VLOOKUP($P19,class,4)) -> 0 | Y19: =$R19*(VLOOKUP($P19,class,11)/VLOOKUP($P19,class,4)) -> 0 | Z19: =$R19*(VLOOKUP($P19,class,12)/VLOOKUP($P19,class,4)) -> 0 | AA19: =$R19*(VLOOKUP($P19,class,13)/VLOOKUP($P19,class,4)) -> 0 | AB19: =$R19*(VLOOKUP($P19,class,14)/VLOOKUP($P19,class,4)) -> 0 | AC19: =$R19*(VLOOKUP($P19,class,15)/VLOOKUP($P19,class,4)) -> 0 | AH19: 19 | AJ19: Total Factor | AK19: =AK20+AK21+AK22 -> 100 | AL19: =AL20+AL21+AL22 -> 100 | AM19: =AM20+AM21+AM22 -> 0 | AN19: =AN20+AN21+AN22 -> 0 | BB19: 19 | BE19: =IF(SUM(BG19:BQ19)=BF19,"","error") ->  | BF19: =BF18/$BF18 -> 1 | BG19: 0.4942887402 | BH19: 0.1025195095 | BI19: 0.2220535117 | BJ19: 0.1604693423 | BK19: 0.01890078038 | BL19: 0.001768115942 | BM19: 0 | BN19: 0 | BO19: 0 | BP19: 0 | BQ19: 0
A20: 20 | B20: 510-MT | C20: Steam | D20: Supervision & Engineering | F20: 385000 | G20: 65389 | H20: Allocated Revenue | I20: 0 | J20: 20 | L20: P | M20: =HLOOKUP("Factor Name",pfactor,6) -> Open | N20: =IF(MATCH(P20,ref,0)>0,"","matching error") ->  | O20: =HLOOKUP(O16,pfactor,6) -> 0 | P20: =HLOOKUP("Class",pfactor,6) -> xxx | R20: =Q16*O20/SUM(O17:O20) -> 0 | S20: =$R20*(VLOOKUP($P20,class,5)/VLOOKUP($P20,class,4)) -> 0 | T20: =$R20*(VLOOKUP($P20,class,6)/VLOOKUP($P20,class,4)) -> 0 | U20: =$R20*(VLOOKUP($P20,class,7)/VLOOKUP($P20,class,4)) -> 0 | V20: =$R20*(VLOOKUP($P20,class,8)/VLOOKUP($P20,class,4)) -> 0 | W20: =$R20*(VLOOKUP($P20,class,9)/VLOOKUP($P20,class,4)) -> 0 | X20: =$R20*(VLOOKUP($P20,class,10)/VLOOKUP($P20,class,4)) -> 0 | Y20: =$R20*(VLOOKUP($P20,class,11)/VLOOKUP($P20,class,4)) -> 0 | Z20: =$R20*(VLOOKUP($P20,class,12)/VLOOKUP($P20,class,4)) -> 0 | AA20: =$R20*(VLOOKUP($P20,class,13)/VLOOKUP($P20,class,4)) -> 0 | AB20: =$R20*(VLOOKUP($P20,class,14)/VLOOKUP($P20,class,4)) -> 0 | AC20: =$R20*(VLOOKUP($P20,class,15)/VLOOKUP($P20,class,4)) -> 0 | AH20: 20 | AI20: D01 | AJ20: =VLOOKUP(AI20,class,2) -> Coincident Peak | AK20: =AK12 -> 37.65 | AL20: 41.86 | BB20: 20 | BC20: D02 | BD20: NCP-All | BF20: =SUM(BG20:BQ20) -> 1005537 | BG20: 451201 | BH20: 115667 | BI20: =224100+25752 -> 249852 | BJ20: =58898+84712+11259 -> 154869 | BK20: 28208 | BL20: =3623+2117 -> 5740 | BM20: 0 | BN20: 0 | BO20: 0 | BP20: 0 | BQ20: 0 | BR20: Non-Coincident Peak All Sched.12 Mo Avg
A21: 21 | B21: 511-MT | C21: Steam | D21: Structures | F21: 464000 | G21: 7396 | H21: Secondary Sales | I21: 35563000 | J21: 21 | K21: =B13 -> 502-OP | L21: =C13 -> Steam | M21: =D13 -> Steam Expenses | O21: P01 | P21: =IF(MATCH(O21,P_ref,0)>0,"","error matching functional allocator") ->  | Q21: =F13 -> 2953000 | AH21: 21 | AI21: E02 | AJ21: =VLOOKUP(AI21,class,2) -> Generation Level Consumption | AK21: =AK13 -> 62.35 | AL21: 58.14 | BB21: 21 | BE21: =IF(SUM(BG21:BQ21)=BF21,"","error") ->  | BF21: =BF20/$BF20 -> 1 | BG21: 0.448716457 | BH21: 0.1150300785 | BI21: 0.2484761874 | BJ21: 0.1540162122 | BK21: 0.02805267235 | BL21: 0.00570839263 | BM21: 0 | BN21: 0 | BO21: 0 | BP21: 0 | BQ21: 0
A22: 22 | B22: 512-MT | C22: Steam | D22: Boiler Plant | F22: 3937000 | G22: 482432 | H22: MOPS Revenue | I22: 0 | J22: 22 | L22: P | M22: =HLOOKUP("Factor Name",pfactor,3) -> Coincident Peak | N22: =IF(MATCH(P22,ref,0)>0,"","matching error") ->  | O22: =HLOOKUP(O21,pfactor,3) -> 37.65 | P22: =HLOOKUP("Class",pfactor,3) -> D01 | R22: =Q21*O22/SUM(O22:O25) -> 1111804.5 | S22: =$R22*(VLOOKUP($P22,class,5)/VLOOKUP($P22,class,4)) -> 549552.4457 | T22: =$R22*(VLOOKUP($P22,class,6)/VLOOKUP($P22,class,4)) -> 113981.652 | U22: =$R22*(VLOOKUP($P22,class,7)/VLOOKUP($P22,class,4)) -> 246880.0936 | V22: =$R22*(VLOOKUP($P22,class,8)/VLOOKUP($P22,class,4)) -> 178410.5368 | W22: =$R22*(VLOOKUP($P22,class,9)/VLOOKUP($P22,class,4)) -> 21013.97268 | X22: =$R22*(VLOOKUP($P22,class,10)/VLOOKUP($P22,class,4)) -> 1965.799261 | Y22: =$R22*(VLOOKUP($P22,class,11)/VLOOKUP($P22,class,4)) -> 0 | Z22: =$R22*(VLOOKUP($P22,class,12)/VLOOKUP($P22,class,4)) -> 0 | AA22: =$R22*(VLOOKUP($P22,class,13)/VLOOKUP($P22,class,4)) -> 0 | AB22: =$R22*(VLOOKUP($P22,class,14)/VLOOKUP($P22,class,4)) -> 0 | AC22: =$R22*(VLOOKUP($P22,class,15)/VLOOKUP($P22,class,4)) -> 0 | AH22: 22 | AI22: xxx | AJ22: =VLOOKUP(AI22,class,2) -> Open | AK22: 0 | AL22: 0 | BB22: 22 | BC22: D03 | BD22: NCP-w/o DA | BF22: =SUM(BG22:BQ22) -> 850668 | BG22: =BG20 -> 451201 | BH22: =BH20 -> 115667 | BI22: =BI20 -> 249852 | BJ22: 0 | BK22: =BK20 -> 28208 | BL22: 5740 | BM22: 0 | BN22: 0 | BO22: 0 | BP22: 0 | BQ22: 0 | BR22: NCP w/o Sch 25 12 Mo Avg
A23: 23 | B23: 513-MT | C23: Steam | D23: Electric Plant | F23: 1601000 | G23: 50133 | H23: Misc Rev | I23: 268000 | J23: 23 | L23: P | M23: =HLOOKUP("Factor Name",pfactor,4) -> Generation Level Consumption | N23: =IF(MATCH(P23,ref,0)>0,"","matching error") ->  | O23: =HLOOKUP(O21,pfactor,4) -> 62.35 | P23: =HLOOKUP("Class",pfactor,4) -> E02 | R23: =Q21*O23/SUM(O22:O25) -> 1841195.5 | S23: =$R23*(VLOOKUP($P23,class,5)/VLOOKUP($P23,class,4)) -> 772561.6901 | T23: =$R23*(VLOOKUP($P23,class,6)/VLOOKUP($P23,class,4)) -> 203860.1145 | U23: =$R23*(VLOOKUP($P23,class,7)/VLOOKUP($P23,class,4)) -> 460213.7348 | V23: =$R23*(VLOOKUP($P23,class,8)/VLOOKUP($P23,class,4)) -> 353331.4533 | W23: =$R23*(VLOOKUP($P23,class,9)/VLOOKUP($P23,class,4)) -> 43665.68197 | X23: =$R23*(VLOOKUP($P23,class,10)/VLOOKUP($P23,class,4)) -> 7562.825238 | Y23: =$R23*(VLOOKUP($P23,class,11)/VLOOKUP($P23,class,4)) -> 0 | Z23: =$R23*(VLOOKUP($P23,class,12)/VLOOKUP($P23,class,4)) -> 0 | AA23: =$R23*(VLOOKUP($P23,class,13)/VLOOKUP($P23,class,4)) -> 0 | AB23: =$R23*(VLOOKUP($P23,class,14)/VLOOKUP($P23,class,4)) -> 0 | AC23: =$R23*(VLOOKUP($P23,class,15)/VLOOKUP($P23,class,4)) -> 0 | AH23: 23 | AK23: LF PC All Tran | AL23: Avg PC | BB23: 23 | BE23: =IF(SUM(BG23:BQ23)=BF23,"","error") ->  | BF23: =BF22/$BF22 -> 1 | BG23: 0.5304078677 | BH23: 0.1359719656 | BI23: 0.2937127058 | BJ23: 0 | BK23: 0.03315982263 | BL23: 0.006747638327 | BM23: 0 | BN23: 0 | BO23: 0 | BP23: 0 | BQ23: 0
A24: 24 | B24: 514-MT | C24: Steam | D24: Miscellaneous Plant | F24: 1128000 | G24: 97742 | H24: Water Sales | I24: 305000 | J24: 24 | L24: P | M24: =HLOOKUP("Factor Name",pfactor,5) -> Open | N24: =IF(MATCH(P24,ref,0)>0,"","matching error") ->  | O24: =HLOOKUP(O21,pfactor,5) -> 0 | P24: =HLOOKUP("Class",pfactor,5) -> xxx | R24: =Q21*O24/SUM(O22:O25) -> 0 | S24: =$R24*(VLOOKUP($P24,class,5)/VLOOKUP($P24,class,4)) -> 0 | T24: =$R24*(VLOOKUP($P24,class,6)/VLOOKUP($P24,class,4)) -> 0 | U24: =$R24*(VLOOKUP($P24,class,7)/VLOOKUP($P24,class,4)) -> 0 | V24: =$R24*(VLOOKUP($P24,class,8)/VLOOKUP($P24,class,4)) -> 0 | W24: =$R24*(VLOOKUP($P24,class,9)/VLOOKUP($P24,class,4)) -> 0 | X24: =$R24*(VLOOKUP($P24,class,10)/VLOOKUP($P24,class,4)) -> 0 | Y24: =$R24*(VLOOKUP($P24,class,11)/VLOOKUP($P24,class,4)) -> 0 | Z24: =$R24*(VLOOKUP($P24,class,12)/VLOOKUP($P24,class,4)) -> 0 | AA24: =$R24*(VLOOKUP($P24,class,13)/VLOOKUP($P24,class,4)) -> 0 | AB24: =$R24*(VLOOKUP($P24,class,14)/VLOOKUP($P24,class,4)) -> 0 | AC24: =$R24*(VLOOKUP($P24,class,15)/VLOOKUP($P24,class,4)) -> 0 | AH24: 24 | AI24: Distribution Function Factor Table (dfactor) | BB24: 24 | BC24: D04 | BD24: DA Sch 25 | BF24: =SUM(BG24:BQ24) -> 100 | BJ24: 100 | BR24: Direct Assigned to Schedule 25 Customers
A25: 25 | C25: Total Steam Maintenance | H25: Rent | I25: 1815000 | J25: 25 | L25: P | M25: =HLOOKUP("Factor Name",pfactor,6) -> Open | N25: =IF(MATCH(P25,ref,0)>0,"","matching error") ->  | O25: =HLOOKUP(O21,pfactor,6) -> 0 | P25: =HLOOKUP("Class",pfactor,6) -> xxx | R25: =Q21*O25/SUM(O22:O25) -> 0 | S25: =$R25*(VLOOKUP($P25,class,5)/VLOOKUP($P25,class,4)) -> 0 | T25: =$R25*(VLOOKUP($P25,class,6)/VLOOKUP($P25,class,4)) -> 0 | U25: =$R25*(VLOOKUP($P25,class,7)/VLOOKUP($P25,class,4)) -> 0 | V25: =$R25*(VLOOKUP($P25,class,8)/VLOOKUP($P25,class,4)) -> 0 | W25: =$R25*(VLOOKUP($P25,class,9)/VLOOKUP($P25,class,4)) -> 0 | X25: =$R25*(VLOOKUP($P25,class,10)/VLOOKUP($P25,class,4)) -> 0 | Y25: =$R25*(VLOOKUP($P25,class,11)/VLOOKUP($P25,class,4)) -> 0 | Z25: =$R25*(VLOOKUP($P25,class,12)/VLOOKUP($P25,class,4)) -> 0 | AA25: =$R25*(VLOOKUP($P25,class,13)/VLOOKUP($P25,class,4)) -> 0 | AB25: =$R25*(VLOOKUP($P25,class,14)/VLOOKUP($P25,class,4)) -> 0 | AC25: =$R25*(VLOOKUP($P25,class,15)/VLOOKUP($P25,class,4)) -> 0 | AH25: 25 | AI25: Class | AJ25: Factor Name | AK25: X01 | AL25: X02 | AM25: X03 | AN25: X04 | AO25: X05 | AP25: X06 | AQ25: X07 | AR25: X08 | AS25: X09 | AT25: X10 | AU25: X11 | AV25: X12 | AW25: X13 | AX25: X14 | AY25: X15 | BB25: 25 | BE25: =IF(SUM(BG25:BQ25)=BF25,"","error") ->  | BF25: =BF24/$BF24 -> 1 | BG25: 0 | BH25: 0 | BI25: 0 | BJ25: 1 | BK25: 0 | BL25: 0 | BM25: 0 | BN25: 0 | BO25: 0 | BP25: 0 | BQ25: 0
A26: 26 | C26: Total Steam | H26: Wheeling Revenue | I26: 10644000 | J26: 26 | K26: =B14 -> 503-OP | L26: =C14 -> Steam | M26: =D14 -> From Other Sources | O26: P01 | P26: =IF(MATCH(O26,P_ref,0)>0,"","error matching functional allocator") ->  | Q26: =F14 -> 0 | AH26: 26 | AJ26: Total Factor | AK26: =SUM(AK27:AK36) -> 100 | AL26: 14663 | AM26: 82053 | AN26: 0 | AO26: 100 | AP26: 100 | AQ26: 100 | AR26: 100 | AS26: 100 | AT26: 100 | AU26: 100 | AV26: 100 | AW26: 0 | AX26: 0 | AY26: 0 | BB26: 26 | BC26: D05 | BD26: DA Sch 25I | BF26: =SUM(BG26:BQ26) -> 100 | BM26: 100 | BR26: Direct Assigned to Schedule 25I Customers (not used)
A27: 27 | H27: Other Rev | I27: 0 | J27: 27 | L27: P | M27: =HLOOKUP("Factor Name",pfactor,3) -> Coincident Peak | N27: =IF(MATCH(P27,ref,0)>0,"","matching error") ->  | O27: =HLOOKUP(O26,pfactor,3) -> 37.65 | P27: =HLOOKUP("Class",pfactor,3) -> D01 | R27: =Q26*O27/SUM(O27:O30) -> 0 | S27: =$R27*(VLOOKUP($P27,class,5)/VLOOKUP($P27,class,4)) -> 0 | T27: =$R27*(VLOOKUP($P27,class,6)/VLOOKUP($P27,class,4)) -> 0 | U27: =$R27*(VLOOKUP($P27,class,7)/VLOOKUP($P27,class,4)) -> 0 | V27: =$R27*(VLOOKUP($P27,class,8)/VLOOKUP($P27,class,4)) -> 0 | W27: =$R27*(VLOOKUP($P27,class,9)/VLOOKUP($P27,class,4)) -> 0 | X27: =$R27*(VLOOKUP($P27,class,10)/VLOOKUP($P27,class,4)) -> 0 | Y27: =$R27*(VLOOKUP($P27,class,11)/VLOOKUP($P27,class,4)) -> 0 | Z27: =$R27*(VLOOKUP($P27,class,12)/VLOOKUP($P27,class,4)) -> 0 | AA27: =$R27*(VLOOKUP($P27,class,13)/VLOOKUP($P27,class,4)) -> 0 | AB27: =$R27*(VLOOKUP($P27,class,14)/VLOOKUP($P27,class,4)) -> 0 | AC27: =$R27*(VLOOKUP($P27,class,15)/VLOOKUP($P27,class,4)) -> 0 | AH27: 27 | AI27: D02 | AJ27: =VLOOKUP(AI27,class,2) -> NCP-All | AK27: 0 | AL27: 0 | AM27: 0 | AO27: 0 | AP27: 0 | AQ27: 0 | AR27: 0 | AS27: 0 | BB27: 27 | BE27: =IF(SUM(BG27:BQ27)=BF27,"","error") ->  | BF27: =BF26/$BF26 -> 1 | BG27: 0 | BH27: 0 | BI27: 0 | BJ27: 0 | BK27: 0 | BL27: 0 | BM27: 1 | BN27: 0 | BO27: 0 | BP27: 0 | BQ27: 0
A28: 28 | B28: 535-OP | C28: Hydro | D28: Supervision & Engineering | F28: 1918000 | G28: 865512 | J28: 28 | L28: P | M28: =HLOOKUP("Factor Name",pfactor,4) -> Generation Level Consumption | N28: =IF(MATCH(P28,ref,0)>0,"","matching error") ->  | O28: =HLOOKUP(O26,pfactor,4) -> 62.35 | P28: =HLOOKUP("Class",pfactor,4) -> E02 | R28: =Q26*O28/SUM(O27:O30) -> 0 | S28: =$R28*(VLOOKUP($P28,class,5)/VLOOKUP($P28,class,4)) -> 0 | T28: =$R28*(VLOOKUP($P28,class,6)/VLOOKUP($P28,class,4)) -> 0 | U28: =$R28*(VLOOKUP($P28,class,7)/VLOOKUP($P28,class,4)) -> 0 | V28: =$R28*(VLOOKUP($P28,class,8)/VLOOKUP($P28,class,4)) -> 0 | W28: =$R28*(VLOOKUP($P28,class,9)/VLOOKUP($P28,class,4)) -> 0 | X28: =$R28*(VLOOKUP($P28,class,10)/VLOOKUP($P28,class,4)) -> 0 | Y28: =$R28*(VLOOKUP($P28,class,11)/VLOOKUP($P28,class,4)) -> 0 | Z28: =$R28*(VLOOKUP($P28,class,12)/VLOOKUP($P28,class,4)) -> 0 | AA28: =$R28*(VLOOKUP($P28,class,13)/VLOOKUP($P28,class,4)) -> 0 | AB28: =$R28*(VLOOKUP($P28,class,14)/VLOOKUP($P28,class,4)) -> 0 | AC28: =$R28*(VLOOKUP($P28,class,15)/VLOOKUP($P28,class,4)) -> 0 | AH28: 28 | AI28: D03 | AJ28: NCP-w/o DA | AK28: 0 | AL28: 13288 | AM28: 77026 | AO28: 90.27 | AP28: 95.34 | AQ28: 74.37 | AR28: 76.7 | AS28: 0 | BB28: 28 | BC28: D06 | BD28: NCP-Secondary | BF28: =SUM(BG28:BQ28) -> 824916 | BG28: =BG20 -> 451201 | BH28: =BH20 -> 115667 | BI28: 224100 | BJ28: 0 | BK28: =BK20 -> 28208 | BL28: =BL20 -> 5740 | BM28: 0 | BN28: 0 | BO28: 0 | BP28: 0 | BQ28: 0 | BR28: Non-Coincident Peak Secondary12 Mo Avg
A29: 29 | B29: 536-OP | C29: Hydro | D29: Water For Power | F29: 737000 | G29: 5797 | J29: 29 | L29: P | M29: =HLOOKUP("Factor Name",pfactor,5) -> Open | N29: =IF(MATCH(P29,ref,0)>0,"","matching error") ->  | O29: =HLOOKUP(O26,pfactor,5) -> 0 | P29: =HLOOKUP("Class",pfactor,5) -> xxx | R29: =Q26*O29/SUM(O27:O30) -> 0 | S29: =$R29*(VLOOKUP($P29,class,5)/VLOOKUP($P29,class,4)) -> 0 | T29: =$R29*(VLOOKUP($P29,class,6)/VLOOKUP($P29,class,4)) -> 0 | U29: =$R29*(VLOOKUP($P29,class,7)/VLOOKUP($P29,class,4)) -> 0 | V29: =$R29*(VLOOKUP($P29,class,8)/VLOOKUP($P29,class,4)) -> 0 | W29: =$R29*(VLOOKUP($P29,class,9)/VLOOKUP($P29,class,4)) -> 0 | X29: =$R29*(VLOOKUP($P29,class,10)/VLOOKUP($P29,class,4)) -> 0 | Y29: =$R29*(VLOOKUP($P29,class,11)/VLOOKUP($P29,class,4)) -> 0 | Z29: =$R29*(VLOOKUP($P29,class,12)/VLOOKUP($P29,class,4)) -> 0 | AA29: =$R29*(VLOOKUP($P29,class,13)/VLOOKUP($P29,class,4)) -> 0 | AB29: =$R29*(VLOOKUP($P29,class,14)/VLOOKUP($P29,class,4)) -> 0 | AC29: =$R29*(VLOOKUP($P29,class,15)/VLOOKUP($P29,class,4)) -> 0 | AH29: 29 | AI29: D04 | AJ29: DA Sch 25 | AK29: 0 | AL29: 1375 | AM29: 5027 | AO29: 3.95 | AP29: 4.24 | AQ29: 3.84 | AR29: 4.33 | AS29: 0 | BB29: 29 | BE29: =IF(SUM(BG29:BQ29)=BF29,"","error") ->  | BF29: =BF28/$BF28 -> 1 | BG29: 0.5469659941 | BH29: 0.1402167009 | BI29: 0.271664024 | BJ29: 0 | BK29: 0.03419499682 | BL29: 0.006958284237 | BM29: 0 | BN29: 0 | BO29: 0 | BP29: 0 | BQ29: 0
A30: 30 | B30: 537-OP | C30: Hydro | D30: Hydraulic Expenses | F30: 5784000 | G30: 350224 | J30: 30 | L30: P | M30: =HLOOKUP("Factor Name",pfactor,6) -> Open | N30: =IF(MATCH(P30,ref,0)>0,"","matching error") ->  | O30: =HLOOKUP(O26,pfactor,6) -> 0 | P30: =HLOOKUP("Class",pfactor,6) -> xxx | R30: =Q26*O30/SUM(O27:O30) -> 0 | S30: =$R30*(VLOOKUP($P30,class,5)/VLOOKUP($P30,class,4)) -> 0 | T30: =$R30*(VLOOKUP($P30,class,6)/VLOOKUP($P30,class,4)) -> 0 | U30: =$R30*(VLOOKUP($P30,class,7)/VLOOKUP($P30,class,4)) -> 0 | V30: =$R30*(VLOOKUP($P30,class,8)/VLOOKUP($P30,class,4)) -> 0 | W30: =$R30*(VLOOKUP($P30,class,9)/VLOOKUP($P30,class,4)) -> 0 | X30: =$R30*(VLOOKUP($P30,class,10)/VLOOKUP($P30,class,4)) -> 0 | Y30: =$R30*(VLOOKUP($P30,class,11)/VLOOKUP($P30,class,4)) -> 0 | Z30: =$R30*(VLOOKUP($P30,class,12)/VLOOKUP($P30,class,4)) -> 0 | AA30: =$R30*(VLOOKUP($P30,class,13)/VLOOKUP($P30,class,4)) -> 0 | AB30: =$R30*(VLOOKUP($P30,class,14)/VLOOKUP($P30,class,4)) -> 0 | AC30: =$R30*(VLOOKUP($P30,class,15)/VLOOKUP($P30,class,4)) -> 0 | AH30: 30 | AI30: D07 | AJ30: DA Street and Area Lights | AK30: 0 | AL30: 0 | AM30: 0 | AO30: 5.02 | AP30: 0 | AQ30: 0 | AR30: 0 | AS30: 0 | BB30: 30 | BC30: D07 | BD30: DA Street and Area Lights | BF30: =SUM(BG30:BQ30) -> 100 | BL30: 100 | BR30: Direct Assigned to Street & Area Lights
A31: 31 | B31: 538-OP | C31: Hydro | D31: Electric Expenses | F31: 4874000 | G31: 3182573 | J31: 31 | K31: =B15 -> 504-OP | L31: =C15 -> Steam | M31: =D15 -> Steam Transferred-CR | O31: P01 | P31: =IF(MATCH(O31,P_ref,0)>0,"","error matching functional allocator") ->  | Q31: =F15 -> 0 | AH31: 31 | AI31: C02 | AJ31: Avg Customers-Secondary | AK31: 0 | AL31: 0 | AM31: 0 | AO31: 0 | AP31: 0 | AQ31: 0 | AR31: 0 | AS31: 0 | AT31: 100 | BB31: 31 | BF31: =BF30/$BF30 -> 1 | BG31: 0 | BH31: 0 | BI31: 0 | BJ31: 0 | BK31: 0 | BL31: 1 | BM31: 0 | BN31: 0 | BO31: 0 | BP31: 0 | BQ31: 0
A32: 32 | B32: 539-OP | C32: Hydro | D32: Miscellaneous Power Exp. | F32: 603000 | G32: 94772 | J32: 32 | L32: P | M32: =HLOOKUP("Factor Name",pfactor,3) -> Coincident Peak | N32: =IF(MATCH(P32,ref,0)>0,"","matching error") ->  | O32: =HLOOKUP(O31,pfactor,3) -> 37.65 | P32: =HLOOKUP("Class",pfactor,3) -> D01 | R32: =Q31*O32/SUM(O32:O35) -> 0 | S32: =$R32*(VLOOKUP($P32,class,5)/VLOOKUP($P32,class,4)) -> 0 | T32: =$R32*(VLOOKUP($P32,class,6)/VLOOKUP($P32,class,4)) -> 0 | U32: =$R32*(VLOOKUP($P32,class,7)/VLOOKUP($P32,class,4)) -> 0 | V32: =$R32*(VLOOKUP($P32,class,8)/VLOOKUP($P32,class,4)) -> 0 | W32: =$R32*(VLOOKUP($P32,class,9)/VLOOKUP($P32,class,4)) -> 0 | X32: =$R32*(VLOOKUP($P32,class,10)/VLOOKUP($P32,class,4)) -> 0 | Y32: =$R32*(VLOOKUP($P32,class,11)/VLOOKUP($P32,class,4)) -> 0 | Z32: =$R32*(VLOOKUP($P32,class,12)/VLOOKUP($P32,class,4)) -> 0 | AA32: =$R32*(VLOOKUP($P32,class,13)/VLOOKUP($P32,class,4)) -> 0 | AB32: =$R32*(VLOOKUP($P32,class,14)/VLOOKUP($P32,class,4)) -> 0 | AC32: =$R32*(VLOOKUP($P32,class,15)/VLOOKUP($P32,class,4)) -> 0 | AH32: 32 | AI32: C04 | AJ32: Wt Customers-Meters | AK32: 0 | AL32: 0 | AM32: 0 | AO32: 0 | AP32: 0 | AQ32: 0 | AR32: 0 | AS32: 0 | AU32: 100 | BB32: 32 | BC32: D08 | BD32: NCP-Primary | BF32: =SUM(BG32:BQ32) -> 944719 | BG32: =BG20 -> 451201 | BH32: =BH20 -> 115667 | BI32: =BI20 -> 249852 | BJ32: =84712+11259-1920 -> 94051 | BK32: =BK20 -> 28208 | BL32: 5740 | BM32: 0 | BN32: 0 | BO32: 0 | BP32: 0 | BQ32: 0 | BR32: Non-Coincident Peak Primary 12 Mo Avg
A33: 33 | B33: 540-OP | C33: Hydro | D33: Rents | F33: 4250000 | G33: 0 | J33: 33 | L33: P | M33: =HLOOKUP("Factor Name",pfactor,4) -> Generation Level Consumption | N33: =IF(MATCH(P33,ref,0)>0,"","matching error") ->  | O33: =HLOOKUP(O31,pfactor,4) -> 62.35 | P33: =HLOOKUP("Class",pfactor,4) -> E02 | R33: =Q31*O33/SUM(O32:O35) -> 0 | S33: =$R33*(VLOOKUP($P33,class,5)/VLOOKUP($P33,class,4)) -> 0 | T33: =$R33*(VLOOKUP($P33,class,6)/VLOOKUP($P33,class,4)) -> 0 | U33: =$R33*(VLOOKUP($P33,class,7)/VLOOKUP($P33,class,4)) -> 0 | V33: =$R33*(VLOOKUP($P33,class,8)/VLOOKUP($P33,class,4)) -> 0 | W33: =$R33*(VLOOKUP($P33,class,9)/VLOOKUP($P33,class,4)) -> 0 | X33: =$R33*(VLOOKUP($P33,class,10)/VLOOKUP($P33,class,4)) -> 0 | Y33: =$R33*(VLOOKUP($P33,class,11)/VLOOKUP($P33,class,4)) -> 0 | Z33: =$R33*(VLOOKUP($P33,class,12)/VLOOKUP($P33,class,4)) -> 0 | AA33: =$R33*(VLOOKUP($P33,class,13)/VLOOKUP($P33,class,4)) -> 0 | AB33: =$R33*(VLOOKUP($P33,class,14)/VLOOKUP($P33,class,4)) -> 0 | AC33: =$R33*(VLOOKUP($P33,class,15)/VLOOKUP($P33,class,4)) -> 0 | AH33: 33 | AI33: C05 | AJ33: DA Street & Area Lights | AK33: 0 | AL33: 0 | AM33: 0 | AO33: 0 | AP33: 0 | AQ33: 0 | AR33: 0 | AS33: 0 | AV33: 100 | BB33: 33 | BF33: =BF32/$BF32 -> 1 | BG33: 0.4776033932 | BH33: 0.1224353485 | BI33: 0.2644722928 | BJ33: 0.09955447069 | BK33: 0.02985861404 | BL33: 0.006075880765 | BM33: 0 | BN33: 0 | BO33: 0 | BP33: 0 | BQ33: 0
A34: 34 | C34: Total Hydraulic Operation | J34: 34 | L34: P | M34: =HLOOKUP("Factor Name",pfactor,5) -> Open | N34: =IF(MATCH(P34,ref,0)>0,"","matching error") ->  | O34: =HLOOKUP(O31,pfactor,5) -> 0 | P34: =HLOOKUP("Class",pfactor,5) -> xxx | R34: =Q31*O34/SUM(O32:O35) -> 0 | S34: =$R34*(VLOOKUP($P34,class,5)/VLOOKUP($P34,class,4)) -> 0 | T34: =$R34*(VLOOKUP($P34,class,6)/VLOOKUP($P34,class,4)) -> 0 | U34: =$R34*(VLOOKUP($P34,class,7)/VLOOKUP($P34,class,4)) -> 0 | V34: =$R34*(VLOOKUP($P34,class,8)/VLOOKUP($P34,class,4)) -> 0 | W34: =$R34*(VLOOKUP($P34,class,9)/VLOOKUP($P34,class,4)) -> 0 | X34: =$R34*(VLOOKUP($P34,class,10)/VLOOKUP($P34,class,4)) -> 0 | Y34: =$R34*(VLOOKUP($P34,class,11)/VLOOKUP($P34,class,4)) -> 0 | Z34: =$R34*(VLOOKUP($P34,class,12)/VLOOKUP($P34,class,4)) -> 0 | AA34: =$R34*(VLOOKUP($P34,class,13)/VLOOKUP($P34,class,4)) -> 0 | AB34: =$R34*(VLOOKUP($P34,class,14)/VLOOKUP($P34,class,4)) -> 0 | AC34: =$R34*(VLOOKUP($P34,class,15)/VLOOKUP($P34,class,4)) -> 0 | AH34: 34 | AI34: D05 | AJ34: DA Sch 25I | AK34: 0 | AL34: 0 | AM34: 0 | AO34: 0 | AP34: 0 | AQ34: 0 | AR34: 0 | AS34: 0 | BB34: 34
A35: 35 | B35: 541-MT | C35: Hydro | D35: Supervision & Engineering | F35: 603000 | G35: 338344 | J35: 35 | L35: P | M35: =HLOOKUP("Factor Name",pfactor,6) -> Open | N35: =IF(MATCH(P35,ref,0)>0,"","matching error") ->  | O35: =HLOOKUP(O31,pfactor,6) -> 0 | P35: =HLOOKUP("Class",pfactor,6) -> xxx | R35: =Q31*O35/SUM(O32:O35) -> 0 | S35: =$R35*(VLOOKUP($P35,class,5)/VLOOKUP($P35,class,4)) -> 0 | T35: =$R35*(VLOOKUP($P35,class,6)/VLOOKUP($P35,class,4)) -> 0 | U35: =$R35*(VLOOKUP($P35,class,7)/VLOOKUP($P35,class,4)) -> 0 | V35: =$R35*(VLOOKUP($P35,class,8)/VLOOKUP($P35,class,4)) -> 0 | W35: =$R35*(VLOOKUP($P35,class,9)/VLOOKUP($P35,class,4)) -> 0 | X35: =$R35*(VLOOKUP($P35,class,10)/VLOOKUP($P35,class,4)) -> 0 | Y35: =$R35*(VLOOKUP($P35,class,11)/VLOOKUP($P35,class,4)) -> 0 | Z35: =$R35*(VLOOKUP($P35,class,12)/VLOOKUP($P35,class,4)) -> 0 | AA35: =$R35*(VLOOKUP($P35,class,13)/VLOOKUP($P35,class,4)) -> 0 | AB35: =$R35*(VLOOKUP($P35,class,14)/VLOOKUP($P35,class,4)) -> 0 | AC35: =$R35*(VLOOKUP($P35,class,15)/VLOOKUP($P35,class,4)) -> 0 | AH35: 35 | AI35: D06 | AJ35: NCP-Secondary | AK35: 0 | AL35: 0 | AM35: 0 | AO35: 0.76 | AP35: 0.42 | AQ35: 21.79 | AR35: 18.97 | AS35: 100 | BB35: 35 | BD35: Customer Allocators
A36: 36 | B36: 542-MT | C36: Hydro | D36: Structures | F36: 344000 | G36: 101267 | H36: Error Messages | J36: 36 | K36: =B16 -> 505-OP | L36: =C16 -> Steam | M36: =D16 -> Electric Expenses | O36: P01 | P36: =IF(MATCH(O36,P_ref,0)>0,"","error matching functional allocator") ->  | Q36: =F16 -> 810000 | AH36: 36 | AI36: D08 | AJ36: NCP-Primary | AK36: 100 | AL36: 0 | AM36: 0 | AO36: 0 | AP36: 0 | AQ36: 0 | AR36: 0 | AS36: 0 | BB36: 36 | BC36: C01 | BD36: =BD54 -> Avg Customers-All | BF36: =SUM(BG36:BQ36) -> 245916.3333 | BG36: =BG54*BG$51 -> 209864.25 | BH36: 31286.33333 | BI36: 1903 | BJ36: 21 | BK36: 2432.75 | BL36: 409 | BM36: 0 | BN36: 0 | BO36: 0 | BP36: 0 | BQ36: 0 | BR36: =BR54 -> Unweighted
A37: 37 | B37: 543-MT | C37: Hydro | D37: Reservoirs, Dams & Waterways | F37: 1581000 | G37: 384788 | H37: =IF(I10=ROUND(R1474,0),"Total Rate Base Matches Checker","ERROR! TOTAL RATE BASE DOES NOT MATCH CHECKER") -> Total Rate Base Matches Checker | I37: 1 | J37: 37 | L37: P | M37: =HLOOKUP("Factor Name",pfactor,3) -> Coincident Peak | N37: =IF(MATCH(P37,ref,0)>0,"","matching error") ->  | O37: =HLOOKUP(O36,pfactor,3) -> 37.65 | P37: =HLOOKUP("Class",pfactor,3) -> D01 | R37: =Q36*O37/SUM(O37:O40) -> 304965 | S37: =$R37*(VLOOKUP($P37,class,5)/VLOOKUP($P37,class,4)) -> 150740.7657 | T37: =$R37*(VLOOKUP($P37,class,6)/VLOOKUP($P37,class,4)) -> 31264.86221 | U37: =$R37*(VLOOKUP($P37,class,7)/VLOOKUP($P37,class,4)) -> 67718.5492 | V37: =$R37*(VLOOKUP($P37,class,8)/VLOOKUP($P37,class,4)) -> 48937.53296 | W37: =$R37*(VLOOKUP($P37,class,9)/VLOOKUP($P37,class,4)) -> 5764.076488 | X37: =$R37*(VLOOKUP($P37,class,10)/VLOOKUP($P37,class,4)) -> 539.2134783 | Y37: =$R37*(VLOOKUP($P37,class,11)/VLOOKUP($P37,class,4)) -> 0 | Z37: =$R37*(VLOOKUP($P37,class,12)/VLOOKUP($P37,class,4)) -> 0 | AA37: =$R37*(VLOOKUP($P37,class,13)/VLOOKUP($P37,class,4)) -> 0 | AB37: =$R37*(VLOOKUP($P37,class,14)/VLOOKUP($P37,class,4)) -> 0 | AC37: =$R37*(VLOOKUP($P37,class,15)/VLOOKUP($P37,class,4)) -> 0 | AH37: 37 | AK37: #360 | AL37: #361 | AM37: #362 | AO37: #364 | AP37: #365 | AQ37: #366 | AR37: #367 | AS37: #368 | AT37: #369 | AU37: #370 | AV37: #373 | BB37: 37 | BE37: =IF(SUM(BG37:BQ37)=BF37,"","error") ->  | BF37: =BF36/$BF36 -> 1 | BG37: 0.8533969548 | BH37: 0.1272234866 | BI37: 0.007738404254 | BJ37: 8.539489718e-05 | BK37: 0.009892592196 | BL37: 0.001663167283 | BM37: 0 | BN37: 0 | BO37: 0 | BP37: 0 | BQ37: 0
A38: 38 | B38: 544-MT | C38: Hydro | D38: Electric Plant | F38: 2072000 | G38: 1080546 | H38: =IF(I11=ROUND(R816,0),"Total Operating Expense Matches Checker","ERROR! TOTAL OPERATING EXP DOES NOT MATCH CHECKER") -> Total Operating Expense Matches Checker | I38: 2 | J38: 38 | L38: P | M38: =HLOOKUP("Factor Name",pfactor,4) -> Generation Level Consumption | N38: =IF(MATCH(P38,ref,0)>0,"","matching error") ->  | O38: =HLOOKUP(O36,pfactor,4) -> 62.35 | P38: =HLOOKUP("Class",pfactor,4) -> E02 | R38: =Q36*O38/SUM(O37:O40) -> 505035 | S38: =$R38*(VLOOKUP($P38,class,5)/VLOOKUP($P38,class,4)) -> 211911.6048 | T38: =$R38*(VLOOKUP($P38,class,6)/VLOOKUP($P38,class,4)) -> 55918.28404 | U38: =$R38*(VLOOKUP($P38,class,7)/VLOOKUP($P38,class,4)) -> 126235.3963 | V38: =$R38*(VLOOKUP($P38,class,8)/VLOOKUP($P38,class,4)) -> 96917.8724 | W38: =$R38*(VLOOKUP($P38,class,9)/VLOOKUP($P38,class,4)) -> 11977.37975 | X38: =$R38*(VLOOKUP($P38,class,10)/VLOOKUP($P38,class,4)) -> 2074.462731 | Y38: =$R38*(VLOOKUP($P38,class,11)/VLOOKUP($P38,class,4)) -> 0 | Z38: =$R38*(VLOOKUP($P38,class,12)/VLOOKUP($P38,class,4)) -> 0 | AA38: =$R38*(VLOOKUP($P38,class,13)/VLOOKUP($P38,class,4)) -> 0 | AB38: =$R38*(VLOOKUP($P38,class,14)/VLOOKUP($P38,class,4)) -> 0 | AC38: =$R38*(VLOOKUP($P38,class,15)/VLOOKUP($P38,class,4)) -> 0 | AH38: 38 | AI38: Customer Accounting Function Factor Table (afactor) | BB38: 38 | BC38: C02 | BD38: =BD55 -> Avg Customers-Secondary | BF38: =SUM(BG38:BQ38) -> 245447.3333 | BG38: =BG55*BG$51 -> 209864.25 | BH38: =BH55*BH$51 -> 31286.33333 | BI38: =BI55*(BI$51-39) -> 1864 | BJ38: =BJ55*BJ$51 -> 0 | BK38: 2432.75 | BL38: 0 | BM38: 0 | BN38: 0 | BO38: 0 | BP38: 0 | BQ38: 0 | BR38: =BR55 -> Unweighted Secondary w/o Lighting
A39: 39 | B39: 545-MT | C39: Hydro | D39: Miscellaneous Plant | F39: 489000 | G39: 234783 | H39: =IF(I12=-ROUND(R844,0),"Total Operating Revenue Matches Checker","ERROR! TOTAL REVENUE DOES NOT MATCH CHECKER") -> Total Operating Revenue Matches Checker | I39: 3 | J39: 39 | L39: P | M39: =HLOOKUP("Factor Name",pfactor,5) -> Open | N39: =IF(MATCH(P39,ref,0)>0,"","matching error") ->  | O39: =HLOOKUP(O36,pfactor,5) -> 0 | P39: =HLOOKUP("Class",pfactor,5) -> xxx | R39: =Q36*O39/SUM(O37:O40) -> 0 | S39: =$R39*(VLOOKUP($P39,class,5)/VLOOKUP($P39,class,4)) -> 0 | T39: =$R39*(VLOOKUP($P39,class,6)/VLOOKUP($P39,class,4)) -> 0 | U39: =$R39*(VLOOKUP($P39,class,7)/VLOOKUP($P39,class,4)) -> 0 | V39: =$R39*(VLOOKUP($P39,class,8)/VLOOKUP($P39,class,4)) -> 0 | W39: =$R39*(VLOOKUP($P39,class,9)/VLOOKUP($P39,class,4)) -> 0 | X39: =$R39*(VLOOKUP($P39,class,10)/VLOOKUP($P39,class,4)) -> 0 | Y39: =$R39*(VLOOKUP($P39,class,11)/VLOOKUP($P39,class,4)) -> 0 | Z39: =$R39*(VLOOKUP($P39,class,12)/VLOOKUP($P39,class,4)) -> 0 | AA39: =$R39*(VLOOKUP($P39,class,13)/VLOOKUP($P39,class,4)) -> 0 | AB39: =$R39*(VLOOKUP($P39,class,14)/VLOOKUP($P39,class,4)) -> 0 | AC39: =$R39*(VLOOKUP($P39,class,15)/VLOOKUP($P39,class,4)) -> 0 | AH39: 39 | AI39: Class | AJ39: Factor Name | AK39: K01 | AL39: K02 | AM39: K03 | AN39: K04 | BB39: 39 | BE39: =IF(SUM(BG39:BQ39)=BF39,"","error") ->  | BF39: =BF38/$BF38 -> 1 | BG39: 0.855027623 | BH39: 0.1274665848 | BI39: 0.007594297215 | BJ39: 0 | BK39: 0.00991149493 | BL39: 0 | BM39: 0 | BN39: 0 | BO39: 0 | BP39: 0 | BQ39: 0
A40: 40 | C40: Total Hydraulic Maintenance | H40: =IF(I13=-ROUND(R846,0),"Net Income Matches Checker","ERROR! NET INCOME DOES NOT MATCH CHECKER") -> Net Income Matches Checker | I40: 4 | J40: 40 | L40: P | M40: =HLOOKUP("Factor Name",pfactor,6) -> Open | N40: =IF(MATCH(P40,ref,0)>0,"","matching error") ->  | O40: =HLOOKUP(O36,pfactor,6) -> 0 | P40: =HLOOKUP("Class",pfactor,6) -> xxx | R40: =Q36*O40/SUM(O37:O40) -> 0 | S40: =$R40*(VLOOKUP($P40,class,5)/VLOOKUP($P40,class,4)) -> 0 | T40: =$R40*(VLOOKUP($P40,class,6)/VLOOKUP($P40,class,4)) -> 0 | U40: =$R40*(VLOOKUP($P40,class,7)/VLOOKUP($P40,class,4)) -> 0 | V40: =$R40*(VLOOKUP($P40,class,8)/VLOOKUP($P40,class,4)) -> 0 | W40: =$R40*(VLOOKUP($P40,class,9)/VLOOKUP($P40,class,4)) -> 0 | X40: =$R40*(VLOOKUP($P40,class,10)/VLOOKUP($P40,class,4)) -> 0 | Y40: =$R40*(VLOOKUP($P40,class,11)/VLOOKUP($P40,class,4)) -> 0 | Z40: =$R40*(VLOOKUP($P40,class,12)/VLOOKUP($P40,class,4)) -> 0 | AA40: =$R40*(VLOOKUP($P40,class,13)/VLOOKUP($P40,class,4)) -> 0 | AB40: =$R40*(VLOOKUP($P40,class,14)/VLOOKUP($P40,class,4)) -> 0 | AC40: =$R40*(VLOOKUP($P40,class,15)/VLOOKUP($P40,class,4)) -> 0 | AH40: 40 | AJ40: Total Factor | AK40: =AK41+AK42+AK43+AK44 -> 100 | AL40: =AL41+AL42+AL43+AL44 -> 100 | AM40: =AM41+AM42+AM43+AM44 -> 100 | AN40: =AN41+AN42+AN43+AN44 -> 0 | BB40: 40 | BC40: C03 | BD40: =BD56 -> Wt Customers-Meter Reading | BF40: =SUM(BG40:BQ40) -> 245507.3333 | BG40: =BG56*BG$51 -> 209864.25 | BH40: 31286.33333 | BI40: 1903 | BJ40: 21 | BK40: 2432.75 | BL40: 0 | BM40: 0 | BN40: 0 | BO40: 0 | BP40: 0 | BQ40: 0 | BR40: =BR56 -> Est. Meter Reading Time
A41: 41 | C41: Total Hydraulic | H41: =IF(I19=-ROUND(R820,0),"Retail Sales Revenue Matches Checker","ERROR! RETAIL SALES REVENUE DOES NOT MATCH CHECKER") -> Retail Sales Revenue Matches Checker | I41: 5 | J41: 41 | K41: =B17 -> 506-OP | L41: =C17 -> Steam | M41: =D17 -> Miscellaneous Power Exp. | O41: P01 | P41: =IF(MATCH(O41,P_ref,0)>0,"","error matching functional allocator") ->  | Q41: =F17 -> 2165000 | AH41: 41 | AI41: C01 | AJ41: =VLOOKUP(AI41,class,2) -> Avg Customers-All | AK41: 100 | AL41: 0 | AM41: 99.949436 | BB41: 41 | BE41: =IF(SUM(BG41:BQ41)=BF41,"","error") ->  | BF41: =BF40/$BF40 -> 1 | BG41: 0.8548186612 | BH41: 0.127435433 | BI41: 0.007751295956 | BJ41: 8.553715979e-05 | BK41: 0.009909072641 | BL41: 0 | BM41: 0 | BN41: 0 | BO41: 0 | BP41: 0 | BQ41: 0
A42: 42 | I42: 6 | J42: 42 | L42: P | M42: =HLOOKUP("Factor Name",pfactor,3) -> Coincident Peak | N42: =IF(MATCH(P42,ref,0)>0,"","matching error") ->  | O42: =HLOOKUP(O41,pfactor,3) -> 37.65 | P42: =HLOOKUP("Class",pfactor,3) -> D01 | R42: =Q41*O42/SUM(O42:O45) -> 815122.5 | S42: =$R42*(VLOOKUP($P42,class,5)/VLOOKUP($P42,class,4)) -> 402905.8737 | T42: =$R42*(VLOOKUP($P42,class,6)/VLOOKUP($P42,class,4)) -> 83565.95886 | U42: =$R42*(VLOOKUP($P42,class,7)/VLOOKUP($P42,class,4)) -> 181000.8136 | V42: =$R42*(VLOOKUP($P42,class,8)/VLOOKUP($P42,class,4)) -> 130802.1714 | W42: =$R42*(VLOOKUP($P42,class,9)/VLOOKUP($P42,class,4)) -> 15406.45135 | X42: =$R42*(VLOOKUP($P42,class,10)/VLOOKUP($P42,class,4)) -> 1441.231087 | Y42: =$R42*(VLOOKUP($P42,class,11)/VLOOKUP($P42,class,4)) -> 0 | Z42: =$R42*(VLOOKUP($P42,class,12)/VLOOKUP($P42,class,4)) -> 0 | AA42: =$R42*(VLOOKUP($P42,class,13)/VLOOKUP($P42,class,4)) -> 0 | AB42: =$R42*(VLOOKUP($P42,class,14)/VLOOKUP($P42,class,4)) -> 0 | AC42: =$R42*(VLOOKUP($P42,class,15)/VLOOKUP($P42,class,4)) -> 0 | AH42: 42 | AI42: C03 | AJ42: =VLOOKUP(AI42,class,2) -> Wt Customers-Meter Reading | AK42: 0 | AL42: 97.33104 | AM42: 0 | BB42: 42 | BC42: C04 | BD42: =BD57 -> Wt Customers-Meters | BF42: =SUM(BG42:BQ42) -> 306221.7375 | BG42: =BG57*BG$51 -> 209864.25 | BH42: 69455.66 | BI42: 17107.97 | BJ42: 427.77 | BK42: 9366.0875 | BL42: 0 | BM42: 0 | BN42: 0 | BO42: 0 | BP42: 0 | BQ42: 0 | BR42: =BR57 -> Proportion Installed Meter Costs
A43: 43 | B43: 546-OP | C43: Other | D43: Supervision & Engineering | F43: 106000 | G43: 97319 | I43: 7 | J43: 43 | L43: P | M43: =HLOOKUP("Factor Name",pfactor,4) -> Generation Level Consumption | N43: =IF(MATCH(P43,ref,0)>0,"","matching error") ->  | O43: =HLOOKUP(O41,pfactor,4) -> 62.35 | P43: =HLOOKUP("Class",pfactor,4) -> E02 | R43: =Q41*O43/SUM(O42:O45) -> 1349877.5 | S43: =$R43*(VLOOKUP($P43,class,5)/VLOOKUP($P43,class,4)) -> 566405.7091 | T43: =$R43*(VLOOKUP($P43,class,6)/VLOOKUP($P43,class,4)) -> 149460.5987 | U43: =$R43*(VLOOKUP($P43,class,7)/VLOOKUP($P43,class,4)) -> 337406.9542 | V43: =$R43*(VLOOKUP($P43,class,8)/VLOOKUP($P43,class,4)) -> 259045.9182 | W43: =$R43*(VLOOKUP($P43,class,9)/VLOOKUP($P43,class,4)) -> 32013.61377 | X43: =$R43*(VLOOKUP($P43,class,10)/VLOOKUP($P43,class,4)) -> 5544.70594 | Y43: =$R43*(VLOOKUP($P43,class,11)/VLOOKUP($P43,class,4)) -> 0 | Z43: =$R43*(VLOOKUP($P43,class,12)/VLOOKUP($P43,class,4)) -> 0 | AA43: =$R43*(VLOOKUP($P43,class,13)/VLOOKUP($P43,class,4)) -> 0 | AB43: =$R43*(VLOOKUP($P43,class,14)/VLOOKUP($P43,class,4)) -> 0 | AC43: =$R43*(VLOOKUP($P43,class,15)/VLOOKUP($P43,class,4)) -> 0 | AH43: 43 | AI43: C06 | AJ43: =VLOOKUP(AI43,class,2) -> DA Handbilled | AK43: 0 | AL43: 2.66896 | AM43: 0.050564 | BB43: 43 | BE43: =IF(SUM(BG43:BQ43)=BF43,"","error") ->  | BF43: =BF42/$BF42 -> 1 | BG43: 0.685334267 | BH43: 0.2268149236 | BI43: 0.05586791499 | BJ43: 0.001396928917 | BK43: 0.0305859655 | BL43: 0 | BM43: 0 | BN43: 0 | BO43: 0 | BP43: 0 | BQ43: 0
A44: 44 | B44: 547-OP | C44: Other | D44: Fuel | F44: 46054000 | G44: 0 | H44: =IF(I21=-ROUND(R823,0),"Sales For Resale Revenue Matches Checker","ERROR! SALES FOR RESALE REV DOES NOT MATCH CHECKER") -> Sales For Resale Revenue Matches Checker | I44: 8 | J44: 44 | L44: P | M44: =HLOOKUP("Factor Name",pfactor,5) -> Open | N44: =IF(MATCH(P44,ref,0)>0,"","matching error") ->  | O44: =HLOOKUP(O41,pfactor,5) -> 0 | P44: =HLOOKUP("Class",pfactor,5) -> xxx | R44: =Q41*O44/SUM(O42:O45) -> 0 | S44: =$R44*(VLOOKUP($P44,class,5)/VLOOKUP($P44,class,4)) -> 0 | T44: =$R44*(VLOOKUP($P44,class,6)/VLOOKUP($P44,class,4)) -> 0 | U44: =$R44*(VLOOKUP($P44,class,7)/VLOOKUP($P44,class,4)) -> 0 | V44: =$R44*(VLOOKUP($P44,class,8)/VLOOKUP($P44,class,4)) -> 0 | W44: =$R44*(VLOOKUP($P44,class,9)/VLOOKUP($P44,class,4)) -> 0 | X44: =$R44*(VLOOKUP($P44,class,10)/VLOOKUP($P44,class,4)) -> 0 | Y44: =$R44*(VLOOKUP($P44,class,11)/VLOOKUP($P44,class,4)) -> 0 | Z44: =$R44*(VLOOKUP($P44,class,12)/VLOOKUP($P44,class,4)) -> 0 | AA44: =$R44*(VLOOKUP($P44,class,13)/VLOOKUP($P44,class,4)) -> 0 | AB44: =$R44*(VLOOKUP($P44,class,14)/VLOOKUP($P44,class,4)) -> 0 | AC44: =$R44*(VLOOKUP($P44,class,15)/VLOOKUP($P44,class,4)) -> 0 | AH44: 44 | AI44: xxx | AJ44: =VLOOKUP(AI44,class,2) -> Open | AK44: 0 | AL44: 0 | AM44: 0 | BB44: 44 | BC44: C05 | BD44: =BD58 -> DA Street & Area Lights | BF44: =SUM(BG44:BQ44) -> 409 | BG44: =BG58*BG$51 -> 0 | BH44: 0 | BI44: 0 | BJ44: 0 | BK44: 0 | BL44: 409 | BM44: 0 | BN44: 0 | BO44: 0 | BP44: 0 | BQ44: 0 | BR44: =BR58 -> Direct Assigned to Street & Area Lights
A45: 45 | B45: 548-OP | C45: Other | D45: Generation Expenses | F45: 3970000 | G45: 179181 | H45: =IF(I24=-ROUND(R831,0),"Sales of Water Revenue Matches Checker","ERROR! SALES OF WATER REV DOES NOT MATCH CHECKER") -> Sales of Water Revenue Matches Checker | I45: 9 | J45: 45 | L45: P | M45: =HLOOKUP("Factor Name",pfactor,6) -> Open | N45: =IF(MATCH(P45,ref,0)>0,"","matching error") ->  | O45: =HLOOKUP(O41,pfactor,6) -> 0 | P45: =HLOOKUP("Class",pfactor,6) -> xxx | R45: =Q41*O45/SUM(O42:O45) -> 0 | S45: =$R45*(VLOOKUP($P45,class,5)/VLOOKUP($P45,class,4)) -> 0 | T45: =$R45*(VLOOKUP($P45,class,6)/VLOOKUP($P45,class,4)) -> 0 | U45: =$R45*(VLOOKUP($P45,class,7)/VLOOKUP($P45,class,4)) -> 0 | V45: =$R45*(VLOOKUP($P45,class,8)/VLOOKUP($P45,class,4)) -> 0 | W45: =$R45*(VLOOKUP($P45,class,9)/VLOOKUP($P45,class,4)) -> 0 | X45: =$R45*(VLOOKUP($P45,class,10)/VLOOKUP($P45,class,4)) -> 0 | Y45: =$R45*(VLOOKUP($P45,class,11)/VLOOKUP($P45,class,4)) -> 0 | Z45: =$R45*(VLOOKUP($P45,class,12)/VLOOKUP($P45,class,4)) -> 0 | AA45: =$R45*(VLOOKUP($P45,class,13)/VLOOKUP($P45,class,4)) -> 0 | AB45: =$R45*(VLOOKUP($P45,class,14)/VLOOKUP($P45,class,4)) -> 0 | AC45: =$R45*(VLOOKUP($P45,class,15)/VLOOKUP($P45,class,4)) -> 0 | AH45: 45 | AL45: MR | AM45: Billing | BB45: 45 | BE45: =IF(SUM(BG45:BQ45)=BF45,"","error") ->  | BF45: =BF44/$BF44 -> 1 | BG45: 0 | BH45: 0 | BI45: 0 | BJ45: 0 | BK45: 0 | BL45: 1 | BM45: 0 | BN45: 0 | BO45: 0 | BP45: 0 | BQ45: 0
A46: 46 | B46: 549-OP | C46: Other | D46: Miscellaneous Power Exp. | F46: 319000 | G46: 79694 | H46: =IF(I23=-ROUND(R829,0),"Misc. Service Revenue Matches Checker","ERROR! MISC SERVICE REV DOES NOT MATCH CHECKER") -> Misc. Service Revenue Matches Checker | I46: 10 | J46: 46 | K46: =B18 -> 507-OP | L46: =C18 -> Steam | M46: =D18 -> Rents | O46: P01 | P46: =IF(MATCH(O46,P_ref,0)>0,"","error matching functional allocator") ->  | Q46: =F18 -> 27000 | AH46: 46 | AI46: Customer Information Function Factor Table (ifactor) | BB46: 46 | BC46: C06 | BD46: =BD59 -> DA Handbilled | BF46: =SUM(BG46:BQ46) -> 21 | BG46: =BG59*BG$51 -> 0 | BH46: 0 | BI46: 0 | BJ46: 21 | BK46: 0 | BL46: 0 | BM46: 0 | BN46: 0 | BO46: 0 | BP46: 0 | BQ46: 0 | BR46: =BR59 -> Direct Assigned to Handbilled Customers
A47: 47 | B47: 550-OP | C47: Other | D47: Rents | F47: -22000 | G47: 0 | H47: =IF(I25=-ROUND(R833+R834+R835,0),"Rent Revenue Matches Checker","ERROR! RENT REVENUE DOES NOT MATCH CHECKER") -> Rent Revenue Matches Checker | I47: 11 | J47: 47 | L47: P | M47: =HLOOKUP("Factor Name",pfactor,3) -> Coincident Peak | N47: =IF(MATCH(P47,ref,0)>0,"","matching error") ->  | O47: =HLOOKUP(O46,pfactor,3) -> 37.65 | P47: =HLOOKUP("Class",pfactor,3) -> D01 | R47: =Q46*O47/SUM(O47:O50) -> 10165.5 | S47: =$R47*(VLOOKUP($P47,class,5)/VLOOKUP($P47,class,4)) -> 5024.692189 | T47: =$R47*(VLOOKUP($P47,class,6)/VLOOKUP($P47,class,4)) -> 1042.162074 | U47: =$R47*(VLOOKUP($P47,class,7)/VLOOKUP($P47,class,4)) -> 2257.284973 | V47: =$R47*(VLOOKUP($P47,class,8)/VLOOKUP($P47,class,4)) -> 1631.251099 | W47: =$R47*(VLOOKUP($P47,class,9)/VLOOKUP($P47,class,4)) -> 192.1358829 | X47: =$R47*(VLOOKUP($P47,class,10)/VLOOKUP($P47,class,4)) -> 17.97378261 | Y47: =$R47*(VLOOKUP($P47,class,11)/VLOOKUP($P47,class,4)) -> 0 | Z47: =$R47*(VLOOKUP($P47,class,12)/VLOOKUP($P47,class,4)) -> 0 | AA47: =$R47*(VLOOKUP($P47,class,13)/VLOOKUP($P47,class,4)) -> 0 | AB47: =$R47*(VLOOKUP($P47,class,14)/VLOOKUP($P47,class,4)) -> 0 | AC47: =$R47*(VLOOKUP($P47,class,15)/VLOOKUP($P47,class,4)) -> 0 | AH47: 47 | AI47: Class | AJ47: Factor Name | AK47: I01 | AL47: I02 | AM47: I03 | AN47: I04 | BB47: 47 | BE47: =IF(SUM(BG47:BQ47)=BF47,"","error") ->  | BF47: =BF46/$BF46 -> 1 | BG47: 0 | BH47: 0 | BI47: 0 | BJ47: 1 | BK47: 0 | BL47: 0 | BM47: 0 | BN47: 0 | BO47: 0 | BP47: 0 | BQ47: 0
A48: 48 | C48: Total Other Operation | I48: 12 | J48: 48 | L48: P | M48: =HLOOKUP("Factor Name",pfactor,4) -> Generation Level Consumption | N48: =IF(MATCH(P48,ref,0)>0,"","matching error") ->  | O48: =HLOOKUP(O46,pfactor,4) -> 62.35 | P48: =HLOOKUP("Class",pfactor,4) -> E02 | R48: =Q46*O48/SUM(O47:O50) -> 16834.5 | S48: =$R48*(VLOOKUP($P48,class,5)/VLOOKUP($P48,class,4)) -> 7063.72016 | T48: =$R48*(VLOOKUP($P48,class,6)/VLOOKUP($P48,class,4)) -> 1863.942801 | U48: =$R48*(VLOOKUP($P48,class,7)/VLOOKUP($P48,class,4)) -> 4207.846543 | V48: =$R48*(VLOOKUP($P48,class,8)/VLOOKUP($P48,class,4)) -> 3230.595747 | W48: =$R48*(VLOOKUP($P48,class,9)/VLOOKUP($P48,class,4)) -> 399.2459916 | X48: =$R48*(VLOOKUP($P48,class,10)/VLOOKUP($P48,class,4)) -> 69.14875768 | Y48: =$R48*(VLOOKUP($P48,class,11)/VLOOKUP($P48,class,4)) -> 0 | Z48: =$R48*(VLOOKUP($P48,class,12)/VLOOKUP($P48,class,4)) -> 0 | AA48: =$R48*(VLOOKUP($P48,class,13)/VLOOKUP($P48,class,4)) -> 0 | AB48: =$R48*(VLOOKUP($P48,class,14)/VLOOKUP($P48,class,4)) -> 0 | AC48: =$R48*(VLOOKUP($P48,class,15)/VLOOKUP($P48,class,4)) -> 0 | AH48: 48 | AJ48: Total Factor | AK48: =AK49+AK50+AK51 -> 100 | AL48: =AL49+AL50+AL51 -> 100 | AM48: =AM49+AM50+AM51 -> 0 | AN48: =AN49+AN50+AN51 -> 0 | BB48: 48 | BC48: C07 | BD48: =BD60 -> Open | BF48: =SUM(BG48:BQ48) -> 0 | BG48: =BG60*BG$51 -> 0 | BH48: 0 | BI48: 0 | BJ48: 0 | BK48: 0 | BL48: 0 | BM48: 0 | BN48: 0 | BO48: 0 | BP48: 0 | BQ48: 0 | BR48: =BR60 -> Open
A49: 49 | B49: 551-MT | C49: Other | D49: Supervision & Engineering | F49: 309000 | G49: 171442 | J49: 49 | L49: P | M49: =HLOOKUP("Factor Name",pfactor,5) -> Open | N49: =IF(MATCH(P49,ref,0)>0,"","matching error") ->  | O49: =HLOOKUP(O46,pfactor,5) -> 0 | P49: =HLOOKUP("Class",pfactor,5) -> xxx | R49: =Q46*O49/SUM(O47:O50) -> 0 | S49: =$R49*(VLOOKUP($P49,class,5)/VLOOKUP($P49,class,4)) -> 0 | T49: =$R49*(VLOOKUP($P49,class,6)/VLOOKUP($P49,class,4)) -> 0 | U49: =$R49*(VLOOKUP($P49,class,7)/VLOOKUP($P49,class,4)) -> 0 | V49: =$R49*(VLOOKUP($P49,class,8)/VLOOKUP($P49,class,4)) -> 0 | W49: =$R49*(VLOOKUP($P49,class,9)/VLOOKUP($P49,class,4)) -> 0 | X49: =$R49*(VLOOKUP($P49,class,10)/VLOOKUP($P49,class,4)) -> 0 | Y49: =$R49*(VLOOKUP($P49,class,11)/VLOOKUP($P49,class,4)) -> 0 | Z49: =$R49*(VLOOKUP($P49,class,12)/VLOOKUP($P49,class,4)) -> 0 | AA49: =$R49*(VLOOKUP($P49,class,13)/VLOOKUP($P49,class,4)) -> 0 | AB49: =$R49*(VLOOKUP($P49,class,14)/VLOOKUP($P49,class,4)) -> 0 | AC49: =$R49*(VLOOKUP($P49,class,15)/VLOOKUP($P49,class,4)) -> 0 | AH49: 49 | AI49: C01 | AJ49: =VLOOKUP(AI49,class,2) -> Avg Customers-All | AK49: 100 | AL49: 100 | BB49: 49
A50: 50 | B50: 552-MT | C50: Other | D50: Structures | F50: 4000 | G50: 338 | J50: 50 | L50: P | M50: =HLOOKUP("Factor Name",pfactor,6) -> Open | N50: =IF(MATCH(P50,ref,0)>0,"","matching error") ->  | O50: =HLOOKUP(O46,pfactor,6) -> 0 | P50: =HLOOKUP("Class",pfactor,6) -> xxx | R50: =Q46*O50/SUM(O47:O50) -> 0 | S50: =$R50*(VLOOKUP($P50,class,5)/VLOOKUP($P50,class,4)) -> 0 | T50: =$R50*(VLOOKUP($P50,class,6)/VLOOKUP($P50,class,4)) -> 0 | U50: =$R50*(VLOOKUP($P50,class,7)/VLOOKUP($P50,class,4)) -> 0 | V50: =$R50*(VLOOKUP($P50,class,8)/VLOOKUP($P50,class,4)) -> 0 | W50: =$R50*(VLOOKUP($P50,class,9)/VLOOKUP($P50,class,4)) -> 0 | X50: =$R50*(VLOOKUP($P50,class,10)/VLOOKUP($P50,class,4)) -> 0 | Y50: =$R50*(VLOOKUP($P50,class,11)/VLOOKUP($P50,class,4)) -> 0 | Z50: =$R50*(VLOOKUP($P50,class,12)/VLOOKUP($P50,class,4)) -> 0 | AA50: =$R50*(VLOOKUP($P50,class,13)/VLOOKUP($P50,class,4)) -> 0 | AB50: =$R50*(VLOOKUP($P50,class,14)/VLOOKUP($P50,class,4)) -> 0 | AC50: =$R50*(VLOOKUP($P50,class,15)/VLOOKUP($P50,class,4)) -> 0 | AH50: 50 | AI50: S01 | AJ50: =VLOOKUP(AI50,class,2) -> Production Plant | AK50: 0 | AL50: 0 | BB50: 50 | BD50: No. of Customer Bills | BF50: =SUM(BG50:BQ50) -> 2950996 | BG50: 2518371 | BH50: 375436 | BI50: 22836 | BJ50: 252 | BK50: 29193 | BL50: 4908 | BM50: 0 | BN50: 0 | BO50: 0 | BP50: 0 | BQ50: 0
A51: 51 | B51: 553-MT | C51: Other | D51: Generating & Electric Plant | F51: 200000 | G51: 43493 | J51: 51 | L51: =C19 -> Total Steam Operation | N51: =IF(AND(ROUND($Q51,0)=ROUND($R51,0),ROUND(SUM($S51:$AC51),0)=ROUND($R51,0)),"","crossfoot error") ->  | Q51: =SUM(Q11:Q50) -> 26257000 | R51: 26257000 | S51: 11755757.15 | T51: 2826133.174 | U51: 6287220.674 | V51: 4728056.023 | W51: 575107.9215 | X51: 84725.05705 | Y51: 0 | Z51: 0 | AA51: 0 | AB51: 0 | AC51: 0 | AH51: 51 | AI51: xxx | AJ51: =VLOOKUP(AI51,class,2) -> Open | AK51: 0 | AL51: 0 | BB51: 51 | BD51: No. of Customers (Average) | BF51: =SUM(BG51:BQ51) -> 245916.3333 | BG51: =BG50/12 -> 209864.25 | BH51: 31286.33333 | BI51: 1903 | BJ51: 21 | BK51: 2432.75 | BL51: 409 | BM51: 0 | BN51: 0 | BO51: 0 | BP51: 0 | BQ51: 0
A52: 52 | B52: 554-MT | C52: Other | D52: Miscellaneous Plant | F52: 131000 | G52: 57822 | J52: 52 | K52: =B20 -> 510-MT | L52: =C20 -> Steam | M52: =D20 -> Supervision & Engineering | O52: P01 | P52: =IF(MATCH(O52,P_ref,0)>0,"","error matching functional allocator") ->  | Q52: =F20 -> 385000 | AH52: 52 | AL52: DSM | BB52: 52
A53: 53 | C53: Total Other Maintenance | J53: 53 | L53: P | M53: =HLOOKUP("Factor Name",pfactor,3) -> Coincident Peak | N53: =IF(MATCH(P53,ref,0)>0,"","matching error") ->  | O53: =HLOOKUP(O52,pfactor,3) -> 37.65 | P53: =HLOOKUP("Class",pfactor,3) -> D01 | R53: =Q52*O53/SUM(O53:O56) -> 144952.5 | S53: =$R53*(VLOOKUP($P53,class,5)/VLOOKUP($P53,class,4)) -> 71648.38862 | T53: =$R53*(VLOOKUP($P53,class,6)/VLOOKUP($P53,class,4)) -> 14860.4592 | U53: =$R53*(VLOOKUP($P53,class,7)/VLOOKUP($P53,class,4)) -> 32187.21166 | V53: =$R53*(VLOOKUP($P53,class,8)/VLOOKUP($P53,class,4)) -> 23260.43233 | W53: =$R53*(VLOOKUP($P53,class,9)/VLOOKUP($P53,class,4)) -> 2739.715368 | X53: =$R53*(VLOOKUP($P53,class,10)/VLOOKUP($P53,class,4)) -> 256.2928261 | Y53: =$R53*(VLOOKUP($P53,class,11)/VLOOKUP($P53,class,4)) -> 0 | Z53: =$R53*(VLOOKUP($P53,class,12)/VLOOKUP($P53,class,4)) -> 0 | AA53: =$R53*(VLOOKUP($P53,class,13)/VLOOKUP($P53,class,4)) -> 0 | AB53: =$R53*(VLOOKUP($P53,class,14)/VLOOKUP($P53,class,4)) -> 0 | AC53: =$R53*(VLOOKUP($P53,class,15)/VLOOKUP($P53,class,4)) -> 0 | AH53: 53 | AI53: Sales Function Factor Table (sfactor) | BB53: 53 | BD53: Customer Weightings
A54: 54 | C54: Total Other | J54: 54 | L54: P | M54: =HLOOKUP("Factor Name",pfactor,4) -> Generation Level Consumption | N54: =IF(MATCH(P54,ref,0)>0,"","matching error") ->  | O54: =HLOOKUP(O52,pfactor,4) -> 62.35 | P54: =HLOOKUP("Class",pfactor,4) -> E02 | R54: =Q52*O54/SUM(O53:O56) -> 240047.5 | S54: =$R54*(VLOOKUP($P54,class,5)/VLOOKUP($P54,class,4)) -> 100723.4171 | T54: =$R54*(VLOOKUP($P54,class,6)/VLOOKUP($P54,class,4)) -> 26578.44365 | U54: =$R54*(VLOOKUP($P54,class,7)/VLOOKUP($P54,class,4)) -> 60000.77477 | V54: =$R54*(VLOOKUP($P54,class,8)/VLOOKUP($P54,class,4)) -> 46065.90231 | W54: =$R54*(VLOOKUP($P54,class,9)/VLOOKUP($P54,class,4)) -> 5692.952103 | X54: =$R54*(VLOOKUP($P54,class,10)/VLOOKUP($P54,class,4)) -> 986.0100633 | Y54: =$R54*(VLOOKUP($P54,class,11)/VLOOKUP($P54,class,4)) -> 0 | Z54: =$R54*(VLOOKUP($P54,class,12)/VLOOKUP($P54,class,4)) -> 0 | AA54: =$R54*(VLOOKUP($P54,class,13)/VLOOKUP($P54,class,4)) -> 0 | AB54: =$R54*(VLOOKUP($P54,class,14)/VLOOKUP($P54,class,4)) -> 0 | AC54: =$R54*(VLOOKUP($P54,class,15)/VLOOKUP($P54,class,4)) -> 0 | AH54: 54 | AI54: Class | AJ54: Factor Name | AK54: V01 | AL54: V02 | AM54: V03 | AN54: V04 | BB54: 54 | BD54: Avg Customers-All | BG54: 1 | BH54: 1 | BI54: 1 | BJ54: 1 | BK54: 1 | BL54: 1 | BM54: 1 | BN54: 0 | BO54: 0 | BP54: 0 | BQ54: 0 | BR54: Unweighted
A55: 55 | J55: 55 | L55: P | M55: =HLOOKUP("Factor Name",pfactor,5) -> Open | N55: =IF(MATCH(P55,ref,0)>0,"","matching error") ->  | O55: =HLOOKUP(O52,pfactor,5) -> 0 | P55: =HLOOKUP("Class",pfactor,5) -> xxx | R55: =Q52*O55/SUM(O53:O56) -> 0 | S55: =$R55*(VLOOKUP($P55,class,5)/VLOOKUP($P55,class,4)) -> 0 | T55: =$R55*(VLOOKUP($P55,class,6)/VLOOKUP($P55,class,4)) -> 0 | U55: =$R55*(VLOOKUP($P55,class,7)/VLOOKUP($P55,class,4)) -> 0 | V55: =$R55*(VLOOKUP($P55,class,8)/VLOOKUP($P55,class,4)) -> 0 | W55: =$R55*(VLOOKUP($P55,class,9)/VLOOKUP($P55,class,4)) -> 0 | X55: =$R55*(VLOOKUP($P55,class,10)/VLOOKUP($P55,class,4)) -> 0 | Y55: =$R55*(VLOOKUP($P55,class,11)/VLOOKUP($P55,class,4)) -> 0 | Z55: =$R55*(VLOOKUP($P55,class,12)/VLOOKUP($P55,class,4)) -> 0 | AA55: =$R55*(VLOOKUP($P55,class,13)/VLOOKUP($P55,class,4)) -> 0 | AB55: =$R55*(VLOOKUP($P55,class,14)/VLOOKUP($P55,class,4)) -> 0 | AC55: =$R55*(VLOOKUP($P55,class,15)/VLOOKUP($P55,class,4)) -> 0 | AH55: 55 | AJ55: Total Factor | AK55: =AK56+AK57+AK58 -> 100 | AL55: =AL56+AL57+AL58 -> 100 | AM55: =AM56+AM57+AM58 -> 100 | AN55: =AN56+AN57+AN58 -> 0 | BB55: 55 | BD55: Avg Customers-Secondary | BG55: 1 | BH55: 1 | BI55: 1 | BJ55: 0 | BK55: 1 | BL55: 0 | BM55: 0 | BN55: 0 | BO55: 0 | BP55: 0 | BQ55: 0 | BR55: Unweighted Secondary w/o Lighting
A56: 56 | B56: 555-OP | C56: Total Purchased Power | F56: 73220000 | G56: 0 | J56: 56 | L56: P | M56: =HLOOKUP("Factor Name",pfactor,6) -> Open | N56: =IF(MATCH(P56,ref,0)>0,"","matching error") ->  | O56: =HLOOKUP(O52,pfactor,6) -> 0 | P56: =HLOOKUP("Class",pfactor,6) -> xxx | R56: =Q52*O56/SUM(O53:O56) -> 0 | S56: =$R56*(VLOOKUP($P56,class,5)/VLOOKUP($P56,class,4)) -> 0 | T56: =$R56*(VLOOKUP($P56,class,6)/VLOOKUP($P56,class,4)) -> 0 | U56: =$R56*(VLOOKUP($P56,class,7)/VLOOKUP($P56,class,4)) -> 0 | V56: =$R56*(VLOOKUP($P56,class,8)/VLOOKUP($P56,class,4)) -> 0 | W56: =$R56*(VLOOKUP($P56,class,9)/VLOOKUP($P56,class,4)) -> 0 | X56: =$R56*(VLOOKUP($P56,class,10)/VLOOKUP($P56,class,4)) -> 0 | Y56: =$R56*(VLOOKUP($P56,class,11)/VLOOKUP($P56,class,4)) -> 0 | Z56: =$R56*(VLOOKUP($P56,class,12)/VLOOKUP($P56,class,4)) -> 0 | AA56: =$R56*(VLOOKUP($P56,class,13)/VLOOKUP($P56,class,4)) -> 0 | AB56: =$R56*(VLOOKUP($P56,class,14)/VLOOKUP($P56,class,4)) -> 0 | AC56: =$R56*(VLOOKUP($P56,class,15)/VLOOKUP($P56,class,4)) -> 0 | AH56: 56 | AI56: E02 | AJ56: =VLOOKUP(AI56,class,2) -> Generation Level Consumption | AK56: 100 | AL56: 0 | AM56: 50 | BB56: 56 | BD56: Wt Customers-Meter Reading | BG56: 1 | BH56: 1 | BI56: 1 | BJ56: 1 | BK56: 1 | BL56: 0 | BM56: 0 | BN56: 0 | BO56: 0 | BP56: 0 | BQ56: 0 | BR56: Est. Meter Reading Time
A57: 57 | B57: 556-OP | C57: Total System Control & Load Dispatching | F57: 506000 | G57: 174140 | J57: 57 | K57: =B21 -> 511-MT | L57: =C21 -> Steam | M57: =D21 -> Structures | O57: P01 | P57: =IF(MATCH(O57,P_ref,0)>0,"","error matching functional allocator") ->  | Q57: =F21 -> 464000 | AH57: 57 | AI57: C01 | AJ57: =VLOOKUP(AI57,class,2) -> Avg Customers-All | AK57: 0 | AL57: 100 | AM57: 50 | BB57: 57 | BD57: Wt Customers-Meters | BG57: 1 | BH57: 2.22 | BI57: 8.99 | BJ57: 20.37 | BK57: 3.85 | BL57: 0 | BM57: 0 | BN57: 0 | BO57: 0 | BP57: 0 | BQ57: 0 | BR57: Proportion Installed Meter Costs
A58: 58 | B58: 557-OP | C58: Total Other Expenses | F58: 2885000 | G58: 2291989 | J58: 58 | L58: P | M58: =HLOOKUP("Factor Name",pfactor,3) -> Coincident Peak | N58: =IF(MATCH(P58,ref,0)>0,"","matching error") ->  | O58: =HLOOKUP(O57,pfactor,3) -> 37.65 | P58: =HLOOKUP("Class",pfactor,3) -> D01 | R58: =Q57*O58/SUM(O58:O61) -> 174696 | S58: =$R58*(VLOOKUP($P58,class,5)/VLOOKUP($P58,class,4)) -> 86350.26577 | T58: =$R58*(VLOOKUP($P58,class,6)/VLOOKUP($P58,class,4)) -> 17909.74823 | U58: =$R58*(VLOOKUP($P58,class,7)/VLOOKUP($P58,class,4)) -> 38791.86028 | V58: =$R58*(VLOOKUP($P58,class,8)/VLOOKUP($P58,class,4)) -> 28033.35221 | W58: =$R58*(VLOOKUP($P58,class,9)/VLOOKUP($P58,class,4)) -> 3301.890729 | X58: =$R58*(VLOOKUP($P58,class,10)/VLOOKUP($P58,class,4)) -> 308.8827826 | Y58: =$R58*(VLOOKUP($P58,class,11)/VLOOKUP($P58,class,4)) -> 0 | Z58: =$R58*(VLOOKUP($P58,class,12)/VLOOKUP($P58,class,4)) -> 0 | AA58: =$R58*(VLOOKUP($P58,class,13)/VLOOKUP($P58,class,4)) -> 0 | AB58: =$R58*(VLOOKUP($P58,class,14)/VLOOKUP($P58,class,4)) -> 0 | AC58: =$R58*(VLOOKUP($P58,class,15)/VLOOKUP($P58,class,4)) -> 0 | AH58: 58 | AI58: xxx | AJ58: =VLOOKUP(AI58,class,2) -> Open | AK58: 0 | AL58: 0 | BB58: 58 | BD58: DA Street & Area Lights | BG58: 0 | BH58: 0 | BI58: 0 | BJ58: 0 | BK58: 0 | BL58: 1 | BM58: 0 | BN58: 0 | BO58: 0 | BP58: 0 | BQ58: 0 | BR58: Direct Assigned to Street & Area Lights
A59: 59 | D59: Total Production Expenses | J59: 59 | L59: P | M59: =HLOOKUP("Factor Name",pfactor,4) -> Generation Level Consumption | N59: =IF(MATCH(P59,ref,0)>0,"","matching error") ->  | O59: =HLOOKUP(O57,pfactor,4) -> 62.35 | P59: =HLOOKUP("Class",pfactor,4) -> E02 | R59: =Q57*O59/SUM(O58:O61) -> 289304 | S59: =$R59*(VLOOKUP($P59,class,5)/VLOOKUP($P59,class,4)) -> 121391.3391 | T59: =$R59*(VLOOKUP($P59,class,6)/VLOOKUP($P59,class,4)) -> 32032.20222 | U59: =$R59*(VLOOKUP($P59,class,7)/VLOOKUP($P59,class,4)) -> 72312.62206 | V59: =$R59*(VLOOKUP($P59,class,8)/VLOOKUP($P59,class,4)) -> 55518.38616 | W59: =$R59*(VLOOKUP($P59,class,9)/VLOOKUP($P59,class,4)) -> 6861.1163 | X59: =$R59*(VLOOKUP($P59,class,10)/VLOOKUP($P59,class,4)) -> 1188.334206 | Y59: =$R59*(VLOOKUP($P59,class,11)/VLOOKUP($P59,class,4)) -> 0 | Z59: =$R59*(VLOOKUP($P59,class,12)/VLOOKUP($P59,class,4)) -> 0 | AA59: =$R59*(VLOOKUP($P59,class,13)/VLOOKUP($P59,class,4)) -> 0 | AB59: =$R59*(VLOOKUP($P59,class,14)/VLOOKUP($P59,class,4)) -> 0 | AC59: =$R59*(VLOOKUP($P59,class,15)/VLOOKUP($P59,class,4)) -> 0 | AH59: 59 | BB59: 59 | BD59: DA Handbilled | BG59: 0 | BH59: 0 | BI59: 0 | BJ59: 1 | BK59: 0 | BL59: 0 | BM59: 1 | BN59: 0 | BO59: 0 | BP59: 0 | BQ59: 0 | BR59: Direct Assigned to Handbilled Customers
A60: 60 | J60: 60 | L60: P | M60: =HLOOKUP("Factor Name",pfactor,5) -> Open | N60: =IF(MATCH(P60,ref,0)>0,"","matching error") ->  | O60: =HLOOKUP(O57,pfactor,5) -> 0 | P60: =HLOOKUP("Class",pfactor,5) -> xxx | R60: =Q57*O60/SUM(O58:O61) -> 0 | S60: =$R60*(VLOOKUP($P60,class,5)/VLOOKUP($P60,class,4)) -> 0 | T60: =$R60*(VLOOKUP($P60,class,6)/VLOOKUP($P60,class,4)) -> 0 | U60: =$R60*(VLOOKUP($P60,class,7)/VLOOKUP($P60,class,4)) -> 0 | V60: =$R60*(VLOOKUP($P60,class,8)/VLOOKUP($P60,class,4)) -> 0 | W60: =$R60*(VLOOKUP($P60,class,9)/VLOOKUP($P60,class,4)) -> 0 | X60: =$R60*(VLOOKUP($P60,class,10)/VLOOKUP($P60,class,4)) -> 0 | Y60: =$R60*(VLOOKUP($P60,class,11)/VLOOKUP($P60,class,4)) -> 0 | Z60: =$R60*(VLOOKUP($P60,class,12)/VLOOKUP($P60,class,4)) -> 0 | AA60: =$R60*(VLOOKUP($P60,class,13)/VLOOKUP($P60,class,4)) -> 0 | AB60: =$R60*(VLOOKUP($P60,class,14)/VLOOKUP($P60,class,4)) -> 0 | AC60: =$R60*(VLOOKUP($P60,class,15)/VLOOKUP($P60,class,4)) -> 0 | AH60: 60 | AI60: Miscellaneous Function Factor Table (mfactor) | BB60: 60 | BD60: Open | BG60: 0 | BH60: 0 | BI60: 0 | BJ60: 0 | BK60: 0 | BL60: 0 | BM60: 0 | BN60: 0 | BO60: 0 | BP60: 0 | BQ60: 0 | BR60: Open
A61: 61 | B61: Proforma | J61: 61 | L61: P | M61: =HLOOKUP("Factor Name",pfactor,6) -> Open | N61: =IF(MATCH(P61,ref,0)>0,"","matching error") ->  | O61: =HLOOKUP(O57,pfactor,6) -> 0 | P61: =HLOOKUP("Class",pfactor,6) -> xxx | R61: =Q57*O61/SUM(O58:O61) -> 0 | S61: =$R61*(VLOOKUP($P61,class,5)/VLOOKUP($P61,class,4)) -> 0 | T61: =$R61*(VLOOKUP($P61,class,6)/VLOOKUP($P61,class,4)) -> 0 | U61: =$R61*(VLOOKUP($P61,class,7)/VLOOKUP($P61,class,4)) -> 0 | V61: =$R61*(VLOOKUP($P61,class,8)/VLOOKUP($P61,class,4)) -> 0 | W61: =$R61*(VLOOKUP($P61,class,9)/VLOOKUP($P61,class,4)) -> 0 | X61: =$R61*(VLOOKUP($P61,class,10)/VLOOKUP($P61,class,4)) -> 0 | Y61: =$R61*(VLOOKUP($P61,class,11)/VLOOKUP($P61,class,4)) -> 0 | Z61: =$R61*(VLOOKUP($P61,class,12)/VLOOKUP($P61,class,4)) -> 0 | AA61: =$R61*(VLOOKUP($P61,class,13)/VLOOKUP($P61,class,4)) -> 0 | AB61: =$R61*(VLOOKUP($P61,class,14)/VLOOKUP($P61,class,4)) -> 0 | AC61: =$R61*(VLOOKUP($P61,class,15)/VLOOKUP($P61,class,4)) -> 0 | AH61: 61 | AI61: Class | AJ61: Factor Name | AK61: M01 | AL61: M02 | AM61: M03 | AN61: M04 | BB61: 61
A62: 62 | B62: =$B$2 -> Pro Forma Results of Operations | J62: 62 | K62: =B22 -> 512-MT | L62: =C22 -> Steam | M62: =D22 -> Boiler Plant | O62: P01 | P62: =IF(MATCH(O62,P_ref,0)>0,"","error matching functional allocator") ->  | Q62: =F22 -> 3937000 | AH62: 62 | AJ62: Total Factor | AK62: =AK63+AK64+AK65+AK66 -> 100 | AL62: =AL63+AL64+AL65+AL66 -> 100 | AM62: =AM63+AM64+AM65+AM66 -> 100 | AN62: =AN63+AN64+AN65+AN66 -> 100 | BB62: 62 | BD62: Revenue Allocator Calculations
A63: 63 | B63: =$B$3 -> Allowed Rates Case UE-170485 | J63: 63 | L63: P | M63: =HLOOKUP("Factor Name",pfactor,3) -> Coincident Peak | N63: =IF(MATCH(P63,ref,0)>0,"","matching error") ->  | O63: =HLOOKUP(O62,pfactor,3) -> 37.65 | P63: =HLOOKUP("Class",pfactor,3) -> D01 | R63: =Q62*O63/SUM(O63:O66) -> 1482280.5 | S63: =$R63*(VLOOKUP($P63,class,5)/VLOOKUP($P63,class,4)) -> 732674.561 | T63: =$R63*(VLOOKUP($P63,class,6)/VLOOKUP($P63,class,4)) -> 151962.6698 | U63: =$R63*(VLOOKUP($P63,class,7)/VLOOKUP($P63,class,4)) -> 329145.5904 | V63: =$R63*(VLOOKUP($P63,class,8)/VLOOKUP($P63,class,4)) -> 237860.5769 | W63: =$R63*(VLOOKUP($P63,class,9)/VLOOKUP($P63,class,4)) -> 28016.25819 | X63: =$R63*(VLOOKUP($P63,class,10)/VLOOKUP($P63,class,4)) -> 2620.843783 | Y63: =$R63*(VLOOKUP($P63,class,11)/VLOOKUP($P63,class,4)) -> 0 | Z63: =$R63*(VLOOKUP($P63,class,12)/VLOOKUP($P63,class,4)) -> 0 | AA63: =$R63*(VLOOKUP($P63,class,13)/VLOOKUP($P63,class,4)) -> 0 | AB63: =$R63*(VLOOKUP($P63,class,14)/VLOOKUP($P63,class,4)) -> 0 | AC63: =$R63*(VLOOKUP($P63,class,15)/VLOOKUP($P63,class,4)) -> 0 | AH63: 63 | AI63: S05 | AJ63: =VLOOKUP(AI63,class,2) -> P/T/D Plant | AK63: 100 | AL63: 0 | AM63: 0 | AN63: 0 | BB63: 63 | BC63: R01 | BD63: Retail Sales Revenue | BF63: =SUM(BG63:BQ63) -> 502897000 | BG63: 214393000 | BH63: 75057000 | BI63: 129541000 | BJ63: 65753000 | BK63: 11132000 | BL63: 7021000 | BM63: 0 | BN63: 0 | BO63: 0 | BP63: 0 | BQ63: 0 | BR63: Input Revenue From Rates
A64: 64 | J64: 64 | L64: P | M64: =HLOOKUP("Factor Name",pfactor,4) -> Generation Level Consumption | N64: =IF(MATCH(P64,ref,0)>0,"","matching error") ->  | O64: =HLOOKUP(O62,pfactor,4) -> 62.35 | P64: =HLOOKUP("Class",pfactor,4) -> E02 | R64: =Q62*O64/SUM(O63:O66) -> 2454719.5 | S64: =$R64*(VLOOKUP($P64,class,5)/VLOOKUP($P64,class,4)) -> 1029995.047 | T64: =$R64*(VLOOKUP($P64,class,6)/VLOOKUP($P64,class,4)) -> 271790.4744 | U64: =$R64*(VLOOKUP($P64,class,7)/VLOOKUP($P64,class,4)) -> 613566.3644 | V64: =$R64*(VLOOKUP($P64,class,8)/VLOOKUP($P64,class,4)) -> 471068.7205 | W64: =$R64*(VLOOKUP($P64,class,9)/VLOOKUP($P64,class,4)) -> 58215.98033 | X64: =$R64*(VLOOKUP($P64,class,10)/VLOOKUP($P64,class,4)) -> 10082.9133 | Y64: =$R64*(VLOOKUP($P64,class,11)/VLOOKUP($P64,class,4)) -> 0 | Z64: =$R64*(VLOOKUP($P64,class,12)/VLOOKUP($P64,class,4)) -> 0 | AA64: =$R64*(VLOOKUP($P64,class,13)/VLOOKUP($P64,class,4)) -> 0 | AB64: =$R64*(VLOOKUP($P64,class,14)/VLOOKUP($P64,class,4)) -> 0 | AC64: =$R64*(VLOOKUP($P64,class,15)/VLOOKUP($P64,class,4)) -> 0 | AH64: 64 | AI64: S21 | AJ64: =VLOOKUP(AI64,class,2) -> Labor P/T/D Total | AK64: 0 | AL64: 0 | AM64: 100 | AN64: 0 | BB64: 64 | BE64: =IF(SUM(BG64:BQ64)=BF64,"","error") ->  | BF64: =BF63/$BF63 -> 1 | BG64: 0.4263159255 | BH64: 0.1492492498 | BI64: 0.2575895263 | BJ64: 0.1307484435 | BK64: 0.02213574549 | BL64: 0.01396110933 | BM64: 0 | BN64: 0 | BO64: 0 | BP64: 0 | BQ64: 0
A65: 65 | B65: (a) | C65: (b) | F65: BO | G65: BP | J65: 65 | L65: P | M65: =HLOOKUP("Factor Name",pfactor,5) -> Open | N65: =IF(MATCH(P65,ref,0)>0,"","matching error") ->  | O65: =HLOOKUP(O62,pfactor,5) -> 0 | P65: =HLOOKUP("Class",pfactor,5) -> xxx | R65: =Q62*O65/SUM(O63:O66) -> 0 | S65: =$R65*(VLOOKUP($P65,class,5)/VLOOKUP($P65,class,4)) -> 0 | T65: =$R65*(VLOOKUP($P65,class,6)/VLOOKUP($P65,class,4)) -> 0 | U65: =$R65*(VLOOKUP($P65,class,7)/VLOOKUP($P65,class,4)) -> 0 | V65: =$R65*(VLOOKUP($P65,class,8)/VLOOKUP($P65,class,4)) -> 0 | W65: =$R65*(VLOOKUP($P65,class,9)/VLOOKUP($P65,class,4)) -> 0 | X65: =$R65*(VLOOKUP($P65,class,10)/VLOOKUP($P65,class,4)) -> 0 | Y65: =$R65*(VLOOKUP($P65,class,11)/VLOOKUP($P65,class,4)) -> 0 | Z65: =$R65*(VLOOKUP($P65,class,12)/VLOOKUP($P65,class,4)) -> 0 | AA65: =$R65*(VLOOKUP($P65,class,13)/VLOOKUP($P65,class,4)) -> 0 | AB65: =$R65*(VLOOKUP($P65,class,14)/VLOOKUP($P65,class,4)) -> 0 | AC65: =$R65*(VLOOKUP($P65,class,15)/VLOOKUP($P65,class,4)) -> 0 | AH65: 65 | AI65: S22 | AJ65: =VLOOKUP(AI65,class,2) -> Labor O&M excl A&G | AK65: 0 | AL65: 100 | AM65: 0 | AN65: 0 | BB65: 65 | BD65: Open | BF65: =SUM(BG65:BQ65) -> 0 | BG65: 0 | BH65: 0 | BI65: 0 | BJ65: 0 | BK65: 0 | BL65: 0 | BM65: 0 | BN65: 0 | BO65: 0 | BP65: 0 | BQ65: 0 | BR65: Open
A66: 66 | F66: Transfer | G66: Transfer | J66: 66 | L66: P | M66: =HLOOKUP("Factor Name",pfactor,6) -> Open | N66: =IF(MATCH(P66,ref,0)>0,"","matching error") ->  | O66: =HLOOKUP(O62,pfactor,6) -> 0 | P66: =HLOOKUP("Class",pfactor,6) -> xxx | R66: =Q62*O66/SUM(O63:O66) -> 0 | S66: =$R66*(VLOOKUP($P66,class,5)/VLOOKUP($P66,class,4)) -> 0 | T66: =$R66*(VLOOKUP($P66,class,6)/VLOOKUP($P66,class,4)) -> 0 | U66: =$R66*(VLOOKUP($P66,class,7)/VLOOKUP($P66,class,4)) -> 0 | V66: =$R66*(VLOOKUP($P66,class,8)/VLOOKUP($P66,class,4)) -> 0 | W66: =$R66*(VLOOKUP($P66,class,9)/VLOOKUP($P66,class,4)) -> 0 | X66: =$R66*(VLOOKUP($P66,class,10)/VLOOKUP($P66,class,4)) -> 0 | Y66: =$R66*(VLOOKUP($P66,class,11)/VLOOKUP($P66,class,4)) -> 0 | Z66: =$R66*(VLOOKUP($P66,class,12)/VLOOKUP($P66,class,4)) -> 0 | AA66: =$R66*(VLOOKUP($P66,class,13)/VLOOKUP($P66,class,4)) -> 0 | AB66: =$R66*(VLOOKUP($P66,class,14)/VLOOKUP($P66,class,4)) -> 0 | AC66: =$R66*(VLOOKUP($P66,class,15)/VLOOKUP($P66,class,4)) -> 0 | AH66: 66 | AI66: S23 | AJ66: =VLOOKUP(AI66,class,2) -> Corporate Cost Allocator | AK66: 0 | AL66: 0 | AM66: 0 | AN66: 100 | BB66: 66 | BC66: R02 | BD66: Open | BF66: =SUM(BG66:BQ66) -> 0 | BG66: 0 | BH66: 0 | BI66: 0 | BJ66: 0 | BK66: 0 | BL66: 0 | BM66: =0 -> 0 | BN66: =0 -> 0 | BO66: 0 | BP66: 0 | BQ66: 0 | BR66: Open
A67: 67 | B67: Account | C67: Description | F67: Proforma | G67: Labor | J67: 67 | K67: =B23 -> 513-MT | L67: =C23 -> Steam | M67: =D23 -> Electric Plant | O67: P01 | P67: =IF(MATCH(O67,P_ref,0)>0,"","error matching functional allocator") ->  | Q67: =F23 -> 1601000 | AH67: 67 | AK67: Plant Related | AL67: Total Labor | AM67: PTD Labor | BB67: 67
A68: 68 | F68: Totals | G68: Totals | J68: 68 | L68: P | M68: =HLOOKUP("Factor Name",pfactor,3) -> Coincident Peak | N68: =IF(MATCH(P68,ref,0)>0,"","matching error") ->  | O68: =HLOOKUP(O67,pfactor,3) -> 37.65 | P68: =HLOOKUP("Class",pfactor,3) -> D01 | R68: =Q67*O68/SUM(O68:O71) -> 602776.5 | S68: =$R68*(VLOOKUP($P68,class,5)/VLOOKUP($P68,class,4)) -> 297945.6368 | T68: =$R68*(VLOOKUP($P68,class,6)/VLOOKUP($P68,class,4)) -> 61796.3511 | U68: =$R68*(VLOOKUP($P68,class,7)/VLOOKUP($P68,class,4)) -> 133848.6386 | V68: =$R68*(VLOOKUP($P68,class,8)/VLOOKUP($P68,class,4)) -> 96727.14848 | W68: =$R68*(VLOOKUP($P68,class,9)/VLOOKUP($P68,class,4)) -> 11392.94624 | X68: =$R68*(VLOOKUP($P68,class,10)/VLOOKUP($P68,class,4)) -> 1065.778739 | Y68: =$R68*(VLOOKUP($P68,class,11)/VLOOKUP($P68,class,4)) -> 0 | Z68: =$R68*(VLOOKUP($P68,class,12)/VLOOKUP($P68,class,4)) -> 0 | AA68: =$R68*(VLOOKUP($P68,class,13)/VLOOKUP($P68,class,4)) -> 0 | AB68: =$R68*(VLOOKUP($P68,class,14)/VLOOKUP($P68,class,4)) -> 0 | AC68: =$R68*(VLOOKUP($P68,class,15)/VLOOKUP($P68,class,4)) -> 0 | BB68: 68
A69: 69 | C69: Transmission Expenses | J69: 69 | L69: P | M69: =HLOOKUP("Factor Name",pfactor,4) -> Generation Level Consumption | N69: =IF(MATCH(P69,ref,0)>0,"","matching error") ->  | O69: =HLOOKUP(O67,pfactor,4) -> 62.35 | P69: =HLOOKUP("Class",pfactor,4) -> E02 | R69: =Q67*O69/SUM(O68:O71) -> 998223.5 | S69: =$R69*(VLOOKUP($P69,class,5)/VLOOKUP($P69,class,4)) -> 418852.4436 | T69: =$R69*(VLOOKUP($P69,class,6)/VLOOKUP($P69,class,4)) -> 110524.9046 | U69: =$R69*(VLOOKUP($P69,class,7)/VLOOKUP($P69,class,4)) -> 249509.7154 | V69: =$R69*(VLOOKUP($P69,class,8)/VLOOKUP($P69,class,4)) -> 191562.3626 | W69: =$R69*(VLOOKUP($P69,class,9)/VLOOKUP($P69,class,4)) -> 23673.80861 | X69: =$R69*(VLOOKUP($P69,class,10)/VLOOKUP($P69,class,4)) -> 4100.265224 | Y69: =$R69*(VLOOKUP($P69,class,11)/VLOOKUP($P69,class,4)) -> 0 | Z69: =$R69*(VLOOKUP($P69,class,12)/VLOOKUP($P69,class,4)) -> 0 | AA69: =$R69*(VLOOKUP($P69,class,13)/VLOOKUP($P69,class,4)) -> 0 | AB69: =$R69*(VLOOKUP($P69,class,14)/VLOOKUP($P69,class,4)) -> 0 | AC69: =$R69*(VLOOKUP($P69,class,15)/VLOOKUP($P69,class,4)) -> 0 | BB69: 69 | BD69: Total Revenue | BF69: =SUM(BG69:BQ69) -> 551492000 | BG69: =-S844 -> 236455992.9 | BH69: 80362820.59 | BI69: 141140476.7 | BJ69: 73935963.34 | BK69: 12220443.08 | BL69: 7376303.417 | BM69: 0 | BN69: 0 | BO69: 0 | BP69: 0 | BQ69: 0 | BR69: - line 844
A70: 70 | B70: 560-OP | C70: Supervision & Engineering | F70: 1785000 | G70: 871324 | J70: 70 | L70: P | M70: =HLOOKUP("Factor Name",pfactor,5) -> Open | N70: =IF(MATCH(P70,ref,0)>0,"","matching error") ->  | O70: =HLOOKUP(O67,pfactor,5) -> 0 | P70: =HLOOKUP("Class",pfactor,5) -> xxx | R70: =Q67*O70/SUM(O68:O71) -> 0 | S70: =$R70*(VLOOKUP($P70,class,5)/VLOOKUP($P70,class,4)) -> 0 | T70: =$R70*(VLOOKUP($P70,class,6)/VLOOKUP($P70,class,4)) -> 0 | U70: =$R70*(VLOOKUP($P70,class,7)/VLOOKUP($P70,class,4)) -> 0 | V70: =$R70*(VLOOKUP($P70,class,8)/VLOOKUP($P70,class,4)) -> 0 | W70: =$R70*(VLOOKUP($P70,class,9)/VLOOKUP($P70,class,4)) -> 0 | X70: =$R70*(VLOOKUP($P70,class,10)/VLOOKUP($P70,class,4)) -> 0 | Y70: =$R70*(VLOOKUP($P70,class,11)/VLOOKUP($P70,class,4)) -> 0 | Z70: =$R70*(VLOOKUP($P70,class,12)/VLOOKUP($P70,class,4)) -> 0 | AA70: =$R70*(VLOOKUP($P70,class,13)/VLOOKUP($P70,class,4)) -> 0 | AB70: =$R70*(VLOOKUP($P70,class,14)/VLOOKUP($P70,class,4)) -> 0 | AC70: =$R70*(VLOOKUP($P70,class,15)/VLOOKUP($P70,class,4)) -> 0 | BB70: 70 | BD70: Less: Exp Before Income Tax | BF70: =SUM(BG70:BQ70) -> 423045000 | BG70: =S804 -> 203893972 | BH70: 49016362.16 | BI70: 95855927.64 | BJ70: 59332470.84 | BK70: 9582957.798 | BL70: 5363309.609 | BM70: 0 | BN70: 0 | BO70: 0 | BP70: 0 | BQ70: 0 | BR70: line 804
A71: 71 | B71: 561-OP | C71: Load Dispatching | F71: 1892000 | G71: 1117897 | J71: 71 | L71: P | M71: =HLOOKUP("Factor Name",pfactor,6) -> Open | N71: =IF(MATCH(P71,ref,0)>0,"","matching error") ->  | O71: =HLOOKUP(O67,pfactor,6) -> 0 | P71: =HLOOKUP("Class",pfactor,6) -> xxx | R71: =Q67*O71/SUM(O68:O71) -> 0 | S71: =$R71*(VLOOKUP($P71,class,5)/VLOOKUP($P71,class,4)) -> 0 | T71: =$R71*(VLOOKUP($P71,class,6)/VLOOKUP($P71,class,4)) -> 0 | U71: =$R71*(VLOOKUP($P71,class,7)/VLOOKUP($P71,class,4)) -> 0 | V71: =$R71*(VLOOKUP($P71,class,8)/VLOOKUP($P71,class,4)) -> 0 | W71: =$R71*(VLOOKUP($P71,class,9)/VLOOKUP($P71,class,4)) -> 0 | X71: =$R71*(VLOOKUP($P71,class,10)/VLOOKUP($P71,class,4)) -> 0 | Y71: =$R71*(VLOOKUP($P71,class,11)/VLOOKUP($P71,class,4)) -> 0 | Z71: =$R71*(VLOOKUP($P71,class,12)/VLOOKUP($P71,class,4)) -> 0 | AA71: =$R71*(VLOOKUP($P71,class,13)/VLOOKUP($P71,class,4)) -> 0 | AB71: =$R71*(VLOOKUP($P71,class,14)/VLOOKUP($P71,class,4)) -> 0 | AC71: =$R71*(VLOOKUP($P71,class,15)/VLOOKUP($P71,class,4)) -> 0 | BB71: 71 | BD71: Less: Interest Expense | BF71: =SUM(BG71:BQ71) -> 44018000 | BG71: =S1480 -> 21371436.26 | BH71: 5132796.757 | BI71: 10301950.87 | BJ71: 4981384.556 | BK71: 1085420.873 | BL71: 1145010.686 | BM71: 0 | BN71: 0 | BO71: 0 | BP71: 0 | BQ71: 0 | BR71: line 1480
A72: 72 | B72: 562-OP | C72: Station Expenses | F72: 293000 | G72: 113396 | J72: 72 | K72: =B24 -> 514-MT | L72: =C24 -> Steam | M72: =D24 -> Miscellaneous Plant | O72: P01 | P72: =IF(MATCH(O72,P_ref,0)>0,"","error matching functional allocator") ->  | Q72: =F24 -> 1128000 | BB72: 72 | BC72: R03 | BD72: Income Tax Allocator A | BF72: =SUM(BG72:BQ72) -> 84429000 | BG72: =BG69-BG70-BG71 -> 11190584.66 | BH72: 26213661.67 | BI72: 34982598.19 | BJ72: 9622107.945 | BK72: 1552064.411 | BL72: 867983.1223 | BM72: 0 | BN72: 0 | BO72: 0 | BP72: 0 | BQ72: 0 | BR72: Rev - Exp before Inc Tax - Interest Exp
A73: 73 | B73: 563-OP | C73: Overhead Line Expenses | F73: 339000 | G73: 29456 | J73: 73 | L73: P | M73: =HLOOKUP("Factor Name",pfactor,3) -> Coincident Peak | N73: =IF(MATCH(P73,ref,0)>0,"","matching error") ->  | O73: =HLOOKUP(O72,pfactor,3) -> 37.65 | P73: =HLOOKUP("Class",pfactor,3) -> D01 | R73: =Q72*O73/SUM(O73:O76) -> 424692 | S73: =$R73*(VLOOKUP($P73,class,5)/VLOOKUP($P73,class,4)) -> 209920.4737 | T73: =$R73*(VLOOKUP($P73,class,6)/VLOOKUP($P73,class,4)) -> 43539.21552 | U73: =$R73*(VLOOKUP($P73,class,7)/VLOOKUP($P73,class,4)) -> 94304.34999 | V73: =$R73*(VLOOKUP($P73,class,8)/VLOOKUP($P73,class,4)) -> 68150.0459 | W73: =$R73*(VLOOKUP($P73,class,9)/VLOOKUP($P73,class,4)) -> 8027.010221 | X73: =$R73*(VLOOKUP($P73,class,10)/VLOOKUP($P73,class,4)) -> 750.9046957 | Y73: =$R73*(VLOOKUP($P73,class,11)/VLOOKUP($P73,class,4)) -> 0 | Z73: =$R73*(VLOOKUP($P73,class,12)/VLOOKUP($P73,class,4)) -> 0 | AA73: =$R73*(VLOOKUP($P73,class,13)/VLOOKUP($P73,class,4)) -> 0 | AB73: =$R73*(VLOOKUP($P73,class,14)/VLOOKUP($P73,class,4)) -> 0 | AC73: =$R73*(VLOOKUP($P73,class,15)/VLOOKUP($P73,class,4)) -> 0 | BB73: 73 | BE73: =IF(SUM(BG73:BQ73)=BF73,"","error") ->  | BF73: =BF72/$BF72 -> 1 | BG73: 0.1325443231 | BH73: 0.3104817263 | BI73: 0.4143433914 | BJ73: 0.1139668591 | BK73: 0.01838307229 | BL73: 0.01028062777 | BM73: 0 | BN73: 0 | BO73: 0 | BP73: 0 | BQ73: 0
A74: 74 | B74: 564-OP | C74: Underground Line Expenses | F74: 0 | G74: 0 | J74: 74 | L74: P | M74: =HLOOKUP("Factor Name",pfactor,4) -> Generation Level Consumption | N74: =IF(MATCH(P74,ref,0)>0,"","matching error") ->  | O74: =HLOOKUP(O72,pfactor,4) -> 62.35 | P74: =HLOOKUP("Class",pfactor,4) -> E02 | R74: =Q72*O74/SUM(O73:O76) -> 703308 | S74: =$R74*(VLOOKUP($P74,class,5)/VLOOKUP($P74,class,4)) -> 295106.5311 | T74: =$R74*(VLOOKUP($P74,class,6)/VLOOKUP($P74,class,4)) -> 77871.38814 | U74: =$R74*(VLOOKUP($P74,class,7)/VLOOKUP($P74,class,4)) -> 175794.4778 | V74: =$R74*(VLOOKUP($P74,class,8)/VLOOKUP($P74,class,4)) -> 134967.1112 | W74: =$R74*(VLOOKUP($P74,class,9)/VLOOKUP($P74,class,4)) -> 16679.61032 | X74: =$R74*(VLOOKUP($P74,class,10)/VLOOKUP($P74,class,4)) -> 2888.881432 | Y74: =$R74*(VLOOKUP($P74,class,11)/VLOOKUP($P74,class,4)) -> 0 | Z74: =$R74*(VLOOKUP($P74,class,12)/VLOOKUP($P74,class,4)) -> 0 | AA74: =$R74*(VLOOKUP($P74,class,13)/VLOOKUP($P74,class,4)) -> 0 | AB74: =$R74*(VLOOKUP($P74,class,14)/VLOOKUP($P74,class,4)) -> 0 | AC74: =$R74*(VLOOKUP($P74,class,15)/VLOOKUP($P74,class,4)) -> 0 | BB74: 74
A75: 75 | B75: 565-OP | C75: Transmission of Electricity By Others | F75: 11440000 | G75: 0 | J75: 75 | L75: P | M75: =HLOOKUP("Factor Name",pfactor,5) -> Open | N75: =IF(MATCH(P75,ref,0)>0,"","matching error") ->  | O75: =HLOOKUP(O72,pfactor,5) -> 0 | P75: =HLOOKUP("Class",pfactor,5) -> xxx | R75: =Q72*O75/SUM(O73:O76) -> 0 | S75: =$R75*(VLOOKUP($P75,class,5)/VLOOKUP($P75,class,4)) -> 0 | T75: =$R75*(VLOOKUP($P75,class,6)/VLOOKUP($P75,class,4)) -> 0 | U75: =$R75*(VLOOKUP($P75,class,7)/VLOOKUP($P75,class,4)) -> 0 | V75: =$R75*(VLOOKUP($P75,class,8)/VLOOKUP($P75,class,4)) -> 0 | W75: =$R75*(VLOOKUP($P75,class,9)/VLOOKUP($P75,class,4)) -> 0 | X75: =$R75*(VLOOKUP($P75,class,10)/VLOOKUP($P75,class,4)) -> 0 | Y75: =$R75*(VLOOKUP($P75,class,11)/VLOOKUP($P75,class,4)) -> 0 | Z75: =$R75*(VLOOKUP($P75,class,12)/VLOOKUP($P75,class,4)) -> 0 | AA75: =$R75*(VLOOKUP($P75,class,13)/VLOOKUP($P75,class,4)) -> 0 | AB75: =$R75*(VLOOKUP($P75,class,14)/VLOOKUP($P75,class,4)) -> 0 | AC75: =$R75*(VLOOKUP($P75,class,15)/VLOOKUP($P75,class,4)) -> 0 | BB75: 75 | BD75: Uniform Return | BE75: =-$Q$846/$Q$1474 -> 0.07499955683 | BF75: =SUM(BG75:BQ75) -> 114234000 | BG75: =S$1474*$BE75 -> 55462416.51 | BH75: 13320457.65 | BI75: 26735268.65 | BJ75: 12927517.91 | BK75: 2816846.926 | BL75: 2971492.359 | BM75: 0 | BN75: 0 | BO75: 0 | BP75: 0 | BQ75: 0 | BR75: Juris Total Return * Class Rate Base line 1474
A76: 76 | B76: 566-OP | C76: Miscellaneous Expenses | F76: 1665000 | G76: 388716 | J76: 76 | L76: P | M76: =HLOOKUP("Factor Name",pfactor,6) -> Open | N76: =IF(MATCH(P76,ref,0)>0,"","matching error") ->  | O76: =HLOOKUP(O72,pfactor,6) -> 0 | P76: =HLOOKUP("Class",pfactor,6) -> xxx | R76: =Q72*O76/SUM(O73:O76) -> 0 | S76: =$R76*(VLOOKUP($P76,class,5)/VLOOKUP($P76,class,4)) -> 0 | T76: =$R76*(VLOOKUP($P76,class,6)/VLOOKUP($P76,class,4)) -> 0 | U76: =$R76*(VLOOKUP($P76,class,7)/VLOOKUP($P76,class,4)) -> 0 | V76: =$R76*(VLOOKUP($P76,class,8)/VLOOKUP($P76,class,4)) -> 0 | W76: =$R76*(VLOOKUP($P76,class,9)/VLOOKUP($P76,class,4)) -> 0 | X76: =$R76*(VLOOKUP($P76,class,10)/VLOOKUP($P76,class,4)) -> 0 | Y76: =$R76*(VLOOKUP($P76,class,11)/VLOOKUP($P76,class,4)) -> 0 | Z76: =$R76*(VLOOKUP($P76,class,12)/VLOOKUP($P76,class,4)) -> 0 | AA76: =$R76*(VLOOKUP($P76,class,13)/VLOOKUP($P76,class,4)) -> 0 | AB76: =$R76*(VLOOKUP($P76,class,14)/VLOOKUP($P76,class,4)) -> 0 | AC76: =$R76*(VLOOKUP($P76,class,15)/VLOOKUP($P76,class,4)) -> 0 | BB76: 76 | BD76: Plus: Total Operating Expenses | BF76: =SUM(BG76:BQ76) -> 437258000 | BG76: =S816 -> 205777824.4 | BH76: 53429238.94 | BI76: 101744990.3 | BJ76: 60952281.8 | BK76: 9844236.404 | BL76: 5509428.171 | BM76: 0 | BN76: 0 | BO76: 0 | BP76: 0 | BQ76: 0 | BR76: line 816
A77: 77 | B77: 567-OP | C77: Rents | F77: 126000 | G77: 16212 | J77: 77 | L77: =C25 -> Total Steam Maintenance | N77: =IF(AND(ROUND($Q77,0)=ROUND($R77,0),ROUND(SUM($S77:$AC77),0)=ROUND($R77,0)),"","crossfoot error") ->  | Q77: =SUM(Q52:Q76) -> 7515000 | R77: 7515000 | S77: 3364608.104 | T77: 808865.8568 | U77: 1799461.605 | V77: 1353214.039 | W77: 164601.2884 | X77: 24249.10705 | Y77: 0 | Z77: 0 | AA77: 0 | AB77: 0 | AC77: 0 | BB77: 77 | BD77: Less: Revenue Offsets | BF77: =SUM(BG77:BQ77) -> -48595000 | BG77: =SUM(S$821:S$824)+S$842 -> -22062992.88 | BH77: -5305820.59 | BI77: -11599476.69 | BJ77: -8182963.336 | BK77: -1088443.081 | BL77: -355303.4168 | BM77: 0 | BN77: 0 | BO77: 0 | BP77: 0 | BQ77: 0 | BR77: sum lines 821 ~ 824 + line 842
A78: 78 | C78: Total Transmission Operation | J78: 78 | L78: =C26 -> Total Steam | N78: =IF(AND(ROUND($Q78,0)=ROUND($R78,0),ROUND(SUM($S78:$AC78),0)=ROUND($R78,0)),"","crossfoot error") ->  | Q78: =Q51+Q77 -> 33772000 | R78: 33772000 | S78: 15120365.25 | T78: 3634999.031 | U78: 8086682.28 | V78: 6081270.061 | W78: 739709.2099 | X78: 108974.1641 | Y78: 0 | Z78: 0 | AA78: 0 | AB78: 0 | AC78: 0 | BB78: 78 | BD78: Rate Revenue at Uniform Return | BF78: =SUM(BG78:BQ78) -> 502897000 | BG78: =BG75+BG76+BG77 -> 239177248.1 | BH78: 61443876 | BI78: 116880782.2 | BJ78: 65696836.38 | BK78: 11572640.25 | BL78: 8125617.114 | BM78: 0 | BN78: 0 | BO78: 0 | BP78: 0 | BQ78: 0 | BR78: Computed Uniform Return Revenue Requirement
A79: 79 | B79: 568-MT | C79: Supervision & Engineering | F79: 680000 | G79: 380069 | J79: 79 | BB79: 79
A80: 80 | B80: 569-MT | C80: Structures | F80: 456000 | G80: 197895 | J80: 80 | K80: =B28 -> 535-OP | L80: =C28 -> Hydro | M80: =D28 -> Supervision & Engineering | O80: P01 | P80: =IF(MATCH(O80,P_ref,0)>0,"","error matching functional allocator") ->  | Q80: =F28 -> 1918000 | BB80: 80 | BD80: Uniform Return | BE80: =-$Q$846/$Q$1474 -> 0.07499955683 | BF80: =SUM(BG80:BQ80) -> 114234000 | BG80: =S$1474*$BE80 -> 55462416.51 | BH80: 13320457.65 | BI80: 26735268.65 | BJ80: 12927517.91 | BK80: 2816846.926 | BL80: 2971492.359 | BM80: 0 | BN80: 0 | BO80: 0 | BP80: 0 | BQ80: 0 | BR80: Total Return * Class Rate Base line 1474
A81: 81 | B81: 570-MT | C81: Station Equipment | F81: 899000 | G81: 436551 | J81: 81 | L81: P | M81: =HLOOKUP("Factor Name",pfactor,3) -> Coincident Peak | N81: =IF(MATCH(P81,ref,0)>0,"","matching error") ->  | O81: =HLOOKUP(O80,pfactor,3) -> 37.65 | P81: =HLOOKUP("Class",pfactor,3) -> D01 | R81: =Q80*O81/SUM(O81:O84) -> 722127 | S81: =$R81*(VLOOKUP($P81,class,5)/VLOOKUP($P81,class,4)) -> 356939.2451 | T81: =$R81*(VLOOKUP($P81,class,6)/VLOOKUP($P81,class,4)) -> 74032.10582 | U81: =$R81*(VLOOKUP($P81,class,7)/VLOOKUP($P81,class,4)) -> 160350.8362 | V81: =$R81*(VLOOKUP($P81,class,8)/VLOOKUP($P81,class,4)) -> 115879.2447 | W81: =$R81*(VLOOKUP($P81,class,9)/VLOOKUP($P81,class,4)) -> 13648.76383 | X81: =$R81*(VLOOKUP($P81,class,10)/VLOOKUP($P81,class,4)) -> 1276.804261 | Y81: =$R81*(VLOOKUP($P81,class,11)/VLOOKUP($P81,class,4)) -> 0 | Z81: =$R81*(VLOOKUP($P81,class,12)/VLOOKUP($P81,class,4)) -> 0 | AA81: =$R81*(VLOOKUP($P81,class,13)/VLOOKUP($P81,class,4)) -> 0 | AB81: =$R81*(VLOOKUP($P81,class,14)/VLOOKUP($P81,class,4)) -> 0 | AC81: =$R81*(VLOOKUP($P81,class,15)/VLOOKUP($P81,class,4)) -> 0 | BB81: 81 | BD81: Plus: Exp Excl Rev Conv Items | BF81: =SUM(BG81:BQ81) -> 412836000 | BG81: =S203+S264+S307+SUM(S310:S321)+SUM(S325:S328)+S348+S367+SUM(S372:S418)+SUM(S420:S439)+SUM(S444:S476)+S783+S803+S814 -> 195366336.9 | BH81: 49784273.76 | BI81: 95454138.85 | BJ81: 57759143.32 | BK81: 9303637.228 | BL81: 5168469.959 | BM81: 0 | BN81: 0 | BO81: 0 | BP81: 0 | BQ81: 0 | BR81: line 816 - lines 323, 419, and 477
A82: 82 | B82: 571-MT | C82: Overhead Lines | F82: 1173000 | G82: 18650 | J82: 82 | L82: P | M82: =HLOOKUP("Factor Name",pfactor,4) -> Generation Level Consumption | N82: =IF(MATCH(P82,ref,0)>0,"","matching error") ->  | O82: =HLOOKUP(O80,pfactor,4) -> 62.35 | P82: =HLOOKUP("Class",pfactor,4) -> E02 | R82: =Q80*O82/SUM(O81:O84) -> 1195873 | S82: =$R82*(VLOOKUP($P82,class,5)/VLOOKUP($P82,class,4)) -> 501785.7506 | T82: =$R82*(VLOOKUP($P82,class,6)/VLOOKUP($P82,class,4)) -> 132408.9738 | U82: =$R82*(VLOOKUP($P82,class,7)/VLOOKUP($P82,class,4)) -> 298912.9507 | V82: =$R82*(VLOOKUP($P82,class,8)/VLOOKUP($P82,class,4)) -> 229491.9497 | W82: =$R82*(VLOOKUP($P82,class,9)/VLOOKUP($P82,class,4)) -> 28361.25229 | X82: =$R82*(VLOOKUP($P82,class,10)/VLOOKUP($P82,class,4)) -> 4912.122861 | Y82: =$R82*(VLOOKUP($P82,class,11)/VLOOKUP($P82,class,4)) -> 0 | Z82: =$R82*(VLOOKUP($P82,class,12)/VLOOKUP($P82,class,4)) -> 0 | AA82: =$R82*(VLOOKUP($P82,class,13)/VLOOKUP($P82,class,4)) -> 0 | AB82: =$R82*(VLOOKUP($P82,class,14)/VLOOKUP($P82,class,4)) -> 0 | AC82: =$R82*(VLOOKUP($P82,class,15)/VLOOKUP($P82,class,4)) -> 0 | BB82: 82 | BD82: Less: Revenue Offsets | BF82: =SUM(BG82:BQ82) -> -48595000 | BG82: =SUM(S$821:S$824)+S$842 -> -22062992.88 | BH82: -5305820.59 | BI82: -11599476.69 | BJ82: -8182963.336 | BK82: -1088443.081 | BL82: -355303.4168 | BM82: 0 | BN82: 0 | BO82: 0 | BP82: 0 | BQ82: 0 | BR82: sum lines 821 ~ 824 + line 842
A83: 83 | B83: 572-MT | C83: Underground Lines | F83: 1000 | G83: 1045 | J83: 83 | L83: P | M83: =HLOOKUP("Factor Name",pfactor,5) -> Open | N83: =IF(MATCH(P83,ref,0)>0,"","matching error") ->  | O83: =HLOOKUP(O80,pfactor,5) -> 0 | P83: =HLOOKUP("Class",pfactor,5) -> xxx | R83: =Q80*O83/SUM(O81:O84) -> 0 | S83: =$R83*(VLOOKUP($P83,class,5)/VLOOKUP($P83,class,4)) -> 0 | T83: =$R83*(VLOOKUP($P83,class,6)/VLOOKUP($P83,class,4)) -> 0 | U83: =$R83*(VLOOKUP($P83,class,7)/VLOOKUP($P83,class,4)) -> 0 | V83: =$R83*(VLOOKUP($P83,class,8)/VLOOKUP($P83,class,4)) -> 0 | W83: =$R83*(VLOOKUP($P83,class,9)/VLOOKUP($P83,class,4)) -> 0 | X83: =$R83*(VLOOKUP($P83,class,10)/VLOOKUP($P83,class,4)) -> 0 | Y83: =$R83*(VLOOKUP($P83,class,11)/VLOOKUP($P83,class,4)) -> 0 | Z83: =$R83*(VLOOKUP($P83,class,12)/VLOOKUP($P83,class,4)) -> 0 | AA83: =$R83*(VLOOKUP($P83,class,13)/VLOOKUP($P83,class,4)) -> 0 | AB83: =$R83*(VLOOKUP($P83,class,14)/VLOOKUP($P83,class,4)) -> 0 | AC83: =$R83*(VLOOKUP($P83,class,15)/VLOOKUP($P83,class,4)) -> 0 | BB83: 83 | BC83: R04 | BD83: Revenue Conversion Allocator U | BF83: =SUM(BG83:BQ83) -> 478475000 | BG83: =BG80+BG81+BG82 -> 228765760.5 | BH83: 57798910.82 | BI83: 110589930.8 | BJ83: 62503697.89 | BK83: 11032041.07 | BL83: 7784658.902 | BM83: 0 | BN83: 0 | BO83: 0 | BP83: 0 | BQ83: 0 | BR83: Uniform Return Revenue Excl Rev Conversion Items
A84: 84 | B84: 573-MT | C84: Miscellaneous Plant | F84: 55000 | G84: 10427 | J84: 84 | L84: P | M84: =HLOOKUP("Factor Name",pfactor,6) -> Open | N84: =IF(MATCH(P84,ref,0)>0,"","matching error") ->  | O84: =HLOOKUP(O80,pfactor,6) -> 0 | P84: =HLOOKUP("Class",pfactor,6) -> xxx | R84: =Q80*O84/SUM(O81:O84) -> 0 | S84: =$R84*(VLOOKUP($P84,class,5)/VLOOKUP($P84,class,4)) -> 0 | T84: =$R84*(VLOOKUP($P84,class,6)/VLOOKUP($P84,class,4)) -> 0 | U84: =$R84*(VLOOKUP($P84,class,7)/VLOOKUP($P84,class,4)) -> 0 | V84: =$R84*(VLOOKUP($P84,class,8)/VLOOKUP($P84,class,4)) -> 0 | W84: =$R84*(VLOOKUP($P84,class,9)/VLOOKUP($P84,class,4)) -> 0 | X84: =$R84*(VLOOKUP($P84,class,10)/VLOOKUP($P84,class,4)) -> 0 | Y84: =$R84*(VLOOKUP($P84,class,11)/VLOOKUP($P84,class,4)) -> 0 | Z84: =$R84*(VLOOKUP($P84,class,12)/VLOOKUP($P84,class,4)) -> 0 | AA84: =$R84*(VLOOKUP($P84,class,13)/VLOOKUP($P84,class,4)) -> 0 | AB84: =$R84*(VLOOKUP($P84,class,14)/VLOOKUP($P84,class,4)) -> 0 | AC84: =$R84*(VLOOKUP($P84,class,15)/VLOOKUP($P84,class,4)) -> 0 | BB84: 84 | BE84: =IF(SUM(BG84:BQ84)=BF84,"","error") ->  | BF84: =BF83/$BF83 -> 1 | BG84: 0.4781143435 | BH84: 0.1207981834 | BI84: 0.2311300085 | BJ84: 0.130631063 | BK84: 0.02305667187 | BL84: 0.01626972967 | BM84: 0 | BN84: 0 | BO84: 0 | BP84: 0 | BQ84: 0
A85: 85 | C85: Total Transmission Maintenance | J85: 85 | K85: =B29 -> 536-OP | L85: =C29 -> Hydro | M85: =D29 -> Water For Power | O85: P01 | P85: =IF(MATCH(O85,P_ref,0)>0,"","error matching functional allocator") ->  | Q85: =F29 -> 737000 | BB85: 85
A86: 86 | C86: Total Transmission Expenses | J86: 86 | L86: P | M86: =HLOOKUP("Factor Name",pfactor,3) -> Coincident Peak | N86: =IF(MATCH(P86,ref,0)>0,"","matching error") ->  | O86: =HLOOKUP(O85,pfactor,3) -> 37.65 | P86: =HLOOKUP("Class",pfactor,3) -> D01 | R86: =Q85*O86/SUM(O86:O89) -> 277480.5 | S86: =$R86*(VLOOKUP($P86,class,5)/VLOOKUP($P86,class,4)) -> 137155.4868 | T86: =$R86*(VLOOKUP($P86,class,6)/VLOOKUP($P86,class,4)) -> 28447.16475 | U86: =$R86*(VLOOKUP($P86,class,7)/VLOOKUP($P86,class,4)) -> 61615.51945 | V86: =$R86*(VLOOKUP($P86,class,8)/VLOOKUP($P86,class,4)) -> 44527.11332 | W86: =$R86*(VLOOKUP($P86,class,9)/VLOOKUP($P86,class,4)) -> 5244.59799 | X86: =$R86*(VLOOKUP($P86,class,10)/VLOOKUP($P86,class,4)) -> 490.6176957 | Y86: =$R86*(VLOOKUP($P86,class,11)/VLOOKUP($P86,class,4)) -> 0 | Z86: =$R86*(VLOOKUP($P86,class,12)/VLOOKUP($P86,class,4)) -> 0 | AA86: =$R86*(VLOOKUP($P86,class,13)/VLOOKUP($P86,class,4)) -> 0 | AB86: =$R86*(VLOOKUP($P86,class,14)/VLOOKUP($P86,class,4)) -> 0 | AC86: =$R86*(VLOOKUP($P86,class,15)/VLOOKUP($P86,class,4)) -> 0 | BB86: 86 | BD86: Uniform Return | BE86: =-$Q$846/$Q$1474 -> 0.07499955683 | BF86: =SUM(BG86:BQ86) -> 114234000 | BG86: =S$1474*$BE86 -> 55462416.51 | BH86: 13320457.65 | BI86: 26735268.65 | BJ86: 12927517.91 | BK86: 2816846.926 | BL86: 2971492.359 | BM86: 0 | BN86: 0 | BO86: 0 | BP86: 0 | BQ86: 0 | BR86: Total Return * Class Rate Base line 1474
A87: 87 | J87: 87 | L87: P | M87: =HLOOKUP("Factor Name",pfactor,4) -> Generation Level Consumption | N87: =IF(MATCH(P87,ref,0)>0,"","matching error") ->  | O87: =HLOOKUP(O85,pfactor,4) -> 62.35 | P87: =HLOOKUP("Class",pfactor,4) -> E02 | R87: =Q85*O87/SUM(O86:O89) -> 459519.5 | S87: =$R87*(VLOOKUP($P87,class,5)/VLOOKUP($P87,class,4)) -> 192813.3984 | T87: =$R87*(VLOOKUP($P87,class,6)/VLOOKUP($P87,class,4)) -> 50878.73498 | U87: =$R87*(VLOOKUP($P87,class,7)/VLOOKUP($P87,class,4)) -> 114858.626 | V87: =$R87*(VLOOKUP($P87,class,8)/VLOOKUP($P87,class,4)) -> 88183.29871 | W87: =$R87*(VLOOKUP($P87,class,9)/VLOOKUP($P87,class,4)) -> 10897.93688 | X87: =$R87*(VLOOKUP($P87,class,10)/VLOOKUP($P87,class,4)) -> 1887.504978 | Y87: =$R87*(VLOOKUP($P87,class,11)/VLOOKUP($P87,class,4)) -> 0 | Z87: =$R87*(VLOOKUP($P87,class,12)/VLOOKUP($P87,class,4)) -> 0 | AA87: =$R87*(VLOOKUP($P87,class,13)/VLOOKUP($P87,class,4)) -> 0 | AB87: =$R87*(VLOOKUP($P87,class,14)/VLOOKUP($P87,class,4)) -> 0 | AC87: =$R87*(VLOOKUP($P87,class,15)/VLOOKUP($P87,class,4)) -> 0 | BB87: 87 | BD87: Less: Interest Expense | BF87: =SUM(BG87:BQ87) -> 44018000 | BG87: =S$1480 -> 21371436.26 | BH87: 5132796.757 | BI87: 10301950.87 | BJ87: 4981384.556 | BK87: 1085420.873 | BL87: 1145010.686 | BM87: 0 | BN87: 0 | BO87: 0 | BP87: 0 | BQ87: 0 | BR87: line 1480
A88: 88 | C88: Distribution Expenses | J88: 88 | L88: P | M88: =HLOOKUP("Factor Name",pfactor,5) -> Open | N88: =IF(MATCH(P88,ref,0)>0,"","matching error") ->  | O88: =HLOOKUP(O85,pfactor,5) -> 0 | P88: =HLOOKUP("Class",pfactor,5) -> xxx | R88: =Q85*O88/SUM(O86:O89) -> 0 | S88: =$R88*(VLOOKUP($P88,class,5)/VLOOKUP($P88,class,4)) -> 0 | T88: =$R88*(VLOOKUP($P88,class,6)/VLOOKUP($P88,class,4)) -> 0 | U88: =$R88*(VLOOKUP($P88,class,7)/VLOOKUP($P88,class,4)) -> 0 | V88: =$R88*(VLOOKUP($P88,class,8)/VLOOKUP($P88,class,4)) -> 0 | W88: =$R88*(VLOOKUP($P88,class,9)/VLOOKUP($P88,class,4)) -> 0 | X88: =$R88*(VLOOKUP($P88,class,10)/VLOOKUP($P88,class,4)) -> 0 | Y88: =$R88*(VLOOKUP($P88,class,11)/VLOOKUP($P88,class,4)) -> 0 | Z88: =$R88*(VLOOKUP($P88,class,12)/VLOOKUP($P88,class,4)) -> 0 | AA88: =$R88*(VLOOKUP($P88,class,13)/VLOOKUP($P88,class,4)) -> 0 | AB88: =$R88*(VLOOKUP($P88,class,14)/VLOOKUP($P88,class,4)) -> 0 | AC88: =$R88*(VLOOKUP($P88,class,15)/VLOOKUP($P88,class,4)) -> 0 | BB88: 88 | BC88: R05 | BD88: Income Tax Allocator U | BF88: =SUM(BG88:BQ88) -> 70216000 | BG88: =BG86-BG87 -> 34090980.25 | BH88: 8187660.891 | BI88: 16433317.78 | BJ88: 7946133.355 | BK88: 1731426.053 | BL88: 1826481.673 | BM88: 0 | BN88: 0 | BO88: 0 | BP88: 0 | BQ88: 0 | BR88: Uniform Return less Interest Expense
A89: 89 | B89: 580-OP | C89: Supervision & Engineering | F89: 3073000 | G89: 1807595 | J89: 89 | L89: P | M89: =HLOOKUP("Factor Name",pfactor,6) -> Open | N89: =IF(MATCH(P89,ref,0)>0,"","matching error") ->  | O89: =HLOOKUP(O85,pfactor,6) -> 0 | P89: =HLOOKUP("Class",pfactor,6) -> xxx | R89: =Q85*O89/SUM(O86:O89) -> 0 | S89: =$R89*(VLOOKUP($P89,class,5)/VLOOKUP($P89,class,4)) -> 0 | T89: =$R89*(VLOOKUP($P89,class,6)/VLOOKUP($P89,class,4)) -> 0 | U89: =$R89*(VLOOKUP($P89,class,7)/VLOOKUP($P89,class,4)) -> 0 | V89: =$R89*(VLOOKUP($P89,class,8)/VLOOKUP($P89,class,4)) -> 0 | W89: =$R89*(VLOOKUP($P89,class,9)/VLOOKUP($P89,class,4)) -> 0 | X89: =$R89*(VLOOKUP($P89,class,10)/VLOOKUP($P89,class,4)) -> 0 | Y89: =$R89*(VLOOKUP($P89,class,11)/VLOOKUP($P89,class,4)) -> 0 | Z89: =$R89*(VLOOKUP($P89,class,12)/VLOOKUP($P89,class,4)) -> 0 | AA89: =$R89*(VLOOKUP($P89,class,13)/VLOOKUP($P89,class,4)) -> 0 | AB89: =$R89*(VLOOKUP($P89,class,14)/VLOOKUP($P89,class,4)) -> 0 | AC89: =$R89*(VLOOKUP($P89,class,15)/VLOOKUP($P89,class,4)) -> 0 | BB89: 89 | BE89: =IF(SUM(BG89:BQ89)=BF89,"","error") ->  | BF89: =BF88/$BF88 -> 1 | BG89: 0.4855158404 | BH89: 0.116606769 | BI89: 0.2340395035 | BJ89: 0.1131669898 | BK89: 0.0246585686 | BL89: 0.02601232872 | BM89: 0 | BN89: 0 | BO89: 0 | BP89: 0 | BQ89: 0
A90: 90 | B90: 581-OP | C90: Load Dispatching | F90: 0 | G90: 0 | J90: 90 | K90: =B30 -> 537-OP | L90: =C30 -> Hydro | M90: =D30 -> Hydraulic Expenses | O90: P01 | P90: =IF(MATCH(O90,P_ref,0)>0,"","error matching functional allocator") ->  | Q90: =F30 -> 5784000 | BB90: 90
A91: 91 | B91: 582-OP | C91: Station Expenses | F91: 412000 | G91: 180058 | J91: 91 | L91: P | M91: =HLOOKUP("Factor Name",pfactor,3) -> Coincident Peak | N91: =IF(MATCH(P91,ref,0)>0,"","matching error") ->  | O91: =HLOOKUP(O90,pfactor,3) -> 37.65 | P91: =HLOOKUP("Class",pfactor,3) -> D01 | R91: =Q90*O91/SUM(O91:O94) -> 2177676 | S91: =$R91*(VLOOKUP($P91,class,5)/VLOOKUP($P91,class,4)) -> 1076400.727 | T91: =$R91*(VLOOKUP($P91,class,6)/VLOOKUP($P91,class,4)) -> 223254.2753 | U91: =$R91*(VLOOKUP($P91,class,7)/VLOOKUP($P91,class,4)) -> 483560.6032 | V91: =$R91*(VLOOKUP($P91,class,8)/VLOOKUP($P91,class,4)) -> 349450.2354 | W91: =$R91*(VLOOKUP($P91,class,9)/VLOOKUP($P91,class,4)) -> 41159.77581 | X91: =$R91*(VLOOKUP($P91,class,10)/VLOOKUP($P91,class,4)) -> 3850.383652 | Y91: =$R91*(VLOOKUP($P91,class,11)/VLOOKUP($P91,class,4)) -> 0 | Z91: =$R91*(VLOOKUP($P91,class,12)/VLOOKUP($P91,class,4)) -> 0 | AA91: =$R91*(VLOOKUP($P91,class,13)/VLOOKUP($P91,class,4)) -> 0 | AB91: =$R91*(VLOOKUP($P91,class,14)/VLOOKUP($P91,class,4)) -> 0 | AC91: =$R91*(VLOOKUP($P91,class,15)/VLOOKUP($P91,class,4)) -> 0 | BB91: 91 | BC91: R06 | BD91: Income Tax Allocator B | BF91: =SUM(BG91:BQ91) -> 128447000 | BG91: =BG69-BG70 -> 32562020.92 | BH91: 31346458.43 | BI91: 45284549.06 | BJ91: 14603492.5 | BK91: 2637485.283 | BL91: 2012993.808 | BM91: 0 | BN91: 0 | BO91: 0 | BP91: 0 | BQ91: 0 | BR91: Net Income Before Tax
A92: 92 | B92: 583-OP | C92: Overhead Line Expenses | F92: 1422000 | G92: 621001 | J92: 92 | L92: P | M92: =HLOOKUP("Factor Name",pfactor,4) -> Generation Level Consumption | N92: =IF(MATCH(P92,ref,0)>0,"","matching error") ->  | O92: =HLOOKUP(O90,pfactor,4) -> 62.35 | P92: =HLOOKUP("Class",pfactor,4) -> E02 | R92: =Q90*O92/SUM(O91:O94) -> 3606324 | S92: =$R92*(VLOOKUP($P92,class,5)/VLOOKUP($P92,class,4)) -> 1513205.83 | T92: =$R92*(VLOOKUP($P92,class,6)/VLOOKUP($P92,class,4)) -> 399297.969 | U92: =$R92*(VLOOKUP($P92,class,7)/VLOOKUP($P92,class,4)) -> 901414.2371 | V92: =$R92*(VLOOKUP($P92,class,8)/VLOOKUP($P92,class,4)) -> 692065.3999 | W92: =$R92*(VLOOKUP($P92,class,9)/VLOOKUP($P92,class,4)) -> 85527.36354 | X92: =$R92*(VLOOKUP($P92,class,10)/VLOOKUP($P92,class,4)) -> 14813.20053 | Y92: =$R92*(VLOOKUP($P92,class,11)/VLOOKUP($P92,class,4)) -> 0 | Z92: =$R92*(VLOOKUP($P92,class,12)/VLOOKUP($P92,class,4)) -> 0 | AA92: =$R92*(VLOOKUP($P92,class,13)/VLOOKUP($P92,class,4)) -> 0 | AB92: =$R92*(VLOOKUP($P92,class,14)/VLOOKUP($P92,class,4)) -> 0 | AC92: =$R92*(VLOOKUP($P92,class,15)/VLOOKUP($P92,class,4)) -> 0 | BB92: 92 | BF92: =BF91/$BF91 -> 1 | BG92: 0.2535054997 | BH92: 0.2440419662 | BI92: 0.3525543536 | BJ92: 0.1136927488 | BK92: 0.02053364643 | BL92: 0.01567178531 | BM92: 0 | BN92: 0 | BO92: 0 | BP92: 0 | BQ92: 0
A93: 93 | B93: 584-OP | C93: Underground Line Expenses | F93: 1323000 | G93: 285472 | J93: 93 | L93: P | M93: =HLOOKUP("Factor Name",pfactor,5) -> Open | N93: =IF(MATCH(P93,ref,0)>0,"","matching error") ->  | O93: =HLOOKUP(O90,pfactor,5) -> 0 | P93: =HLOOKUP("Class",pfactor,5) -> xxx | R93: =Q90*O93/SUM(O91:O94) -> 0 | S93: =$R93*(VLOOKUP($P93,class,5)/VLOOKUP($P93,class,4)) -> 0 | T93: =$R93*(VLOOKUP($P93,class,6)/VLOOKUP($P93,class,4)) -> 0 | U93: =$R93*(VLOOKUP($P93,class,7)/VLOOKUP($P93,class,4)) -> 0 | V93: =$R93*(VLOOKUP($P93,class,8)/VLOOKUP($P93,class,4)) -> 0 | W93: =$R93*(VLOOKUP($P93,class,9)/VLOOKUP($P93,class,4)) -> 0 | X93: =$R93*(VLOOKUP($P93,class,10)/VLOOKUP($P93,class,4)) -> 0 | Y93: =$R93*(VLOOKUP($P93,class,11)/VLOOKUP($P93,class,4)) -> 0 | Z93: =$R93*(VLOOKUP($P93,class,12)/VLOOKUP($P93,class,4)) -> 0 | AA93: =$R93*(VLOOKUP($P93,class,13)/VLOOKUP($P93,class,4)) -> 0 | AB93: =$R93*(VLOOKUP($P93,class,14)/VLOOKUP($P93,class,4)) -> 0 | AC93: =$R93*(VLOOKUP($P93,class,15)/VLOOKUP($P93,class,4)) -> 0 | BB93: 93
A94: 94 | B94: 585-OP | C94: Street Lighting & Signal Systems | F94: 7000 | G94: 4054 | J94: 94 | L94: P | M94: =HLOOKUP("Factor Name",pfactor,6) -> Open | N94: =IF(MATCH(P94,ref,0)>0,"","matching error") ->  | O94: =HLOOKUP(O90,pfactor,6) -> 0 | P94: =HLOOKUP("Class",pfactor,6) -> xxx | R94: =Q90*O94/SUM(O91:O94) -> 0 | S94: =$R94*(VLOOKUP($P94,class,5)/VLOOKUP($P94,class,4)) -> 0 | T94: =$R94*(VLOOKUP($P94,class,6)/VLOOKUP($P94,class,4)) -> 0 | U94: =$R94*(VLOOKUP($P94,class,7)/VLOOKUP($P94,class,4)) -> 0 | V94: =$R94*(VLOOKUP($P94,class,8)/VLOOKUP($P94,class,4)) -> 0 | W94: =$R94*(VLOOKUP($P94,class,9)/VLOOKUP($P94,class,4)) -> 0 | X94: =$R94*(VLOOKUP($P94,class,10)/VLOOKUP($P94,class,4)) -> 0 | Y94: =$R94*(VLOOKUP($P94,class,11)/VLOOKUP($P94,class,4)) -> 0 | Z94: =$R94*(VLOOKUP($P94,class,12)/VLOOKUP($P94,class,4)) -> 0 | AA94: =$R94*(VLOOKUP($P94,class,13)/VLOOKUP($P94,class,4)) -> 0 | AB94: =$R94*(VLOOKUP($P94,class,14)/VLOOKUP($P94,class,4)) -> 0 | AC94: =$R94*(VLOOKUP($P94,class,15)/VLOOKUP($P94,class,4)) -> 0 | BB94: 94 | BD94: Summed Allocators
A95: 95 | B95: 586-OP | C95: Meter Expenses | F95: 1458000 | G95: 792650 | J95: 95 | K95: =B31 -> 538-OP | L95: =C31 -> Hydro | M95: =D31 -> Electric Expenses | O95: P01 | P95: =IF(MATCH(O95,P_ref,0)>0,"","error matching functional allocator") ->  | Q95: =F31 -> 4874000 | BB95: 95 | BC95: S01 | BD95: Production Plant | BF95: =SUM(BG95:BQ95) -> 947710000 | BG95: =S893 -> 424307750.6 | BH95: 102005357.4 | BI95: 226928510.7 | BJ95: 170652625 | BK95: 20757722.83 | BL95: 3058033.432 | BM95: 0 | BN95: 0 | BO95: 0 | BP95: 0 | BQ95: 0 | BR95: line 893
A96: 96 | B96: 587-OP | C96: Customer Installations Expenses | F96: 457000 | G96: 254351 | J96: 96 | L96: P | M96: =HLOOKUP("Factor Name",pfactor,3) -> Coincident Peak | N96: =IF(MATCH(P96,ref,0)>0,"","matching error") ->  | O96: =HLOOKUP(O95,pfactor,3) -> 37.65 | P96: =HLOOKUP("Class",pfactor,3) -> D01 | R96: =Q95*O96/SUM(O96:O99) -> 1835061 | S96: =$R96*(VLOOKUP($P96,class,5)/VLOOKUP($P96,class,4)) -> 907049.99 | T96: =$R96*(VLOOKUP($P96,class,6)/VLOOKUP($P96,class,4)) -> 188129.5536 | U96: =$R96*(VLOOKUP($P96,class,7)/VLOOKUP($P96,class,4)) -> 407481.7392 | V96: =$R96*(VLOOKUP($P96,class,8)/VLOOKUP($P96,class,4)) -> 294471.0317 | W96: =$R96*(VLOOKUP($P96,class,9)/VLOOKUP($P96,class,4)) -> 34684.08494 | X96: =$R96*(VLOOKUP($P96,class,10)/VLOOKUP($P96,class,4)) -> 3244.600609 | Y96: =$R96*(VLOOKUP($P96,class,11)/VLOOKUP($P96,class,4)) -> 0 | Z96: =$R96*(VLOOKUP($P96,class,12)/VLOOKUP($P96,class,4)) -> 0 | AA96: =$R96*(VLOOKUP($P96,class,13)/VLOOKUP($P96,class,4)) -> 0 | AB96: =$R96*(VLOOKUP($P96,class,14)/VLOOKUP($P96,class,4)) -> 0 | AC96: =$R96*(VLOOKUP($P96,class,15)/VLOOKUP($P96,class,4)) -> 0 | BB96: 96 | BE96: =IF(SUM(BG96:BQ96)=BF96,"","error") ->  | BF96: =BF95/$BF95 -> 1 | BG96: 0.4477189759 | BH96: 0.1076335139 | BI96: 0.2394493154 | BJ96: 0.1800684017 | BK96: 0.02190303239 | BL96: 0.003226760752 | BM96: 0 | BN96: 0 | BO96: 0 | BP96: 0 | BQ96: 0
A97: 97 | B97: 588-OP | C97: Miscellaneous Expenses | F97: 5354000 | G97: 2747539 | J97: 97 | L97: P | M97: =HLOOKUP("Factor Name",pfactor,4) -> Generation Level Consumption | N97: =IF(MATCH(P97,ref,0)>0,"","matching error") ->  | O97: =HLOOKUP(O95,pfactor,4) -> 62.35 | P97: =HLOOKUP("Class",pfactor,4) -> E02 | R97: =Q95*O97/SUM(O96:O99) -> 3038939 | S97: =$R97*(VLOOKUP($P97,class,5)/VLOOKUP($P97,class,4)) -> 1275132.299 | T97: =$R97*(VLOOKUP($P97,class,6)/VLOOKUP($P97,class,4)) -> 336476.1931 | U97: =$R97*(VLOOKUP($P97,class,7)/VLOOKUP($P97,class,4)) -> 759594.224 | V97: =$R97*(VLOOKUP($P97,class,8)/VLOOKUP($P97,class,4)) -> 583182.3581 | W97: =$R97*(VLOOKUP($P97,class,9)/VLOOKUP($P97,class,4)) -> 72071.29493 | X97: =$R97*(VLOOKUP($P97,class,10)/VLOOKUP($P97,class,4)) -> 12482.63129 | Y97: =$R97*(VLOOKUP($P97,class,11)/VLOOKUP($P97,class,4)) -> 0 | Z97: =$R97*(VLOOKUP($P97,class,12)/VLOOKUP($P97,class,4)) -> 0 | AA97: =$R97*(VLOOKUP($P97,class,13)/VLOOKUP($P97,class,4)) -> 0 | AB97: =$R97*(VLOOKUP($P97,class,14)/VLOOKUP($P97,class,4)) -> 0 | AC97: =$R97*(VLOOKUP($P97,class,15)/VLOOKUP($P97,class,4)) -> 0 | BB97: 97 | BC97: S02 | BD97: Transmission Plant | BF97: =SUM(BG97:BQ97) -> 446138000 | BG97: =S932 -> 199744448.5 | BH97: 48019400.62 | BI97: 106827438.7 | BJ97: 80335356.59 | BK97: 9771775.065 | BL97: 1439580.588 | BM97: 0 | BN97: 0 | BO97: 0 | BP97: 0 | BQ97: 0 | BR97: line 932
A98: 98 | B98: 589-OP | C98: Rents | F98: 234000 | G98: 14236 | J98: 98 | L98: P | M98: =HLOOKUP("Factor Name",pfactor,5) -> Open | N98: =IF(MATCH(P98,ref,0)>0,"","matching error") ->  | O98: =HLOOKUP(O95,pfactor,5) -> 0 | P98: =HLOOKUP("Class",pfactor,5) -> xxx | R98: =Q95*O98/SUM(O96:O99) -> 0 | S98: =$R98*(VLOOKUP($P98,class,5)/VLOOKUP($P98,class,4)) -> 0 | T98: =$R98*(VLOOKUP($P98,class,6)/VLOOKUP($P98,class,4)) -> 0 | U98: =$R98*(VLOOKUP($P98,class,7)/VLOOKUP($P98,class,4)) -> 0 | V98: =$R98*(VLOOKUP($P98,class,8)/VLOOKUP($P98,class,4)) -> 0 | W98: =$R98*(VLOOKUP($P98,class,9)/VLOOKUP($P98,class,4)) -> 0 | X98: =$R98*(VLOOKUP($P98,class,10)/VLOOKUP($P98,class,4)) -> 0 | Y98: =$R98*(VLOOKUP($P98,class,11)/VLOOKUP($P98,class,4)) -> 0 | Z98: =$R98*(VLOOKUP($P98,class,12)/VLOOKUP($P98,class,4)) -> 0 | AA98: =$R98*(VLOOKUP($P98,class,13)/VLOOKUP($P98,class,4)) -> 0 | AB98: =$R98*(VLOOKUP($P98,class,14)/VLOOKUP($P98,class,4)) -> 0 | AC98: =$R98*(VLOOKUP($P98,class,15)/VLOOKUP($P98,class,4)) -> 0 | BB98: 98 | BE98: =IF(SUM(BG98:BQ98)=BF98,"","error") ->  | BF98: =BF97/$BF97 -> 1 | BG98: 0.4477189759 | BH98: 0.1076335139 | BI98: 0.2394493154 | BJ98: 0.1800684017 | BK98: 0.02190303239 | BL98: 0.003226760752 | BM98: 0 | BN98: 0 | BO98: 0 | BP98: 0 | BQ98: 0
A99: 99 | C99: Total Distribution Operation | J99: 99 | L99: P | M99: =HLOOKUP("Factor Name",pfactor,6) -> Open | N99: =IF(MATCH(P99,ref,0)>0,"","matching error") ->  | O99: =HLOOKUP(O95,pfactor,6) -> 0 | P99: =HLOOKUP("Class",pfactor,6) -> xxx | R99: =Q95*O99/SUM(O96:O99) -> 0 | S99: =$R99*(VLOOKUP($P99,class,5)/VLOOKUP($P99,class,4)) -> 0 | T99: =$R99*(VLOOKUP($P99,class,6)/VLOOKUP($P99,class,4)) -> 0 | U99: =$R99*(VLOOKUP($P99,class,7)/VLOOKUP($P99,class,4)) -> 0 | V99: =$R99*(VLOOKUP($P99,class,8)/VLOOKUP($P99,class,4)) -> 0 | W99: =$R99*(VLOOKUP($P99,class,9)/VLOOKUP($P99,class,4)) -> 0 | X99: =$R99*(VLOOKUP($P99,class,10)/VLOOKUP($P99,class,4)) -> 0 | Y99: =$R99*(VLOOKUP($P99,class,11)/VLOOKUP($P99,class,4)) -> 0 | Z99: =$R99*(VLOOKUP($P99,class,12)/VLOOKUP($P99,class,4)) -> 0 | AA99: =$R99*(VLOOKUP($P99,class,13)/VLOOKUP($P99,class,4)) -> 0 | AB99: =$R99*(VLOOKUP($P99,class,14)/VLOOKUP($P99,class,4)) -> 0 | AC99: =$R99*(VLOOKUP($P99,class,15)/VLOOKUP($P99,class,4)) -> 0 | BB99: 99 | BC99: S03 | BD99: Distribution Plant | BF99: =SUM(BG99:BQ99) -> 1016978000 | BG99: =S1089 -> 537562364.6 | BH99: 129711804.5 | BI99: 233690762.4 | BJ99: 30656649.28 | BK99: 28740899.86 | BL99: 56615519.25 | BM99: 0 | BN99: 0 | BO99: 0 | BP99: 0 | BQ99: 0 | BR99: line 1089
A100: 100 | B100: 590-MT | C100: Supervision & Engineering | F100: 970000 | G100: 442361 | J100: 100 | K100: =B32 -> 539-OP | L100: =C32 -> Hydro | M100: =D32 -> Miscellaneous Power Exp. | O100: P01 | P100: =IF(MATCH(O100,P_ref,0)>0,"","error matching functional allocator") ->  | Q100: =F32 -> 603000 | BB100: 100 | BE100: =IF(SUM(BG100:BQ100)=BF100,"","error") ->  | BF100: =BF99/$BF99 -> 1 | BG100: 0.5285879976 | BH100: 0.1275463231 | BI100: 0.229789398 | BJ100: 0.03014485002 | BK100: 0.02826108319 | BL100: 0.05567034808 | BM100: 0 | BN100: 0 | BO100: 0 | BP100: 0 | BQ100: 0
A101: 101 | B101: 591-MT | C101: Structures | F101: 297000 | G101: 131065 | J101: 101 | L101: P | M101: =HLOOKUP("Factor Name",pfactor,3) -> Coincident Peak | N101: =IF(MATCH(P101,ref,0)>0,"","matching error") ->  | O101: =HLOOKUP(O100,pfactor,3) -> 37.65 | P101: =HLOOKUP("Class",pfactor,3) -> D01 | R101: =Q100*O101/SUM(O101:O104) -> 227029.5 | S101: =$R101*(VLOOKUP($P101,class,5)/VLOOKUP($P101,class,4)) -> 112218.1256 | T101: =$R101*(VLOOKUP($P101,class,6)/VLOOKUP($P101,class,4)) -> 23274.95298 | U101: =$R101*(VLOOKUP($P101,class,7)/VLOOKUP($P101,class,4)) -> 50412.69774 | V101: =$R101*(VLOOKUP($P101,class,8)/VLOOKUP($P101,class,4)) -> 36431.27454 | W101: =$R101*(VLOOKUP($P101,class,9)/VLOOKUP($P101,class,4)) -> 4291.034719 | X101: =$R101*(VLOOKUP($P101,class,10)/VLOOKUP($P101,class,4)) -> 401.4144783 | Y101: =$R101*(VLOOKUP($P101,class,11)/VLOOKUP($P101,class,4)) -> 0 | Z101: =$R101*(VLOOKUP($P101,class,12)/VLOOKUP($P101,class,4)) -> 0 | AA101: =$R101*(VLOOKUP($P101,class,13)/VLOOKUP($P101,class,4)) -> 0 | AB101: =$R101*(VLOOKUP($P101,class,14)/VLOOKUP($P101,class,4)) -> 0 | AC101: =$R101*(VLOOKUP($P101,class,15)/VLOOKUP($P101,class,4)) -> 0 | BB101: 101 | BC101: S04 | BD101: General Plant | BF101: =SUM(BG101:BQ101) -> 242579000 | BG101: =S1142 -> 129818207.5 | BH101: 28348837.23 | BI101: 48658362.09 | BJ101: 25634554.93 | BK101: 5352872.87 | BL101: 4766165.378 | BM101: 0 | BN101: 0 | BO101: 0 | BP101: 0 | BQ101: 0 | BR101: line 1142
A102: 102 | B102: 592-MT | C102: Station Equipment | F102: 688000 | G102: 332333 | J102: 102 | L102: P | M102: =HLOOKUP("Factor Name",pfactor,4) -> Generation Level Consumption | N102: =IF(MATCH(P102,ref,0)>0,"","matching error") ->  | O102: =HLOOKUP(O100,pfactor,4) -> 62.35 | P102: =HLOOKUP("Class",pfactor,4) -> E02 | R102: =Q100*O102/SUM(O101:O104) -> 375970.5 | S102: =$R102*(VLOOKUP($P102,class,5)/VLOOKUP($P102,class,4)) -> 157756.4169 | T102: =$R102*(VLOOKUP($P102,class,6)/VLOOKUP($P102,class,4)) -> 41628.0559 | U102: =$R102*(VLOOKUP($P102,class,7)/VLOOKUP($P102,class,4)) -> 93975.23945 | V102: =$R102*(VLOOKUP($P102,class,8)/VLOOKUP($P102,class,4)) -> 72149.97167 | W102: =$R102*(VLOOKUP($P102,class,9)/VLOOKUP($P102,class,4)) -> 8916.493813 | X102: =$R102*(VLOOKUP($P102,class,10)/VLOOKUP($P102,class,4)) -> 1544.322255 | Y102: =$R102*(VLOOKUP($P102,class,11)/VLOOKUP($P102,class,4)) -> 0 | Z102: =$R102*(VLOOKUP($P102,class,12)/VLOOKUP($P102,class,4)) -> 0 | AA102: =$R102*(VLOOKUP($P102,class,13)/VLOOKUP($P102,class,4)) -> 0 | AB102: =$R102*(VLOOKUP($P102,class,14)/VLOOKUP($P102,class,4)) -> 0 | AC102: =$R102*(VLOOKUP($P102,class,15)/VLOOKUP($P102,class,4)) -> 0 | BB102: 102 | BE102: =IF(SUM(BG102:BQ102)=BF102,"","error") ->  | BF102: =BF101/$BF101 -> 1 | BG102: 0.5351584742 | BH102: 0.1168643503 | BI102: 0.2005876934 | BJ102: 0.1056750787 | BK102: 0.02206651388 | BL102: 0.01964788946 | BM102: 0 | BN102: 0 | BO102: 0 | BP102: 0 | BQ102: 0
A103: 103 | B103: 593-MT | C103: Overhead Lines | F103: 5258000 | G103: 1032358 | J103: 103 | L103: P | M103: =HLOOKUP("Factor Name",pfactor,5) -> Open | N103: =IF(MATCH(P103,ref,0)>0,"","matching error") ->  | O103: =HLOOKUP(O100,pfactor,5) -> 0 | P103: =HLOOKUP("Class",pfactor,5) -> xxx | R103: =Q100*O103/SUM(O101:O104) -> 0 | S103: =$R103*(VLOOKUP($P103,class,5)/VLOOKUP($P103,class,4)) -> 0 | T103: =$R103*(VLOOKUP($P103,class,6)/VLOOKUP($P103,class,4)) -> 0 | U103: =$R103*(VLOOKUP($P103,class,7)/VLOOKUP($P103,class,4)) -> 0 | V103: =$R103*(VLOOKUP($P103,class,8)/VLOOKUP($P103,class,4)) -> 0 | W103: =$R103*(VLOOKUP($P103,class,9)/VLOOKUP($P103,class,4)) -> 0 | X103: =$R103*(VLOOKUP($P103,class,10)/VLOOKUP($P103,class,4)) -> 0 | Y103: =$R103*(VLOOKUP($P103,class,11)/VLOOKUP($P103,class,4)) -> 0 | Z103: =$R103*(VLOOKUP($P103,class,12)/VLOOKUP($P103,class,4)) -> 0 | AA103: =$R103*(VLOOKUP($P103,class,13)/VLOOKUP($P103,class,4)) -> 0 | AB103: =$R103*(VLOOKUP($P103,class,14)/VLOOKUP($P103,class,4)) -> 0 | AC103: =$R103*(VLOOKUP($P103,class,15)/VLOOKUP($P103,class,4)) -> 0 | BB103: 103 | BC103: S05 | BD103: P/T/D Plant | BF103: =SUM(BG103:BQ103) -> 2410826000 | BG103: =S893+S932+S1089 -> 1161614564 | BH103: 279736562.6 | BI103: 567446711.8 | BJ103: 281644630.8 | BK103: 59270397.75 | BL103: 61113133.27 | BM103: 0 | BN103: 0 | BO103: 0 | BP103: 0 | BQ103: 0 | BR103: Sum lines 893+932+1089
A104: 104 | B104: 594-MT | C104: Underground Lines | F104: 464000 | G104: 295520 | J104: 104 | L104: P | M104: =HLOOKUP("Factor Name",pfactor,6) -> Open | N104: =IF(MATCH(P104,ref,0)>0,"","matching error") ->  | O104: =HLOOKUP(O100,pfactor,6) -> 0 | P104: =HLOOKUP("Class",pfactor,6) -> xxx | R104: =Q100*O104/SUM(O101:O104) -> 0 | S104: =$R104*(VLOOKUP($P104,class,5)/VLOOKUP($P104,class,4)) -> 0 | T104: =$R104*(VLOOKUP($P104,class,6)/VLOOKUP($P104,class,4)) -> 0 | U104: =$R104*(VLOOKUP($P104,class,7)/VLOOKUP($P104,class,4)) -> 0 | V104: =$R104*(VLOOKUP($P104,class,8)/VLOOKUP($P104,class,4)) -> 0 | W104: =$R104*(VLOOKUP($P104,class,9)/VLOOKUP($P104,class,4)) -> 0 | X104: =$R104*(VLOOKUP($P104,class,10)/VLOOKUP($P104,class,4)) -> 0 | Y104: =$R104*(VLOOKUP($P104,class,11)/VLOOKUP($P104,class,4)) -> 0 | Z104: =$R104*(VLOOKUP($P104,class,12)/VLOOKUP($P104,class,4)) -> 0 | AA104: =$R104*(VLOOKUP($P104,class,13)/VLOOKUP($P104,class,4)) -> 0 | AB104: =$R104*(VLOOKUP($P104,class,14)/VLOOKUP($P104,class,4)) -> 0 | AC104: =$R104*(VLOOKUP($P104,class,15)/VLOOKUP($P104,class,4)) -> 0 | BB104: 104 | BE104: =IF(SUM(BG104:BQ104)=BF104,"","error") ->  | BF104: =BF103/$BF103 -> 1 | BG104: 0.4818326017 | BH104: 0.1160334933 | BI104: 0.2353743953 | BJ104: 0.1168249516 | BK104: 0.02458509978 | BL104: 0.02534945835 | BM104: 0 | BN104: 0 | BO104: 0 | BP104: 0 | BQ104: 0
A105: 105 | B105: 595-MT | C105: Line Transformers | F105: 325000 | G105: 190936 | J105: 105 | K105: =B33 -> 540-OP | L105: =C33 -> Hydro | M105: =D33 -> Rents | O105: P01 | P105: =IF(MATCH(O105,P_ref,0)>0,"","error matching functional allocator") ->  | Q105: =F33 -> 4250000 | BB105: 105 | BC105: S06 | BD105: P/T/D/G Plant | BF105: =SUM(BG105:BQ105) -> 2653405000 | BG105: =S893+S932+S1089+S1142 -> 1291432771 | BH105: 308085399.8 | BI105: 616105073.9 | BJ105: 307279185.7 | BK105: 64623270.62 | BL105: 65879298.65 | BM105: 0 | BN105: 0 | BO105: 0 | BP105: 0 | BQ105: 0 | BR105: Sum lines 893+932+1089+1142
A106: 106 | B106: 596-MT | C106: Street Lighting & Signal Systems | F106: 262000 | G106: 159875 | J106: 106 | L106: P | M106: =HLOOKUP("Factor Name",pfactor,3) -> Coincident Peak | N106: =IF(MATCH(P106,ref,0)>0,"","matching error") ->  | O106: =HLOOKUP(O105,pfactor,3) -> 37.65 | P106: =HLOOKUP("Class",pfactor,3) -> D01 | R106: =Q105*O106/SUM(O106:O109) -> 1600125 | S106: =$R106*(VLOOKUP($P106,class,5)/VLOOKUP($P106,class,4)) -> 790923.7705 | T106: =$R106*(VLOOKUP($P106,class,6)/VLOOKUP($P106,class,4)) -> 164044.0301 | U106: =$R106*(VLOOKUP($P106,class,7)/VLOOKUP($P106,class,4)) -> 355313.3754 | V106: =$R106*(VLOOKUP($P106,class,8)/VLOOKUP($P106,class,4)) -> 256771.0063 | W106: =$R106*(VLOOKUP($P106,class,9)/VLOOKUP($P106,class,4)) -> 30243.6112 | X106: =$R106*(VLOOKUP($P106,class,10)/VLOOKUP($P106,class,4)) -> 2829.206522 | Y106: =$R106*(VLOOKUP($P106,class,11)/VLOOKUP($P106,class,4)) -> 0 | Z106: =$R106*(VLOOKUP($P106,class,12)/VLOOKUP($P106,class,4)) -> 0 | AA106: =$R106*(VLOOKUP($P106,class,13)/VLOOKUP($P106,class,4)) -> 0 | AB106: =$R106*(VLOOKUP($P106,class,14)/VLOOKUP($P106,class,4)) -> 0 | AC106: =$R106*(VLOOKUP($P106,class,15)/VLOOKUP($P106,class,4)) -> 0 | BB106: 106 | BE106: =IF(SUM(BG106:BQ106)=BF106,"","error") ->  | BF106: =BF105/$BF105 -> 1 | BG106: 0.4867077477 | BH106: 0.1161094518 | BI106: 0.2321941332 | BJ106: 0.1158056104 | BK106: 0.02435484618 | BL106: 0.02482821079 | BM106: 0 | BN106: 0 | BO106: 0 | BP106: 0 | BQ106: 0
A107: 107 | B107: 597-MT | C107: Meters | F107: 15000 | G107: 10579 | J107: 107 | L107: P | M107: =HLOOKUP("Factor Name",pfactor,4) -> Generation Level Consumption | N107: =IF(MATCH(P107,ref,0)>0,"","matching error") ->  | O107: =HLOOKUP(O105,pfactor,4) -> 62.35 | P107: =HLOOKUP("Class",pfactor,4) -> E02 | R107: =Q105*O107/SUM(O106:O109) -> 2649875 | S107: =$R107*(VLOOKUP($P107,class,5)/VLOOKUP($P107,class,4)) -> 1111881.877 | T107: =$R107*(VLOOKUP($P107,class,6)/VLOOKUP($P107,class,4)) -> 293398.4039 | U107: =$R107*(VLOOKUP($P107,class,7)/VLOOKUP($P107,class,4)) -> 662346.215 | V107: =$R107*(VLOOKUP($P107,class,8)/VLOOKUP($P107,class,4)) -> 508519.7009 | W107: =$R107*(VLOOKUP($P107,class,9)/VLOOKUP($P107,class,4)) -> 62844.27646 | X107: =$R107*(VLOOKUP($P107,class,10)/VLOOKUP($P107,class,4)) -> 10884.52667 | Y107: =$R107*(VLOOKUP($P107,class,11)/VLOOKUP($P107,class,4)) -> 0 | Z107: =$R107*(VLOOKUP($P107,class,12)/VLOOKUP($P107,class,4)) -> 0 | AA107: =$R107*(VLOOKUP($P107,class,13)/VLOOKUP($P107,class,4)) -> 0 | AB107: =$R107*(VLOOKUP($P107,class,14)/VLOOKUP($P107,class,4)) -> 0 | AC107: =$R107*(VLOOKUP($P107,class,15)/VLOOKUP($P107,class,4)) -> 0 | BB107: 107 | BC107: S07 | BD107: Rate Base | BF107: =SUM(BG107:BQ107) -> 1523129000 | BG107: =S1474 -> 739503256.4 | BH107: 177607151.4 | BI107: 356472355 | BJ107: 172367924 | BK107: 37558180.94 | BL107: 39620132.23 | BM107: 0 | BN107: 0 | BO107: 0 | BP107: 0 | BQ107: =AC1474 -> 0 | BR107: line 1473
A108: 108 | B108: 598-MT | C108: Miscellaneous Plant | F108: 345000 | G108: 138072 | J108: 108 | L108: P | M108: =HLOOKUP("Factor Name",pfactor,5) -> Open | N108: =IF(MATCH(P108,ref,0)>0,"","matching error") ->  | O108: =HLOOKUP(O105,pfactor,5) -> 0 | P108: =HLOOKUP("Class",pfactor,5) -> xxx | R108: =Q105*O108/SUM(O106:O109) -> 0 | S108: =$R108*(VLOOKUP($P108,class,5)/VLOOKUP($P108,class,4)) -> 0 | T108: =$R108*(VLOOKUP($P108,class,6)/VLOOKUP($P108,class,4)) -> 0 | U108: =$R108*(VLOOKUP($P108,class,7)/VLOOKUP($P108,class,4)) -> 0 | V108: =$R108*(VLOOKUP($P108,class,8)/VLOOKUP($P108,class,4)) -> 0 | W108: =$R108*(VLOOKUP($P108,class,9)/VLOOKUP($P108,class,4)) -> 0 | X108: =$R108*(VLOOKUP($P108,class,10)/VLOOKUP($P108,class,4)) -> 0 | Y108: =$R108*(VLOOKUP($P108,class,11)/VLOOKUP($P108,class,4)) -> 0 | Z108: =$R108*(VLOOKUP($P108,class,12)/VLOOKUP($P108,class,4)) -> 0 | AA108: =$R108*(VLOOKUP($P108,class,13)/VLOOKUP($P108,class,4)) -> 0 | AB108: =$R108*(VLOOKUP($P108,class,14)/VLOOKUP($P108,class,4)) -> 0 | AC108: =$R108*(VLOOKUP($P108,class,15)/VLOOKUP($P108,class,4)) -> 0 | BB108: 108 | BE108: =IF(SUM(BG108:BQ108)=BF108,"","error") ->  | BF108: =BF107/$BF107 -> 1 | BG108: 0.4855158404 | BH108: 0.116606769 | BI108: 0.2340395035 | BJ108: 0.1131669898 | BK108: 0.0246585686 | BL108: 0.02601232872 | BM108: 0 | BN108: 0 | BO108: 0 | BP108: 0 | BQ108: 0
A109: 109 | C109: Total Distribution Maintenance | J109: 109 | L109: P | M109: =HLOOKUP("Factor Name",pfactor,6) -> Open | N109: =IF(MATCH(P109,ref,0)>0,"","matching error") ->  | O109: =HLOOKUP(O105,pfactor,6) -> 0 | P109: =HLOOKUP("Class",pfactor,6) -> xxx | R109: =Q105*O109/SUM(O106:O109) -> 0 | S109: =$R109*(VLOOKUP($P109,class,5)/VLOOKUP($P109,class,4)) -> 0 | T109: =$R109*(VLOOKUP($P109,class,6)/VLOOKUP($P109,class,4)) -> 0 | U109: =$R109*(VLOOKUP($P109,class,7)/VLOOKUP($P109,class,4)) -> 0 | V109: =$R109*(VLOOKUP($P109,class,8)/VLOOKUP($P109,class,4)) -> 0 | W109: =$R109*(VLOOKUP($P109,class,9)/VLOOKUP($P109,class,4)) -> 0 | X109: =$R109*(VLOOKUP($P109,class,10)/VLOOKUP($P109,class,4)) -> 0 | Y109: =$R109*(VLOOKUP($P109,class,11)/VLOOKUP($P109,class,4)) -> 0 | Z109: =$R109*(VLOOKUP($P109,class,12)/VLOOKUP($P109,class,4)) -> 0 | AA109: =$R109*(VLOOKUP($P109,class,13)/VLOOKUP($P109,class,4)) -> 0 | AB109: =$R109*(VLOOKUP($P109,class,14)/VLOOKUP($P109,class,4)) -> 0 | AC109: =$R109*(VLOOKUP($P109,class,15)/VLOOKUP($P109,class,4)) -> 0 | BB109: 109 | BC109: S08 | BD109: Account 361 | BF109: =SUM(BG109:BQ109) -> 14851000 | BG109: =SUM(S946:S956) -> 7138425.649 | BH109: 1829961.103 | BI109: 3952894.442 | BJ109: 1392629.407 | BK109: 446277.1818 | BL109: 90812.21722 | BM109: 0 | BN109: 0 | BO109: 0 | BP109: 0 | BQ109: 0 | BR109: Sum lines 946 ~ 956
A110: 110 | C110: Total Distribution Expenses | J110: 110 | L110: =C34 -> Total Hydraulic Operation | N110: =IF(AND(ROUND($Q110,0)=ROUND($R110,0),ROUND(SUM($S110:$AC110),0)=ROUND($R110,0)),"","crossfoot error") ->  | Q110: =SUM(Q80:Q109) -> 18166000 | R110: 18166000 | S110: 8133262.916 | T110: 1955270.413 | U110: 4349836.264 | V110: 3271122.585 | W110: 397890.4864 | X110: 58617.33581 | Y110: 0 | Z110: 0 | AA110: 0 | AB110: 0 | AC110: 0 | BB110: 110 | BE110: =IF(SUM(BG110:BQ110)=BF110,"","error") ->  | BF110: =BF109/$BF109 -> 1 | BG110: 0.4806696956 | BH110: 0.1232214061 | BI110: 0.266170254 | BJ110: 0.09377344336 | BK110: 0.03005031188 | BL110: 0.006114889046 | BM110: 0 | BN110: 0 | BO110: 0 | BP110: 0 | BQ110: 0
A111: 111 | J111: 111 | K111: =B35 -> 541-MT | L111: =C35 -> Hydro | M111: =D35 -> Supervision & Engineering | O111: P01 | P111: =IF(MATCH(O111,P_ref,0)>0,"","error matching functional allocator") ->  | Q111: =F35 -> 603000 | BB111: 111 | BC111: S09 | BD111: Account 362 | BF111: =SUM(BG111:BQ111) -> 83107000 | BG111: =SUM(S957:S967) -> 41379995.96 | BH111: 10607910.87 | BI111: 22914121.98 | BJ111: 5091573.605 | BK111: 2586977.702 | BL111: 526419.8812 | BM111: 0 | BN111: 0 | BO111: 0 | BP111: 0 | BQ111: 0 | BR111: Sum lines 957 ~ 967
A112: 112 | C112: Customer Accounting Expenses | J112: 112 | L112: P | M112: =HLOOKUP("Factor Name",pfactor,3) -> Coincident Peak | N112: =IF(MATCH(P112,ref,0)>0,"","matching error") ->  | O112: =HLOOKUP(O111,pfactor,3) -> 37.65 | P112: =HLOOKUP("Class",pfactor,3) -> D01 | R112: =Q111*O112/SUM(O112:O115) -> 227029.5 | S112: =$R112*(VLOOKUP($P112,class,5)/VLOOKUP($P112,class,4)) -> 112218.1256 | T112: =$R112*(VLOOKUP($P112,class,6)/VLOOKUP($P112,class,4)) -> 23274.95298 | U112: =$R112*(VLOOKUP($P112,class,7)/VLOOKUP($P112,class,4)) -> 50412.69774 | V112: =$R112*(VLOOKUP($P112,class,8)/VLOOKUP($P112,class,4)) -> 36431.27454 | W112: =$R112*(VLOOKUP($P112,class,9)/VLOOKUP($P112,class,4)) -> 4291.034719 | X112: =$R112*(VLOOKUP($P112,class,10)/VLOOKUP($P112,class,4)) -> 401.4144783 | Y112: =$R112*(VLOOKUP($P112,class,11)/VLOOKUP($P112,class,4)) -> 0 | Z112: =$R112*(VLOOKUP($P112,class,12)/VLOOKUP($P112,class,4)) -> 0 | AA112: =$R112*(VLOOKUP($P112,class,13)/VLOOKUP($P112,class,4)) -> 0 | AB112: =$R112*(VLOOKUP($P112,class,14)/VLOOKUP($P112,class,4)) -> 0 | AC112: =$R112*(VLOOKUP($P112,class,15)/VLOOKUP($P112,class,4)) -> 0 | BB112: 112 | BE112: =IF(SUM(BG112:BQ112)=BF112,"","error") ->  | BF112: =BF111/$BF111 -> 1 | BG112: 0.4979122813 | BH112: 0.1276416051 | BI112: 0.2757183147 | BJ112: 0.06126527976 | BK112: 0.03112827682 | BL112: 0.006334242377 | BM112: 0 | BN112: 0 | BO112: 0 | BP112: 0 | BQ112: 0
A113: 113 | B113: 901-OP | C113: Supervision | F113: 226000 | G113: 137834 | J113: 113 | L113: P | M113: =HLOOKUP("Factor Name",pfactor,4) -> Generation Level Consumption | N113: =IF(MATCH(P113,ref,0)>0,"","matching error") ->  | O113: =HLOOKUP(O111,pfactor,4) -> 62.35 | P113: =HLOOKUP("Class",pfactor,4) -> E02 | R113: =Q111*O113/SUM(O112:O115) -> 375970.5 | S113: =$R113*(VLOOKUP($P113,class,5)/VLOOKUP($P113,class,4)) -> 157756.4169 | T113: =$R113*(VLOOKUP($P113,class,6)/VLOOKUP($P113,class,4)) -> 41628.0559 | U113: =$R113*(VLOOKUP($P113,class,7)/VLOOKUP($P113,class,4)) -> 93975.23945 | V113: =$R113*(VLOOKUP($P113,class,8)/VLOOKUP($P113,class,4)) -> 72149.97167 | W113: =$R113*(VLOOKUP($P113,class,9)/VLOOKUP($P113,class,4)) -> 8916.493813 | X113: =$R113*(VLOOKUP($P113,class,10)/VLOOKUP($P113,class,4)) -> 1544.322255 | Y113: =$R113*(VLOOKUP($P113,class,11)/VLOOKUP($P113,class,4)) -> 0 | Z113: =$R113*(VLOOKUP($P113,class,12)/VLOOKUP($P113,class,4)) -> 0 | AA113: =$R113*(VLOOKUP($P113,class,13)/VLOOKUP($P113,class,4)) -> 0 | AB113: =$R113*(VLOOKUP($P113,class,14)/VLOOKUP($P113,class,4)) -> 0 | AC113: =$R113*(VLOOKUP($P113,class,15)/VLOOKUP($P113,class,4)) -> 0 | BB113: 113 | BC113: S10 | BD113: Account 364/365 | BF113: =SUM(BG113:BQ113) -> 381808000 | BG113: =SUM(S979:S1000) -> 188105327.1 | BH113: 48221477.5 | BI113: 104088234.3 | BJ113: 15511088.7 | BK113: 11759892.08 | BL113: 14121980.3 | BM113: 0 | BN113: 0 | BO113: 0 | BP113: 0 | BQ113: 0 | BR113: Sum lines 979 ~ 1000
A114: 114 | B114: 902-OP | C114: Meter Reading | F114: 2986000 | G114: 1598180 | J114: 114 | L114: P | M114: =HLOOKUP("Factor Name",pfactor,5) -> Open | N114: =IF(MATCH(P114,ref,0)>0,"","matching error") ->  | O114: =HLOOKUP(O111,pfactor,5) -> 0 | P114: =HLOOKUP("Class",pfactor,5) -> xxx | R114: =Q111*O114/SUM(O112:O115) -> 0 | S114: =$R114*(VLOOKUP($P114,class,5)/VLOOKUP($P114,class,4)) -> 0 | T114: =$R114*(VLOOKUP($P114,class,6)/VLOOKUP($P114,class,4)) -> 0 | U114: =$R114*(VLOOKUP($P114,class,7)/VLOOKUP($P114,class,4)) -> 0 | V114: =$R114*(VLOOKUP($P114,class,8)/VLOOKUP($P114,class,4)) -> 0 | W114: =$R114*(VLOOKUP($P114,class,9)/VLOOKUP($P114,class,4)) -> 0 | X114: =$R114*(VLOOKUP($P114,class,10)/VLOOKUP($P114,class,4)) -> 0 | Y114: =$R114*(VLOOKUP($P114,class,11)/VLOOKUP($P114,class,4)) -> 0 | Z114: =$R114*(VLOOKUP($P114,class,12)/VLOOKUP($P114,class,4)) -> 0 | AA114: =$R114*(VLOOKUP($P114,class,13)/VLOOKUP($P114,class,4)) -> 0 | AB114: =$R114*(VLOOKUP($P114,class,14)/VLOOKUP($P114,class,4)) -> 0 | AC114: =$R114*(VLOOKUP($P114,class,15)/VLOOKUP($P114,class,4)) -> 0 | BB114: 114 | BE114: =IF(SUM(BG114:BQ114)=BF114,"","error") ->  | BF114: =BF113/$BF113 -> 1 | BG114: 0.4926699469 | BH114: 0.1262977138 | BI114: 0.2726193122 | BJ114: 0.04062536327 | BK114: 0.0308005387 | BL114: 0.03698712519 | BM114: 0 | BN114: 0 | BO114: 0 | BP114: 0 | BQ114: 0
A115: 115 | B115: 903-OP | C115: Customer Records & Collections | F115: 6407000 | G115: 3238055 | J115: 115 | L115: P | M115: =HLOOKUP("Factor Name",pfactor,6) -> Open | N115: =IF(MATCH(P115,ref,0)>0,"","matching error") ->  | O115: =HLOOKUP(O111,pfactor,6) -> 0 | P115: =HLOOKUP("Class",pfactor,6) -> xxx | R115: =Q111*O115/SUM(O112:O115) -> 0 | S115: =$R115*(VLOOKUP($P115,class,5)/VLOOKUP($P115,class,4)) -> 0 | T115: =$R115*(VLOOKUP($P115,class,6)/VLOOKUP($P115,class,4)) -> 0 | U115: =$R115*(VLOOKUP($P115,class,7)/VLOOKUP($P115,class,4)) -> 0 | V115: =$R115*(VLOOKUP($P115,class,8)/VLOOKUP($P115,class,4)) -> 0 | W115: =$R115*(VLOOKUP($P115,class,9)/VLOOKUP($P115,class,4)) -> 0 | X115: =$R115*(VLOOKUP($P115,class,10)/VLOOKUP($P115,class,4)) -> 0 | Y115: =$R115*(VLOOKUP($P115,class,11)/VLOOKUP($P115,class,4)) -> 0 | Z115: =$R115*(VLOOKUP($P115,class,12)/VLOOKUP($P115,class,4)) -> 0 | AA115: =$R115*(VLOOKUP($P115,class,13)/VLOOKUP($P115,class,4)) -> 0 | AB115: =$R115*(VLOOKUP($P115,class,14)/VLOOKUP($P115,class,4)) -> 0 | AC115: =$R115*(VLOOKUP($P115,class,15)/VLOOKUP($P115,class,4)) -> 0 | BB115: 115 | BC115: S11 | BD115: Account 366/367 | BF115: =SUM(BG115:BQ115) -> 189794000 | BG115: =SUM(S1001:S1022) -> 97112797.17 | BH115: 24895215.02 | BI115: 52592596.13 | BJ115: 7886703 | BK115: 6071258.225 | BL115: 1235430.453 | BM115: 0 | BN115: 0 | BO115: 0 | BP115: 0 | BQ115: 0 | BR115: Sum lines 1001 ~ 1022
A116: 116 | B116: 904-OP | C116: Uncollectible Accounts | F116: 3218000 | G116: 0 | J116: 116 | K116: =B36 -> 542-MT | L116: =C36 -> Hydro | M116: =D36 -> Structures | O116: P01 | P116: =IF(MATCH(O116,P_ref,0)>0,"","error matching functional allocator") ->  | Q116: =F36 -> 344000 | BB116: 116 | BE116: =IF(SUM(BG116:BQ116)=BF116,"","error") ->  | BF116: =BF115/$BF115 -> 1 | BG116: 0.5116747483 | BH116: 0.131169663 | BI116: 0.2771035762 | BJ116: 0.04155401646 | BK116: 0.03198867312 | BL116: 0.006509323018 | BM116: 0 | BN116: 0 | BO116: 0 | BP116: 0 | BQ116: 0
A117: 117 | B117: 905-OP | C117: Misc Customer Accounts Expenses | F117: 170000 | G117: 78530 | J117: 117 | L117: P | M117: =HLOOKUP("Factor Name",pfactor,3) -> Coincident Peak | N117: =IF(MATCH(P117,ref,0)>0,"","matching error") ->  | O117: =HLOOKUP(O116,pfactor,3) -> 37.65 | P117: =HLOOKUP("Class",pfactor,3) -> D01 | R117: =Q116*O117/SUM(O117:O120) -> 129516 | S117: =$R117*(VLOOKUP($P117,class,5)/VLOOKUP($P117,class,4)) -> 64018.30048 | T117: =$R117*(VLOOKUP($P117,class,6)/VLOOKUP($P117,class,4)) -> 13277.91679 | U117: =$R117*(VLOOKUP($P117,class,7)/VLOOKUP($P117,class,4)) -> 28759.48262 | V117: =$R117*(VLOOKUP($P117,class,8)/VLOOKUP($P117,class,4)) -> 20783.34733 | W117: =$R117*(VLOOKUP($P117,class,9)/VLOOKUP($P117,class,4)) -> 2447.953472 | X117: =$R117*(VLOOKUP($P117,class,10)/VLOOKUP($P117,class,4)) -> 228.9993043 | Y117: =$R117*(VLOOKUP($P117,class,11)/VLOOKUP($P117,class,4)) -> 0 | Z117: =$R117*(VLOOKUP($P117,class,12)/VLOOKUP($P117,class,4)) -> 0 | AA117: =$R117*(VLOOKUP($P117,class,13)/VLOOKUP($P117,class,4)) -> 0 | AB117: =$R117*(VLOOKUP($P117,class,14)/VLOOKUP($P117,class,4)) -> 0 | AC117: =$R117*(VLOOKUP($P117,class,15)/VLOOKUP($P117,class,4)) -> 0 | BB117: 117 | BC117: S12 | BD117: Account 368 | BF117: =SUM(BG117:BQ117) -> 168718000 | BG117: =SUM(S1023:S1033) -> 92283008.59 | BH117: 23657081.33 | BI117: 45834610.8 | BJ117: 0 | BK117: 5769311.474 | BL117: 1173987.8 | BM117: 0 | BN117: 0 | BO117: 0 | BP117: 0 | BQ117: 0 | BR117: Sum lines 1023 ~ 1033
A118: 118 | C118: Total Customer Accounting Expenses | J118: 118 | L118: P | M118: =HLOOKUP("Factor Name",pfactor,4) -> Generation Level Consumption | N118: =IF(MATCH(P118,ref,0)>0,"","matching error") ->  | O118: =HLOOKUP(O116,pfactor,4) -> 62.35 | P118: =HLOOKUP("Class",pfactor,4) -> E02 | R118: =Q116*O118/SUM(O117:O120) -> 214484 | S118: =$R118*(VLOOKUP($P118,class,5)/VLOOKUP($P118,class,4)) -> 89997.02723 | T118: =$R118*(VLOOKUP($P118,class,6)/VLOOKUP($P118,class,4)) -> 23748.01199 | U118: =$R118*(VLOOKUP($P118,class,7)/VLOOKUP($P118,class,4)) -> 53611.08188 | V118: =$R118*(VLOOKUP($P118,class,8)/VLOOKUP($P118,class,4)) -> 41160.18285 | W118: =$R118*(VLOOKUP($P118,class,9)/VLOOKUP($P118,class,4)) -> 5086.689671 | X118: =$R118*(VLOOKUP($P118,class,10)/VLOOKUP($P118,class,4)) -> 881.0063942 | Y118: =$R118*(VLOOKUP($P118,class,11)/VLOOKUP($P118,class,4)) -> 0 | Z118: =$R118*(VLOOKUP($P118,class,12)/VLOOKUP($P118,class,4)) -> 0 | AA118: =$R118*(VLOOKUP($P118,class,13)/VLOOKUP($P118,class,4)) -> 0 | AB118: =$R118*(VLOOKUP($P118,class,14)/VLOOKUP($P118,class,4)) -> 0 | AC118: =$R118*(VLOOKUP($P118,class,15)/VLOOKUP($P118,class,4)) -> 0 | BB118: 118 | BE118: =IF(SUM(BG118:BQ118)=BF118,"","error") ->  | BF118: =BF117/$BF117 -> 1 | BG118: 0.5469659941 | BH118: 0.1402167009 | BI118: 0.271664024 | BJ118: 0 | BK118: 0.03419499682 | BL118: 0.006958284237 | BM118: 0 | BN118: 0 | BO118: 0 | BP118: 0 | BQ118: 0
A119: 119 | J119: 119 | L119: P | M119: =HLOOKUP("Factor Name",pfactor,5) -> Open | N119: =IF(MATCH(P119,ref,0)>0,"","matching error") ->  | O119: =HLOOKUP(O116,pfactor,5) -> 0 | P119: =HLOOKUP("Class",pfactor,5) -> xxx | R119: =Q116*O119/SUM(O117:O120) -> 0 | S119: =$R119*(VLOOKUP($P119,class,5)/VLOOKUP($P119,class,4)) -> 0 | T119: =$R119*(VLOOKUP($P119,class,6)/VLOOKUP($P119,class,4)) -> 0 | U119: =$R119*(VLOOKUP($P119,class,7)/VLOOKUP($P119,class,4)) -> 0 | V119: =$R119*(VLOOKUP($P119,class,8)/VLOOKUP($P119,class,4)) -> 0 | W119: =$R119*(VLOOKUP($P119,class,9)/VLOOKUP($P119,class,4)) -> 0 | X119: =$R119*(VLOOKUP($P119,class,10)/VLOOKUP($P119,class,4)) -> 0 | Y119: =$R119*(VLOOKUP($P119,class,11)/VLOOKUP($P119,class,4)) -> 0 | Z119: =$R119*(VLOOKUP($P119,class,12)/VLOOKUP($P119,class,4)) -> 0 | AA119: =$R119*(VLOOKUP($P119,class,13)/VLOOKUP($P119,class,4)) -> 0 | AB119: =$R119*(VLOOKUP($P119,class,14)/VLOOKUP($P119,class,4)) -> 0 | AC119: =$R119*(VLOOKUP($P119,class,15)/VLOOKUP($P119,class,4)) -> 0 | BB119: 119 | BC119: S13 | BD119: Account 369 | BF119: =SUM(BG119:BQ119) -> 103648000 | BG119: =SUM(S1034:S1044) -> 88621903.07 | BH119: 13211656.58 | BI119: 787133.7178 | BJ119: 0 | BK119: 1027306.627 | BL119: 0 | BM119: 0 | BN119: 0 | BO119: 0 | BP119: 0 | BQ119: 0 | BR119: Sum lines 1034 ~ 1044
A120: 120 | J120: 120 | L120: P | M120: =HLOOKUP("Factor Name",pfactor,6) -> Open | N120: =IF(MATCH(P120,ref,0)>0,"","matching error") ->  | O120: =HLOOKUP(O116,pfactor,6) -> 0 | P120: =HLOOKUP("Class",pfactor,6) -> xxx | R120: =Q116*O120/SUM(O117:O120) -> 0 | S120: =$R120*(VLOOKUP($P120,class,5)/VLOOKUP($P120,class,4)) -> 0 | T120: =$R120*(VLOOKUP($P120,class,6)/VLOOKUP($P120,class,4)) -> 0 | U120: =$R120*(VLOOKUP($P120,class,7)/VLOOKUP($P120,class,4)) -> 0 | V120: =$R120*(VLOOKUP($P120,class,8)/VLOOKUP($P120,class,4)) -> 0 | W120: =$R120*(VLOOKUP($P120,class,9)/VLOOKUP($P120,class,4)) -> 0 | X120: =$R120*(VLOOKUP($P120,class,10)/VLOOKUP($P120,class,4)) -> 0 | Y120: =$R120*(VLOOKUP($P120,class,11)/VLOOKUP($P120,class,4)) -> 0 | Z120: =$R120*(VLOOKUP($P120,class,12)/VLOOKUP($P120,class,4)) -> 0 | AA120: =$R120*(VLOOKUP($P120,class,13)/VLOOKUP($P120,class,4)) -> 0 | AB120: =$R120*(VLOOKUP($P120,class,14)/VLOOKUP($P120,class,4)) -> 0 | AC120: =$R120*(VLOOKUP($P120,class,15)/VLOOKUP($P120,class,4)) -> 0 | BB120: 120 | BE120: =IF(SUM(BG120:BQ120)=BF120,"","error") ->  | BF120: =BF119/$BF119 -> 1 | BG120: 0.855027623 | BH120: 0.1274665848 | BI120: 0.007594297215 | BJ120: 0 | BK120: 0.00991149493 | BL120: 0 | BM120: 0 | BN120: 0 | BO120: 0 | BP120: 0 | BQ120: 0
A121: 121 | B121: Proforma | J121: 121 | K121: =B37 -> 543-MT | L121: =C37 -> Hydro | M121: =D37 -> Reservoirs, Dams & Waterways | O121: P01 | P121: =IF(MATCH(O121,P_ref,0)>0,"","error matching functional allocator") ->  | Q121: =F37 -> 1581000 | BB121: 121 | BC121: S14 | BD121: Account 370 | BF121: =SUM(BG121:BQ121) -> 28023000 | BG121: =SUM(S1045:S1055) -> 19205122.16 | BH121: 6356034.604 | BI121: 1565586.582 | BJ121: 39146.13903 | BK121: 857110.5113 | BL121: 0 | BM121: 0 | BN121: 0 | BO121: 0 | BP121: 0 | BQ121: 0 | BR121: Sum lines 1045 ~ 1055
A122: 122 | B122: =$B$2 -> Pro Forma Results of Operations | J122: 122 | L122: P | M122: =HLOOKUP("Factor Name",pfactor,3) -> Coincident Peak | N122: =IF(MATCH(P122,ref,0)>0,"","matching error") ->  | O122: =HLOOKUP(O121,pfactor,3) -> 37.65 | P122: =HLOOKUP("Class",pfactor,3) -> D01 | R122: =Q121*O122/SUM(O122:O125) -> 595246.5 | S122: =$R122*(VLOOKUP($P122,class,5)/VLOOKUP($P122,class,4)) -> 294223.6426 | T122: =$R122*(VLOOKUP($P122,class,6)/VLOOKUP($P122,class,4)) -> 61024.3792 | U122: =$R122*(VLOOKUP($P122,class,7)/VLOOKUP($P122,class,4)) -> 132176.5757 | V122: =$R122*(VLOOKUP($P122,class,8)/VLOOKUP($P122,class,4)) -> 95518.81433 | W122: =$R122*(VLOOKUP($P122,class,9)/VLOOKUP($P122,class,4)) -> 11250.62337 | X122: =$R122*(VLOOKUP($P122,class,10)/VLOOKUP($P122,class,4)) -> 1052.464826 | Y122: =$R122*(VLOOKUP($P122,class,11)/VLOOKUP($P122,class,4)) -> 0 | Z122: =$R122*(VLOOKUP($P122,class,12)/VLOOKUP($P122,class,4)) -> 0 | AA122: =$R122*(VLOOKUP($P122,class,13)/VLOOKUP($P122,class,4)) -> 0 | AB122: =$R122*(VLOOKUP($P122,class,14)/VLOOKUP($P122,class,4)) -> 0 | AC122: =$R122*(VLOOKUP($P122,class,15)/VLOOKUP($P122,class,4)) -> 0 | BB122: 122 | BE122: =IF(SUM(BG122:BQ122)=BF122,"","error") ->  | BF122: =BF121/$BF121 -> 1 | BG122: 0.685334267 | BH122: 0.2268149236 | BI122: 0.05586791499 | BJ122: 0.001396928917 | BK122: 0.0305859655 | BL122: 0 | BM122: 0 | BN122: 0 | BO122: 0 | BP122: 0 | BQ122: 0
A123: 123 | B123: =$B$3 -> Allowed Rates Case UE-170485 | J123: 123 | L123: P | M123: =HLOOKUP("Factor Name",pfactor,4) -> Generation Level Consumption | N123: =IF(MATCH(P123,ref,0)>0,"","matching error") ->  | O123: =HLOOKUP(O121,pfactor,4) -> 62.35 | P123: =HLOOKUP("Class",pfactor,4) -> E02 | R123: =Q121*O123/SUM(O122:O125) -> 985753.5 | S123: =$R123*(VLOOKUP($P123,class,5)/VLOOKUP($P123,class,4)) -> 413620.0583 | T123: =$R123*(VLOOKUP($P123,class,6)/VLOOKUP($P123,class,4)) -> 109144.2063 | U123: =$R123*(VLOOKUP($P123,class,7)/VLOOKUP($P123,class,4)) -> 246392.792 | V123: =$R123*(VLOOKUP($P123,class,8)/VLOOKUP($P123,class,4)) -> 189169.3287 | W123: =$R123*(VLOOKUP($P123,class,9)/VLOOKUP($P123,class,4)) -> 23378.07084 | X123: =$R123*(VLOOKUP($P123,class,10)/VLOOKUP($P123,class,4)) -> 4049.043922 | Y123: =$R123*(VLOOKUP($P123,class,11)/VLOOKUP($P123,class,4)) -> 0 | Z123: =$R123*(VLOOKUP($P123,class,12)/VLOOKUP($P123,class,4)) -> 0 | AA123: =$R123*(VLOOKUP($P123,class,13)/VLOOKUP($P123,class,4)) -> 0 | AB123: =$R123*(VLOOKUP($P123,class,14)/VLOOKUP($P123,class,4)) -> 0 | AC123: =$R123*(VLOOKUP($P123,class,15)/VLOOKUP($P123,class,4)) -> 0 | BB123: 123 | BC123: S15 | BD123: Account 373 | BF123: =SUM(BG123:BQ123) -> 39422000 | BG123: =SUM(S1078:S1088) -> 0 | BH123: 0 | BI123: 0 | BJ123: 0 | BK123: 0 | BL123: 39422000 | BM123: 0 | BN123: 0 | BO123: 0 | BP123: 0 | BQ123: 0 | BR123: Sum lines 1078 ~ 1088
A124: 124 | J124: 124 | L124: P | M124: =HLOOKUP("Factor Name",pfactor,5) -> Open | N124: =IF(MATCH(P124,ref,0)>0,"","matching error") ->  | O124: =HLOOKUP(O121,pfactor,5) -> 0 | P124: =HLOOKUP("Class",pfactor,5) -> xxx | R124: =Q121*O124/SUM(O122:O125) -> 0 | S124: =$R124*(VLOOKUP($P124,class,5)/VLOOKUP($P124,class,4)) -> 0 | T124: =$R124*(VLOOKUP($P124,class,6)/VLOOKUP($P124,class,4)) -> 0 | U124: =$R124*(VLOOKUP($P124,class,7)/VLOOKUP($P124,class,4)) -> 0 | V124: =$R124*(VLOOKUP($P124,class,8)/VLOOKUP($P124,class,4)) -> 0 | W124: =$R124*(VLOOKUP($P124,class,9)/VLOOKUP($P124,class,4)) -> 0 | X124: =$R124*(VLOOKUP($P124,class,10)/VLOOKUP($P124,class,4)) -> 0 | Y124: =$R124*(VLOOKUP($P124,class,11)/VLOOKUP($P124,class,4)) -> 0 | Z124: =$R124*(VLOOKUP($P124,class,12)/VLOOKUP($P124,class,4)) -> 0 | AA124: =$R124*(VLOOKUP($P124,class,13)/VLOOKUP($P124,class,4)) -> 0 | AB124: =$R124*(VLOOKUP($P124,class,14)/VLOOKUP($P124,class,4)) -> 0 | AC124: =$R124*(VLOOKUP($P124,class,15)/VLOOKUP($P124,class,4)) -> 0 | BB124: 124 | BE124: =IF(SUM(BG124:BQ124)=BF124,"","error") ->  | BF124: =BF123/$BF123 -> 1 | BG124: 0 | BH124: 0 | BI124: 0 | BJ124: 0 | BK124: 0 | BL124: 1 | BM124: 0 | BN124: 0 | BO124: 0 | BP124: 0 | BQ124: 0
A125: 125 | B125: (a) | C125: (b) | J125: 125 | L125: P | M125: =HLOOKUP("Factor Name",pfactor,6) -> Open | N125: =IF(MATCH(P125,ref,0)>0,"","matching error") ->  | O125: =HLOOKUP(O121,pfactor,6) -> 0 | P125: =HLOOKUP("Class",pfactor,6) -> xxx | R125: =Q121*O125/SUM(O122:O125) -> 0 | S125: =$R125*(VLOOKUP($P125,class,5)/VLOOKUP($P125,class,4)) -> 0 | T125: =$R125*(VLOOKUP($P125,class,6)/VLOOKUP($P125,class,4)) -> 0 | U125: =$R125*(VLOOKUP($P125,class,7)/VLOOKUP($P125,class,4)) -> 0 | V125: =$R125*(VLOOKUP($P125,class,8)/VLOOKUP($P125,class,4)) -> 0 | W125: =$R125*(VLOOKUP($P125,class,9)/VLOOKUP($P125,class,4)) -> 0 | X125: =$R125*(VLOOKUP($P125,class,10)/VLOOKUP($P125,class,4)) -> 0 | Y125: =$R125*(VLOOKUP($P125,class,11)/VLOOKUP($P125,class,4)) -> 0 | Z125: =$R125*(VLOOKUP($P125,class,12)/VLOOKUP($P125,class,4)) -> 0 | AA125: =$R125*(VLOOKUP($P125,class,13)/VLOOKUP($P125,class,4)) -> 0 | AB125: =$R125*(VLOOKUP($P125,class,14)/VLOOKUP($P125,class,4)) -> 0 | AC125: =$R125*(VLOOKUP($P125,class,15)/VLOOKUP($P125,class,4)) -> 0 | BB125: 125 | BC125: S16 | BD125: Dist Op Exp Subtotal | BF125: =SUM(BG125:BQ125) -> 5313000 | BG125: =SUM(S269:S282)+S286 -> 3077626.852 | BH125: 821586.5806 | BI125: 1010938.081 | BJ125: 176063.0416 | BK125: 154632.4468 | BL125: 72152.99811 | BM125: 0 | BN125: 0 | BO125: 0 | BP125: 0 | BQ125: 0 | BR125: Sum lines 269 ~ 282 + line 286
A126: 126 | J126: 126 | K126: =B38 -> 544-MT | L126: =C38 -> Hydro | M126: =D38 -> Electric Plant | O126: P01 | P126: =IF(MATCH(O126,P_ref,0)>0,"","error matching functional allocator") ->  | Q126: =F38 -> 2072000 | BB126: 126 | BE126: =IF(SUM(BG126:BQ126)=BF126,"","error") ->  | BF126: =BF125/$BF125 -> 1 | BG126: 0.5792634768 | BH126: 0.1546370376 | BI126: 0.1902763186 | BJ126: 0.03313815954 | BK126: 0.02910454486 | BL126: 0.01358046266 | BM126: 0 | BN126: 0 | BO126: 0 | BP126: 0 | BQ126: 0
A127: 127 | B127: Account | C127: Description | F127: Proforma | G127: Labor | J127: 127 | L127: P | M127: =HLOOKUP("Factor Name",pfactor,3) -> Coincident Peak | N127: =IF(MATCH(P127,ref,0)>0,"","matching error") ->  | O127: =HLOOKUP(O126,pfactor,3) -> 37.65 | P127: =HLOOKUP("Class",pfactor,3) -> D01 | R127: =Q126*O127/SUM(O127:O130) -> 780108 | S127: =$R127*(VLOOKUP($P127,class,5)/VLOOKUP($P127,class,4)) -> 385598.6006 | T127: =$R127*(VLOOKUP($P127,class,6)/VLOOKUP($P127,class,4)) -> 79976.2895 | U127: =$R127*(VLOOKUP($P127,class,7)/VLOOKUP($P127,class,4)) -> 173225.7209 | V127: =$R127*(VLOOKUP($P127,class,8)/VLOOKUP($P127,class,4)) -> 125183.4176 | W127: =$R127*(VLOOKUP($P127,class,9)/VLOOKUP($P127,class,4)) -> 14744.64998 | X127: =$R127*(VLOOKUP($P127,class,10)/VLOOKUP($P127,class,4)) -> 1379.321391 | Y127: =$R127*(VLOOKUP($P127,class,11)/VLOOKUP($P127,class,4)) -> 0 | Z127: =$R127*(VLOOKUP($P127,class,12)/VLOOKUP($P127,class,4)) -> 0 | AA127: =$R127*(VLOOKUP($P127,class,13)/VLOOKUP($P127,class,4)) -> 0 | AB127: =$R127*(VLOOKUP($P127,class,14)/VLOOKUP($P127,class,4)) -> 0 | AC127: =$R127*(VLOOKUP($P127,class,15)/VLOOKUP($P127,class,4)) -> 0 | BB127: 127 | BC127: S17 | BD127: Dist Mt Exp Subtotal | BF127: =SUM(BG127:BQ127) -> 7309000 | BG127: =SUM(S290:S303) -> 3501242.175 | BH127: 898322.9361 | BI127: 1919883.995 | BJ127: 302911.4028 | BK127: 218705.3374 | BL127: 467934.1533 | BM127: 0 | BN127: 0 | BO127: 0 | BP127: 0 | BQ127: 0 | BR127: Sum lines 290 ~ 303
A128: 128 | F128: Totals | G128: Totals | J128: 128 | L128: P | M128: =HLOOKUP("Factor Name",pfactor,4) -> Generation Level Consumption | N128: =IF(MATCH(P128,ref,0)>0,"","matching error") ->  | O128: =HLOOKUP(O126,pfactor,4) -> 62.35 | P128: =HLOOKUP("Class",pfactor,4) -> E02 | R128: =Q126*O128/SUM(O127:O130) -> 1291892 | S128: =$R128*(VLOOKUP($P128,class,5)/VLOOKUP($P128,class,4)) -> 542075.1175 | T128: =$R128*(VLOOKUP($P128,class,6)/VLOOKUP($P128,class,4)) -> 143040.3513 | U128: =$R128*(VLOOKUP($P128,class,7)/VLOOKUP($P128,class,4)) -> 322913.2606 | V128: =$R128*(VLOOKUP($P128,class,8)/VLOOKUP($P128,class,4)) -> 247918.3106 | W128: =$R128*(VLOOKUP($P128,class,9)/VLOOKUP($P128,class,4)) -> 30638.43313 | X128: =$R128*(VLOOKUP($P128,class,10)/VLOOKUP($P128,class,4)) -> 5306.526886 | Y128: =$R128*(VLOOKUP($P128,class,11)/VLOOKUP($P128,class,4)) -> 0 | Z128: =$R128*(VLOOKUP($P128,class,12)/VLOOKUP($P128,class,4)) -> 0 | AA128: =$R128*(VLOOKUP($P128,class,13)/VLOOKUP($P128,class,4)) -> 0 | AB128: =$R128*(VLOOKUP($P128,class,14)/VLOOKUP($P128,class,4)) -> 0 | AC128: =$R128*(VLOOKUP($P128,class,15)/VLOOKUP($P128,class,4)) -> 0 | BB128: 128 | BE128: =IF(SUM(BG128:BQ128)=BF128,"","error") ->  | BF128: =BF127/$BF127 -> 1 | BG128: 0.4790316289 | BH128: 0.122906408 | BI128: 0.2626739629 | BJ128: 0.04144361784 | BK128: 0.0299227442 | BL128: 0.06402163816 | BM128: 0 | BN128: 0 | BO128: 0 | BP128: 0 | BQ128: 0
A129: 129 | C129: Customer Information Expenses | F129: 0 | G129: 0 | J129: 129 | L129: P | M129: =HLOOKUP("Factor Name",pfactor,5) -> Open | N129: =IF(MATCH(P129,ref,0)>0,"","matching error") ->  | O129: =HLOOKUP(O126,pfactor,5) -> 0 | P129: =HLOOKUP("Class",pfactor,5) -> xxx | R129: =Q126*O129/SUM(O127:O130) -> 0 | S129: =$R129*(VLOOKUP($P129,class,5)/VLOOKUP($P129,class,4)) -> 0 | T129: =$R129*(VLOOKUP($P129,class,6)/VLOOKUP($P129,class,4)) -> 0 | U129: =$R129*(VLOOKUP($P129,class,7)/VLOOKUP($P129,class,4)) -> 0 | V129: =$R129*(VLOOKUP($P129,class,8)/VLOOKUP($P129,class,4)) -> 0 | W129: =$R129*(VLOOKUP($P129,class,9)/VLOOKUP($P129,class,4)) -> 0 | X129: =$R129*(VLOOKUP($P129,class,10)/VLOOKUP($P129,class,4)) -> 0 | Y129: =$R129*(VLOOKUP($P129,class,11)/VLOOKUP($P129,class,4)) -> 0 | Z129: =$R129*(VLOOKUP($P129,class,12)/VLOOKUP($P129,class,4)) -> 0 | AA129: =$R129*(VLOOKUP($P129,class,13)/VLOOKUP($P129,class,4)) -> 0 | AB129: =$R129*(VLOOKUP($P129,class,14)/VLOOKUP($P129,class,4)) -> 0 | AC129: =$R129*(VLOOKUP($P129,class,15)/VLOOKUP($P129,class,4)) -> 0 | BB129: 129 | BC129: S18 | BD129: Cust Acctg Exp Subtotal | BF129: =SUM(BG129:BQ129) -> 9563000 | BG129: =SUM(S312:S321)+SUM(S324:S328) -> 8094390.701 | BH129: 1206702.931 | BI129: 73398.04423 | BJ129: 83744.74373 | BK129: 93830.3164 | BL129: 10933.26317 | BM129: 0 | BN129: 0 | BO129: 0 | BP129: 0 | BQ129: 0 | BR129: Sum lines 312 ~ 321 + lines 324 ~ 328
A130: 130 | B130: 907-OP | C130: Supervision | F130: 0 | G130: 0 | J130: 130 | L130: P | M130: =HLOOKUP("Factor Name",pfactor,6) -> Open | N130: =IF(MATCH(P130,ref,0)>0,"","matching error") ->  | O130: =HLOOKUP(O126,pfactor,6) -> 0 | P130: =HLOOKUP("Class",pfactor,6) -> xxx | R130: =Q126*O130/SUM(O127:O130) -> 0 | S130: =$R130*(VLOOKUP($P130,class,5)/VLOOKUP($P130,class,4)) -> 0 | T130: =$R130*(VLOOKUP($P130,class,6)/VLOOKUP($P130,class,4)) -> 0 | U130: =$R130*(VLOOKUP($P130,class,7)/VLOOKUP($P130,class,4)) -> 0 | V130: =$R130*(VLOOKUP($P130,class,8)/VLOOKUP($P130,class,4)) -> 0 | W130: =$R130*(VLOOKUP($P130,class,9)/VLOOKUP($P130,class,4)) -> 0 | X130: =$R130*(VLOOKUP($P130,class,10)/VLOOKUP($P130,class,4)) -> 0 | Y130: =$R130*(VLOOKUP($P130,class,11)/VLOOKUP($P130,class,4)) -> 0 | Z130: =$R130*(VLOOKUP($P130,class,12)/VLOOKUP($P130,class,4)) -> 0 | AA130: =$R130*(VLOOKUP($P130,class,13)/VLOOKUP($P130,class,4)) -> 0 | AB130: =$R130*(VLOOKUP($P130,class,14)/VLOOKUP($P130,class,4)) -> 0 | AC130: =$R130*(VLOOKUP($P130,class,15)/VLOOKUP($P130,class,4)) -> 0 | BB130: 130 | BE130: =IF(SUM(BG130:BQ130)=BF130,"","error") ->  | BF130: =BF129/$BF129 -> 1 | BG130: 0.8464279725 | BH130: 0.1261845583 | BI130: 0.007675211151 | BJ130: 0.008757162369 | BK130: 0.009811807634 | BL130: 0.001143288002 | BM130: 0 | BN130: 0 | BO130: 0 | BP130: 0 | BQ130: 0
A131: 131 | B131: 908-OP | C131: Customer Assistance Expenses | F131: 615000 | G131: 232360 | J131: 131 | K131: =B39 -> 545-MT | L131: =C39 -> Hydro | M131: =D39 -> Miscellaneous Plant | O131: P01 | P131: =IF(MATCH(O131,P_ref,0)>0,"","error matching functional allocator") ->  | Q131: =F39 -> 489000 | BB131: 131 | BC131: S19 | BD131: O&M Exp excl PP/F/W/A&G | BF131: =SUM(BG131:BQ131) -> 88280000 | BG131: =S369-SUM(S188:S192,S16:S20,S144:S148,S226:S229,S322:S323)-S339 -> 46080306.7 | BH131: =T369-SUM(T188:T192,T16:T20,T144:T148,T226:T229,T322:T323)-T339 -> 10488803.22 | BI131: 18065835.17 | BJ131: 10749935.21 | BK131: 1966318.672 | BL131: 928801.0359 | BM131: 0 | BN131: 0 | BO131: 0 | BP131: 0 | BQ131: 0 | BR131: lines 369 - (188~192, 16~20, 144~148, 226~229, 323, 339)
A132: 132 | B132: 909-OP | C132: Advertising | F132: 647000 | G132: 145166 | J132: 132 | L132: P | M132: =HLOOKUP("Factor Name",pfactor,3) -> Coincident Peak | N132: =IF(MATCH(P132,ref,0)>0,"","matching error") ->  | O132: =HLOOKUP(O131,pfactor,3) -> 37.65 | P132: =HLOOKUP("Class",pfactor,3) -> D01 | R132: =Q131*O132/SUM(O132:O135) -> 184108.5 | S132: =$R132*(VLOOKUP($P132,class,5)/VLOOKUP($P132,class,4)) -> 91002.75853 | T132: =$R132*(VLOOKUP($P132,class,6)/VLOOKUP($P132,class,4)) -> 18874.71311 | U132: =$R132*(VLOOKUP($P132,class,7)/VLOOKUP($P132,class,4)) -> 40881.93896 | V132: =$R132*(VLOOKUP($P132,class,8)/VLOOKUP($P132,class,4)) -> 29543.7699 | W132: =$R132*(VLOOKUP($P132,class,9)/VLOOKUP($P132,class,4)) -> 3479.794324 | X132: =$R132*(VLOOKUP($P132,class,10)/VLOOKUP($P132,class,4)) -> 325.5251739 | Y132: =$R132*(VLOOKUP($P132,class,11)/VLOOKUP($P132,class,4)) -> 0 | Z132: =$R132*(VLOOKUP($P132,class,12)/VLOOKUP($P132,class,4)) -> 0 | AA132: =$R132*(VLOOKUP($P132,class,13)/VLOOKUP($P132,class,4)) -> 0 | AB132: =$R132*(VLOOKUP($P132,class,14)/VLOOKUP($P132,class,4)) -> 0 | AC132: =$R132*(VLOOKUP($P132,class,15)/VLOOKUP($P132,class,4)) -> 0 | BB132: 132 | BE132: =IF(SUM(BG132:BQ132)=BF132,"","error") ->  | BF132: =BF131/$BF131 -> 1 | BG132: 0.5219790065 | BH132: 0.1188129046 | BI132: 0.2046424464 | BJ132: 0.1217709018 | BK132: 0.02227365963 | BL132: 0.01052108106 | BM132: 0 | BN132: 0 | BO132: 0 | BP132: 0 | BQ132: 0
A133: 133 | B133: 910-OP | C133: Misc Customer Service & Info Exp | F133: 156000 | G133: 36909 | J133: 133 | L133: P | M133: =HLOOKUP("Factor Name",pfactor,4) -> Generation Level Consumption | N133: =IF(MATCH(P133,ref,0)>0,"","matching error") ->  | O133: =HLOOKUP(O131,pfactor,4) -> 62.35 | P133: =HLOOKUP("Class",pfactor,4) -> E02 | R133: =Q131*O133/SUM(O132:O135) -> 304891.5 | S133: =$R133*(VLOOKUP($P133,class,5)/VLOOKUP($P133,class,4)) -> 127931.8207 | T133: =$R133*(VLOOKUP($P133,class,6)/VLOOKUP($P133,class,4)) -> 33758.07518 | U133: =$R133*(VLOOKUP($P133,class,7)/VLOOKUP($P133,class,4)) -> 76208.77627 | V133: =$R133*(VLOOKUP($P133,class,8)/VLOOKUP($P133,class,4)) -> 58509.67852 | W133: =$R133*(VLOOKUP($P133,class,9)/VLOOKUP($P133,class,4)) -> 7230.788515 | X133: =$R133*(VLOOKUP($P133,class,10)/VLOOKUP($P133,class,4)) -> 1252.360834 | Y133: =$R133*(VLOOKUP($P133,class,11)/VLOOKUP($P133,class,4)) -> 0 | Z133: =$R133*(VLOOKUP($P133,class,12)/VLOOKUP($P133,class,4)) -> 0 | AA133: =$R133*(VLOOKUP($P133,class,13)/VLOOKUP($P133,class,4)) -> 0 | AB133: =$R133*(VLOOKUP($P133,class,14)/VLOOKUP($P133,class,4)) -> 0 | AC133: =$R133*(VLOOKUP($P133,class,15)/VLOOKUP($P133,class,4)) -> 0 | BB133: 133 | BC133: S20 | BD133: Prod & Trans O&M Exp | BF133: =SUM(BG133:BQ133) -> 205513000 | BG133: =S203+S264 -> 92012069.89 | BH133: 22120086.34 | BI133: 49209947.16 | BJ133: 37006397.43 | BK133: 4501357.896 | BL133: 663141.2823 | BM133: 0 | BN133: 0 | BO133: 0 | BP133: 0 | BQ133: 0 | BR133: line 203 + line 264
A134: 134 | C134: Total Customer Information Expenses | J134: 134 | L134: P | M134: =HLOOKUP("Factor Name",pfactor,5) -> Open | N134: =IF(MATCH(P134,ref,0)>0,"","matching error") ->  | O134: =HLOOKUP(O131,pfactor,5) -> 0 | P134: =HLOOKUP("Class",pfactor,5) -> xxx | R134: =Q131*O134/SUM(O132:O135) -> 0 | S134: =$R134*(VLOOKUP($P134,class,5)/VLOOKUP($P134,class,4)) -> 0 | T134: =$R134*(VLOOKUP($P134,class,6)/VLOOKUP($P134,class,4)) -> 0 | U134: =$R134*(VLOOKUP($P134,class,7)/VLOOKUP($P134,class,4)) -> 0 | V134: =$R134*(VLOOKUP($P134,class,8)/VLOOKUP($P134,class,4)) -> 0 | W134: =$R134*(VLOOKUP($P134,class,9)/VLOOKUP($P134,class,4)) -> 0 | X134: =$R134*(VLOOKUP($P134,class,10)/VLOOKUP($P134,class,4)) -> 0 | Y134: =$R134*(VLOOKUP($P134,class,11)/VLOOKUP($P134,class,4)) -> 0 | Z134: =$R134*(VLOOKUP($P134,class,12)/VLOOKUP($P134,class,4)) -> 0 | AA134: =$R134*(VLOOKUP($P134,class,13)/VLOOKUP($P134,class,4)) -> 0 | AB134: =$R134*(VLOOKUP($P134,class,14)/VLOOKUP($P134,class,4)) -> 0 | AC134: =$R134*(VLOOKUP($P134,class,15)/VLOOKUP($P134,class,4)) -> 0 | BB134: 134 | BE134: =IF(SUM(BG134:BQ134)=BF134,"","error") ->  | BF134: =BF133/$BF133 -> 1 | BG134: 0.4477189759 | BH134: 0.1076335139 | BI134: 0.2394493154 | BJ134: 0.1800684017 | BK134: 0.02190303239 | BL134: 0.003226760752 | BM134: 0 | BN134: 0 | BO134: 0 | BP134: 0 | BQ134: 0
A135: 135 | J135: 135 | L135: P | M135: =HLOOKUP("Factor Name",pfactor,6) -> Open | N135: =IF(MATCH(P135,ref,0)>0,"","matching error") ->  | O135: =HLOOKUP(O131,pfactor,6) -> 0 | P135: =HLOOKUP("Class",pfactor,6) -> xxx | R135: =Q131*O135/SUM(O132:O135) -> 0 | S135: =$R135*(VLOOKUP($P135,class,5)/VLOOKUP($P135,class,4)) -> 0 | T135: =$R135*(VLOOKUP($P135,class,6)/VLOOKUP($P135,class,4)) -> 0 | U135: =$R135*(VLOOKUP($P135,class,7)/VLOOKUP($P135,class,4)) -> 0 | V135: =$R135*(VLOOKUP($P135,class,8)/VLOOKUP($P135,class,4)) -> 0 | W135: =$R135*(VLOOKUP($P135,class,9)/VLOOKUP($P135,class,4)) -> 0 | X135: =$R135*(VLOOKUP($P135,class,10)/VLOOKUP($P135,class,4)) -> 0 | Y135: =$R135*(VLOOKUP($P135,class,11)/VLOOKUP($P135,class,4)) -> 0 | Z135: =$R135*(VLOOKUP($P135,class,12)/VLOOKUP($P135,class,4)) -> 0 | AA135: =$R135*(VLOOKUP($P135,class,13)/VLOOKUP($P135,class,4)) -> 0 | AB135: =$R135*(VLOOKUP($P135,class,14)/VLOOKUP($P135,class,4)) -> 0 | AC135: =$R135*(VLOOKUP($P135,class,15)/VLOOKUP($P135,class,4)) -> 0 | BB135: 135 | BC135: S21 | BD135: Labor P/T/D Total | BF135: =SUM(BG135:BQ135) -> 25049516 | BG135: =S1490 -> 11978551.66 | BH135: 2884145.442 | BI135: 5906899.306 | BJ135: 3095339.735 | BK135: 608680.7096 | BL135: 575899.1439 | BM135: 0 | BN135: 0 | BO135: 0 | BP135: 0 | BQ135: 0 | BR135: line 1490
A136: 136 | C136: Sales Expenses | J136: 136 | L136: =C40 -> Total Hydraulic Maintenance | O136: =IF(AND(ROUND($Q136,0)=ROUND($R136,0),ROUND(SUM($S136:$AC136),0)=ROUND($R136,0)),"","crossfoot error") ->  | Q136: =SUM(Q111:Q135) -> 5089000 | R136: 5089000 | S136: 2278441.868 | T136: 547746.9522 | U136: 1218557.566 | V136: 916368.0961 | W136: 111464.5318 | X136: 16420.98546 | Y136: 0 | Z136: 0 | AA136: 0 | AB136: 0 | AC136: 0 | BB136: 136 | BE136: =IF(SUM(BG136:BQ136)=BF136,"","error") ->  | BF136: =BF135/$BF135 -> 1 | BG136: 0.4781949345 | BH136: 0.1151377712 | BI136: 0.2358089197 | BJ136: 0.123568844 | BK136: 0.02429910061 | BL136: 0.02299042999 | BM136: 0 | BN136: 0 | BO136: 0 | BP136: 0 | BQ136: 0
A137: 137 | B137: 911-OP | C137: Supervision | F137: 0 | G137: 0 | J137: 137 | L137: =C41 -> Total Hydraulic | N137: =IF(AND(ROUND($Q137,0)=ROUND($R137,0),ROUND(SUM($S137:$AC137),0)=ROUND($R137,0)),"","crossfoot error") ->  | Q137: =Q110+Q136 -> 23255000 | R137: 23255000 | S137: 10411704.78 | T137: 2503017.365 | U137: 5568393.83 | V137: 4187490.681 | W137: 509355.0182 | X137: 75038.32128 | Y137: 0 | Z137: 0 | AA137: 0 | AB137: 0 | AC137: 0 | BB137: 137 | BC137: S22 | BD137: Labor O&M excl A&G | BF137: =SUM(BG137:BQ137) -> 30516550 | BG137: =SUM(S1490:S1497) -> 16608890.36 | BH137: 3574431.281 | BI137: 5948886.136 | BJ137: 3139621.556 | BK137: 662355.6754 | BL137: 582364.9944 | BM137: 0 | BN137: 0 | BO137: 0 | BP137: 0 | BQ137: 0 | BR137: Sum lines 1490 ~ 1497
A138: 138 | B138: 912-OP | C138: Demonstrating & Selling Expenses | F138: 0 | G138: 0 | J138: 138 | BB138: 138 | BE138: =IF(SUM(BG138:BQ138)=BF138,"","error") ->  | BF138: =BF137/$BF137 -> 1 | BG138: 0.5442584551 | BH138: 0.1171309103 | BI138: 0.1949396683 | BJ138: 0.1028825852 | BK138: 0.021704802 | BL138: 0.01908357906 | BM138: 0 | BN138: 0 | BO138: 0 | BP138: 0 | BQ138: 0
A139: 139 | B139: 913-OP | C139: Advertising Expenses | F139: 0 | G139: 0 | J139: 139 | K139: =B43 -> 546-OP | L139: =C43 -> Other | M139: =D43 -> Supervision & Engineering | O139: P01 | P139: =IF(MATCH(O139,P_ref,0)>0,"","error matching functional allocator") ->  | Q139: =F43 -> 106000 | BB139: 139 | BC139: S23 | BD139: Corporate Cost Allocator | BF139: =SUM(BG139:BQ139) -> 1000 | BG139: =BG144*250+BG138*250+BG142*250+BG37*250 -> 598.5377491 | BH139: =BH144*250+BH138*250+BH142*250+BH37*250 -> 120.387398 | BI139: 161.8110272 | BJ139: 85.94573302 | BK139: 19.78585959 | BL139: 13.53223315 | BM139: 0 | BN139: 0 | BO139: 0 | BP139: 0 | BQ139: 0 | BR139: 25% S25, 25% S22, 25% C01, 25% S24
A140: 140 | B140: 916-OP | C140: Misc Sales Expenses | F140: 0 | G140: 0 | J140: 140 | L140: P | M140: =HLOOKUP("Factor Name",pfactor,3) -> Coincident Peak | N140: =IF(MATCH(P140,ref,0)>0,"","matching error") ->  | O140: =HLOOKUP(O139,pfactor,3) -> 37.65 | P140: =HLOOKUP("Class",pfactor,3) -> D01 | R140: =Q139*O140/SUM(O140:O143) -> 39909 | S140: =$R140*(VLOOKUP($P140,class,5)/VLOOKUP($P140,class,4)) -> 19726.56933 | T140: =$R140*(VLOOKUP($P140,class,6)/VLOOKUP($P140,class,4)) -> 4091.451104 | U140: =$R140*(VLOOKUP($P140,class,7)/VLOOKUP($P140,class,4)) -> 8861.933599 | V140: =$R140*(VLOOKUP($P140,class,8)/VLOOKUP($P140,class,4)) -> 6404.17098 | W140: =$R140*(VLOOKUP($P140,class,9)/VLOOKUP($P140,class,4)) -> 754.3112441 | X140: =$R140*(VLOOKUP($P140,class,10)/VLOOKUP($P140,class,4)) -> 70.56373913 | Y140: =$R140*(VLOOKUP($P140,class,11)/VLOOKUP($P140,class,4)) -> 0 | Z140: =$R140*(VLOOKUP($P140,class,12)/VLOOKUP($P140,class,4)) -> 0 | AA140: =$R140*(VLOOKUP($P140,class,13)/VLOOKUP($P140,class,4)) -> 0 | AB140: =$R140*(VLOOKUP($P140,class,14)/VLOOKUP($P140,class,4)) -> 0 | AC140: =$R140*(VLOOKUP($P140,class,15)/VLOOKUP($P140,class,4)) -> 0 | BB140: 140 | BF140: =BF139/$BF139 -> 1 | BG140: 0.5985377491 | BH140: 0.120387398 | BI140: 0.1618110272 | BJ140: 0.08594573302 | BK140: 0.01978585959 | BL140: 0.01353223315 | BM140: 0 | BN140: 0 | BO140: 0 | BP140: 0 | BQ140: 0
A141: 141 | C141: Total Sales Expenses | J141: 141 | L141: P | M141: =HLOOKUP("Factor Name",pfactor,4) -> Generation Level Consumption | N141: =IF(MATCH(P141,ref,0)>0,"","matching error") ->  | O141: =HLOOKUP(O139,pfactor,4) -> 62.35 | P141: =HLOOKUP("Class",pfactor,4) -> E02 | R141: =Q139*O141/SUM(O140:O143) -> 66091 | S141: =$R141*(VLOOKUP($P141,class,5)/VLOOKUP($P141,class,4)) -> 27731.64211 | T141: =$R141*(VLOOKUP($P141,class,6)/VLOOKUP($P141,class,4)) -> 7317.701368 | U141: =$R141*(VLOOKUP($P141,class,7)/VLOOKUP($P141,class,4)) -> 16519.69383 | V141: =$R141*(VLOOKUP($P141,class,8)/VLOOKUP($P141,class,4)) -> 12683.0796 | W141: =$R141*(VLOOKUP($P141,class,9)/VLOOKUP($P141,class,4)) -> 1567.410189 | X141: =$R141*(VLOOKUP($P141,class,10)/VLOOKUP($P141,class,4)) -> 271.4729005 | Y141: =$R141*(VLOOKUP($P141,class,11)/VLOOKUP($P141,class,4)) -> 0 | Z141: =$R141*(VLOOKUP($P141,class,12)/VLOOKUP($P141,class,4)) -> 0 | AA141: =$R141*(VLOOKUP($P141,class,13)/VLOOKUP($P141,class,4)) -> 0 | AB141: =$R141*(VLOOKUP($P141,class,14)/VLOOKUP($P141,class,4)) -> 0 | AC141: =$R141*(VLOOKUP($P141,class,15)/VLOOKUP($P141,class,4)) -> 0 | BB141: 141 | BC141: S24 | BD141: Net P/T/D Plant | BF141: =SUM(BG141:BQ141) -> 1555472000 | BG141: =S893+S932+S1089+S1168+S1207+S1364 -> 751295662.5 | BH141: 181771316.5 | BI141: 367648152.9 | BJ141: 173599177.4 | BK141: 38788140.63 | BL141: 42369550.09 | BM141: 0 | BN141: 0 | BO141: 0 | BP141: 0 | BQ141: 0 | BR141: Sum lines 893, 932, 1089, 1168, 1207, 1364
A142: 142 | J142: 142 | L142: P | M142: =HLOOKUP("Factor Name",pfactor,5) -> Open | N142: =IF(MATCH(P142,ref,0)>0,"","matching error") ->  | O142: =HLOOKUP(O139,pfactor,5) -> 0 | P142: =HLOOKUP("Class",pfactor,5) -> xxx | R142: =Q139*O142/SUM(O140:O143) -> 0 | S142: =$R142*(VLOOKUP($P142,class,5)/VLOOKUP($P142,class,4)) -> 0 | T142: =$R142*(VLOOKUP($P142,class,6)/VLOOKUP($P142,class,4)) -> 0 | U142: =$R142*(VLOOKUP($P142,class,7)/VLOOKUP($P142,class,4)) -> 0 | V142: =$R142*(VLOOKUP($P142,class,8)/VLOOKUP($P142,class,4)) -> 0 | W142: =$R142*(VLOOKUP($P142,class,9)/VLOOKUP($P142,class,4)) -> 0 | X142: =$R142*(VLOOKUP($P142,class,10)/VLOOKUP($P142,class,4)) -> 0 | Y142: =$R142*(VLOOKUP($P142,class,11)/VLOOKUP($P142,class,4)) -> 0 | Z142: =$R142*(VLOOKUP($P142,class,12)/VLOOKUP($P142,class,4)) -> 0 | AA142: =$R142*(VLOOKUP($P142,class,13)/VLOOKUP($P142,class,4)) -> 0 | AB142: =$R142*(VLOOKUP($P142,class,14)/VLOOKUP($P142,class,4)) -> 0 | AC142: =$R142*(VLOOKUP($P142,class,15)/VLOOKUP($P142,class,4)) -> 0 | BB142: 142 | BF142: =BF141/$BF141 -> 1 | BG142: 0.4830017271 | BH142: 0.1168592662 | BI142: 0.2363579369 | BJ142: 0.111605466 | BK142: 0.02493657272 | BL142: 0.02723903104 | BM142: 0 | BN142: 0 | BO142: 0 | BP142: 0 | BQ142: 0
A143: 143 | C143: Subtotal Expenses | J143: 143 | L143: P | M143: =HLOOKUP("Factor Name",pfactor,6) -> Open | N143: =IF(MATCH(P143,ref,0)>0,"","matching error") ->  | O143: =HLOOKUP(O139,pfactor,6) -> 0 | P143: =HLOOKUP("Class",pfactor,6) -> xxx | R143: =Q139*O143/SUM(O140:O143) -> 0 | S143: =$R143*(VLOOKUP($P143,class,5)/VLOOKUP($P143,class,4)) -> 0 | T143: =$R143*(VLOOKUP($P143,class,6)/VLOOKUP($P143,class,4)) -> 0 | U143: =$R143*(VLOOKUP($P143,class,7)/VLOOKUP($P143,class,4)) -> 0 | V143: =$R143*(VLOOKUP($P143,class,8)/VLOOKUP($P143,class,4)) -> 0 | W143: =$R143*(VLOOKUP($P143,class,9)/VLOOKUP($P143,class,4)) -> 0 | X143: =$R143*(VLOOKUP($P143,class,10)/VLOOKUP($P143,class,4)) -> 0 | Y143: =$R143*(VLOOKUP($P143,class,11)/VLOOKUP($P143,class,4)) -> 0 | Z143: =$R143*(VLOOKUP($P143,class,12)/VLOOKUP($P143,class,4)) -> 0 | AA143: =$R143*(VLOOKUP($P143,class,13)/VLOOKUP($P143,class,4)) -> 0 | AB143: =$R143*(VLOOKUP($P143,class,14)/VLOOKUP($P143,class,4)) -> 0 | AC143: =$R143*(VLOOKUP($P143,class,15)/VLOOKUP($P143,class,4)) -> 0 | BB143: 143 | BC143: S25 | BD143: O&M excl Resource/Labor/A&G | BF143: =SUM(BG143:BQ143) -> 54878450 | BG143: =S369-SUM(S16:S20,S144:S148,S188:S192,S198:S202,S226:S229,S322:S323)-S351-BG137 -> 28179747.09 | BH143: =T369-SUM(T16:T20,T144:T148,T188:T192,T198:T202,T226:T229,T322:T323)-T351-BH137 -> 6603849.247 | BI143: 11426137.76 | BJ143: 7090816.317 | BK143: 1240772.748 | BL143: 337126.8367 | BM143: 0 | BN143: 0 | BO143: 0 | BP143: 0 | BQ143: 0 | BR143: lines 369 - (16~20, 144~148, 188~192, 198~202, 226~229, 323, 339)-S22
A144: 144 | J144: 144 | K144: =B44 -> 547-OP | L144: =C44 -> Other | M144: =D44 -> Fuel | O144: P01 | P144: =IF(MATCH(O144,P_ref,0)>0,"","error matching functional allocator") ->  | Q144: =F44 -> 46054000 | BB144: 144 | BF144: =BF143/$BF143 -> 1 | BG144: 0.5134938595 | BH144: 0.1203359287 | BI144: 0.2082080991 | BJ144: 0.129209486 | BK144: 0.02260947144 | BL144: 0.006143155221 | BM144: 0 | BN144: 0 | BO144: 0 | BP144: 0 | BQ144: 0
A145: 145 | C145: Administrative & General Expenses | J145: 145 | L145: P | M145: =HLOOKUP("Factor Name",pfactor,3) -> Coincident Peak | N145: =IF(MATCH(P145,ref,0)>0,"","matching error") ->  | O145: =HLOOKUP(O144,pfactor,3) -> 37.65 | P145: =HLOOKUP("Class",pfactor,3) -> D01 | R145: =Q144*O145/SUM(O145:O148) -> 17339331 | S145: =$R145*(VLOOKUP($P145,class,5)/VLOOKUP($P145,class,4)) -> 8570636.077 | T145: =$R145*(VLOOKUP($P145,class,6)/VLOOKUP($P145,class,4)) -> 1777619.709 | U145: =$R145*(VLOOKUP($P145,class,7)/VLOOKUP($P145,class,4)) -> 3850259.339 | V145: =$R145*(VLOOKUP($P145,class,8)/VLOOKUP($P145,class,4)) -> 2782431.041 | W145: =$R145*(VLOOKUP($P145,class,9)/VLOOKUP($P145,class,4)) -> 327726.8872 | X145: =$R145*(VLOOKUP($P145,class,10)/VLOOKUP($P145,class,4)) -> 30657.94757 | Y145: =$R145*(VLOOKUP($P145,class,11)/VLOOKUP($P145,class,4)) -> 0 | Z145: =$R145*(VLOOKUP($P145,class,12)/VLOOKUP($P145,class,4)) -> 0 | AA145: =$R145*(VLOOKUP($P145,class,13)/VLOOKUP($P145,class,4)) -> 0 | AB145: =$R145*(VLOOKUP($P145,class,14)/VLOOKUP($P145,class,4)) -> 0 | AC145: =$R145*(VLOOKUP($P145,class,15)/VLOOKUP($P145,class,4)) -> 0 | BB145: 145 | BC145: S26 | BD145: Open | BF145: =SUM(BG145:BQ145) -> 0 | BR145: Open
A146: 146 | B146: 920-OP | C146: Admin & General Salaries | F146: 23095000 | G146: 11637947 | J146: 146 | L146: P | M146: =HLOOKUP("Factor Name",pfactor,4) -> Generation Level Consumption | N146: =IF(MATCH(P146,ref,0)>0,"","matching error") ->  | O146: =HLOOKUP(O144,pfactor,4) -> 62.35 | P146: =HLOOKUP("Class",pfactor,4) -> E02 | R146: =Q144*O146/SUM(O145:O148) -> 28714669 | S146: =$R146*(VLOOKUP($P146,class,5)/VLOOKUP($P146,class,4)) -> 12048613.64 | T146: =$R146*(VLOOKUP($P146,class,6)/VLOOKUP($P146,class,4)) -> 3179334.14 | U146: =$R146*(VLOOKUP($P146,class,7)/VLOOKUP($P146,class,4)) -> 7177339.432 | V146: =$R146*(VLOOKUP($P146,class,8)/VLOOKUP($P146,class,4)) -> 5510439.13 | W146: =$R146*(VLOOKUP($P146,class,9)/VLOOKUP($P146,class,4)) -> 680995.3666 | X146: =$R146*(VLOOKUP($P146,class,10)/VLOOKUP($P146,class,4)) -> 117947.2921 | Y146: =$R146*(VLOOKUP($P146,class,11)/VLOOKUP($P146,class,4)) -> 0 | Z146: =$R146*(VLOOKUP($P146,class,12)/VLOOKUP($P146,class,4)) -> 0 | AA146: =$R146*(VLOOKUP($P146,class,13)/VLOOKUP($P146,class,4)) -> 0 | AB146: =$R146*(VLOOKUP($P146,class,14)/VLOOKUP($P146,class,4)) -> 0 | AC146: =$R146*(VLOOKUP($P146,class,15)/VLOOKUP($P146,class,4)) -> 0 | BB146: 146 | BC146: S27 | BD146: Open | BF146: =SUM(BG146:BQ146) -> 0 | BR146: Open
A147: 147 | B147: 921-OP | C147: Office Supplies & Expenses | F147: 3035000 | G147: 164795 | J147: 147 | L147: P | M147: =HLOOKUP("Factor Name",pfactor,5) -> Open | N147: =IF(MATCH(P147,ref,0)>0,"","matching error") ->  | O147: =HLOOKUP(O144,pfactor,5) -> 0 | P147: =HLOOKUP("Class",pfactor,5) -> xxx | R147: =Q144*O147/SUM(O145:O148) -> 0 | S147: =$R147*(VLOOKUP($P147,class,5)/VLOOKUP($P147,class,4)) -> 0 | T147: =$R147*(VLOOKUP($P147,class,6)/VLOOKUP($P147,class,4)) -> 0 | U147: =$R147*(VLOOKUP($P147,class,7)/VLOOKUP($P147,class,4)) -> 0 | V147: =$R147*(VLOOKUP($P147,class,8)/VLOOKUP($P147,class,4)) -> 0 | W147: =$R147*(VLOOKUP($P147,class,9)/VLOOKUP($P147,class,4)) -> 0 | X147: =$R147*(VLOOKUP($P147,class,10)/VLOOKUP($P147,class,4)) -> 0 | Y147: =$R147*(VLOOKUP($P147,class,11)/VLOOKUP($P147,class,4)) -> 0 | Z147: =$R147*(VLOOKUP($P147,class,12)/VLOOKUP($P147,class,4)) -> 0 | AA147: =$R147*(VLOOKUP($P147,class,13)/VLOOKUP($P147,class,4)) -> 0 | AB147: =$R147*(VLOOKUP($P147,class,14)/VLOOKUP($P147,class,4)) -> 0 | AC147: =$R147*(VLOOKUP($P147,class,15)/VLOOKUP($P147,class,4)) -> 0 | BB147: 147
A148: 148 | B148: 922-OP | C148: Admin Expenses Transferred - CR | F148: -117000 | G148: 0 | J148: 148 | L148: P | M148: =HLOOKUP("Factor Name",pfactor,6) -> Open | N148: =IF(MATCH(P148,ref,0)>0,"","matching error") ->  | O148: =HLOOKUP(O144,pfactor,6) -> 0 | P148: =HLOOKUP("Class",pfactor,6) -> xxx | R148: =Q144*O148/SUM(O145:O148) -> 0 | S148: =$R148*(VLOOKUP($P148,class,5)/VLOOKUP($P148,class,4)) -> 0 | T148: =$R148*(VLOOKUP($P148,class,6)/VLOOKUP($P148,class,4)) -> 0 | U148: =$R148*(VLOOKUP($P148,class,7)/VLOOKUP($P148,class,4)) -> 0 | V148: =$R148*(VLOOKUP($P148,class,8)/VLOOKUP($P148,class,4)) -> 0 | W148: =$R148*(VLOOKUP($P148,class,9)/VLOOKUP($P148,class,4)) -> 0 | X148: =$R148*(VLOOKUP($P148,class,10)/VLOOKUP($P148,class,4)) -> 0 | Y148: =$R148*(VLOOKUP($P148,class,11)/VLOOKUP($P148,class,4)) -> 0 | Z148: =$R148*(VLOOKUP($P148,class,12)/VLOOKUP($P148,class,4)) -> 0 | AA148: =$R148*(VLOOKUP($P148,class,13)/VLOOKUP($P148,class,4)) -> 0 | AB148: =$R148*(VLOOKUP($P148,class,14)/VLOOKUP($P148,class,4)) -> 0 | AC148: =$R148*(VLOOKUP($P148,class,15)/VLOOKUP($P148,class,4)) -> 0 | BB148: 148
A149: 149 | B149: 923-OP | C149: Outside Services Employed | F149: 5235000 | G149: 30354 | J149: 149 | K149: =B45 -> 548-OP | L149: =C45 -> Other | M149: =D45 -> Generation Expenses | O149: P01 | P149: =IF(MATCH(O149,P_ref,0)>0,"","error matching functional allocator") ->  | Q149: =F45 -> 3970000 | BB149: 149
A150: 150 | B150: 924-OP | C150: Property Insurance Premium | F150: 860000 | G150: 0 | J150: 150 | L150: P | M150: =HLOOKUP("Factor Name",pfactor,3) -> Coincident Peak | N150: =IF(MATCH(P150,ref,0)>0,"","matching error") ->  | O150: =HLOOKUP(O149,pfactor,3) -> 37.65 | P150: =HLOOKUP("Class",pfactor,3) -> D01 | R150: =Q149*O150/SUM(O150:O153) -> 1494705 | S150: =$R150*(VLOOKUP($P150,class,5)/VLOOKUP($P150,class,4)) -> 738815.8515 | T150: =$R150*(VLOOKUP($P150,class,6)/VLOOKUP($P150,class,4)) -> 153236.4234 | U150: =$R150*(VLOOKUP($P150,class,7)/VLOOKUP($P150,class,4)) -> 331904.4942 | V150: =$R150*(VLOOKUP($P150,class,8)/VLOOKUP($P150,class,4)) -> 239854.3282 | W150: =$R150*(VLOOKUP($P150,class,9)/VLOOKUP($P150,class,4)) -> 28251.09094 | X150: =$R150*(VLOOKUP($P150,class,10)/VLOOKUP($P150,class,4)) -> 2642.811739 | Y150: =$R150*(VLOOKUP($P150,class,11)/VLOOKUP($P150,class,4)) -> 0 | Z150: =$R150*(VLOOKUP($P150,class,12)/VLOOKUP($P150,class,4)) -> 0 | AA150: =$R150*(VLOOKUP($P150,class,13)/VLOOKUP($P150,class,4)) -> 0 | AB150: =$R150*(VLOOKUP($P150,class,14)/VLOOKUP($P150,class,4)) -> 0 | AC150: =$R150*(VLOOKUP($P150,class,15)/VLOOKUP($P150,class,4)) -> 0 | BB150: 150
A151: 151 | B151: 925-OP | C151: Injuries & Damages | F151: 2422000 | G151: 370 | J151: 151 | L151: P | M151: =HLOOKUP("Factor Name",pfactor,4) -> Generation Level Consumption | N151: =IF(MATCH(P151,ref,0)>0,"","matching error") ->  | O151: =HLOOKUP(O149,pfactor,4) -> 62.35 | P151: =HLOOKUP("Class",pfactor,4) -> E02 | R151: =Q149*O151/SUM(O150:O153) -> 2475295 | S151: =$R151*(VLOOKUP($P151,class,5)/VLOOKUP($P151,class,4)) -> 1038628.483 | T151: =$R151*(VLOOKUP($P151,class,6)/VLOOKUP($P151,class,4)) -> 274068.6267 | U151: =$R151*(VLOOKUP($P151,class,7)/VLOOKUP($P151,class,4)) -> 618709.2879 | V151: =$R151*(VLOOKUP($P151,class,8)/VLOOKUP($P151,class,4)) -> 475017.2264 | W151: =$R151*(VLOOKUP($P151,class,9)/VLOOKUP($P151,class,4)) -> 58703.94766 | X151: =$R151*(VLOOKUP($P151,class,10)/VLOOKUP($P151,class,4)) -> 10167.42844 | Y151: =$R151*(VLOOKUP($P151,class,11)/VLOOKUP($P151,class,4)) -> 0 | Z151: =$R151*(VLOOKUP($P151,class,12)/VLOOKUP($P151,class,4)) -> 0 | AA151: =$R151*(VLOOKUP($P151,class,13)/VLOOKUP($P151,class,4)) -> 0 | AB151: =$R151*(VLOOKUP($P151,class,14)/VLOOKUP($P151,class,4)) -> 0 | AC151: =$R151*(VLOOKUP($P151,class,15)/VLOOKUP($P151,class,4)) -> 0 | BB151: 151
A152: 152 | B152: 926-OP | C152: Employee Pension & Benefits | F152: 919000 | G152: 205462 | J152: 152 | L152: P | M152: =HLOOKUP("Factor Name",pfactor,5) -> Open | N152: =IF(MATCH(P152,ref,0)>0,"","matching error") ->  | O152: =HLOOKUP(O149,pfactor,5) -> 0 | P152: =HLOOKUP("Class",pfactor,5) -> xxx | R152: =Q149*O152/SUM(O150:O153) -> 0 | S152: =$R152*(VLOOKUP($P152,class,5)/VLOOKUP($P152,class,4)) -> 0 | T152: =$R152*(VLOOKUP($P152,class,6)/VLOOKUP($P152,class,4)) -> 0 | U152: =$R152*(VLOOKUP($P152,class,7)/VLOOKUP($P152,class,4)) -> 0 | V152: =$R152*(VLOOKUP($P152,class,8)/VLOOKUP($P152,class,4)) -> 0 | W152: =$R152*(VLOOKUP($P152,class,9)/VLOOKUP($P152,class,4)) -> 0 | X152: =$R152*(VLOOKUP($P152,class,10)/VLOOKUP($P152,class,4)) -> 0 | Y152: =$R152*(VLOOKUP($P152,class,11)/VLOOKUP($P152,class,4)) -> 0 | Z152: =$R152*(VLOOKUP($P152,class,12)/VLOOKUP($P152,class,4)) -> 0 | AA152: =$R152*(VLOOKUP($P152,class,13)/VLOOKUP($P152,class,4)) -> 0 | AB152: =$R152*(VLOOKUP($P152,class,14)/VLOOKUP($P152,class,4)) -> 0 | AC152: =$R152*(VLOOKUP($P152,class,15)/VLOOKUP($P152,class,4)) -> 0 | BB152: 152
A153: 153 | B153: 927-OP | C153: Franchise Requirements | F153: 0 | G153: 0 | J153: 153 | L153: P | M153: =HLOOKUP("Factor Name",pfactor,6) -> Open | N153: =IF(MATCH(P153,ref,0)>0,"","matching error") ->  | O153: =HLOOKUP(O149,pfactor,6) -> 0 | P153: =HLOOKUP("Class",pfactor,6) -> xxx | R153: =Q149*O153/SUM(O150:O153) -> 0 | S153: =$R153*(VLOOKUP($P153,class,5)/VLOOKUP($P153,class,4)) -> 0 | T153: =$R153*(VLOOKUP($P153,class,6)/VLOOKUP($P153,class,4)) -> 0 | U153: =$R153*(VLOOKUP($P153,class,7)/VLOOKUP($P153,class,4)) -> 0 | V153: =$R153*(VLOOKUP($P153,class,8)/VLOOKUP($P153,class,4)) -> 0 | W153: =$R153*(VLOOKUP($P153,class,9)/VLOOKUP($P153,class,4)) -> 0 | X153: =$R153*(VLOOKUP($P153,class,10)/VLOOKUP($P153,class,4)) -> 0 | Y153: =$R153*(VLOOKUP($P153,class,11)/VLOOKUP($P153,class,4)) -> 0 | Z153: =$R153*(VLOOKUP($P153,class,12)/VLOOKUP($P153,class,4)) -> 0 | AA153: =$R153*(VLOOKUP($P153,class,13)/VLOOKUP($P153,class,4)) -> 0 | AB153: =$R153*(VLOOKUP($P153,class,14)/VLOOKUP($P153,class,4)) -> 0 | AC153: =$R153*(VLOOKUP($P153,class,15)/VLOOKUP($P153,class,4)) -> 0 | BB153: 153
A154: 154 | B154: 928-OP | C154: Regulatory Commission Expenses | F154: 4340000 | G154: 958695 | J154: 154 | K154: =B46 -> 549-OP | L154: =C46 -> Other | M154: =D46 -> Miscellaneous Power Exp. | O154: P01 | P154: =IF(MATCH(O154,P_ref,0)>0,"","error matching functional allocator") ->  | Q154: =F46 -> 319000 | BB154: 154
A155: 155 | B155: 930-OP | C155: Miscellaneous & General Expense | F155: 2269000 | G155: 181722 | J155: 155 | L155: P | M155: =HLOOKUP("Factor Name",pfactor,3) -> Coincident Peak | N155: =IF(MATCH(P155,ref,0)>0,"","matching error") ->  | O155: =HLOOKUP(O154,pfactor,3) -> 37.65 | P155: =HLOOKUP("Class",pfactor,3) -> D01 | R155: =Q154*O155/SUM(O155:O158) -> 120103.5 | S155: =$R155*(VLOOKUP($P155,class,5)/VLOOKUP($P155,class,4)) -> 59365.80771 | T155: =$R155*(VLOOKUP($P155,class,6)/VLOOKUP($P155,class,4)) -> 12312.95191 | U155: =$R155*(VLOOKUP($P155,class,7)/VLOOKUP($P155,class,4)) -> 26669.40394 | V155: =$R155*(VLOOKUP($P155,class,8)/VLOOKUP($P155,class,4)) -> 19272.92965 | W155: =$R155*(VLOOKUP($P155,class,9)/VLOOKUP($P155,class,4)) -> 2270.049876 | X155: =$R155*(VLOOKUP($P155,class,10)/VLOOKUP($P155,class,4)) -> 212.356913 | Y155: =$R155*(VLOOKUP($P155,class,11)/VLOOKUP($P155,class,4)) -> 0 | Z155: =$R155*(VLOOKUP($P155,class,12)/VLOOKUP($P155,class,4)) -> 0 | AA155: =$R155*(VLOOKUP($P155,class,13)/VLOOKUP($P155,class,4)) -> 0 | AB155: =$R155*(VLOOKUP($P155,class,14)/VLOOKUP($P155,class,4)) -> 0 | AC155: =$R155*(VLOOKUP($P155,class,15)/VLOOKUP($P155,class,4)) -> 0 | BB155: 155
A156: 156 | B156: 931-OP | C156: Rents | F156: 730000 | G156: 0 | J156: 156 | L156: P | M156: =HLOOKUP("Factor Name",pfactor,4) -> Generation Level Consumption | N156: =IF(MATCH(P156,ref,0)>0,"","matching error") ->  | O156: =HLOOKUP(O154,pfactor,4) -> 62.35 | P156: =HLOOKUP("Class",pfactor,4) -> E02 | R156: =Q154*O156/SUM(O155:O158) -> 198896.5 | S156: =$R156*(VLOOKUP($P156,class,5)/VLOOKUP($P156,class,4)) -> 83456.5456 | T156: =$R156*(VLOOKUP($P156,class,6)/VLOOKUP($P156,class,4)) -> 22022.13902 | U156: =$R156*(VLOOKUP($P156,class,7)/VLOOKUP($P156,class,4)) -> 49714.92767 | V156: =$R156*(VLOOKUP($P156,class,8)/VLOOKUP($P156,class,4)) -> 38168.89049 | W156: =$R156*(VLOOKUP($P156,class,9)/VLOOKUP($P156,class,4)) -> 4717.017456 | X156: =$R156*(VLOOKUP($P156,class,10)/VLOOKUP($P156,class,4)) -> 816.9797667 | Y156: =$R156*(VLOOKUP($P156,class,11)/VLOOKUP($P156,class,4)) -> 0 | Z156: =$R156*(VLOOKUP($P156,class,12)/VLOOKUP($P156,class,4)) -> 0 | AA156: =$R156*(VLOOKUP($P156,class,13)/VLOOKUP($P156,class,4)) -> 0 | AB156: =$R156*(VLOOKUP($P156,class,14)/VLOOKUP($P156,class,4)) -> 0 | AC156: =$R156*(VLOOKUP($P156,class,15)/VLOOKUP($P156,class,4)) -> 0 | BB156: 156
A157: 157 | B157: 935-MT | C157: Maintenance of General Plant | F157: 7725000 | G157: 1114097 | J157: 157 | L157: P | M157: =HLOOKUP("Factor Name",pfactor,5) -> Open | N157: =IF(MATCH(P157,ref,0)>0,"","matching error") ->  | O157: =HLOOKUP(O154,pfactor,5) -> 0 | P157: =HLOOKUP("Class",pfactor,5) -> xxx | R157: =Q154*O157/SUM(O155:O158) -> 0 | S157: =$R157*(VLOOKUP($P157,class,5)/VLOOKUP($P157,class,4)) -> 0 | T157: =$R157*(VLOOKUP($P157,class,6)/VLOOKUP($P157,class,4)) -> 0 | U157: =$R157*(VLOOKUP($P157,class,7)/VLOOKUP($P157,class,4)) -> 0 | V157: =$R157*(VLOOKUP($P157,class,8)/VLOOKUP($P157,class,4)) -> 0 | W157: =$R157*(VLOOKUP($P157,class,9)/VLOOKUP($P157,class,4)) -> 0 | X157: =$R157*(VLOOKUP($P157,class,10)/VLOOKUP($P157,class,4)) -> 0 | Y157: =$R157*(VLOOKUP($P157,class,11)/VLOOKUP($P157,class,4)) -> 0 | Z157: =$R157*(VLOOKUP($P157,class,12)/VLOOKUP($P157,class,4)) -> 0 | AA157: =$R157*(VLOOKUP($P157,class,13)/VLOOKUP($P157,class,4)) -> 0 | AB157: =$R157*(VLOOKUP($P157,class,14)/VLOOKUP($P157,class,4)) -> 0 | AC157: =$R157*(VLOOKUP($P157,class,15)/VLOOKUP($P157,class,4)) -> 0 | BB157: 157
A158: 158 | C158: Total Administrative & General Expenses | J158: 158 | L158: P | M158: =HLOOKUP("Factor Name",pfactor,6) -> Open | N158: =IF(MATCH(P158,ref,0)>0,"","matching error") ->  | O158: =HLOOKUP(O154,pfactor,6) -> 0 | P158: =HLOOKUP("Class",pfactor,6) -> xxx | R158: =Q154*O158/SUM(O155:O158) -> 0 | S158: =$R158*(VLOOKUP($P158,class,5)/VLOOKUP($P158,class,4)) -> 0 | T158: =$R158*(VLOOKUP($P158,class,6)/VLOOKUP($P158,class,4)) -> 0 | U158: =$R158*(VLOOKUP($P158,class,7)/VLOOKUP($P158,class,4)) -> 0 | V158: =$R158*(VLOOKUP($P158,class,8)/VLOOKUP($P158,class,4)) -> 0 | W158: =$R158*(VLOOKUP($P158,class,9)/VLOOKUP($P158,class,4)) -> 0 | X158: =$R158*(VLOOKUP($P158,class,10)/VLOOKUP($P158,class,4)) -> 0 | Y158: =$R158*(VLOOKUP($P158,class,11)/VLOOKUP($P158,class,4)) -> 0 | Z158: =$R158*(VLOOKUP($P158,class,12)/VLOOKUP($P158,class,4)) -> 0 | AA158: =$R158*(VLOOKUP($P158,class,13)/VLOOKUP($P158,class,4)) -> 0 | AB158: =$R158*(VLOOKUP($P158,class,14)/VLOOKUP($P158,class,4)) -> 0 | AC158: =$R158*(VLOOKUP($P158,class,15)/VLOOKUP($P158,class,4)) -> 0 | BB158: 158
A159: 159 | J159: 159 | K159: =B47 -> 550-OP | L159: =C47 -> Other | M159: =D47 -> Rents | O159: P01 | P159: =IF(MATCH(O159,P_ref,0)>0,"","error matching functional allocator") ->  | Q159: =F47 -> -22000 | BB159: 159
A160: 160 | C160: Total Operating & Maintenance Expenses | J160: 160 | L160: P | M160: =HLOOKUP("Factor Name",pfactor,3) -> Coincident Peak | N160: =IF(MATCH(P160,ref,0)>0,"","matching error") ->  | O160: =HLOOKUP(O159,pfactor,3) -> 37.65 | P160: =HLOOKUP("Class",pfactor,3) -> D01 | R160: =Q159*O160/SUM(O160:O163) -> -8283 | S160: =$R160*(VLOOKUP($P160,class,5)/VLOOKUP($P160,class,4)) -> -4094.193635 | T160: =$R160*(VLOOKUP($P160,class,6)/VLOOKUP($P160,class,4)) -> -849.169097 | U160: =$R160*(VLOOKUP($P160,class,7)/VLOOKUP($P160,class,4)) -> -1839.269237 | V160: =$R160*(VLOOKUP($P160,class,8)/VLOOKUP($P160,class,4)) -> -1329.167562 | W160: =$R160*(VLOOKUP($P160,class,9)/VLOOKUP($P160,class,4)) -> -156.5551639 | X160: =$R160*(VLOOKUP($P160,class,10)/VLOOKUP($P160,class,4)) -> -14.64530435 | Y160: =$R160*(VLOOKUP($P160,class,11)/VLOOKUP($P160,class,4)) -> 0 | Z160: =$R160*(VLOOKUP($P160,class,12)/VLOOKUP($P160,class,4)) -> 0 | AA160: =$R160*(VLOOKUP($P160,class,13)/VLOOKUP($P160,class,4)) -> 0 | AB160: =$R160*(VLOOKUP($P160,class,14)/VLOOKUP($P160,class,4)) -> 0 | AC160: =$R160*(VLOOKUP($P160,class,15)/VLOOKUP($P160,class,4)) -> 0 | BB160: 160
A161: 161 | J161: 161 | L161: P | M161: =HLOOKUP("Factor Name",pfactor,4) -> Generation Level Consumption | N161: =IF(MATCH(P161,ref,0)>0,"","matching error") ->  | O161: =HLOOKUP(O159,pfactor,4) -> 62.35 | P161: =HLOOKUP("Class",pfactor,4) -> E02 | R161: =Q159*O161/SUM(O160:O163) -> -13717 | S161: =$R161*(VLOOKUP($P161,class,5)/VLOOKUP($P161,class,4)) -> -5755.623834 | T161: =$R161*(VLOOKUP($P161,class,6)/VLOOKUP($P161,class,4)) -> -1518.768208 | U161: =$R161*(VLOOKUP($P161,class,7)/VLOOKUP($P161,class,4)) -> -3428.615701 | V161: =$R161*(VLOOKUP($P161,class,8)/VLOOKUP($P161,class,4)) -> -2632.337275 | W161: =$R161*(VLOOKUP($P161,class,9)/VLOOKUP($P161,class,4)) -> -325.3115487 | X161: =$R161*(VLOOKUP($P161,class,10)/VLOOKUP($P161,class,4)) -> -56.34343219 | Y161: =$R161*(VLOOKUP($P161,class,11)/VLOOKUP($P161,class,4)) -> 0 | Z161: =$R161*(VLOOKUP($P161,class,12)/VLOOKUP($P161,class,4)) -> 0 | AA161: =$R161*(VLOOKUP($P161,class,13)/VLOOKUP($P161,class,4)) -> 0 | AB161: =$R161*(VLOOKUP($P161,class,14)/VLOOKUP($P161,class,4)) -> 0 | AC161: =$R161*(VLOOKUP($P161,class,15)/VLOOKUP($P161,class,4)) -> 0 | BB161: 161
A162: 162 | B162: Taxes Other Than Income Taxes | J162: 162 | L162: P | M162: =HLOOKUP("Factor Name",pfactor,5) -> Open | N162: =IF(MATCH(P162,ref,0)>0,"","matching error") ->  | O162: =HLOOKUP(O159,pfactor,5) -> 0 | P162: =HLOOKUP("Class",pfactor,5) -> xxx | R162: =Q159*O162/SUM(O160:O163) -> 0 | S162: =$R162*(VLOOKUP($P162,class,5)/VLOOKUP($P162,class,4)) -> 0 | T162: =$R162*(VLOOKUP($P162,class,6)/VLOOKUP($P162,class,4)) -> 0 | U162: =$R162*(VLOOKUP($P162,class,7)/VLOOKUP($P162,class,4)) -> 0 | V162: =$R162*(VLOOKUP($P162,class,8)/VLOOKUP($P162,class,4)) -> 0 | W162: =$R162*(VLOOKUP($P162,class,9)/VLOOKUP($P162,class,4)) -> 0 | X162: =$R162*(VLOOKUP($P162,class,10)/VLOOKUP($P162,class,4)) -> 0 | Y162: =$R162*(VLOOKUP($P162,class,11)/VLOOKUP($P162,class,4)) -> 0 | Z162: =$R162*(VLOOKUP($P162,class,12)/VLOOKUP($P162,class,4)) -> 0 | AA162: =$R162*(VLOOKUP($P162,class,13)/VLOOKUP($P162,class,4)) -> 0 | AB162: =$R162*(VLOOKUP($P162,class,14)/VLOOKUP($P162,class,4)) -> 0 | AC162: =$R162*(VLOOKUP($P162,class,15)/VLOOKUP($P162,class,4)) -> 0 | BB162: 162
A163: 163 | B163: Property | C163: -Production | F163: 11060000 | J163: 163 | L163: P | M163: =HLOOKUP("Factor Name",pfactor,6) -> Open | N163: =IF(MATCH(P163,ref,0)>0,"","matching error") ->  | O163: =HLOOKUP(O159,pfactor,6) -> 0 | P163: =HLOOKUP("Class",pfactor,6) -> xxx | R163: =Q159*O163/SUM(O160:O163) -> 0 | S163: =$R163*(VLOOKUP($P163,class,5)/VLOOKUP($P163,class,4)) -> 0 | T163: =$R163*(VLOOKUP($P163,class,6)/VLOOKUP($P163,class,4)) -> 0 | U163: =$R163*(VLOOKUP($P163,class,7)/VLOOKUP($P163,class,4)) -> 0 | V163: =$R163*(VLOOKUP($P163,class,8)/VLOOKUP($P163,class,4)) -> 0 | W163: =$R163*(VLOOKUP($P163,class,9)/VLOOKUP($P163,class,4)) -> 0 | X163: =$R163*(VLOOKUP($P163,class,10)/VLOOKUP($P163,class,4)) -> 0 | Y163: =$R163*(VLOOKUP($P163,class,11)/VLOOKUP($P163,class,4)) -> 0 | Z163: =$R163*(VLOOKUP($P163,class,12)/VLOOKUP($P163,class,4)) -> 0 | AA163: =$R163*(VLOOKUP($P163,class,13)/VLOOKUP($P163,class,4)) -> 0 | AB163: =$R163*(VLOOKUP($P163,class,14)/VLOOKUP($P163,class,4)) -> 0 | AC163: =$R163*(VLOOKUP($P163,class,15)/VLOOKUP($P163,class,4)) -> 0 | BB163: 163
A164: 164 | C164: -Transmission | F164: 3988000 | J164: 164 | L164: =C48 -> Total Other Operation | N164: =IF(AND(ROUND($Q164,0)=ROUND($R164,0),ROUND(SUM($S164:$AC164),0)=ROUND($R164,0)),"","crossfoot error") ->  | Q164: =SUM(Q139:Q163) -> 50427000 | R164: 50427000 | S164: 22577124.8 | T164: 5427635.205 | U164: 12074710.63 | V164: 9080309.291 | W164: 1104504.214 | X164: 162715.8644 | Y164: 0 | Z164: 0 | AA164: 0 | AB164: 0 | AC164: 0 | BB164: 164 | BD164: Class Allocator Table (class)
A165: 165 | C165: -Distribution | F165: 7343000 | J165: 165 | K165: =B49 -> 551-MT | L165: =C49 -> Other | M165: =D49 -> Supervision & Engineering | O165: P01 | P165: =IF(MATCH(O165,P_ref,0)>0,"","error matching functional allocator") ->  | Q165: =F49 -> 309000 | BB165: 165 | BC165: =$BC$36 -> C01 | BD165: =$BD$36 -> Avg Customers-All | BF165: =$BF$36 -> 245916.3333 | BG165: =$BG$36 -> 209864.25 | BH165: =$BH$36 -> 31286.33333 | BI165: =$BI$36 -> 1903 | BJ165: =$BJ$36 -> 21 | BK165: =$BK$36 -> 2432.75 | BL165: =$BL$36 -> 409 | BM165: =$BM$36 -> 0 | BN165: =$BN$36 -> 0 | BO165: =$BO$36 -> 0 | BP165: =$BP$36 -> 0 | BQ165: =$BQ$36 -> 0 | BR165: =$BR$36 -> Unweighted
A166: 166 | C166: -Administrative & General | F166: 0 | J166: 166 | L166: P | M166: =HLOOKUP("Factor Name",pfactor,3) -> Coincident Peak | N166: =IF(MATCH(P166,ref,0)>0,"","matching error") ->  | O166: =HLOOKUP(O165,pfactor,3) -> 37.65 | P166: =HLOOKUP("Class",pfactor,3) -> D01 | R166: =Q165*O166/SUM(O166:O169) -> 116338.5 | S166: =$R166*(VLOOKUP($P166,class,5)/VLOOKUP($P166,class,4)) -> 57504.81061 | T166: =$R166*(VLOOKUP($P166,class,6)/VLOOKUP($P166,class,4)) -> 11926.96595 | U166: =$R166*(VLOOKUP($P166,class,7)/VLOOKUP($P166,class,4)) -> 25833.37247 | V166: =$R166*(VLOOKUP($P166,class,8)/VLOOKUP($P166,class,4)) -> 18668.76257 | W166: =$R166*(VLOOKUP($P166,class,9)/VLOOKUP($P166,class,4)) -> 2198.888438 | X166: =$R166*(VLOOKUP($P166,class,10)/VLOOKUP($P166,class,4)) -> 205.6999565 | Y166: =$R166*(VLOOKUP($P166,class,11)/VLOOKUP($P166,class,4)) -> 0 | Z166: =$R166*(VLOOKUP($P166,class,12)/VLOOKUP($P166,class,4)) -> 0 | AA166: =$R166*(VLOOKUP($P166,class,13)/VLOOKUP($P166,class,4)) -> 0 | AB166: =$R166*(VLOOKUP($P166,class,14)/VLOOKUP($P166,class,4)) -> 0 | AC166: =$R166*(VLOOKUP($P166,class,15)/VLOOKUP($P166,class,4)) -> 0 | BB166: 166 | BC166: =$BC$38 -> C02 | BD166: =$BD$38 -> Avg Customers-Secondary | BF166: =$BF$38 -> 245447.3333 | BG166: =$BG$38 -> 209864.25 | BH166: =$BH$38 -> 31286.33333 | BI166: =$BI$38 -> 1864 | BJ166: =$BJ$38 -> 0 | BK166: =$BK$38 -> 2432.75 | BL166: =$BL$38 -> 0 | BM166: =$BM$38 -> 0 | BN166: =$BN$38 -> 0 | BO166: =$BO$38 -> 0 | BP166: =$BP$38 -> 0 | BQ166: =$BQ$38 -> 0 | BR166: =$BR$38 -> Unweighted Secondary w/o Lighting
A167: 167 | B167: Open | F167: 0 | J167: 167 | L167: P | M167: =HLOOKUP("Factor Name",pfactor,4) -> Generation Level Consumption | N167: =IF(MATCH(P167,ref,0)>0,"","matching error") ->  | O167: =HLOOKUP(O165,pfactor,4) -> 62.35 | P167: =HLOOKUP("Class",pfactor,4) -> E02 | R167: =Q165*O167/SUM(O166:O169) -> 192661.5 | S167: =$R167*(VLOOKUP($P167,class,5)/VLOOKUP($P167,class,4)) -> 80840.35295 | T167: =$R167*(VLOOKUP($P167,class,6)/VLOOKUP($P167,class,4)) -> 21331.78984 | U167: =$R167*(VLOOKUP($P167,class,7)/VLOOKUP($P167,class,4)) -> 48156.46599 | V167: =$R167*(VLOOKUP($P167,class,8)/VLOOKUP($P167,class,4)) -> 36972.37354 | W167: =$R167*(VLOOKUP($P167,class,9)/VLOOKUP($P167,class,4)) -> 4569.148571 | X167: =$R167*(VLOOKUP($P167,class,10)/VLOOKUP($P167,class,4)) -> 791.3691157 | Y167: =$R167*(VLOOKUP($P167,class,11)/VLOOKUP($P167,class,4)) -> 0 | Z167: =$R167*(VLOOKUP($P167,class,12)/VLOOKUP($P167,class,4)) -> 0 | AA167: =$R167*(VLOOKUP($P167,class,13)/VLOOKUP($P167,class,4)) -> 0 | AB167: =$R167*(VLOOKUP($P167,class,14)/VLOOKUP($P167,class,4)) -> 0 | AC167: =$R167*(VLOOKUP($P167,class,15)/VLOOKUP($P167,class,4)) -> 0 | BB167: 167 | BC167: =$BC$40 -> C03 | BD167: =$BD$40 -> Wt Customers-Meter Reading | BF167: =$BF$40 -> 245507.3333 | BG167: =$BG$40 -> 209864.25 | BH167: =$BH$40 -> 31286.33333 | BI167: =$BI$40 -> 1903 | BJ167: =$BJ$40 -> 21 | BK167: =$BK$40 -> 2432.75 | BL167: =$BL$40 -> 0 | BM167: =$BM$40 -> 0 | BN167: =$BN$40 -> 0 | BO167: =$BO$40 -> 0 | BP167: =$BP$40 -> 0 | BQ167: =$BQ$40 -> 0 | BR167: =$BR$40 -> Est. Meter Reading Time
A168: 168 | B168: Open | F168: 0 | J168: 168 | L168: P | M168: =HLOOKUP("Factor Name",pfactor,5) -> Open | N168: =IF(MATCH(P168,ref,0)>0,"","matching error") ->  | O168: =HLOOKUP(O165,pfactor,5) -> 0 | P168: =HLOOKUP("Class",pfactor,5) -> xxx | R168: =Q165*O168/SUM(O166:O169) -> 0 | S168: =$R168*(VLOOKUP($P168,class,5)/VLOOKUP($P168,class,4)) -> 0 | T168: =$R168*(VLOOKUP($P168,class,6)/VLOOKUP($P168,class,4)) -> 0 | U168: =$R168*(VLOOKUP($P168,class,7)/VLOOKUP($P168,class,4)) -> 0 | V168: =$R168*(VLOOKUP($P168,class,8)/VLOOKUP($P168,class,4)) -> 0 | W168: =$R168*(VLOOKUP($P168,class,9)/VLOOKUP($P168,class,4)) -> 0 | X168: =$R168*(VLOOKUP($P168,class,10)/VLOOKUP($P168,class,4)) -> 0 | Y168: =$R168*(VLOOKUP($P168,class,11)/VLOOKUP($P168,class,4)) -> 0 | Z168: =$R168*(VLOOKUP($P168,class,12)/VLOOKUP($P168,class,4)) -> 0 | AA168: =$R168*(VLOOKUP($P168,class,13)/VLOOKUP($P168,class,4)) -> 0 | AB168: =$R168*(VLOOKUP($P168,class,14)/VLOOKUP($P168,class,4)) -> 0 | AC168: =$R168*(VLOOKUP($P168,class,15)/VLOOKUP($P168,class,4)) -> 0 | BB168: 168 | BC168: =$BC$42 -> C04 | BD168: =$BD$42 -> Wt Customers-Meters | BF168: =$BF$42 -> 306221.7375 | BG168: =$BG$42 -> 209864.25 | BH168: =$BH$42 -> 69455.66 | BI168: =$BI$42 -> 17107.97 | BJ168: =$BJ$42 -> 427.77 | BK168: =$BK$42 -> 9366.0875 | BL168: =$BL$42 -> 0 | BM168: =$BM$42 -> 0 | BN168: =$BN$42 -> 0 | BO168: =$BO$42 -> 0 | BP168: =$BP$42 -> 0 | BQ168: =$BQ$42 -> 0 | BR168: =$BR$42 -> Proportion Installed Meter Costs
A169: 169 | B169: Open | F169: 0 | J169: 169 | L169: P | M169: =HLOOKUP("Factor Name",pfactor,6) -> Open | N169: =IF(MATCH(P169,ref,0)>0,"","matching error") ->  | O169: =HLOOKUP(O165,pfactor,6) -> 0 | P169: =HLOOKUP("Class",pfactor,6) -> xxx | R169: =Q165*O169/SUM(O166:O169) -> 0 | S169: =$R169*(VLOOKUP($P169,class,5)/VLOOKUP($P169,class,4)) -> 0 | T169: =$R169*(VLOOKUP($P169,class,6)/VLOOKUP($P169,class,4)) -> 0 | U169: =$R169*(VLOOKUP($P169,class,7)/VLOOKUP($P169,class,4)) -> 0 | V169: =$R169*(VLOOKUP($P169,class,8)/VLOOKUP($P169,class,4)) -> 0 | W169: =$R169*(VLOOKUP($P169,class,9)/VLOOKUP($P169,class,4)) -> 0 | X169: =$R169*(VLOOKUP($P169,class,10)/VLOOKUP($P169,class,4)) -> 0 | Y169: =$R169*(VLOOKUP($P169,class,11)/VLOOKUP($P169,class,4)) -> 0 | Z169: =$R169*(VLOOKUP($P169,class,12)/VLOOKUP($P169,class,4)) -> 0 | AA169: =$R169*(VLOOKUP($P169,class,13)/VLOOKUP($P169,class,4)) -> 0 | AB169: =$R169*(VLOOKUP($P169,class,14)/VLOOKUP($P169,class,4)) -> 0 | AC169: =$R169*(VLOOKUP($P169,class,15)/VLOOKUP($P169,class,4)) -> 0 | BB169: 169 | BC169: =$BC$44 -> C05 | BD169: =$BD$44 -> DA Street & Area Lights | BF169: =$BF$44 -> 409 | BG169: =$BG$44 -> 0 | BH169: =$BH$44 -> 0 | BI169: =$BI$44 -> 0 | BJ169: =$BJ$44 -> 0 | BK169: =$BK$44 -> 0 | BL169: =$BL$44 -> 409 | BM169: =$BM$44 -> 0 | BN169: =$BN$44 -> 0 | BO169: =$BO$44 -> 0 | BP169: =$BP$44 -> 0 | BQ169: =$BQ$44 -> 0 | BR169: =$BR$44 -> Direct Assigned to Street & Area Lights
A170: 170 | B170: Open | F170: 0 | J170: 170 | K170: =B50 -> 552-MT | L170: =C50 -> Other | M170: =D50 -> Structures | O170: P01 | P170: =IF(MATCH(O170,P_ref,0)>0,"","error matching functional allocator") ->  | Q170: =F50 -> 4000 | BB170: 170 | BC170: =$BC$46 -> C06 | BD170: =$BD$46 -> DA Handbilled | BF170: =$BF$46 -> 21 | BG170: =$BG$46 -> 0 | BH170: =$BH$46 -> 0 | BI170: =$BI$46 -> 0 | BJ170: =$BJ$46 -> 21 | BK170: =$BK$46 -> 0 | BL170: =$BL$46 -> 0 | BM170: =$BM$46 -> 0 | BN170: =$BN$46 -> 0 | BO170: =$BO$46 -> 0 | BP170: =$BP$46 -> 0 | BQ170: =$BQ$46 -> 0 | BR170: =$BR$46 -> Direct Assigned to Handbilled Customers
A171: 171 | B171: State Kwh Generation-Production | F171: 983000 | J171: 171 | L171: P | M171: =HLOOKUP("Factor Name",pfactor,3) -> Coincident Peak | N171: =IF(MATCH(P171,ref,0)>0,"","matching error") ->  | O171: =HLOOKUP(O170,pfactor,3) -> 37.65 | P171: =HLOOKUP("Class",pfactor,3) -> D01 | R171: =Q170*O171/SUM(O171:O174) -> 1506 | S171: =$R171*(VLOOKUP($P171,class,5)/VLOOKUP($P171,class,4)) -> 744.3988428 | T171: =$R171*(VLOOKUP($P171,class,6)/VLOOKUP($P171,class,4)) -> 154.3943813 | U171: =$R171*(VLOOKUP($P171,class,7)/VLOOKUP($P171,class,4)) -> 334.4125886 | V171: =$R171*(VLOOKUP($P171,class,8)/VLOOKUP($P171,class,4)) -> 241.6668294 | W171: =$R171*(VLOOKUP($P171,class,9)/VLOOKUP($P171,class,4)) -> 28.46457525 | X171: =$R171*(VLOOKUP($P171,class,10)/VLOOKUP($P171,class,4)) -> 2.662782609 | Y171: =$R171*(VLOOKUP($P171,class,11)/VLOOKUP($P171,class,4)) -> 0 | Z171: =$R171*(VLOOKUP($P171,class,12)/VLOOKUP($P171,class,4)) -> 0 | AA171: =$R171*(VLOOKUP($P171,class,13)/VLOOKUP($P171,class,4)) -> 0 | AB171: =$R171*(VLOOKUP($P171,class,14)/VLOOKUP($P171,class,4)) -> 0 | AC171: =$R171*(VLOOKUP($P171,class,15)/VLOOKUP($P171,class,4)) -> 0 | BB171: 171 | BC171: =$BC$48 -> C07 | BD171: =$BD$48 -> Open | BF171: =$BF$48 -> 0 | BG171: =$BG$48 -> 0 | BH171: =$BH$48 -> 0 | BI171: =$BI$48 -> 0 | BJ171: =$BJ$48 -> 0 | BK171: =$BK$48 -> 0 | BL171: =$BL$48 -> 0 | BM171: =$BM$48 -> 0 | BN171: =$BN$48 -> 0 | BO171: =$BO$48 -> 0 | BP171: =$BP$48 -> 0 | BQ171: =$BQ$48 -> 0 | BR171: =$BR$48 -> Open
A172: 172 | B172: Montana/Oregon SIT-Production | F172: 70000 | J172: 172 | L172: P | M172: =HLOOKUP("Factor Name",pfactor,4) -> Generation Level Consumption | N172: =IF(MATCH(P172,ref,0)>0,"","matching error") ->  | O172: =HLOOKUP(O170,pfactor,4) -> 62.35 | P172: =HLOOKUP("Class",pfactor,4) -> E02 | R172: =Q170*O172/SUM(O171:O174) -> 2494 | S172: =$R172*(VLOOKUP($P172,class,5)/VLOOKUP($P172,class,4)) -> 1046.477061 | T172: =$R172*(VLOOKUP($P172,class,6)/VLOOKUP($P172,class,4)) -> 276.1396743 | U172: =$R172*(VLOOKUP($P172,class,7)/VLOOKUP($P172,class,4)) -> 623.384673 | V172: =$R172*(VLOOKUP($P172,class,8)/VLOOKUP($P172,class,4)) -> 478.6067773 | W172: =$R172*(VLOOKUP($P172,class,9)/VLOOKUP($P172,class,4)) -> 59.14755431 | X172: =$R172*(VLOOKUP($P172,class,10)/VLOOKUP($P172,class,4)) -> 10.2442604 | Y172: =$R172*(VLOOKUP($P172,class,11)/VLOOKUP($P172,class,4)) -> 0 | Z172: =$R172*(VLOOKUP($P172,class,12)/VLOOKUP($P172,class,4)) -> 0 | AA172: =$R172*(VLOOKUP($P172,class,13)/VLOOKUP($P172,class,4)) -> 0 | AB172: =$R172*(VLOOKUP($P172,class,14)/VLOOKUP($P172,class,4)) -> 0 | AC172: =$R172*(VLOOKUP($P172,class,15)/VLOOKUP($P172,class,4)) -> 0 | BB172: 172 | BC172: =$BC$18 -> D01 | BD172: =$BD$18 -> Coincident Peak | BF172: =$BF$18 -> 897000 | BG172: =$BG$18 -> 443377 | BH172: =$BH$18 -> 91960 | BI172: =$BI$18 -> 199182 | BJ172: =$BJ$18 -> 143941 | BK172: =$BK$18 -> 16954 | BL172: =$BL$18 -> 1586 | BM172: =$BM$18 -> 0 | BN172: =$BN$18 -> 0 | BO172: =$BO$18 -> 0 | BP172: =$BP$18 -> 0 | BQ172: =$BQ$18 -> 0 | BR172: =$BR$18 -> Coincident Peak 12 Month Average
A173: 173 | B173: Misc | C173: -Production | F173: 18000 | J173: 173 | L173: P | M173: =HLOOKUP("Factor Name",pfactor,5) -> Open | N173: =IF(MATCH(P173,ref,0)>0,"","matching error") ->  | O173: =HLOOKUP(O170,pfactor,5) -> 0 | P173: =HLOOKUP("Class",pfactor,5) -> xxx | R173: =Q170*O173/SUM(O171:O174) -> 0 | S173: =$R173*(VLOOKUP($P173,class,5)/VLOOKUP($P173,class,4)) -> 0 | T173: =$R173*(VLOOKUP($P173,class,6)/VLOOKUP($P173,class,4)) -> 0 | U173: =$R173*(VLOOKUP($P173,class,7)/VLOOKUP($P173,class,4)) -> 0 | V173: =$R173*(VLOOKUP($P173,class,8)/VLOOKUP($P173,class,4)) -> 0 | W173: =$R173*(VLOOKUP($P173,class,9)/VLOOKUP($P173,class,4)) -> 0 | X173: =$R173*(VLOOKUP($P173,class,10)/VLOOKUP($P173,class,4)) -> 0 | Y173: =$R173*(VLOOKUP($P173,class,11)/VLOOKUP($P173,class,4)) -> 0 | Z173: =$R173*(VLOOKUP($P173,class,12)/VLOOKUP($P173,class,4)) -> 0 | AA173: =$R173*(VLOOKUP($P173,class,13)/VLOOKUP($P173,class,4)) -> 0 | AB173: =$R173*(VLOOKUP($P173,class,14)/VLOOKUP($P173,class,4)) -> 0 | AC173: =$R173*(VLOOKUP($P173,class,15)/VLOOKUP($P173,class,4)) -> 0 | BB173: 173 | BC173: =$BC$20 -> D02 | BD173: =$BD$20 -> NCP-All | BF173: =$BF$20 -> 1005537 | BG173: =$BG$20 -> 451201 | BH173: =$BH$20 -> 115667 | BI173: =$BI$20 -> 249852 | BJ173: =$BJ$20 -> 154869 | BK173: =$BK$20 -> 28208 | BL173: =$BL$20 -> 5740 | BM173: =$BM$20 -> 0 | BN173: =$BN$20 -> 0 | BO173: =$BO$20 -> 0 | BP173: =$BP$20 -> 0 | BQ173: =$BQ$20 -> 0 | BR173: =$BR$20 -> Non-Coincident Peak All Sched.12 Mo Avg
A174: 174 | C174: -Distribution | F174: 0 | J174: 174 | L174: P | M174: =HLOOKUP("Factor Name",pfactor,6) -> Open | N174: =IF(MATCH(P174,ref,0)>0,"","matching error") ->  | O174: =HLOOKUP(O170,pfactor,6) -> 0 | P174: =HLOOKUP("Class",pfactor,6) -> xxx | R174: =Q170*O174/SUM(O171:O174) -> 0 | S174: =$R174*(VLOOKUP($P174,class,5)/VLOOKUP($P174,class,4)) -> 0 | T174: =$R174*(VLOOKUP($P174,class,6)/VLOOKUP($P174,class,4)) -> 0 | U174: =$R174*(VLOOKUP($P174,class,7)/VLOOKUP($P174,class,4)) -> 0 | V174: =$R174*(VLOOKUP($P174,class,8)/VLOOKUP($P174,class,4)) -> 0 | W174: =$R174*(VLOOKUP($P174,class,9)/VLOOKUP($P174,class,4)) -> 0 | X174: =$R174*(VLOOKUP($P174,class,10)/VLOOKUP($P174,class,4)) -> 0 | Y174: =$R174*(VLOOKUP($P174,class,11)/VLOOKUP($P174,class,4)) -> 0 | Z174: =$R174*(VLOOKUP($P174,class,12)/VLOOKUP($P174,class,4)) -> 0 | AA174: =$R174*(VLOOKUP($P174,class,13)/VLOOKUP($P174,class,4)) -> 0 | AB174: =$R174*(VLOOKUP($P174,class,14)/VLOOKUP($P174,class,4)) -> 0 | AC174: =$R174*(VLOOKUP($P174,class,15)/VLOOKUP($P174,class,4)) -> 0 | BB174: 174 | BC174: =$BC$22 -> D03 | BD174: =$BD$22 -> NCP-w/o DA | BF174: =$BF$22 -> 850668 | BG174: =$BG$22 -> 451201 | BH174: =$BH$22 -> 115667 | BI174: =$BI$22 -> 249852 | BJ174: =$BJ$22 -> 0 | BK174: =$BK$22 -> 28208 | BL174: =$BL$22 -> 5740 | BM174: =$BM$22 -> 0 | BN174: =$BN$22 -> 0 | BO174: =$BO$22 -> 0 | BP174: =$BP$22 -> 0 | BQ174: =$BQ$22 -> 0 | BR174: =$BR$22 -> NCP w/o Sch 25 12 Mo Avg
A175: 175 | B175: B&O | C175: -Distribution | F175: 0 | J175: 175 | K175: =B51 -> 553-MT | L175: =C51 -> Other | M175: =D51 -> Generating & Electric Plant | O175: P01 | P175: =IF(MATCH(O175,P_ref,0)>0,"","error matching functional allocator") ->  | Q175: =F51 -> 200000 | BB175: 175 | BC175: =$BC$24 -> D04 | BD175: =$BD$24 -> DA Sch 25 | BF175: =$BF$24 -> 100 | BG175: =$BG$24 -> 0 | BH175: =$BH$24 -> 0 | BI175: =$BI$24 -> 0 | BJ175: =$BJ$24 -> 100 | BK175: =$BK$24 -> 0 | BL175: =$BL$24 -> 0 | BM175: =$BM$24 -> 0 | BN175: =$BN$24 -> 0 | BO175: =$BO$24 -> 0 | BP175: =$BP$24 -> 0 | BQ175: =$BQ$24 -> 0 | BR175: =$BR$24 -> Direct Assigned to Schedule 25 Customers
A176: 176 | B176: Excise | C176: -Distribution | F176: 20157000 | J176: 176 | L176: P | M176: =HLOOKUP("Factor Name",pfactor,3) -> Coincident Peak | N176: =IF(MATCH(P176,ref,0)>0,"","matching error") ->  | O176: =HLOOKUP(O175,pfactor,3) -> 37.65 | P176: =HLOOKUP("Class",pfactor,3) -> D01 | R176: =Q175*O176/SUM(O176:O179) -> 75300 | S176: =$R176*(VLOOKUP($P176,class,5)/VLOOKUP($P176,class,4)) -> 37219.94214 | T176: =$R176*(VLOOKUP($P176,class,6)/VLOOKUP($P176,class,4)) -> 7719.719064 | U176: =$R176*(VLOOKUP($P176,class,7)/VLOOKUP($P176,class,4)) -> 16720.62943 | V176: =$R176*(VLOOKUP($P176,class,8)/VLOOKUP($P176,class,4)) -> 12083.34147 | W176: =$R176*(VLOOKUP($P176,class,9)/VLOOKUP($P176,class,4)) -> 1423.228763 | X176: =$R176*(VLOOKUP($P176,class,10)/VLOOKUP($P176,class,4)) -> 133.1391304 | Y176: =$R176*(VLOOKUP($P176,class,11)/VLOOKUP($P176,class,4)) -> 0 | Z176: =$R176*(VLOOKUP($P176,class,12)/VLOOKUP($P176,class,4)) -> 0 | AA176: =$R176*(VLOOKUP($P176,class,13)/VLOOKUP($P176,class,4)) -> 0 | AB176: =$R176*(VLOOKUP($P176,class,14)/VLOOKUP($P176,class,4)) -> 0 | AC176: =$R176*(VLOOKUP($P176,class,15)/VLOOKUP($P176,class,4)) -> 0 | BB176: 176 | BC176: =$BC$26 -> D05 | BD176: =$BD$26 -> DA Sch 25I | BF176: =$BF$26 -> 100 | BG176: =$BG$26 -> 0 | BH176: =$BH$26 -> 0 | BI176: =$BI$26 -> 0 | BJ176: =$BJ$26 -> 0 | BK176: =$BK$26 -> 0 | BL176: =$BL$26 -> 0 | BM176: =$BM$26 -> 100 | BN176: =$BN$26 -> 0 | BO176: =$BO$26 -> 0 | BP176: =$BP$26 -> 0 | BQ176: =$BQ$26 -> 0 | BR176: =$BR$26 -> Direct Assigned to Schedule 25I Customers (not used)
A177: 177 | J177: 177 | L177: P | M177: =HLOOKUP("Factor Name",pfactor,4) -> Generation Level Consumption | N177: =IF(MATCH(P177,ref,0)>0,"","matching error") ->  | O177: =HLOOKUP(O175,pfactor,4) -> 62.35 | P177: =HLOOKUP("Class",pfactor,4) -> E02 | R177: =Q175*O177/SUM(O176:O179) -> 124700 | S177: =$R177*(VLOOKUP($P177,class,5)/VLOOKUP($P177,class,4)) -> 52323.85304 | T177: =$R177*(VLOOKUP($P177,class,6)/VLOOKUP($P177,class,4)) -> 13806.98371 | U177: =$R177*(VLOOKUP($P177,class,7)/VLOOKUP($P177,class,4)) -> 31169.23365 | V177: =$R177*(VLOOKUP($P177,class,8)/VLOOKUP($P177,class,4)) -> 23930.33886 | W177: =$R177*(VLOOKUP($P177,class,9)/VLOOKUP($P177,class,4)) -> 2957.377716 | X177: =$R177*(VLOOKUP($P177,class,10)/VLOOKUP($P177,class,4)) -> 512.2130199 | Y177: =$R177*(VLOOKUP($P177,class,11)/VLOOKUP($P177,class,4)) -> 0 | Z177: =$R177*(VLOOKUP($P177,class,12)/VLOOKUP($P177,class,4)) -> 0 | AA177: =$R177*(VLOOKUP($P177,class,13)/VLOOKUP($P177,class,4)) -> 0 | AB177: =$R177*(VLOOKUP($P177,class,14)/VLOOKUP($P177,class,4)) -> 0 | AC177: =$R177*(VLOOKUP($P177,class,15)/VLOOKUP($P177,class,4)) -> 0 | BB177: 177 | BC177: =$BC$28 -> D06 | BD177: =$BD$28 -> NCP-Secondary | BF177: =$BF$28 -> 824916 | BG177: =$BG$28 -> 451201 | BH177: =$BH$28 -> 115667 | BI177: =$BI$28 -> 224100 | BJ177: =$BJ$28 -> 0 | BK177: =$BK$28 -> 28208 | BL177: =$BL$28 -> 5740 | BM177: =$BM$28 -> 0 | BN177: =$BN$28 -> 0 | BO177: =$BO$28 -> 0 | BP177: =$BP$28 -> 0 | BQ177: =$BQ$28 -> 0 | BR177: =$BR$28 -> Non-Coincident Peak Secondary12 Mo Avg
A178: 178 | J178: 178 | L178: P | M178: =HLOOKUP("Factor Name",pfactor,5) -> Open | N178: =IF(MATCH(P178,ref,0)>0,"","matching error") ->  | O178: =HLOOKUP(O175,pfactor,5) -> 0 | P178: =HLOOKUP("Class",pfactor,5) -> xxx | R178: =Q175*O178/SUM(O176:O179) -> 0 | S178: =$R178*(VLOOKUP($P178,class,5)/VLOOKUP($P178,class,4)) -> 0 | T178: =$R178*(VLOOKUP($P178,class,6)/VLOOKUP($P178,class,4)) -> 0 | U178: =$R178*(VLOOKUP($P178,class,7)/VLOOKUP($P178,class,4)) -> 0 | V178: =$R178*(VLOOKUP($P178,class,8)/VLOOKUP($P178,class,4)) -> 0 | W178: =$R178*(VLOOKUP($P178,class,9)/VLOOKUP($P178,class,4)) -> 0 | X178: =$R178*(VLOOKUP($P178,class,10)/VLOOKUP($P178,class,4)) -> 0 | Y178: =$R178*(VLOOKUP($P178,class,11)/VLOOKUP($P178,class,4)) -> 0 | Z178: =$R178*(VLOOKUP($P178,class,12)/VLOOKUP($P178,class,4)) -> 0 | AA178: =$R178*(VLOOKUP($P178,class,13)/VLOOKUP($P178,class,4)) -> 0 | AB178: =$R178*(VLOOKUP($P178,class,14)/VLOOKUP($P178,class,4)) -> 0 | AC178: =$R178*(VLOOKUP($P178,class,15)/VLOOKUP($P178,class,4)) -> 0 | BB178: 178 | BC178: =$BC$30 -> D07 | BD178: =$BD$30 -> DA Street and Area Lights | BF178: =$BF$30 -> 100 | BG178: =$BG$30 -> 0 | BH178: =$BH$30 -> 0 | BI178: =$BI$30 -> 0 | BJ178: =$BJ$30 -> 0 | BK178: =$BK$30 -> 0 | BL178: =$BL$30 -> 100 | BM178: =$BM$30 -> 0 | BN178: =$BN$30 -> 0 | BO178: =$BO$30 -> 0 | BP178: =$BP$30 -> 0 | BQ178: =$BQ$30 -> 0 | BR178: =$BR$30 -> Direct Assigned to Street & Area Lights
A179: 179 | J179: 179 | L179: P | M179: =HLOOKUP("Factor Name",pfactor,6) -> Open | N179: =IF(MATCH(P179,ref,0)>0,"","matching error") ->  | O179: =HLOOKUP(O175,pfactor,6) -> 0 | P179: =HLOOKUP("Class",pfactor,6) -> xxx | R179: =Q175*O179/SUM(O176:O179) -> 0 | S179: =$R179*(VLOOKUP($P179,class,5)/VLOOKUP($P179,class,4)) -> 0 | T179: =$R179*(VLOOKUP($P179,class,6)/VLOOKUP($P179,class,4)) -> 0 | U179: =$R179*(VLOOKUP($P179,class,7)/VLOOKUP($P179,class,4)) -> 0 | V179: =$R179*(VLOOKUP($P179,class,8)/VLOOKUP($P179,class,4)) -> 0 | W179: =$R179*(VLOOKUP($P179,class,9)/VLOOKUP($P179,class,4)) -> 0 | X179: =$R179*(VLOOKUP($P179,class,10)/VLOOKUP($P179,class,4)) -> 0 | Y179: =$R179*(VLOOKUP($P179,class,11)/VLOOKUP($P179,class,4)) -> 0 | Z179: =$R179*(VLOOKUP($P179,class,12)/VLOOKUP($P179,class,4)) -> 0 | AA179: =$R179*(VLOOKUP($P179,class,13)/VLOOKUP($P179,class,4)) -> 0 | AB179: =$R179*(VLOOKUP($P179,class,14)/VLOOKUP($P179,class,4)) -> 0 | AC179: =$R179*(VLOOKUP($P179,class,15)/VLOOKUP($P179,class,4)) -> 0 | BB179: 179 | BC179: =$BC$32 -> D08 | BD179: =$BD$32 -> NCP-Primary | BF179: =$BF$32 -> 944719 | BG179: =$BG$32 -> 451201 | BH179: =$BH$32 -> 115667 | BI179: =$BI$32 -> 249852 | BJ179: =$BJ$32 -> 94051 | BK179: =$BK$32 -> 28208 | BL179: =$BL$32 -> 5740 | BM179: =$BM$32 -> 0 | BN179: =$BN$32 -> 0 | BO179: =$BO$32 -> 0 | BP179: =$BP$32 -> 0 | BQ179: =$BQ$32 -> 0 | BR179: =$BR$32 -> Non-Coincident Peak Primary 12 Mo Avg
A180: 180 | C180: Total Taxes Other Than Income Taxes | J180: 180 | K180: =B52 -> 554-MT | L180: =C52 -> Other | O180: P01 | P180: =IF(MATCH(O180,P_ref,0)>0,"","error matching functional allocator") ->  | Q180: =F52 -> 131000 | BB180: 180 | BC180: =$BC$11 -> E01 | BD180: =$BD$11 -> Customer Level Consumption | BF180: =$BF$11 -> 5658613.709 | BG180: =$BG$11 -> 2361885.986 | BH180: =$BH$11 -> 623243.883 | BI180: =$BI$11 -> 1409459.201 | BJ180: =$BJ$11 -> 1107408.158 | BK180: =$BK$11 -> 133495.31 | BL180: =$BL$11 -> 23121.171 | BM180: =$BM$11 -> 0 | BN180: =$BN$11 -> 0 | BO180: =$BO$11 -> 0 | BP180: =$BP$11 -> 0 | BQ180: =$BQ$11 -> 0 | BR180: =$BR$11 -> Energy Sales-MWH
A181: 181 | B181: Proforma | J181: 181 | L181: P | M181: =HLOOKUP("Factor Name",pfactor,3) -> Coincident Peak | N181: =IF(MATCH(P181,ref,0)>0,"","matching error") ->  | O181: =HLOOKUP(O180,pfactor,3) -> 37.65 | P181: =HLOOKUP("Class",pfactor,3) -> D01 | R181: =Q180*O181/SUM(O181:O184) -> 49321.5 | S181: =$R181*(VLOOKUP($P181,class,5)/VLOOKUP($P181,class,4)) -> 24379.0621 | T181: =$R181*(VLOOKUP($P181,class,6)/VLOOKUP($P181,class,4)) -> 5056.415987 | U181: =$R181*(VLOOKUP($P181,class,7)/VLOOKUP($P181,class,4)) -> 10952.01228 | V181: =$R181*(VLOOKUP($P181,class,8)/VLOOKUP($P181,class,4)) -> 7914.588664 | W181: =$R181*(VLOOKUP($P181,class,9)/VLOOKUP($P181,class,4)) -> 932.2148395 | X181: =$R181*(VLOOKUP($P181,class,10)/VLOOKUP($P181,class,4)) -> 87.20613043 | Y181: =$R181*(VLOOKUP($P181,class,11)/VLOOKUP($P181,class,4)) -> 0 | Z181: =$R181*(VLOOKUP($P181,class,12)/VLOOKUP($P181,class,4)) -> 0 | AA181: =$R181*(VLOOKUP($P181,class,13)/VLOOKUP($P181,class,4)) -> 0 | AB181: =$R181*(VLOOKUP($P181,class,14)/VLOOKUP($P181,class,4)) -> 0 | AC181: =$R181*(VLOOKUP($P181,class,15)/VLOOKUP($P181,class,4)) -> 0 | BB181: 181 | BC181: =$BC$13 -> E02 | BD181: =$BD$13 -> Generation Level Consumption | BF181: =$BF$13 -> 6017323.644 | BG181: =$BG$13 -> 2524856.119 | BH181: =$BH$13 -> 666247.7109 | BI181: =$BI$13 -> 1504052.659 | BJ181: =$BJ$13 -> 1154744.137 | BK181: =$BK$13 -> 142706.4864 | BL181: =$BL$13 -> 24716.5318 | BM181: =$BM$13 -> 0 | BN181: =$BN$13 -> 0 | BO181: =$BO$13 -> 0 | BP181: =$BP$13 -> 0 | BQ181: =$BQ$13 -> 0 | BR181: =$BR$13 -> Energy Sales with Losses - MWH
A182: 182 | B182: =$B$2 -> Pro Forma Results of Operations | J182: 182 | L182: P | M182: =HLOOKUP("Factor Name",pfactor,4) -> Generation Level Consumption | N182: =IF(MATCH(P182,ref,0)>0,"","matching error") ->  | O182: =HLOOKUP(O180,pfactor,4) -> 62.35 | P182: =HLOOKUP("Class",pfactor,4) -> E02 | R182: =Q180*O182/SUM(O181:O184) -> 81678.5 | S182: =$R182*(VLOOKUP($P182,class,5)/VLOOKUP($P182,class,4)) -> 34272.12374 | T182: =$R182*(VLOOKUP($P182,class,6)/VLOOKUP($P182,class,4)) -> 9043.574332 | U182: =$R182*(VLOOKUP($P182,class,7)/VLOOKUP($P182,class,4)) -> 20415.84804 | V182: =$R182*(VLOOKUP($P182,class,8)/VLOOKUP($P182,class,4)) -> 15674.37196 | W182: =$R182*(VLOOKUP($P182,class,9)/VLOOKUP($P182,class,4)) -> 1937.082404 | X182: =$R182*(VLOOKUP($P182,class,10)/VLOOKUP($P182,class,4)) -> 335.499528 | Y182: =$R182*(VLOOKUP($P182,class,11)/VLOOKUP($P182,class,4)) -> 0 | Z182: =$R182*(VLOOKUP($P182,class,12)/VLOOKUP($P182,class,4)) -> 0 | AA182: =$R182*(VLOOKUP($P182,class,13)/VLOOKUP($P182,class,4)) -> 0 | AB182: =$R182*(VLOOKUP($P182,class,14)/VLOOKUP($P182,class,4)) -> 0 | AC182: =$R182*(VLOOKUP($P182,class,15)/VLOOKUP($P182,class,4)) -> 0 | BB182: 182 | BC182: =$BC$15 -> E03 | BD182: =$BD$15 -> Open | BF182: =$BF$15 -> 0 | BG182: =$BG$15 -> 0 | BH182: =$BH$15 -> 0 | BI182: =$BI$15 -> 0 | BJ182: =$BJ$15 -> 0 | BK182: =$BK$15 -> 0 | BL182: =$BL$15 -> 0 | BM182: =$BM$15 -> 0 | BN182: =$BN$15 -> 0 | BO182: =$BO$15 -> 0 | BP182: =$BP$15 -> 0 | BQ182: =$BQ$15 -> 0 | BR182: =$BR$15 -> Open
A183: 183 | B183: =$B$3 -> Allowed Rates Case UE-170485 | J183: 183 | L183: P | M183: =HLOOKUP("Factor Name",pfactor,5) -> Open | N183: =IF(MATCH(P183,ref,0)>0,"","matching error") ->  | O183: =HLOOKUP(O180,pfactor,5) -> 0 | P183: =HLOOKUP("Class",pfactor,5) -> xxx | R183: =Q180*O183/SUM(O181:O184) -> 0 | S183: =$R183*(VLOOKUP($P183,class,5)/VLOOKUP($P183,class,4)) -> 0 | T183: =$R183*(VLOOKUP($P183,class,6)/VLOOKUP($P183,class,4)) -> 0 | U183: =$R183*(VLOOKUP($P183,class,7)/VLOOKUP($P183,class,4)) -> 0 | V183: =$R183*(VLOOKUP($P183,class,8)/VLOOKUP($P183,class,4)) -> 0 | W183: =$R183*(VLOOKUP($P183,class,9)/VLOOKUP($P183,class,4)) -> 0 | X183: =$R183*(VLOOKUP($P183,class,10)/VLOOKUP($P183,class,4)) -> 0 | Y183: =$R183*(VLOOKUP($P183,class,11)/VLOOKUP($P183,class,4)) -> 0 | Z183: =$R183*(VLOOKUP($P183,class,12)/VLOOKUP($P183,class,4)) -> 0 | AA183: =$R183*(VLOOKUP($P183,class,13)/VLOOKUP($P183,class,4)) -> 0 | AB183: =$R183*(VLOOKUP($P183,class,14)/VLOOKUP($P183,class,4)) -> 0 | AC183: =$R183*(VLOOKUP($P183,class,15)/VLOOKUP($P183,class,4)) -> 0 | BB183: 183 | BC183: =$BC$63 -> R01 | BD183: =$BD$63 -> Retail Sales Revenue | BF183: =$BF$63 -> 502897000 | BG183: =$BG$63 -> 214393000 | BH183: =$BH$63 -> 75057000 | BI183: =$BI$63 -> 129541000 | BJ183: =$BJ$63 -> 65753000 | BK183: =$BK$63 -> 11132000 | BL183: =$BL$63 -> 7021000 | BM183: =$BM$63 -> 0 | BN183: =$BN$63 -> 0 | BO183: =$BO$63 -> 0 | BP183: =$BP$63 -> 0 | BQ183: =$BQ$63 -> 0 | BR183: =$BR$63 -> Input Revenue From Rates
A184: 184 | J184: 184 | L184: P | M184: =HLOOKUP("Factor Name",pfactor,6) -> Open | N184: =IF(MATCH(P184,ref,0)>0,"","matching error") ->  | O184: =HLOOKUP(O180,pfactor,6) -> 0 | P184: =HLOOKUP("Class",pfactor,6) -> xxx | R184: =Q180*O184/SUM(O181:O184) -> 0 | S184: =$R184*(VLOOKUP($P184,class,5)/VLOOKUP($P184,class,4)) -> 0 | T184: =$R184*(VLOOKUP($P184,class,6)/VLOOKUP($P184,class,4)) -> 0 | U184: =$R184*(VLOOKUP($P184,class,7)/VLOOKUP($P184,class,4)) -> 0 | V184: =$R184*(VLOOKUP($P184,class,8)/VLOOKUP($P184,class,4)) -> 0 | W184: =$R184*(VLOOKUP($P184,class,9)/VLOOKUP($P184,class,4)) -> 0 | X184: =$R184*(VLOOKUP($P184,class,10)/VLOOKUP($P184,class,4)) -> 0 | Y184: =$R184*(VLOOKUP($P184,class,11)/VLOOKUP($P184,class,4)) -> 0 | Z184: =$R184*(VLOOKUP($P184,class,12)/VLOOKUP($P184,class,4)) -> 0 | AA184: =$R184*(VLOOKUP($P184,class,13)/VLOOKUP($P184,class,4)) -> 0 | AB184: =$R184*(VLOOKUP($P184,class,14)/VLOOKUP($P184,class,4)) -> 0 | AC184: =$R184*(VLOOKUP($P184,class,15)/VLOOKUP($P184,class,4)) -> 0 | BB184: 184 | BC184: =$BC$66 -> R02 | BD184: =$BD$66 -> Open | BF184: =$BF$66 -> 0 | BG184: =$BG$66 -> 0 | BH184: =$BH$66 -> 0 | BI184: =$BI$66 -> 0 | BJ184: =$BJ$66 -> 0 | BK184: =$BK$66 -> 0 | BL184: =$BL$66 -> 0 | BM184: =$BM$66 -> 0 | BN184: =$BN$66 -> 0 | BO184: =$BO$66 -> 0 | BP184: =$BP$66 -> 0 | BQ184: =$BQ$66 -> 0 | BR184: =$BR$66 -> Open
A185: 185 | B185: (a) | C185: (b) | F185: BO | G185: BP | J185: 185 | L185: =C53 -> Total Other Maintenance | N185: =IF(AND(ROUND($Q185,0)=ROUND($R185,0),ROUND(SUM($S185:$AC185),0)=ROUND($R185,0)),"","crossfoot error") ->  | Q185: =SUM(Q165:Q184) -> 644000 | R185: 644000 | S185: 288331.0205 | T185: 69315.98294 | U185: 154205.3591 | V185: 115964.0507 | W185: 14105.55286 | X185: 2078.033924 | Y185: 0 | Z185: 0 | AA185: 0 | AB185: 0 | AC185: 0 | BB185: 185 | BC185: =$BC$72 -> R03 | BD185: =$BD$72 -> Income Tax Allocator A | BF185: =$BF$72 -> 84429000 | BG185: =$BG$72 -> 11190584.66 | BH185: =$BH$72 -> 26213661.67 | BI185: =$BI$72 -> 34982598.19 | BJ185: =$BJ$72 -> 9622107.945 | BK185: =$BK$72 -> 1552064.411 | BL185: =$BL$72 -> 867983.1223 | BM185: =$BM$72 -> 0 | BN185: =$BN$72 -> 0 | BO185: =$BO$72 -> 0 | BP185: =$BP$72 -> 0 | BQ185: =$BQ$72 -> 0 | BR185: =$BR$72 -> Rev - Exp before Inc Tax - Interest Exp
A186: 186 | F186: Transfer | G186: Transfer | J186: 186 | L186: =C54 -> Total Other | N186: =IF(AND(ROUND($Q186,0)=ROUND($R186,0),ROUND(SUM($S186:$AC186),0)=ROUND($R186,0)),"","crossfoot error") ->  | Q186: =Q164+Q185 -> 51071000 | R186: 51071000 | S186: 22865455.82 | T186: 5496951.188 | U186: 12228915.99 | V186: 9196273.342 | W186: 1118609.767 | X186: 164793.8983 | Y186: 0 | Z186: 0 | AA186: 0 | AB186: 0 | AC186: 0 | BB186: 186 | BC186: =$BC$83 -> R04 | BD186: =$BD$83 -> Revenue Conversion Allocator U | BF186: =$BF$83 -> 478475000 | BG186: =$BG$83 -> 228765760.5 | BH186: =$BH$83 -> 57798910.82 | BI186: =$BI$83 -> 110589930.8 | BJ186: =$BJ$83 -> 62503697.89 | BK186: =$BK$83 -> 11032041.07 | BL186: =$BL$83 -> 7784658.902 | BM186: =$BM$83 -> 0 | BN186: =$BN$83 -> 0 | BO186: =$BO$83 -> 0 | BP186: =$BP$83 -> 0 | BQ186: =$BQ$83 -> 0 | BR186: =$BR$83 -> Uniform Return Revenue Excl Rev Conversion Items
A187: 187 | B187: Account | C187: Description | F187: Proforma | G187: Labor | J187: 187 | BB187: 187 | BC187: =$BC$88 -> R05 | BD187: =$BD$88 -> Income Tax Allocator U | BF187: =$BF$88 -> 70216000 | BG187: =$BG$88 -> 34090980.25 | BH187: =$BH$88 -> 8187660.891 | BI187: =$BI$88 -> 16433317.78 | BJ187: =$BJ$88 -> 7946133.355 | BK187: =$BK$88 -> 1731426.053 | BL187: =$BL$88 -> 1826481.673 | BM187: =$BM$88 -> 0 | BN187: =$BN$88 -> 0 | BO187: =$BO$88 -> 0 | BP187: =$BP$88 -> 0 | BQ187: =$BQ$88 -> 0 | BR187: =$BR$88 -> Uniform Return less Interest Expense
A188: 188 | F188: Totals | G188: Totals | J188: 188 | K188: =B56 -> 555-OP | L188: =C56 -> Total Purchased Power | O188: Manual Input | Q188: =F56 -> 73220000 | BB188: 188 | BC188: =$BC$91 -> R06 | BD188: =$BD$91 -> Income Tax Allocator B | BF188: =$BF$91 -> 128447000 | BG188: =$BG$91 -> 32562020.92 | BH188: =$BH$91 -> 31346458.43 | BI188: =$BI$91 -> 45284549.06 | BJ188: =$BJ$91 -> 14603492.5 | BK188: =$BK$91 -> 2637485.283 | BL188: =$BL$91 -> 2012993.808 | BM188: =$BM$91 -> 0 | BN188: =$BN$91 -> 0 | BO188: =$BO$91 -> 0 | BP188: =$BP$91 -> 0 | BQ188: =$BQ$91 -> 0 | BR188: =$BR$91 -> Net Income Before Tax
A189: 189 | B189: Depreciation Expense | F189: 0 | J189: 189 | L189: P | M189: =VLOOKUP(P189,class,2) -> Production Plant | N189: =IF(MATCH(P189,ref,0)>0,"","matching error") ->  | O189: 100 | P189: S01 | R189: =Q188*O189/SUM(O189:O192) -> 73220000 | S189: =$R189*(VLOOKUP($P189,class,5)/VLOOKUP($P189,class,4)) -> 32781983.42 | T189: =$R189*(VLOOKUP($P189,class,6)/VLOOKUP($P189,class,4)) -> 7880925.887 | U189: =$R189*(VLOOKUP($P189,class,7)/VLOOKUP($P189,class,4)) -> 17532478.87 | V189: =$R189*(VLOOKUP($P189,class,8)/VLOOKUP($P189,class,4)) -> 13184608.37 | W189: =$R189*(VLOOKUP($P189,class,9)/VLOOKUP($P189,class,4)) -> 1603740.032 | X189: =$R189*(VLOOKUP($P189,class,10)/VLOOKUP($P189,class,4)) -> 236263.4222 | Y189: =$R189*(VLOOKUP($P189,class,11)/VLOOKUP($P189,class,4)) -> 0 | Z189: =$R189*(VLOOKUP($P189,class,12)/VLOOKUP($P189,class,4)) -> 0 | AA189: =$R189*(VLOOKUP($P189,class,13)/VLOOKUP($P189,class,4)) -> 0 | AB189: =$R189*(VLOOKUP($P189,class,14)/VLOOKUP($P189,class,4)) -> 0 | AC189: =$R189*(VLOOKUP($P189,class,15)/VLOOKUP($P189,class,4)) -> 0 | BB189: 189 | BC189: =$BC$95 -> S01 | BD189: =$BD$95 -> Production Plant | BF189: =$BF$95 -> 947710000 | BG189: =$BG$95 -> 424307750.6 | BH189: =$BH$95 -> 102005357.4 | BI189: =$BI$95 -> 226928510.7 | BJ189: =$BJ$95 -> 170652625 | BK189: =$BK$95 -> 20757722.83 | BL189: =$BL$95 -> 3058033.432 | BM189: =$BM$95 -> 0 | BN189: =$BN$95 -> 0 | BO189: =$BO$95 -> 0 | BP189: =$BP$95 -> 0 | BQ189: =$BQ$95 -> 0 | BR189: =$BR$95 -> line 893
A190: 190 | C190: Production Plant Depreciation Expense | J190: 190 | L190: P | M190: =VLOOKUP(P190,class,2) -> Open | N190: =IF(MATCH(P190,ref,0)>0,"","matching error") ->  | O190: 0 | P190: xxx | R190: =Q188*O190/SUM(O189:O192) -> 0 | S190: =$R190*(VLOOKUP($P190,class,5)/VLOOKUP($P190,class,4)) -> 0 | T190: =$R190*(VLOOKUP($P190,class,6)/VLOOKUP($P190,class,4)) -> 0 | U190: =$R190*(VLOOKUP($P190,class,7)/VLOOKUP($P190,class,4)) -> 0 | V190: =$R190*(VLOOKUP($P190,class,8)/VLOOKUP($P190,class,4)) -> 0 | W190: =$R190*(VLOOKUP($P190,class,9)/VLOOKUP($P190,class,4)) -> 0 | X190: =$R190*(VLOOKUP($P190,class,10)/VLOOKUP($P190,class,4)) -> 0 | Y190: =$R190*(VLOOKUP($P190,class,11)/VLOOKUP($P190,class,4)) -> 0 | Z190: =$R190*(VLOOKUP($P190,class,12)/VLOOKUP($P190,class,4)) -> 0 | AA190: =$R190*(VLOOKUP($P190,class,13)/VLOOKUP($P190,class,4)) -> 0 | AB190: =$R190*(VLOOKUP($P190,class,14)/VLOOKUP($P190,class,4)) -> 0 | AC190: =$R190*(VLOOKUP($P190,class,15)/VLOOKUP($P190,class,4)) -> 0 | BB190: 190 | BC190: =$BC$97 -> S02 | BD190: =$BD$97 -> Transmission Plant | BF190: =$BF$97 -> 446138000 | BG190: =$BG$97 -> 199744448.5 | BH190: =$BH$97 -> 48019400.62 | BI190: =$BI$97 -> 106827438.7 | BJ190: =$BJ$97 -> 80335356.59 | BK190: =$BK$97 -> 9771775.065 | BL190: =$BL$97 -> 1439580.588 | BM190: =$BM$97 -> 0 | BN190: =$BN$97 -> 0 | BO190: =$BO$97 -> 0 | BP190: =$BP$97 -> 0 | BQ190: =$BQ$97 -> 0 | BR190: =$BR$97 -> line 932
A191: 191 | B191: 31X | C191: Steam Production Depr Exp | F191: 5098000 | J191: 191 | L191: P | M191: =VLOOKUP(P191,class,2) -> Open | N191: =IF(MATCH(P191,ref,0)>0,"","matching error") ->  | O191: 0 | P191: xxx | R191: =Q188*O191/SUM(O189:O192) -> 0 | S191: =$R191*(VLOOKUP($P191,class,5)/VLOOKUP($P191,class,4)) -> 0 | T191: =$R191*(VLOOKUP($P191,class,6)/VLOOKUP($P191,class,4)) -> 0 | U191: =$R191*(VLOOKUP($P191,class,7)/VLOOKUP($P191,class,4)) -> 0 | V191: =$R191*(VLOOKUP($P191,class,8)/VLOOKUP($P191,class,4)) -> 0 | W191: =$R191*(VLOOKUP($P191,class,9)/VLOOKUP($P191,class,4)) -> 0 | X191: =$R191*(VLOOKUP($P191,class,10)/VLOOKUP($P191,class,4)) -> 0 | Y191: =$R191*(VLOOKUP($P191,class,11)/VLOOKUP($P191,class,4)) -> 0 | Z191: =$R191*(VLOOKUP($P191,class,12)/VLOOKUP($P191,class,4)) -> 0 | AA191: =$R191*(VLOOKUP($P191,class,13)/VLOOKUP($P191,class,4)) -> 0 | AB191: =$R191*(VLOOKUP($P191,class,14)/VLOOKUP($P191,class,4)) -> 0 | AC191: =$R191*(VLOOKUP($P191,class,15)/VLOOKUP($P191,class,4)) -> 0 | BB191: 191 | BC191: =$BC$99 -> S03 | BD191: =$BD$99 -> Distribution Plant | BF191: =$BF$99 -> 1016978000 | BG191: =$BG$99 -> 537562364.6 | BH191: =$BH$99 -> 129711804.5 | BI191: =$BI$99 -> 233690762.4 | BJ191: =$BJ$99 -> 30656649.28 | BK191: =$BK$99 -> 28740899.86 | BL191: =$BL$99 -> 56615519.25 | BM191: =$BM$99 -> 0 | BN191: =$BN$99 -> 0 | BO191: =$BO$99 -> 0 | BP191: =$BP$99 -> 0 | BQ191: =$BQ$99 -> 0 | BR191: =$BR$99 -> line 1089
A192: 192 | B192: 32X | C192: Nuclear Production Depr Exp | F192: 2450000 | J192: 192 | L192: P | M192: =VLOOKUP(P192,class,2) -> Open | N192: =IF(MATCH(P192,ref,0)>0,"","matching error") ->  | O192: 0 | P192: xxx | R192: =Q188*O192/SUM(O189:O192) -> 0 | S192: =$R192*(VLOOKUP($P192,class,5)/VLOOKUP($P192,class,4)) -> 0 | T192: =$R192*(VLOOKUP($P192,class,6)/VLOOKUP($P192,class,4)) -> 0 | U192: =$R192*(VLOOKUP($P192,class,7)/VLOOKUP($P192,class,4)) -> 0 | V192: =$R192*(VLOOKUP($P192,class,8)/VLOOKUP($P192,class,4)) -> 0 | W192: =$R192*(VLOOKUP($P192,class,9)/VLOOKUP($P192,class,4)) -> 0 | X192: =$R192*(VLOOKUP($P192,class,10)/VLOOKUP($P192,class,4)) -> 0 | Y192: =$R192*(VLOOKUP($P192,class,11)/VLOOKUP($P192,class,4)) -> 0 | Z192: =$R192*(VLOOKUP($P192,class,12)/VLOOKUP($P192,class,4)) -> 0 | AA192: =$R192*(VLOOKUP($P192,class,13)/VLOOKUP($P192,class,4)) -> 0 | AB192: =$R192*(VLOOKUP($P192,class,14)/VLOOKUP($P192,class,4)) -> 0 | AC192: =$R192*(VLOOKUP($P192,class,15)/VLOOKUP($P192,class,4)) -> 0 | BB192: 192 | BC192: =$BC$101 -> S04 | BD192: =$BD$101 -> General Plant | BF192: =$BF$101 -> 242579000 | BG192: =$BG$101 -> 129818207.5 | BH192: =$BH$101 -> 28348837.23 | BI192: =$BI$101 -> 48658362.09 | BJ192: =$BJ$101 -> 25634554.93 | BK192: =$BK$101 -> 5352872.87 | BL192: =$BL$101 -> 4766165.378 | BM192: =$BM$101 -> 0 | BN192: =$BN$101 -> 0 | BO192: =$BO$101 -> 0 | BP192: =$BP$101 -> 0 | BQ192: =$BQ$101 -> 0 | BR192: =$BR$101 -> line 1142
A193: 193 | B193: 33X | C193: Hydraulic Production Depr Exp | F193: 7324000 | J193: 193 | K193: =B57 -> 556-OP | L193: =C57 -> Total System Control & Load Dispatching | O193: P01 | P193: =IF(MATCH(O193,P_ref,0)>0,"","error matching functional allocator") ->  | Q193: =F57 -> 506000 | BB193: 193 | BC193: =$BC$103 -> S05 | BD193: =$BD$103 -> P/T/D Plant | BF193: =$BF$103 -> 2410826000 | BG193: =$BG$103 -> 1161614564 | BH193: =$BH$103 -> 279736562.6 | BI193: =$BI$103 -> 567446711.8 | BJ193: =$BJ$103 -> 281644630.8 | BK193: =$BK$103 -> 59270397.75 | BL193: =$BL$103 -> 61113133.27 | BM193: =$BM$103 -> 0 | BN193: =$BN$103 -> 0 | BO193: =$BO$103 -> 0 | BP193: =$BP$103 -> 0 | BQ193: =$BQ$103 -> 0 | BR193: =$BR$103 -> Sum lines 893+932+1089
A194: 194 | B194: 34X | C194: Other Production Depr Exp | F194: 6496000 | J194: 194 | L194: P | M194: =HLOOKUP("Factor Name",pfactor,3) -> Coincident Peak | N194: =IF(MATCH(P194,ref,0)>0,"","matching error") ->  | O194: =HLOOKUP(O193,pfactor,3) -> 37.65 | P194: =HLOOKUP("Class",pfactor,3) -> D01 | R194: =Q193*O194/SUM(O194:O197) -> 190509 | S194: =$R194*(VLOOKUP($P194,class,5)/VLOOKUP($P194,class,4)) -> 94166.45362 | T194: =$R194*(VLOOKUP($P194,class,6)/VLOOKUP($P194,class,4)) -> 19530.88923 | U194: =$R194*(VLOOKUP($P194,class,7)/VLOOKUP($P194,class,4)) -> 42303.19246 | V194: =$R194*(VLOOKUP($P194,class,8)/VLOOKUP($P194,class,4)) -> 30570.85392 | W194: =$R194*(VLOOKUP($P194,class,9)/VLOOKUP($P194,class,4)) -> 3600.768769 | X194: =$R194*(VLOOKUP($P194,class,10)/VLOOKUP($P194,class,4)) -> 336.842 | Y194: =$R194*(VLOOKUP($P194,class,11)/VLOOKUP($P194,class,4)) -> 0 | Z194: =$R194*(VLOOKUP($P194,class,12)/VLOOKUP($P194,class,4)) -> 0 | AA194: =$R194*(VLOOKUP($P194,class,13)/VLOOKUP($P194,class,4)) -> 0 | AB194: =$R194*(VLOOKUP($P194,class,14)/VLOOKUP($P194,class,4)) -> 0 | AC194: =$R194*(VLOOKUP($P194,class,15)/VLOOKUP($P194,class,4)) -> 0 | BB194: 194 | BC194: =$BC$105 -> S06 | BD194: =$BD$105 -> P/T/D/G Plant | BF194: =$BF$105 -> 2653405000 | BG194: =$BG$105 -> 1291432771 | BH194: =$BH$105 -> 308085399.8 | BI194: =$BI$105 -> 616105073.9 | BJ194: =$BJ$105 -> 307279185.7 | BK194: =$BK$105 -> 64623270.62 | BL194: =$BL$105 -> 65879298.65 | BM194: =$BM$105 -> 0 | BN194: =$BN$105 -> 0 | BO194: =$BO$105 -> 0 | BP194: =$BP$105 -> 0 | BQ194: =$BQ$105 -> 0 | BR194: =$BR$105 -> Sum lines 893+932+1089+1142
A195: 195 | C195: Total Production Plant Depreciation Expense | J195: 195 | L195: P | M195: =HLOOKUP("Factor Name",pfactor,4) -> Generation Level Consumption | N195: =IF(MATCH(P195,ref,0)>0,"","matching error") ->  | O195: =HLOOKUP(O193,pfactor,4) -> 62.35 | P195: =HLOOKUP("Class",pfactor,4) -> E02 | R195: =Q193*O195/SUM(O194:O197) -> 315491 | S195: =$R195*(VLOOKUP($P195,class,5)/VLOOKUP($P195,class,4)) -> 132379.3482 | T195: =$R195*(VLOOKUP($P195,class,6)/VLOOKUP($P195,class,4)) -> 34931.66879 | U195: =$R195*(VLOOKUP($P195,class,7)/VLOOKUP($P195,class,4)) -> 78858.16113 | V195: =$R195*(VLOOKUP($P195,class,8)/VLOOKUP($P195,class,4)) -> 60543.75733 | W195: =$R195*(VLOOKUP($P195,class,9)/VLOOKUP($P195,class,4)) -> 7482.165621 | X195: =$R195*(VLOOKUP($P195,class,10)/VLOOKUP($P195,class,4)) -> 1295.89894 | Y195: =$R195*(VLOOKUP($P195,class,11)/VLOOKUP($P195,class,4)) -> 0 | Z195: =$R195*(VLOOKUP($P195,class,12)/VLOOKUP($P195,class,4)) -> 0 | AA195: =$R195*(VLOOKUP($P195,class,13)/VLOOKUP($P195,class,4)) -> 0 | AB195: =$R195*(VLOOKUP($P195,class,14)/VLOOKUP($P195,class,4)) -> 0 | AC195: =$R195*(VLOOKUP($P195,class,15)/VLOOKUP($P195,class,4)) -> 0 | BB195: 195 | BC195: =$BC$107 -> S07 | BD195: =$BD$107 -> Rate Base | BF195: =$BF$107 -> 1523129000 | BG195: =$BG$107 -> 739503256.4 | BH195: =$BH$107 -> 177607151.4 | BI195: =$BI$107 -> 356472355 | BJ195: =$BJ$107 -> 172367924 | BK195: =$BK$107 -> 37558180.94 | BL195: =$BL$107 -> 39620132.23 | BM195: =$BM$107 -> 0 | BN195: =$BN$107 -> 0 | BO195: =$BO$107 -> 0 | BP195: =$BP$107 -> 0 | BQ195: =$BQ$107 -> 0 | BR195: =$BR$107 -> line 1473
A196: 196 | J196: 196 | L196: P | M196: =HLOOKUP("Factor Name",pfactor,5) -> Open | N196: =IF(MATCH(P196,ref,0)>0,"","matching error") ->  | O196: =HLOOKUP(O193,pfactor,5) -> 0 | P196: =HLOOKUP("Class",pfactor,5) -> xxx | R196: =Q193*O196/SUM(O194:O197) -> 0 | S196: =$R196*(VLOOKUP($P196,class,5)/VLOOKUP($P196,class,4)) -> 0 | T196: =$R196*(VLOOKUP($P196,class,6)/VLOOKUP($P196,class,4)) -> 0 | U196: =$R196*(VLOOKUP($P196,class,7)/VLOOKUP($P196,class,4)) -> 0 | V196: =$R196*(VLOOKUP($P196,class,8)/VLOOKUP($P196,class,4)) -> 0 | W196: =$R196*(VLOOKUP($P196,class,9)/VLOOKUP($P196,class,4)) -> 0 | X196: =$R196*(VLOOKUP($P196,class,10)/VLOOKUP($P196,class,4)) -> 0 | Y196: =$R196*(VLOOKUP($P196,class,11)/VLOOKUP($P196,class,4)) -> 0 | Z196: =$R196*(VLOOKUP($P196,class,12)/VLOOKUP($P196,class,4)) -> 0 | AA196: =$R196*(VLOOKUP($P196,class,13)/VLOOKUP($P196,class,4)) -> 0 | AB196: =$R196*(VLOOKUP($P196,class,14)/VLOOKUP($P196,class,4)) -> 0 | AC196: =$R196*(VLOOKUP($P196,class,15)/VLOOKUP($P196,class,4)) -> 0 | BB196: 196 | BC196: =$BC$109 -> S08 | BD196: =$BD$109 -> Account 361 | BF196: =$BF$109 -> 14851000 | BG196: =$BG$109 -> 7138425.649 | BH196: =$BH$109 -> 1829961.103 | BI196: =$BI$109 -> 3952894.442 | BJ196: =$BJ$109 -> 1392629.407 | BK196: =$BK$109 -> 446277.1818 | BL196: =$BL$109 -> 90812.21722 | BM196: =$BM$109 -> 0 | BN196: =$BN$109 -> 0 | BO196: =$BO$109 -> 0 | BP196: =$BP$109 -> 0 | BQ196: =$BQ$109 -> 0 | BR196: =$BR$109 -> Sum lines 946 ~ 956
A197: 197 | C197: Transmission Plant Depreciation Expense | J197: 197 | L197: P | M197: =HLOOKUP("Factor Name",pfactor,6) -> Open | N197: =IF(MATCH(P197,ref,0)>0,"","matching error") ->  | O197: =HLOOKUP(O193,pfactor,6) -> 0 | P197: =HLOOKUP("Class",pfactor,6) -> xxx | R197: =Q193*O197/SUM(O194:O197) -> 0 | S197: =$R197*(VLOOKUP($P197,class,5)/VLOOKUP($P197,class,4)) -> 0 | T197: =$R197*(VLOOKUP($P197,class,6)/VLOOKUP($P197,class,4)) -> 0 | U197: =$R197*(VLOOKUP($P197,class,7)/VLOOKUP($P197,class,4)) -> 0 | V197: =$R197*(VLOOKUP($P197,class,8)/VLOOKUP($P197,class,4)) -> 0 | W197: =$R197*(VLOOKUP($P197,class,9)/VLOOKUP($P197,class,4)) -> 0 | X197: =$R197*(VLOOKUP($P197,class,10)/VLOOKUP($P197,class,4)) -> 0 | Y197: =$R197*(VLOOKUP($P197,class,11)/VLOOKUP($P197,class,4)) -> 0 | Z197: =$R197*(VLOOKUP($P197,class,12)/VLOOKUP($P197,class,4)) -> 0 | AA197: =$R197*(VLOOKUP($P197,class,13)/VLOOKUP($P197,class,4)) -> 0 | AB197: =$R197*(VLOOKUP($P197,class,14)/VLOOKUP($P197,class,4)) -> 0 | AC197: =$R197*(VLOOKUP($P197,class,15)/VLOOKUP($P197,class,4)) -> 0 | BB197: 197 | BC197: =$BC$111 -> S09 | BD197: =$BD$111 -> Account 362 | BF197: =$BF$111 -> 83107000 | BG197: =$BG$111 -> 41379995.96 | BH197: =$BH$111 -> 10607910.87 | BI197: =$BI$111 -> 22914121.98 | BJ197: =$BJ$111 -> 5091573.605 | BK197: =$BK$111 -> 2586977.702 | BL197: =$BL$111 -> 526419.8812 | BM197: =$BM$111 -> 0 | BN197: =$BN$111 -> 0 | BO197: =$BO$111 -> 0 | BP197: =$BP$111 -> 0 | BQ197: =$BQ$111 -> 0 | BR197: =$BR$111 -> Sum lines 957 ~ 967
A198: 198 | B198: 350 | C198: Land & Land Rights Depr Exp | F198: 186000 | J198: 198 | K198: =B58 -> 557-OP | L198: =C58 -> Total Other Expenses | O198: Manual Input | Q198: =F58 -> 2885000 | BB198: 198 | BC198: =$BC$113 -> S10 | BD198: =$BD$113 -> Account 364/365 | BF198: =$BF$113 -> 381808000 | BG198: =$BG$113 -> 188105327.1 | BH198: =$BH$113 -> 48221477.5 | BI198: =$BI$113 -> 104088234.3 | BJ198: =$BJ$113 -> 15511088.7 | BK198: =$BK$113 -> 11759892.08 | BL198: =$BL$113 -> 14121980.3 | BM198: =$BM$113 -> 0 | BN198: =$BN$113 -> 0 | BO198: =$BO$113 -> 0 | BP198: =$BP$113 -> 0 | BQ198: =$BQ$113 -> 0 | BR198: =$BR$113 -> Sum lines 979 ~ 1000
A199: 199 | B199: 352 | C199: Structures & Improvements Depr Exp | F199: 262000 | J199: 199 | L199: P | M199: =VLOOKUP(P199,class,2) -> Production Plant | N199: =IF(MATCH(P199,ref,0)>0,"","matching error") ->  | O199: 100 | P199: S01 | R199: =Q198*O199/SUM(O199:O202) -> 2885000 | S199: =$R199*(VLOOKUP($P199,class,5)/VLOOKUP($P199,class,4)) -> 1291669.245 | T199: =$R199*(VLOOKUP($P199,class,6)/VLOOKUP($P199,class,4)) -> 310522.6876 | U199: =$R199*(VLOOKUP($P199,class,7)/VLOOKUP($P199,class,4)) -> 690811.2749 | V199: =$R199*(VLOOKUP($P199,class,8)/VLOOKUP($P199,class,4)) -> 519497.3388 | W199: =$R199*(VLOOKUP($P199,class,9)/VLOOKUP($P199,class,4)) -> 63190.24845 | X199: =$R199*(VLOOKUP($P199,class,10)/VLOOKUP($P199,class,4)) -> 9309.204768 | Y199: =$R199*(VLOOKUP($P199,class,11)/VLOOKUP($P199,class,4)) -> 0 | Z199: =$R199*(VLOOKUP($P199,class,12)/VLOOKUP($P199,class,4)) -> 0 | AA199: =$R199*(VLOOKUP($P199,class,13)/VLOOKUP($P199,class,4)) -> 0 | AB199: =$R199*(VLOOKUP($P199,class,14)/VLOOKUP($P199,class,4)) -> 0 | AC199: =$R199*(VLOOKUP($P199,class,15)/VLOOKUP($P199,class,4)) -> 0 | BB199: 199 | BC199: =$BC$115 -> S11 | BD199: =$BD$115 -> Account 366/367 | BF199: =$BF$115 -> 189794000 | BG199: =$BG$115 -> 97112797.17 | BH199: =$BH$115 -> 24895215.02 | BI199: =$BI$115 -> 52592596.13 | BJ199: =$BJ$115 -> 7886703 | BK199: =$BK$115 -> 6071258.225 | BL199: =$BL$115 -> 1235430.453 | BM199: =$BM$115 -> 0 | BN199: =$BN$115 -> 0 | BO199: =$BO$115 -> 0 | BP199: =$BP$115 -> 0 | BQ199: =$BQ$115 -> 0 | BR199: =$BR$115 -> Sum lines 1001 ~ 1022
A200: 200 | B200: 353 | C200: Station Equipment Depr Exp | F200: 3890000 | J200: 200 | L200: P | M200: =VLOOKUP(P200,class,2) -> Open | N200: =IF(MATCH(P200,ref,0)>0,"","matching error") ->  | O200: 0 | P200: xxx | R200: =Q198*O200/SUM(O199:O202) -> 0 | S200: =$R200*(VLOOKUP($P200,class,5)/VLOOKUP($P200,class,4)) -> 0 | T200: =$R200*(VLOOKUP($P200,class,6)/VLOOKUP($P200,class,4)) -> 0 | U200: =$R200*(VLOOKUP($P200,class,7)/VLOOKUP($P200,class,4)) -> 0 | V200: =$R200*(VLOOKUP($P200,class,8)/VLOOKUP($P200,class,4)) -> 0 | W200: =$R200*(VLOOKUP($P200,class,9)/VLOOKUP($P200,class,4)) -> 0 | X200: =$R200*(VLOOKUP($P200,class,10)/VLOOKUP($P200,class,4)) -> 0 | Y200: =$R200*(VLOOKUP($P200,class,11)/VLOOKUP($P200,class,4)) -> 0 | Z200: =$R200*(VLOOKUP($P200,class,12)/VLOOKUP($P200,class,4)) -> 0 | AA200: =$R200*(VLOOKUP($P200,class,13)/VLOOKUP($P200,class,4)) -> 0 | AB200: =$R200*(VLOOKUP($P200,class,14)/VLOOKUP($P200,class,4)) -> 0 | AC200: =$R200*(VLOOKUP($P200,class,15)/VLOOKUP($P200,class,4)) -> 0 | BB200: 200 | BC200: =$BC$117 -> S12 | BD200: =$BD$117 -> Account 368 | BF200: =$BF$117 -> 168718000 | BG200: =$BG$117 -> 92283008.59 | BH200: =$BH$117 -> 23657081.33 | BI200: =$BI$117 -> 45834610.8 | BJ200: =$BJ$117 -> 0 | BK200: =$BK$117 -> 5769311.474 | BL200: =$BL$117 -> 1173987.8 | BM200: =$BM$117 -> 0 | BN200: =$BN$117 -> 0 | BO200: =$BO$117 -> 0 | BP200: =$BP$117 -> 0 | BQ200: =$BQ$117 -> 0 | BR200: =$BR$117 -> Sum lines 1023 ~ 1033
... 1301 more rows

Sheet Sumcost Exhibits
B2: Sumcost | F2: AVISTA UTILITIES | J2: =SUMCOST!M1 -> Washington Jurisdiction
B3: =SUMCOST!B2 -> Scenario: Allowed Rates Case UE-170485 | F3: Cost of Service Basic Summary | J3: Electric Utility | L3: 2018-05-01
B4: =SUMCOST!B3 -> Load Factor Peak Credit Method | F4: =SUMCOST!E3 -> For the Twelve Months Ended December 31, 2016 | L4: =SUMCOST!$Q$3 -> 
B5: =SUMCOST!B4 -> AS FILED METHOD
B6: (b) | C6: (c) | D6: (d) | E6: (e) | F6: (f) | G6: (g) | H6: (h) | I6: (i) | J6: (j) | K6: (k) | L6: (l) | M6: (m) | N6: (n) | O6: (o) | P6: (p) | Q6: (q)
G7: =SUMCOST!G6 -> Residential | H7: =SUMCOST!H6 -> General | I7: =SUMCOST!I6 -> Large Gen | J7: =SUMCOST!J6 -> Extra Large | K7: =SUMCOST!K6 -> Pumping | L7: =SUMCOST!L6 -> Street & | M7: =SUMCOST!M6 ->  | N7: =SUMCOST!N6 ->  | O7: =SUMCOST!O6 ->  | P7: =SUMCOST!P6 ->  | Q7: =SUMCOST!Q6 -> 
F8: System | G8: =SUMCOST!G7 -> Service | H8: =SUMCOST!H7 -> Service | I8: =SUMCOST!I7 -> Service | J8: =SUMCOST!J7 -> Gen Service | K8: =SUMCOST!K7 -> Service | L8: =SUMCOST!L7 -> Area Lights | M8: =SUMCOST!M7 ->  | N8: =SUMCOST!N7 ->  | O8: =SUMCOST!O7 ->  | P8: =SUMCOST!P7 ->  | Q8: =SUMCOST!Q7 -> 
B9: Description | F9: Total | G9: =SUMCOST!G8 -> Sch 1-2 | H9: =SUMCOST!H8 -> Sch 11-12 | I9: =SUMCOST!I8 -> Sch 21-22 | J9: =SUMCOST!J8 -> Sch 25 | K9: =SUMCOST!K8 -> Sch 31-32 | L9: =SUMCOST!L8 -> Sch 41-49 | M9: =SUMCOST!M8 -> Open 1 | N9: =SUMCOST!N8 -> Open 2 | O9: =SUMCOST!O8 -> Open 3 | P9: =SUMCOST!P8 -> Open 4 | Q9: =SUMCOST!Q8 -> Open 5
B10: Plant In Service
A11: 1 | B11: Production Plant | F11: =SUM(G11:Q11) -> 947710000 | G11: =SUMCOST!G10 -> 424307750.6 | H11: =SUMCOST!H10 -> 102005357.4 | I11: =SUMCOST!I10 -> 226928510.7 | J11: =SUMCOST!J10 -> 170652625 | K11: =SUMCOST!K10 -> 20757722.83 | L11: =SUMCOST!L10 -> 3058033.432 | M11: =SUMCOST!M10 -> 0 | N11: =SUMCOST!N10 -> 0 | O11: =SUMCOST!O10 -> 0 | P11: =SUMCOST!P10 -> 0 | Q11: =SUMCOST!Q10 -> 0
A12: 2 | B12: Transmission Plant | F12: =SUM(G12:Q12) -> 446138000 | G12: =SUMCOST!G11 -> 199744448.5 | H12: =SUMCOST!H11 -> 48019400.62 | I12: =SUMCOST!I11 -> 106827438.7 | J12: =SUMCOST!J11 -> 80335356.59 | K12: =SUMCOST!K11 -> 9771775.065 | L12: =SUMCOST!L11 -> 1439580.588 | M12: =SUMCOST!M11 -> 0 | N12: =SUMCOST!N11 -> 0 | O12: =SUMCOST!O11 -> 0 | P12: =SUMCOST!P11 -> 0 | Q12: =SUMCOST!Q11 -> 0
A13: 3 | B13: Distribution Plant | F13: =SUM(G13:Q13) -> 1016978000 | G13: =SUMCOST!G12 -> 537562364.6 | H13: =SUMCOST!H12 -> 129711804.5 | I13: =SUMCOST!I12 -> 233690762.4 | J13: =SUMCOST!J12 -> 30656649.28 | K13: =SUMCOST!K12 -> 28740899.86 | L13: =SUMCOST!L12 -> 56615519.25 | M13: =SUMCOST!M12 -> 0 | N13: =SUMCOST!N12 -> 0 | O13: =SUMCOST!O12 -> 0 | P13: =SUMCOST!P12 -> 0 | Q13: =SUMCOST!Q12 -> 0
A14: 4 | B14: Intangible Plant | F14: =SUM(G14:Q14) -> 166116000 | G14: =SUMCOST!G13 -> 78243722.76 | H14: =SUMCOST!H13 -> 18723247.66 | I14: =SUMCOST!I13 -> 39061190.86 | J14: =SUMCOST!J13 -> 23517238.16 | K14: =SUMCOST!K13 -> 3883030.757 | L14: =SUMCOST!L13 -> 2687569.799 | M14: =SUMCOST!M13 -> 0 | N14: =SUMCOST!N13 -> 0 | O14: =SUMCOST!O13 -> 0 | P14: =SUMCOST!P13 -> 0 | Q14: =SUMCOST!Q13 -> 0
A15: 5 | B15: General Plant | F15: =SUM(G15:Q15) -> 242579000 | G15: =SUMCOST!G14 -> 129818207.5 | H15: =SUMCOST!H14 -> 28348837.23 | I15: =SUMCOST!I14 -> 48658362.09 | J15: =SUMCOST!J14 -> 25634554.93 | K15: =SUMCOST!K14 -> 5352872.87 | L15: =SUMCOST!L14 -> 4766165.378 | M15: =SUMCOST!M14 -> 0 | N15: =SUMCOST!N14 -> 0 | O15: =SUMCOST!O14 -> 0 | P15: =SUMCOST!P14 -> 0 | Q15: =SUMCOST!Q14 -> 0
A16: 6 | B16: Total Plant In Service | F16: =SUM(F11:F15) -> 2819521000 | G16: 1369676494 | H16: 326808647.5 | I16: 655166264.8 | J16: 330796423.9 | K16: 68506301.38 | L16: 68566868.45 | M16: 0 | N16: 0 | O16: 0 | P16: 0 | Q16: 0
B18: Accum Depreciation
A19: 7 | B19: Production Plant | F19: =SUM(G19:Q19) -> -414005000 | G19: =SUMCOST!G18 -> -185357894.6 | H19: =SUMCOST!H18 -> -44560812.92 | I19: =SUMCOST!I18 -> -99133213.82 | J19: =SUMCOST!J18 -> -74549218.64 | K19: =SUMCOST!K18 -> -9067964.925 | L19: =SUMCOST!L18 -> -1335895.085 | M19: =SUMCOST!M18 -> 0 | N19: =SUMCOST!N18 -> 0 | O19: =SUMCOST!O18 -> 0 | P19: =SUMCOST!P18 -> 0 | Q19: =SUMCOST!Q18 -> 0
A20: 8 | B20: Transmission Plant | F20: =SUM(G20:Q20) -> -136127000 | G20: =SUMCOST!G19 -> -60946641.03 | H20: =SUMCOST!H19 -> -14651827.34 | I20: =SUMCOST!I19 -> -32595516.96 | J20: =SUMCOST!J19 -> -24512171.32 | K20: =SUMCOST!K19 -> -2981594.09 | L20: =SUMCOST!L19 -> -439249.2608 | M20: =SUMCOST!M19 -> 0 | N20: =SUMCOST!N19 -> 0 | O20: =SUMCOST!O19 -> 0 | P20: =SUMCOST!P19 -> 0 | Q20: =SUMCOST!Q19 -> 0
A21: 9 | B21: Distribution Plant | F21: =SUM(G21:Q21) -> -305222000 | G21: =SUMCOST!G20 -> -164014365.6 | H21: =SUMCOST!H20 -> -38752605.81 | I21: =SUMCOST!I20 -> -68069828.15 | J21: =SUMCOST!J20 -> -8984063.519 | K21: =SUMCOST!K20 -> -8432698.102 | L21: =SUMCOST!L20 -> -16968438.84 | M21: =SUMCOST!M20 -> 0 | N21: =SUMCOST!N20 -> 0 | O21: =SUMCOST!O20 -> 0 | P21: =SUMCOST!P20 -> 0 | Q21: =SUMCOST!Q20 -> 0
A22: 10 | B22: Intangible Plant | F22: =SUM(G22:Q22) -> -36746000 | G22: =SUMCOST!G21 -> -17617633.45 | H22: =SUMCOST!H21 -> -4189472.334 | I22: =SUMCOST!I21 -> -8534642.13 | J22: =SUMCOST!J21 -> -4842564.433 | K22: =SUMCOST!K21 -> -867105.5005 | L22: =SUMCOST!L21 -> -694582.1512 | M22: =SUMCOST!M21 -> 0 | N22: =SUMCOST!N21 -> 0 | O22: =SUMCOST!O21 -> 0 | P22: =SUMCOST!P21 -> 0 | Q22: =SUMCOST!Q21 -> 0
A23: 11 | B23: General Plant | F23: =SUM(G23:Q23) -> -83504000 | G23: =SUMCOST!G22 -> -44632215.41 | H23: =SUMCOST!H22 -> -9756725.294 | I23: =SUMCOST!I22 -> -16783760.93 | J23: =SUMCOST!J22 -> -8843404.196 | K23: =SUMCOST!K22 -> -1844698.959 | L23: =SUMCOST!L22 -> -1643195.213 | M23: =SUMCOST!M22 -> 0 | N23: =SUMCOST!N22 -> 0 | O23: =SUMCOST!O22 -> 0 | P23: =SUMCOST!P22 -> 0 | Q23: =SUMCOST!Q22 -> 0
A24: 12 | B24: Total Accumulated Depreciation | F24: =SUM(F19:F23) -> -975604000 | G24: -472568750.1 | H24: -111911443.7 | I24: -225116962 | J24: -121731422.1 | K24: -23194061.58 | L24: -21081360.55 | M24: 0 | N24: 0 | O24: 0 | P24: 0 | Q24: 0
A26: 13 | B26: Net Plant | F26: =F16+F24 -> 1843917000 | G26: =SUMCOST!G25 -> 897107743.9 | H26: =SUMCOST!H25 -> 214897203.8 | I26: =SUMCOST!I25 -> 430049302.8 | J26: =SUMCOST!J25 -> 209065001.8 | K26: =SUMCOST!K25 -> 45312239.8 | L26: =SUMCOST!L25 -> 47485507.9 | M26: =SUMCOST!M25 -> 0 | N26: =SUMCOST!N25 -> 0 | O26: =SUMCOST!O25 -> 0 | P26: =SUMCOST!P25 -> 0 | Q26: =SUMCOST!Q25 -> 0
A27: 14 | B27: Accumulated Deferred FIT | F27: =SUM(G27:Q27) -> -375998000 | G27: =SUMCOST!G26 -> -183623698.3 | H27: =SUMCOST!H26 -> -43674186.14 | I27: =SUMCOST!I26 -> -86915885.32 | J27: =SUMCOST!J26 -> -43358563.96 | K27: =SUMCOST!K26 -> -9132097.395 | L27: =SUMCOST!L26 -> -9293568.839 | M27: =SUMCOST!M26 -> 0 | N27: =SUMCOST!N26 -> 0 | O27: =SUMCOST!O26 -> 0 | P27: =SUMCOST!P26 -> 0 | Q27: =SUMCOST!Q26 -> 0
A28: 15 | B28: Miscellaneous Rate Base | F28: =SUM(G28:Q28) -> 55210000 | G28: =SUMCOST!G27 -> 26019210.88 | H28: =SUMCOST!H27 -> 6384133.783 | I28: =SUMCOST!I27 -> 13338937.51 | J28: =SUMCOST!J27 -> 6661486.129 | K28: =SUMCOST!K27 -> 1378038.529 | L28: =SUMCOST!L27 -> 1428193.169 | M28: =SUMCOST!M27 -> 0 | N28: =SUMCOST!N27 -> 0 | O28: =SUMCOST!O27 -> 0 | P28: =SUMCOST!P27 -> 0 | Q28: =SUMCOST!Q27 -> 0
A29: 16 | B29: Total Rate Base | F29: =SUM(F26:F28) -> 1523129000 | G29: 739503256.4 | H29: 177607151.4 | I29: 356472355 | J29: 172367924 | K29: 37558180.94 | L29: 39620132.23 | M29: 0 | N29: 0 | O29: 0 | P29: 0 | Q29: 0
A31: 17 | B31: Revenue From Retail Rates | F31: =SUM(G31:Q31) -> 502897000 | G31: =SUMCOST!G30 -> 214393000 | H31: =SUMCOST!H30 -> 75057000 | I31: =SUMCOST!I30 -> 129541000 | J31: =SUMCOST!J30 -> 65753000 | K31: =SUMCOST!K30 -> 11132000 | L31: =SUMCOST!L30 -> 7021000 | M31: =SUMCOST!M30 -> 0 | N31: =SUMCOST!N30 -> 0 | O31: =SUMCOST!O30 -> 0 | P31: =SUMCOST!P30 -> 0 | Q31: =SUMCOST!Q30 -> 0
A32: 18 | B32: Other Operating Revenues | F32: =SUM(G32:Q32) -> 48595000 | G32: =SUMCOST!G31 -> 22062992.88 | H32: =SUMCOST!H31 -> 5305820.59 | I32: =SUMCOST!I31 -> 11599476.69 | J32: =SUMCOST!J31 -> 8182963.336 | K32: =SUMCOST!K31 -> 1088443.081 | L32: =SUMCOST!L31 -> 355303.4168 | M32: =SUMCOST!M31 -> 0 | N32: =SUMCOST!N31 -> 0 | O32: =SUMCOST!O31 -> 0 | P32: =SUMCOST!P31 -> 0 | Q32: =SUMCOST!Q31 -> 0
A33: 19 | B33: Total Revenues | F33: =SUM(F31:F32) -> 551492000 | G33: 236455992.9 | H33: 80362820.59 | I33: 141140476.7 | J33: 73935963.34 | K33: 12220443.08 | L33: 7376303.417 | M33: 0 | N33: 0 | O33: 0 | P33: 0 | Q33: 0
B35: Operating Expenses
A36: 20 | B36: Production Expenses | F36: =SUM(G36:Q36) -> 184709000 | G36: =SUMCOST!G35 -> 82697724.32 | H36: =SUMCOST!H35 -> 19880878.72 | I36: =SUMCOST!I35 -> 44228443.6 | J36: =SUMCOST!J35 -> 33260254.41 | K36: =SUMCOST!K35 -> 4045687.21 | L36: =SUMCOST!L35 -> 596011.7517 | M36: =SUMCOST!M35 -> 0 | N36: =SUMCOST!N35 -> 0 | O36: =SUMCOST!O35 -> 0 | P36: =SUMCOST!P35 -> 0 | Q36: =SUMCOST!Q35 -> 0
A37: 21 | B37: Transmission Expenses | F37: 20804000 | G37: =SUMCOST!G36 -> 9314345.575 | H37: =SUMCOST!H36 -> 2239207.623 | I37: =SUMCOST!I36 -> 4981503.558 | J37: =SUMCOST!J36 -> 3746143.028 | K37: =SUMCOST!K36 -> 455670.6859 | L37: =SUMCOST!L36 -> 67129.53068 | M37: =SUMCOST!M36 -> 0 | N37: =SUMCOST!N36 -> 0 | O37: =SUMCOST!O36 -> 0 | P37: =SUMCOST!P36 -> 0 | Q37: =SUMCOST!Q36 -> 0
A38: 22 | B38: Distribution Expenses | F38: 22364000 | G38: =SUMCOST!G37 -> 12090248.94 | H38: =SUMCOST!H37 -> 3184657.759 | I38: =SUMCOST!I37 -> 4879696.873 | J38: =SUMCOST!J37 -> 812728.0723 | K38: =SUMCOST!K37 -> 657950.1923 | L38: =SUMCOST!L37 -> 738718.1644 | M38: =SUMCOST!M37 -> 0 | N38: =SUMCOST!N37 -> 0 | O38: =SUMCOST!O37 -> 0 | P38: =SUMCOST!P37 -> 0 | Q38: =SUMCOST!Q37 -> 0
A39: 23 | B39: Customer Accounting Expenses | F39: 13007000 | G39: =SUMCOST!G38 -> 9657568.071 | H39: =SUMCOST!H38 -> 1715504.727 | I39: =SUMCOST!I38 -> 904055.7375 | J39: =SUMCOST!J38 -> 506472.3537 | K39: =SUMCOST!K38 -> 167280.6139 | L39: =SUMCOST!L38 -> 56118.49609 | M39: =SUMCOST!M38 -> 0 | N39: =SUMCOST!N38 -> 0 | O39: =SUMCOST!O38 -> 0 | P39: =SUMCOST!P38 -> 0 | Q39: =SUMCOST!Q38 -> 0
A40: 24 | B40: Customer Information Expenses | F40: 1418000 | G40: =SUMCOST!G39 -> 1210116.882 | H40: =SUMCOST!H39 -> 180402.904 | I40: =SUMCOST!I39 -> 10973.05723 | J40: =SUMCOST!J39 -> 121.0899642 | K40: =SUMCOST!K39 -> 14027.69573 | L40: =SUMCOST!L39 -> 2358.371208 | M40: =SUMCOST!M39 -> 0 | N40: =SUMCOST!N39 -> 0 | O40: =SUMCOST!O39 -> 0 | P40: =SUMCOST!P39 -> 0 | Q40: =SUMCOST!Q39 -> 0
A41: 25 | B41: Sales Expenses | F41: 0 | G41: =SUMCOST!G40 -> 0 | H41: =SUMCOST!H40 -> 0 | I41: =SUMCOST!I40 -> 0 | J41: =SUMCOST!J40 -> 0 | K41: =SUMCOST!K40 -> 0 | L41: =SUMCOST!L40 -> 0 | M41: =SUMCOST!M40 -> 0 | N41: =SUMCOST!N40 -> 0 | O41: =SUMCOST!O40 -> 0 | P41: =SUMCOST!P40 -> 0 | Q41: =SUMCOST!Q40 -> 0
A42: 26 | B42: Admin & General Expenses | F42: 50513000 | G42: =SUMCOST!G41 -> 26471578.35 | H42: =SUMCOST!H41 -> 6005872.313 | I42: =SUMCOST!I41 -> 10346777.75 | J42: =SUMCOST!J41 -> 5862328.13 | K42: =SUMCOST!K41 -> 1124702.063 | L42: =SUMCOST!L41 -> 701741.3897 | M42: =SUMCOST!M41 -> 0 | N42: =SUMCOST!N41 -> 0 | O42: =SUMCOST!O41 -> 0 | P42: =SUMCOST!P41 -> 0 | Q42: =SUMCOST!Q41 -> 0
A43: 27 | B43: Total O&M Expenses | F43: =SUM(F36:F42) -> 292815000 | G43: 141441582.1 | H43: 33206524.04 | I43: 65351450.58 | J43: 44188047.08 | K43: 6465318.461 | L43: 2162077.704 | M43: 0 | N43: 0 | O43: 0 | P43: 0 | Q43: 0
A45: 28 | B45: Taxes Other Than Income Taxes | F45: =SUM(G45:Q45) -> 43619000 | G45: =SUMCOST!G44 -> 19691453.95 | H45: =SUMCOST!H44 -> 5679934.39 | I45: =SUMCOST!I44 -> 10739259.15 | J45: =SUMCOST!J44 -> 5759372.576 | K45: =SUMCOST!K44 -> 1006766.335 | L45: =SUMCOST!L44 -> 742213.6034 | M45: =SUMCOST!M44 -> 0 | N45: =SUMCOST!N44 -> 0 | O45: =SUMCOST!O44 -> 0 | P45: =SUMCOST!P44 -> 0 | Q45: =SUMCOST!Q44 -> 0
A46: 29 | B46: Other Income Related Items | F46: =SUM(G46:Q46) -> -100000 | G46: =SUMCOST!G45 -> -52373.58563 | H46: =SUMCOST!H45 -> -12635.15545 | I46: =SUMCOST!I45 -> -23036.89931 | J46: =SUMCOST!J45 -> -3914.026312 | K46: =SUMCOST!K45 -> -2787.960014 | L46: =SUMCOST!L45 -> -5252.373284 | M46: =SUMCOST!M45 -> 0 | N46: =SUMCOST!N45 -> 0 | O46: =SUMCOST!O45 -> 0 | P46: =SUMCOST!P45 -> 0 | Q46: =SUMCOST!Q45 -> 0
B47: Depreciation Expense
A48: 30 | B48: Production Plant Depreciation | F48: =SUM(G48:Q48) -> 21368000 | G48: =SUMCOST!G47 -> 9566859.077 | H48: =SUMCOST!H47 -> 2299912.925 | I48: =SUMCOST!I47 -> 5116552.971 | J48: =SUMCOST!J47 -> 3847701.607 | K48: =SUMCOST!K47 -> 468023.9961 | L48: =SUMCOST!L47 -> 68949.42374 | M48: =SUMCOST!M47 -> 0 | N48: =SUMCOST!N47 -> 0 | O48: =SUMCOST!O47 -> 0 | P48: =SUMCOST!P47 -> 0 | Q48: =SUMCOST!Q47 -> 0
A49: 31 | B49: Transmission Plant Depreciation | F49: =SUM(G49:Q49) -> 8003000 | G49: =SUMCOST!G48 -> 3583094.964 | H49: =SUMCOST!H48 -> 861391.0116 | I49: =SUMCOST!I48 -> 1916312.871 | J49: =SUMCOST!J48 -> 1441087.419 | K49: =SUMCOST!K48 -> 175289.9682 | L49: =SUMCOST!L48 -> 25823.76629 | M49: =SUMCOST!M48 -> 0 | N49: =SUMCOST!N48 -> 0 | O49: =SUMCOST!O48 -> 0 | P49: =SUMCOST!P48 -> 0 | Q49: =SUMCOST!Q48 -> 0
A50: 32 | B50: Distribution Plant Depreciation | F50: =SUM(G50:Q50) -> 29283000 | G50: =SUMCOST!G49 -> 15353117.89 | H50: =SUMCOST!H49 -> 3724795.09 | I50: =SUMCOST!I49 -> 6694230.406 | J50: =SUMCOST!J49 -> 906300.5691 | K50: =SUMCOST!K49 -> 824187.4403 | L50: =SUMCOST!L49 -> 1780368.609 | M50: =SUMCOST!M49 -> 0 | N50: =SUMCOST!N49 -> 0 | O50: =SUMCOST!O49 -> 0 | P50: =SUMCOST!P49 -> 0 | Q50: =SUMCOST!Q49 -> 0
A51: 33 | B51: General Plant Depreciation | F51: =SUM(G51:Q51) -> 26104000 | G51: =SUMCOST!G50 -> 13422037.36 | H51: =SUMCOST!H50 -> 3043165.169 | I51: =SUMCOST!I50 -> 5595932.063 | J51: =SUMCOST!J50 -> 2865421.668 | K51: =SUMCOST!K50 -> 602479.1727 | L51: =SUMCOST!L50 -> 574964.5624 | M51: =SUMCOST!M50 -> 0 | N51: =SUMCOST!N50 -> 0 | O51: =SUMCOST!O50 -> 0 | P51: =SUMCOST!P50 -> 0 | Q51: =SUMCOST!Q50 -> 0
A52: 34 | B52: Amortization Expense | F52: =SUM(G52:Q52) -> 1953000 | G52: =SUMCOST!G51 -> 888200.169 | H52: =SUMCOST!H51 -> 213274.6889 | I52: =SUMCOST!I51 -> 465226.5013 | J52: =SUMCOST!J51 -> 328453.9428 | K52: =SUMCOST!K51 -> 43680.38456 | L52: =SUMCOST!L51 -> 14164.3134 | M52: =SUMCOST!M51 -> 0 | N52: =SUMCOST!N51 -> 0 | O52: =SUMCOST!O51 -> 0 | P52: =SUMCOST!P51 -> 0 | Q52: =SUMCOST!Q51 -> 0
A53: 35 | B53: Total Depreciation Expense | F53: =SUM(F48:F52) -> 86711000 | G53: 42813309.46 | H53: 10142538.88 | I53: 19788254.81 | J53: 9388965.205 | K53: 2113660.962 | L53: 2464270.675 | M53: 0 | N53: 0 | O53: 0 | P53: 0 | Q53: 0
A54: 36 | B54: Income Tax | F54: =SUM(G54:Q54) -> 14213000 | G54: =SUMCOST!G53 -> 1883852.465 | H54: =SUMCOST!H53 -> 4412876.776 | I54: =SUMCOST!I53 -> 5889062.622 | J54: =SUMCOST!J53 -> 1619810.968 | K54: =SUMCOST!K53 -> 261278.6065 | L54: =SUMCOST!L53 -> 146118.5625 | M54: =SUMCOST!M53 -> 0 | N54: =SUMCOST!N53 -> 0 | O54: =SUMCOST!O53 -> 0 | P54: =SUMCOST!P53 -> 0 | Q54: =SUMCOST!Q53 -> 0
A55: 37 | B55: Total Operating Expenses | F55: =F43+F45+F46+F53+F54 -> 437258000 | G55: 205777824.4 | H55: 53429238.94 | I55: 101744990.3 | J55: 60952281.8 | K55: 9844236.404 | L55: 5509428.171 | M55: 0 | N55: 0 | O55: 0 | P55: 0 | Q55: 0
A57: 38 | B57: Net Income | F57: =F33-F55 -> 114234000 | G57: 30678168.46 | H57: 26933581.65 | I57: 39395486.44 | J57: 12983681.53 | K57: 2376206.677 | L57: 1866875.245 | M57: 0 | N57: 0 | O57: 0 | P57: 0 | Q57: 0
A59: 39 | B59: Rate of Return | F59: =F57/F29 -> 0.07499955683 | G59: 0.04148483213 | H59: 0.1516469435 | I59: 0.1105148433 | J59: 0.07532539253 | K59: 0.06326735262 | L59: 0.04711935928 | M59: =M57/(M29+0.0000001) -> 0 | N59: =N57/(N29+0.0000001) -> 0 | O59: =O57/(O29+0.0000001) -> 0 | P59: =P57/(P29+0.0000001) -> 0 | Q59: =Q57/(Q29+0.0000001) -> 0
A60: 40 | B60: Return Ratio | F60: =F59/$F59 -> 1 | G60: 0.5531343635 | H60: 2.021971194 | I60: 1.47353995 | J60: 1.004344502 | K60: 0.8435696861 | L60: 0.6282618361 | M60: 0 | N60: 0 | O60: 0 | P60: 0 | Q60: 0
A61: 41 | B61: Interest Expense | F61: =SUM(G61:Q61) -> 44018000 | G61: =SUMCOST!G60 -> 21371436.26 | H61: =SUMCOST!H60 -> 5132796.757 | I61: =SUMCOST!I60 -> 10301950.87 | J61: =SUMCOST!J60 -> 4981384.556 | K61: =SUMCOST!K60 -> 1085420.873 | L61: =SUMCOST!L60 -> 1145010.686 | M61: =SUMCOST!M60 -> 0 | N61: =SUMCOST!N60 -> 0 | O61: =SUMCOST!O60 -> 0 | P61: =SUMCOST!P60 -> 0 | Q61: =SUMCOST!Q60 -> 0
A62: 42 | B62: Revenue Related Expenses | F62: =SUM(G62:Q62) -> 24422000 | G62: =SUMCOST!G1111 -> 10411487.53 | H62: =SUMCOST!H1111 -> 3644965.18 | I62: =SUMCOST!I1111 -> 6290851.411 | J62: =SUMCOST!J1111 -> 3193138.488 | K62: =SUMCOST!K1111 -> 540599.1764 | L62: =SUMCOST!L1111 -> 340958.2121 | M62: =SUMCOST!M1111 -> 0 | N62: =SUMCOST!N1111 -> 0 | O62: =SUMCOST!O1111 -> 0 | P62: =SUMCOST!P1111 -> 0 | Q62: =SUMCOST!Q1111 -> 0
A64: File: WA 2017 Elec Case / Elec COS Allowed Case / Sumcost Exhibits | I64: Exhibit No. TLK-3 | L64: Page 1 of 4
B66: =$B$2 -> Sumcost | F66: =$F$2 -> AVISTA UTILITIES | J66: =$J$2 -> Washington Jurisdiction
B67: =$B$3 -> Scenario: Allowed Rates Case UE-170485 | F67: Revenue to Cost by Functional Component Summary | J67: =$J$3 -> Electric Utility | L67: =$L$3 -> 2018-05-01
B68: =$B$4 -> Load Factor Peak Credit Method | F68: =$F$4 -> For the Twelve Months Ended December 31, 2016 | L68: =$L$4 -> 
B69: =$B$5 -> AS FILED METHOD
B70: =$B$6 -> (b) | C70: =$C$6 -> (c) | D70: =$D$6 -> (d) | E70: =$E$6 -> (e) | F70: =$F$6 -> (f) | G70: =$G$6 -> (g) | H70: =$H$6 -> (h) | I70: =$I$6 -> (i) | J70: =$J$6 -> (j) | K70: =$K$6 -> (k) | L70: =$L$6 -> (l) | M70: =$M$6 -> (m) | N70: =$N$6 -> (n) | O70: =$O$6 -> (o) | P70: =$P$6 -> (p) | Q70: =$Q$6 -> (q)
B71: =$B$7 ->  | C71: =$C$7 ->  | D71: =$D$7 ->  | E71: =$E$7 ->  | F71: =$F$7 ->  | G71: =$G$7 -> Residential | H71: =$H$7 -> General | I71: =$I$7 -> Large Gen | J71: =$J$7 -> Extra Large | K71: =$K$7 -> Pumping | L71: =$L$7 -> Street & | M71: =$M$7 ->  | N71: =$N$7 ->  | O71: =$O$7 ->  | P71: =$P$7 ->  | Q71: =$Q$7 -> 
B72: =$B$8 ->  | C72: =$C$8 ->  | D72: =$D$8 ->  | E72: =$E$8 ->  | F72: =$F$8 -> System | G72: =$G$8 -> Service | H72: =$H$8 -> Service | I72: =$I$8 -> Service | J72: =$J$8 -> Gen Service | K72: =$K$8 -> Service | L72: =$L$8 -> Area Lights | M72: =$M$8 ->  | N72: =$N$8 ->  | O72: =$O$8 ->  | P72: =$P$8 ->  | Q72: =$Q$8 -> 
B73: =$B$9 -> Description | C73: =$C$9 ->  | D73: =$D$9 ->  | E73: =$E$9 ->  | F73: =$F$9 -> Total | G73: =$G$9 -> Sch 1-2 | H73: =$H$9 -> Sch 11-12 | I73: =$I$9 -> Sch 21-22 | J73: =$J$9 -> Sch 25 | K73: =$K$9 -> Sch 31-32 | L73: =$L$9 -> Sch 41-49 | M73: =$M$9 -> Open 1 | N73: =$N$9 -> Open 2 | O73: =$O$9 -> Open 3 | P73: =$P$9 -> Open 4 | Q73: =$Q$9 -> Open 5
B74: Functional Cost Components at Current Return by Schedule
A75: 1 | B75: Production | F75: =SUM(G75:Q75) -> 236813565.4 | G75: =SUMCOST!G148 -> 97022855.19 | H75: =SUMCOST!H148 -> 30141875.56 | I75: =SUMCOST!I148 -> 61393157.74 | J75: =SUMCOST!J148 -> 42525169.55 | K75: =SUMCOST!K148 -> 5020799.573 | L75: =SUMCOST!L148 -> 709707.765 | M75: =SUMCOST!M148 -> 0 | N75: =SUMCOST!N148 -> 0 | O75: =SUMCOST!O148 -> 0 | P75: =SUMCOST!P148 -> 0 | Q75: =SUMCOST!Q148 -> 0
A76: 2 | B76: Transmission | F76: =SUM(G76:Q76) -> 49241824.72 | G76: =SUMCOST!G159 -> 16979163.23 | H76: =SUMCOST!H159 -> 7918876.619 | I76: =SUMCOST!I159 -> 14429715.11 | J76: =SUMCOST!J159 -> 8800778.871 | K76: =SUMCOST!K159 -> 985036.6384 | L76: =SUMCOST!L159 -> 128254.2587 | M76: =SUMCOST!M159 -> 0 | N76: =SUMCOST!N159 -> 0 | O76: =SUMCOST!O159 -> 0 | P76: =SUMCOST!P159 -> 0 | Q76: =SUMCOST!Q159 -> 0
A77: 3 | B77: Distribution | F77: =SUM(G77:Q77) -> 122611840.8 | G77: =SUMCOST!G173 -> 56542000.34 | H77: =SUMCOST!H173 -> 23159217.04 | I77: =SUMCOST!I173 -> 31505883.47 | J77: =SUMCOST!J173 -> 3637356.597 | K77: =SUMCOST!K173 -> 3060995.52 | L77: =SUMCOST!L173 -> 4706387.842 | M77: =SUMCOST!M173 -> 0 | N77: =SUMCOST!N173 -> 0 | O77: =SUMCOST!O173 -> 0 | P77: =SUMCOST!P173 -> 0 | Q77: =SUMCOST!Q173 -> 0
A78: 4 | B78: Common | F78: =SUM(G78:Q78) -> 94229769.09 | G78: =SUMCOST!G182 -> 43848981.25 | H78: =SUMCOST!H182 -> 13837030.78 | I78: =SUMCOST!I182 -> 22212243.69 | J78: =SUMCOST!J182 -> 10789694.98 | K78: =SUMCOST!K182 -> 2065168.27 | L78: =SUMCOST!L182 -> 1476650.135 | M78: =SUMCOST!M182 -> 0 | N78: =SUMCOST!N182 -> 0 | O78: =SUMCOST!O182 -> 0 | P78: =SUMCOST!P182 -> 0 | Q78: =SUMCOST!Q182 -> 0
A79: 5 | B79: Total Current Rate Revenue | F79: =SUM(F75:F78) -> 502897000 | G79: =SUM(G75:G78) -> 214393000 | H79: 75057000 | I79: 129541000 | J79: 65753000 | K79: 11132000 | L79: 7021000 | M79: 0 | N79: 0 | O79: 0 | P79: 0 | Q79: 0
B81: Expressed as $/kWh
A82: 6 | B82: Production | F82: =SUMCOST!F188 -> 0.04185010279 | G82: =SUMCOST!G188 -> 0.04107855153 | H82: =SUMCOST!H188 -> 0.04836289033 | I82: =SUMCOST!I188 -> 0.04355795307 | J82: =SUMCOST!J188 -> 0.03840062875 | K82: =SUMCOST!K188 -> 0.03761030685 | L82: =SUMCOST!L188 -> 0.03069514797 | M82: =SUMCOST!M188 -> 0
A83: 7 | B83: Transmission | F83: =SUMCOST!F189 -> 0.008702100418 | G83: =SUMCOST!G189 -> 0.007188815771 | H83: =SUMCOST!H189 -> 0.01270590348 | I83: =SUMCOST!I189 -> 0.01023776715 | J83: =SUMCOST!J189 -> 0.007947186236 | K83: =SUMCOST!K189 -> 0.007378810824 | L83: =SUMCOST!L189 -> 0.005547048576 | M83: =SUMCOST!M189 -> 0
A84: 8 | B84: Distribution | F84: =SUMCOST!F190 -> 0.02166817654 | G84: =SUMCOST!G190 -> 0.02393934367 | H84: =SUMCOST!H190 -> 0.03715915659 | I84: =SUMCOST!I190 -> 0.02235317166 | J84: =SUMCOST!J190 -> 0.003284567276 | K84: =SUMCOST!K190 -> 0.02292961093 | L84: =SUMCOST!L190 -> 0.2035531782 | M84: =SUMCOST!M190 -> 0
A85: 9 | B85: Common | F85: =SUMCOST!F191 -> 0.01665244774 | G85: =SUMCOST!G191 -> 0.01856524045 | H85: =SUMCOST!H191 -> 0.0222016311 | I85: =SUMCOST!I191 -> 0.01575940877 | J85: =SUMCOST!J191 -> 0.009743196219 | K85: =SUMCOST!K191 -> 0.01546996872 | L85: =SUMCOST!L191 -> 0.06386571574 | M85: =SUMCOST!M191 -> 0
A86: 10 | B86: Total Current Melded Rates | F86: =SUM(F82:F85) -> 0.08887282749 | G86: =SUM(G82:G85) -> 0.09077195143 | H86: 0.1204295815 | I86: 0.09190830065 | J86: 0.05937557848 | K86: 0.08338869733 | L86: 0.3036610905 | M86: 0
B88: Functional Cost Components at Uniform Current Return
A89: 11 | B89: Production | F89: =SUM(G89:Q89) -> 235973861.6 | G89: =SUMCOST!G212 -> 105649975.7 | H89: =SUMCOST!H212 -> 25398695.91 | I89: =SUMCOST!I212 -> 56503779.61 | J89: =SUMCOST!J212 -> 42491436.09 | K89: =SUMCOST!K212 -> 5168543.134 | L89: =SUMCOST!L212 -> 761431.195 | M89: =SUMCOST!M212 -> 0 | N89: =SUMCOST!N212 -> 0 | O89: =SUMCOST!O212 -> 0 | P89: =SUMCOST!P212 -> 0 | Q89: =SUMCOST!Q212 -> 0
A90: 12 | B90: Transmission | F90: =SUM(G90:Q90) -> 48769201.44 | G90: =SUMCOST!G223 -> 21834896.92 | H90: =SUMCOST!H223 -> 5249200.521 | I90: =SUMCOST!I223 -> 11677751.9 | J90: =SUMCOST!J223 -> 8781792.155 | K90: =SUMCOST!K223 -> 1068193.399 | L90: =SUMCOST!L223 -> 157366.5451 | M90: =SUMCOST!M223 -> 0 | N90: =SUMCOST!N223 -> 0 | O90: =SUMCOST!O223 -> 0 | P90: =SUMCOST!P223 -> 0 | Q90: =SUMCOST!Q223 -> 0
A91: 13 | B91: Distribution | F91: =SUM(G91:Q91) -> 123533005.5 | G91: =SUMCOST!G237 -> 69165468.11 | H91: =SUMCOST!H237 -> 16095665.1 | I91: =SUMCOST!I237 -> 25507777.97 | J91: =SUMCOST!J237 -> 3630158.968 | K91: =SUMCOST!K237 -> 3303472.881 | L91: =SUMCOST!L237 -> 5830462.506 | M91: =SUMCOST!M237 -> 0 | N91: =SUMCOST!N237 -> 0 | O91: =SUMCOST!O237 -> 0 | P91: =SUMCOST!P237 -> 0 | Q91: =SUMCOST!Q237 -> 0
A92: 14 | B92: Common | F92: =SUM(G92:Q92) -> 94620931.44 | G92: =SUMCOST!G246 -> 49064775.84 | H92: =SUMCOST!H246 -> 11109291.09 | I92: =SUMCOST!I246 -> 19851817.7 | J92: =SUMCOST!J246 -> 10778633.69 | K92: =SUMCOST!K246 -> 2148667.89 | L92: =SUMCOST!L246 -> 1667745.228 | M92: =SUMCOST!M246 -> 0 | N92: =SUMCOST!N246 -> 0 | O92: =SUMCOST!O246 -> 0 | P92: =SUMCOST!P246 -> 0 | Q92: =SUMCOST!Q246 -> 0
A93: 15 | B93: Total Uniform Current Cost | F93: =SUM(F89:F92) -> 502897000 | G93: =SUM(G89:G92) -> 245715116.5 | H93: =SUM(H89:H92) -> 57852852.62 | I93: 113541127.2 | J93: 65682020.9 | K93: 11688877.3 | L93: 8417005.474 | M93: 0 | N93: 0 | O93: 0 | P93: 0 | Q93: 0
B95: Expressed as $/kWh
A96: 16 | B96: Production | F96: =SUMCOST!F252 -> 0.04170170889 | G96: =SUMCOST!G252 -> 0.04473119205 | H96: =SUMCOST!H252 -> 0.04075241908 | I96: =SUMCOST!I252 -> 0.0400889785 | J96: =SUMCOST!J252 -> 0.03837016712 | K96: =SUMCOST!K252 -> 0.03871703908 | L96: =SUMCOST!L252 -> 0.03293220724 | M96: =SUMCOST!M252 -> 0
A97: 17 | B97: Transmission | F97: =SUMCOST!F253 -> 0.008618577615 | G97: =SUMCOST!G253 -> 0.009244687108 | H97: =SUMCOST!H253 -> 0.008422385945 | I97: =SUMCOST!I253 -> 0.008285271322 | J97: =SUMCOST!J253 -> 0.007930041052 | K97: =SUMCOST!K253 -> 0.00800172979 | L97: =SUMCOST!L253 -> 0.006806166742 | M97: =SUMCOST!M253 -> 0
A98: 18 | B98: Distribution | F98: =SUMCOST!F254 -> 0.02183096636 | G98: =SUMCOST!G254 -> 0.02928399953 | H98: =SUMCOST!H254 -> 0.02582562868 | I98: =SUMCOST!I254 -> 0.01809756391 | J98: =SUMCOST!J254 -> 0.003278067749 | K98: =SUMCOST!K254 -> 0.02474598456 | L98: =SUMCOST!L254 -> 0.2521698622 | M98: =SUMCOST!M254 -> 0
A99: 19 | B99: Common | F99: =SUMCOST!F255 -> 0.01672157463 | G99: =SUMCOST!G255 -> 0.02077355814 | H99: =SUMCOST!H255 -> 0.01782495005 | I99: =SUMCOST!I255 -> 0.01408470546 | J99: =SUMCOST!J255 -> 0.009733207769 | K99: =SUMCOST!K255 -> 0.01609545601 | L99: =SUMCOST!L255 -> 0.07213065584 | M99: =SUMCOST!M255 -> 0
A100: 20 | B100: Total Current Uniform Melded Rates | F100: =SUM(F96:F99) -> 0.08887282749 | G100: =SUM(G96:G99) -> 0.1040334368 | H100: 0.09282538376 | I100: 0.08055651919 | J100: 0.05931148369 | K100: 0.08756020944 | L100: 0.3640388921 | M100: 0
A102: 21 | B102: Revenue to Cost Ratio at Current Rates | F102: =F79/F93 -> 1 | G102: =G79/G93 -> 0.872526701 | H102: 1.297377685 | I102: 1.140916981 | J102: 1.001080647 | K102: 0.9523583584 | L102: 0.8341446399
B105: Functional Cost Components at Proposed Return by Schedule
A106: 22 | B106: Production | F106: =SUM(G106:Q106) -> 236813565.4 | G106: =SUMCOST!G276 -> 97022855.19 | H106: =SUMCOST!H276 -> 30141875.56 | I106: =SUMCOST!I276 -> 61393157.74 | J106: =SUMCOST!J276 -> 42525169.55 | K106: =SUMCOST!K276 -> 5020799.573 | L106: =SUMCOST!L276 -> 709707.765 | M106: =SUMCOST!M276 -> 0 | N106: =SUMCOST!N276 -> 0 | O106: =SUMCOST!O276 -> 0 | P106: =SUMCOST!P276 -> 0 | Q106: =SUMCOST!Q276 -> 0
A107: 23 | B107: Transmission | F107: =SUM(G107:Q107) -> 49241824.72 | G107: =SUMCOST!G287 -> 16979163.23 | H107: =SUMCOST!H287 -> 7918876.619 | I107: =SUMCOST!I287 -> 14429715.11 | J107: =SUMCOST!J287 -> 8800778.871 | K107: =SUMCOST!K287 -> 985036.6384 | L107: =SUMCOST!L287 -> 128254.2587 | M107: =SUMCOST!M287 -> 0 | N107: =SUMCOST!N287 -> 0 | O107: =SUMCOST!O287 -> 0 | P107: =SUMCOST!P287 -> 0 | Q107: =SUMCOST!Q287 -> 0
A108: 24 | B108: Distribution | F108: =SUM(G108:Q108) -> 122611840.8 | G108: =SUMCOST!G301 -> 56542000.34 | H108: =SUMCOST!H301 -> 23159217.04 | I108: =SUMCOST!I301 -> 31505883.47 | J108: =SUMCOST!J301 -> 3637356.597 | K108: =SUMCOST!K301 -> 3060995.52 | L108: =SUMCOST!L301 -> 4706387.842 | M108: =SUMCOST!M301 -> 0 | N108: =SUMCOST!N301 -> 0 | O108: =SUMCOST!O301 -> 0 | P108: =SUMCOST!P301 -> 0 | Q108: =SUMCOST!Q301 -> 0
A109: 25 | B109: Common | F109: =SUM(G109:Q109) -> 94229769.09 | G109: =SUMCOST!G310 -> 43848981.25 | H109: =SUMCOST!H310 -> 13837030.78 | I109: =SUMCOST!I310 -> 22212243.69 | J109: =SUMCOST!J310 -> 10789694.98 | K109: =SUMCOST!K310 -> 2065168.27 | L109: =SUMCOST!L310 -> 1476650.135 | M109: =SUMCOST!M310 -> 0 | N109: =SUMCOST!N310 -> 0 | O109: =SUMCOST!O310 -> 0 | P109: =SUMCOST!P310 -> 0 | Q109: =SUMCOST!Q310 -> 0
A110: 26 | B110: Total Proposed Rate Revenue | F110: =SUM(F106:F109) -> 502897000 | G110: =SUM(G106:G109) -> 214393000 | H110: 75057000 | I110: 129541000 | J110: 65753000 | K110: 11132000 | L110: 7021000 | M110: 0 | N110: =SUM(N106:N108) -> 0 | O110: =SUM(O106:O108) -> 0 | P110: =SUM(P106:P108) -> 0 | Q110: =SUM(Q106:Q108) -> 0
B112: Expressed as $/kWh
A113: 27 | B113: Production | F113: =SUMCOST!F316 -> 0.04185010279 | G113: =SUMCOST!G316 -> 0.04107855153 | H113: =SUMCOST!H316 -> 0.04836289033 | I113: =SUMCOST!I316 -> 0.04355795307 | J113: =SUMCOST!J316 -> 0.03840062875 | K113: =SUMCOST!K316 -> 0.03761030685 | L113: =SUMCOST!L316 -> 0.03069514797 | M113: =SUMCOST!M316 -> 0
A114: 28 | B114: Transmission | F114: =SUMCOST!F317 -> 0.008702100418 | G114: =SUMCOST!G317 -> 0.007188815771 | H114: =SUMCOST!H317 -> 0.01270590348 | I114: =SUMCOST!I317 -> 0.01023776715 | J114: =SUMCOST!J317 -> 0.007947186236 | K114: =SUMCOST!K317 -> 0.007378810824 | L114: =SUMCOST!L317 -> 0.005547048576 | M114: =SUMCOST!M317 -> 0
A115: 29 | B115: Distribution | F115: =SUMCOST!F318 -> 0.02166817654 | G115: =SUMCOST!G318 -> 0.02393934367 | H115: =SUMCOST!H318 -> 0.03715915659 | I115: =SUMCOST!I318 -> 0.02235317166 | J115: =SUMCOST!J318 -> 0.003284567276 | K115: =SUMCOST!K318 -> 0.02292961093 | L115: =SUMCOST!L318 -> 0.2035531782 | M115: =SUMCOST!M318 -> 0
A116: 30 | B116: Common | F116: =SUMCOST!F319 -> 0.01665244774 | G116: =SUMCOST!G319 -> 0.01856524045 | H116: =SUMCOST!H319 -> 0.0222016311 | I116: =SUMCOST!I319 -> 0.01575940877 | J116: =SUMCOST!J319 -> 0.009743196219 | K116: =SUMCOST!K319 -> 0.01546996872 | L116: =SUMCOST!L319 -> 0.06386571574 | M116: =SUMCOST!M319 -> 0
A117: 31 | B117: Total Proposed Melded Rates | F117: =SUM(F113:F116) -> 0.08887282749 | G117: =SUM(G113:G116) -> 0.09077195143 | H117: 0.1204295815 | I117: 0.09190830065 | J117: 0.05937557848 | K117: 0.08338869733 | L117: 0.3036610905 | M117: 0
B119: Functional Cost Components at Uniform Requested Return
A120: 32 | B120: Production | F120: =SUM(G120:Q120) -> 235973861.6 | G120: =SUMCOST!G340 -> 105649975.7 | H120: =SUMCOST!H340 -> 25398695.91 | I120: =SUMCOST!I340 -> 56503779.61 | J120: =SUMCOST!J340 -> 42491436.09 | K120: =SUMCOST!K340 -> 5168543.134 | L120: =SUMCOST!L340 -> 761431.195 | M120: =SUMCOST!M340 -> 0 | N120: =SUMCOST!N340 -> 0 | O120: =SUMCOST!O340 -> 0 | P120: =SUMCOST!P340 -> 0 | Q120: =SUMCOST!Q340 -> 0
A121: 33 | B121: Transmission | F121: =SUM(G121:Q121) -> 48769201.44 | G121: =SUMCOST!G351 -> 21834896.92 | H121: =SUMCOST!H351 -> 5249200.521 | I121: =SUMCOST!I351 -> 11677751.9 | J121: =SUMCOST!J351 -> 8781792.155 | K121: =SUMCOST!K351 -> 1068193.399 | L121: =SUMCOST!L351 -> 157366.5451 | M121: =SUMCOST!M351 -> 0 | N121: =SUMCOST!N351 -> 0 | O121: =SUMCOST!O351 -> 0 | P121: =SUMCOST!P351 -> 0 | Q121: =SUMCOST!Q351 -> 0
A122: 34 | B122: Distribution | F122: =SUM(G122:Q122) -> 123533005.5 | G122: =SUMCOST!G365 -> 69165468.11 | H122: =SUMCOST!H365 -> 16095665.1 | I122: =SUMCOST!I365 -> 25507777.97 | J122: =SUMCOST!J365 -> 3630158.968 | K122: =SUMCOST!K365 -> 3303472.881 | L122: =SUMCOST!L365 -> 5830462.506 | M122: =SUMCOST!M365 -> 0 | N122: =SUMCOST!N365 -> 0 | O122: =SUMCOST!O365 -> 0 | P122: =SUMCOST!P365 -> 0 | Q122: =SUMCOST!Q365 -> 0
A123: 35 | B123: Common | F123: =SUM(G123:Q123) -> 94620931.44 | G123: =SUMCOST!G374 -> 49064775.84 | H123: =SUMCOST!H374 -> 11109291.09 | I123: =SUMCOST!I374 -> 19851817.7 | J123: =SUMCOST!J374 -> 10778633.69 | K123: =SUMCOST!K374 -> 2148667.89 | L123: =SUMCOST!L374 -> 1667745.228 | M123: =SUMCOST!M374 -> 0 | N123: =SUMCOST!N374 -> 0 | O123: =SUMCOST!O374 -> 0 | P123: =SUMCOST!P374 -> 0 | Q123: =SUMCOST!Q374 -> 0
A124: 36 | B124: Total Uniform Cost | F124: =SUM(F120:F123) -> 502897000 | G124: =SUM(G120:G123) -> 245715116.5 | H124: =SUM(H120:H123) -> 57852852.62 | I124: 113541127.2 | J124: 65682020.9 | K124: 11688877.3 | L124: 8417005.474 | M124: 0 | N124: 0 | O124: 0 | P124: 0 | Q124: 0
B126: Expressed as $/kWh
A127: 37 | B127: Production | F127: =SUMCOST!F380 -> 0.04170170889 | G127: =SUMCOST!G380 -> 0.04473119205 | H127: =SUMCOST!H380 -> 0.04075241908 | I127: =SUMCOST!I380 -> 0.0400889785 | J127: =SUMCOST!J380 -> 0.03837016712 | K127: =SUMCOST!K380 -> 0.03871703908 | L127: =SUMCOST!L380 -> 0.03293220724 | M127: =SUMCOST!M380 -> 0
A128: 38 | B128: Transmission | F128: =SUMCOST!F381 -> 0.008618577615 | G128: =SUMCOST!G381 -> 0.009244687108 | H128: =SUMCOST!H381 -> 0.008422385945 | I128: =SUMCOST!I381 -> 0.008285271322 | J128: =SUMCOST!J381 -> 0.007930041052 | K128: =SUMCOST!K381 -> 0.00800172979 | L128: =SUMCOST!L381 -> 0.006806166742 | M128: =SUMCOST!M381 -> 0
A129: 39 | B129: Distribution | F129: =SUMCOST!F382 -> 0.02183096636 | G129: =SUMCOST!G382 -> 0.02928399953 | H129: =SUMCOST!H382 -> 0.02582562868 | I129: =SUMCOST!I382 -> 0.01809756391 | J129: =SUMCOST!J382 -> 0.003278067749 | K129: =SUMCOST!K382 -> 0.02474598456 | L129: =SUMCOST!L382 -> 0.2521698622 | M129: =SUMCOST!M382 -> 0
A130: 40 | B130: Common | F130: =SUMCOST!F383 -> 0.01672157463 | G130: =SUMCOST!G383 -> 0.02077355814 | H130: =SUMCOST!H383 -> 0.01782495005 | I130: =SUMCOST!I383 -> 0.01408470546 | J130: =SUMCOST!J383 -> 0.009733207769 | K130: =SUMCOST!K383 -> 0.01609545601 | L130: =SUMCOST!L383 -> 0.07213065584 | M130: =SUMCOST!M383 -> 0
A131: 41 | B131: Total Uniform Melded Rates | F131: =SUM(F127:F130) -> 0.08887282749 | G131: =SUM(G127:G130) -> 0.1040334368 | H131: 0.09282538376 | I131: 0.08055651919 | J131: 0.05931148369 | K131: 0.08756020944 | L131: 0.3640388921 | M131: 0
A133: 42 | B133: Revenue to Cost Ratio at Proposed Rates | F133: =F110/F124 -> 1 | G133: =G110/G124 -> 0.872526701 | H133: 1.297377685 | I133: 1.140916981 | J133: 1.001080647 | K133: 0.9523583584 | L133: 0.8341446399
A135: 43 | B135: Current Revenue to Proposed Cost Ratio | F135: =F79/F124 -> 1 | G135: =G79/G124 -> 0.872526701 | H135: 1.297377685 | I135: 1.140916981 | J135: 1.001080647 | K135: 0.9523583584 | L135: 0.8341446399
A137: 44 | B137: Target Revenue Increase | F137: =SUM(G137:L137) -> 0 | G137: =ROUND(G124-G79,-3) -> 31322000 | H137: =ROUND(H124-H79,-3) -> -17204000 | I137: =ROUND(I124-I79,-3) -> -16000000 | J137: =ROUND(J124-J79,-3) -> -71000 | K137: =ROUND(K124-K79,-3) -> 557000 | L137: =ROUND(L124-L79,-3) -> 1396000
A139: =A64 -> File: WA 2017 Elec Case / Elec COS Allowed Case / Sumcost Exhibits | I139: =$I$64 -> Exhibit No. TLK-3 | L139: Page 2 of 4
B140: =$B$2 -> Sumcost | F140: =$F$2 -> AVISTA UTILITIES | J140: =$J$2 -> Washington Jurisdiction
B141: =$B$3 -> Scenario: Allowed Rates Case UE-170485 | F141: Revenue to Cost By Classification Summary | J141: =$J$3 -> Electric Utility | L141: =$L$3 -> 2018-05-01
B142: =$B$4 -> Load Factor Peak Credit Method | F142: =$F$4 -> For the Twelve Months Ended December 31, 2016 | L142: =$L$4 -> 
B143: =$B$5 -> AS FILED METHOD
B144: =$B$6 -> (b) | C144: =$C$6 -> (c) | D144: =$D$6 -> (d) | E144: =$E$6 -> (e) | F144: =$F$6 -> (f) | G144: =$G$6 -> (g) | H144: =$H$6 -> (h) | I144: =$I$6 -> (i) | J144: =$J$6 -> (j) | K144: =$K$6 -> (k) | L144: =$L$6 -> (l) | M144: =$M$6 -> (m) | N144: =$N$6 -> (n) | O144: =$O$6 -> (o) | P144: =$P$6 -> (p) | Q144: =$Q$6 -> (q)
B145: =$B$7 ->  | C145: =$C$7 ->  | D145: =$D$7 ->  | E145: =$E$7 ->  | F145: =$F$7 ->  | G145: =$G$7 -> Residential | H145: =$H$7 -> General | I145: =$I$7 -> Large Gen | J145: =$J$7 -> Extra Large | K145: =$K$7 -> Pumping | L145: =$L$7 -> Street & | M145: =$M$7 ->  | N145: =$N$7 ->  | O145: =$O$7 ->  | P145: =$P$7 ->  | Q145: =$Q$7 -> 
B146: =$B$8 ->  | C146: =$C$8 ->  | D146: =$D$8 ->  | E146: =$E$8 ->  | F146: =$F$8 -> System | G146: =$G$8 -> Service | H146: =$H$8 -> Service | I146: =$I$8 -> Service | J146: =$J$8 -> Gen Service | K146: =$K$8 -> Service | L146: =$L$8 -> Area Lights | M146: =$M$8 ->  | N146: =$N$8 ->  | O146: =$O$8 ->  | P146: =$P$8 ->  | Q146: =$Q$8 -> 
B147: =$B$9 -> Description | C147: =$C$9 ->  | D147: =$D$9 ->  | E147: =$E$9 ->  | F147: =$F$9 -> Total | G147: =$G$9 -> Sch 1-2 | H147: =$H$9 -> Sch 11-12 | I147: =$I$9 -> Sch 21-22 | J147: =$J$9 -> Sch 25 | K147: =$K$9 -> Sch 31-32 | L147: =$L$9 -> Sch 41-49 | M147: =$M$9 -> Open 1 | N147: =$N$9 -> Open 2 | O147: =$O$9 -> Open 3 | P147: =$P$9 -> Open 4 | Q147: =$Q$9 -> Open 5
B148: Cost Classifications at Current Return by Schedule
A149: 1 | B149: Energy | F149: =SUM(G149:Q149) -> 213213336.7 | G149: =SUMCOST!G434 -> 79278160.94 | H149: =SUMCOST!H434 -> 29034817.69 | I149: =SUMCOST!I434 -> 58705689.19 | J149: =SUMCOST!J434 -> 40578636.46 | K149: =SUMCOST!K434 -> 4824557.5 | L149: =SUMCOST!L434 -> 791474.8978 | M149: =SUMCOST!M434 -> 0 | N149: =SUMCOST!N434 -> 0 | O149: =SUMCOST!O434 -> 0 | P149: =SUMCOST!P434 -> 0 | Q149: =SUMCOST!Q434 -> 0
A150: 2 | B150: Demand | F150: =SUM(G150:Q150) -> 244108873.6 | G150: =SUMCOST!G439 -> 102905863.7 | H150: =SUMCOST!H439 -> 38270957.71 | I150: =SUMCOST!I439 -> 70005005 | J150: =SUMCOST!J439 -> 24989210.59 | K150: =SUMCOST!K439 -> 5717326.158 | L150: =SUMCOST!L439 -> 2220510.491 | M150: =SUMCOST!M439 -> 0 | N150: =SUMCOST!N439 -> 0 | O150: =SUMCOST!O439 -> 0 | P150: =SUMCOST!P439 -> 0 | Q150: =SUMCOST!Q439 -> 0
A151: 3 | B151: Customer | F151: =SUM(G151:Q151) -> 45574789.71 | G151: =SUMCOST!G442 -> 32208975.4 | H151: =SUMCOST!H442 -> 7751224.594 | I151: =SUMCOST!I442 -> 830305.8107 | J151: =SUMCOST!J442 -> 185152.9529 | K151: =SUMCOST!K442 -> 590116.3429 | L151: =SUMCOST!L442 -> 4009014.612 | M151: =SUMCOST!M442 -> 0 | N151: =SUMCOST!N442 -> 0 | O151: =SUMCOST!O442 -> 0 | P151: =SUMCOST!P442 -> 0 | Q151: =SUMCOST!Q442 -> 0
A152: 4 | B152: Total Current Rate Revenue | F152: =SUM(F149:F151) -> 502897000 | G152: 214393000 | H152: 75057000 | I152: 129541000 | J152: 65753000 | K152: 11132000 | L152: 7021000 | M152: 0 | N152: 0 | O152: 0 | P152: 0 | Q152: 0
B154: Expressed as Unit Cost
A155: 5 | B155: Energy | C155: $/kWh | F155: =SUMCOST!F449 -> 0.03767942957 | G155: =SUMCOST!G449 -> 0.03356561723 | H155: =SUMCOST!H449 -> 0.04658660676 | I155: =SUMCOST!I449 -> 0.04165121569 | J155: =SUMCOST!J449 -> 0.03664289103 | K155: =SUMCOST!K449 -> 0.03614027713 | L155: =SUMCOST!L449 -> 0.03423160954 | M155: =SUMCOST!M449 -> 0
A156: 6 | B156: Demand | C156: $/kW/mo | F156: =SUMCOST!F450 -> 20.23039046 | G156: =SUMCOST!G450 -> 19.00591674 | H156: =SUMCOST!H450 -> 27.57265664 | I156: =SUMCOST!I450 -> 23.34882417 | J156: =SUMCOST!J450 -> 13.44642385 | K156: =SUMCOST!K450 -> 16.89038026 | L156: =SUMCOST!L450 -> 32.23737646 | M156: =SUMCOST!M450 -> 0
A157: 7 | B157: Customer | C157: $/Cust/mo | F157: =SUMCOST!F451 -> 15.44386699 | G157: =SUMCOST!G451 -> 12.78960701 | H157: =SUMCOST!H451 -> 20.64592792 | I157: =SUMCOST!I451 -> 36.35951177 | J157: =SUMCOST!J451 -> 734.7339399 | K157: =SUMCOST!K451 -> 20.21430969 | L157: =SUMCOST!L451 -> 816.832643 | M157: =SUMCOST!M451 -> 0
B160: Cost Classifications at Uniform Current Return
A161: 8 | B161: Energy | F161: =SUM(G161:Q161) -> 211236797.6 | G161: =SUMCOST!G501 -> 88634508.04 | H161: =SUMCOST!H501 -> 23388476.53 | I161: =SUMCOST!I501 -> 52799431.42 | J161: =SUMCOST!J501 -> 40537034.05 | K161: =SUMCOST!K501 -> 5009679.213 | L161: =SUMCOST!L501 -> 867668.3079 | M161: =SUMCOST!M501 -> 0 | N161: =SUMCOST!N501 -> 0 | O161: =SUMCOST!O501 -> 0 | P161: =SUMCOST!P501 -> 0 | Q161: =SUMCOST!Q501 -> 0
A162: 9 | B162: Demand | F162: =SUM(G162:Q162) -> 243319498.9 | G162: =SUMCOST!G506 -> 121563718.9 | H162: =SUMCOST!H506 -> 28077330.39 | I162: =SUMCOST!I506 -> 59986403.18 | J162: =SUMCOST!J506 -> 24959910.02 | K162: =SUMCOST!K506 -> 6069086.193 | L162: =SUMCOST!L506 -> 2663050.216 | M162: =SUMCOST!M506 -> 0 | N162: =SUMCOST!N506 -> 0 | O162: =SUMCOST!O506 -> 0 | P162: =SUMCOST!P506 -> 0 | Q162: =SUMCOST!Q506 -> 0
A163: 10 | B163: Customer | F163: =SUM(G163:Q163) -> 48340703.51 | G163: =SUMCOST!G509 -> 35516889.56 | H163: =SUMCOST!H509 -> 6387045.694 | I163: =SUMCOST!I509 -> 755292.5704 | J163: =SUMCOST!J509 -> 185076.8357 | K163: =SUMCOST!K509 -> 610111.897 | L163: =SUMCOST!L509 -> 4886286.95 | M163: =SUMCOST!M509 -> 0 | N163: =SUMCOST!N509 -> 0 | O163: =SUMCOST!O509 -> 0 | P163: =SUMCOST!P509 -> 0 | Q163: =SUMCOST!Q509 -> 0
A164: 11 | B164: Total Uniform Current Cost | F164: =SUM(F161:F163) -> 502897000 | G164: 245715116.5 | H164: 57852852.62 | I164: 113541127.2 | J164: 65682020.9 | K164: 11688877.3 | L164: 8417005.474 | M164: 0 | N164: 0 | O164: 0 | P164: 0 | Q164: 0
B166: Expressed as Unit Cost
A167: 12 | B167: Energy | C167: $/kWh | F167: =SUMCOST!F516 -> 0.03733013215 | G167: =SUMCOST!G516 -> 0.03752700535 | H167: =SUMCOST!H516 -> 0.03752700535 | I167: =SUMCOST!I516 -> 0.03746077317 | J167: =SUMCOST!J516 -> 0.03660532366 | K167: =SUMCOST!K516 -> 0.03752700535 | L167: =SUMCOST!L516 -> 0.03752700535 | M167: =SUMCOST!M516 -> 0
A168: 13 | B168: Demand | C168: $/kW/mo | F168: =SUMCOST!F517 -> 20.16497146 | G168: =SUMCOST!G517 -> 22.45187823 | H168: =SUMCOST!H517 -> 20.2285659 | I168: =SUMCOST!I517 -> 20.00731206 | J168: =SUMCOST!J517 -> 13.43065753 | K168: =SUMCOST!K517 -> 17.92956547 | L168: =SUMCOST!L517 -> 38.66216922 | M168: =SUMCOST!M517 -> 0
A169: 14 | B169: Customer | C169: $/Cust/mo | F169: =SUMCOST!F518 -> 16.38114844 | G169: =SUMCOST!G518 -> 14.10312046 | H169: =SUMCOST!H518 -> 17.01234217 | I169: =SUMCOST!I518 -> 33.074644 | J169: =SUMCOST!J518 -> 734.4318878 | K169: =SUMCOST!K518 -> 20.89925314 | L169: =SUMCOST!L518 -> 995.5759882 | M169: =SUMCOST!M518 -> 0
A172: 15 | B172: Revenue to Cost Ratio at Current Rates | F172: =F152/F164 -> 1 | G172: 0.872526701 | H172: 1.297377685 | I172: 1.140916981 | J172: 1.001080647 | K172: 0.9523583584 | L172: 0.8341446399
B175: Cost Classifications at Proposed Return by Schedule
A176: 16 | B176: Energy | F176: =SUM(G176:Q176) -> 213213336.7 | G176: =SUMCOST!G568 -> 79278160.94 | H176: =SUMCOST!H568 -> 29034817.69 | I176: =SUMCOST!I568 -> 58705689.19 | J176: =SUMCOST!J568 -> 40578636.46 | K176: =SUMCOST!K568 -> 4824557.5 | L176: =SUMCOST!L568 -> 791474.8978 | M176: =SUMCOST!M568 -> 0 | N176: =SUMCOST!N568 -> 0 | O176: =SUMCOST!O568 -> 0 | P176: =SUMCOST!P568 -> 0 | Q176: =SUMCOST!Q568 -> 0
A177: 17 | B177: Demand | F177: =SUM(G177:Q177) -> 244108873.6 | G177: =SUMCOST!G573 -> 102905863.7 | H177: =SUMCOST!H573 -> 38270957.71 | I177: =SUMCOST!I573 -> 70005005 | J177: =SUMCOST!J573 -> 24989210.59 | K177: =SUMCOST!K573 -> 5717326.158 | L177: =SUMCOST!L573 -> 2220510.491 | M177: =SUMCOST!M573 -> 0 | N177: =SUMCOST!N573 -> 0 | O177: =SUMCOST!O573 -> 0 | P177: =SUMCOST!P573 -> 0 | Q177: =SUMCOST!Q573 -> 0
A178: 18 | B178: Customer | F178: =SUM(G178:Q178) -> 45574789.71 | G178: =SUMCOST!G576 -> 32208975.4 | H178: =SUMCOST!H576 -> 7751224.594 | I178: =SUMCOST!I576 -> 830305.8107 | J178: =SUMCOST!J576 -> 185152.9529 | K178: =SUMCOST!K576 -> 590116.3429 | L178: =SUMCOST!L576 -> 4009014.612 | M178: =SUMCOST!M576 -> 0 | N178: =SUMCOST!N576 -> 0 | O178: =SUMCOST!O576 -> 0 | P178: =SUMCOST!P576 -> 0 | Q178: =SUMCOST!Q576 -> 0
A179: 19 | B179: Total Proposed Rate Revenue | F179: =SUM(F176:F178) -> 502897000 | G179: 214393000 | H179: 75057000 | I179: 129541000 | J179: 65753000 | K179: 11132000 | L179: 7021000 | M179: 0 | N179: 0 | O179: 0 | P179: 0 | Q179: 0
B181: Expressed as Unit Cost
A182: 20 | B182: Energy | C182: $/kWh | F182: =SUMCOST!F583 -> 0.03767942957 | G182: =SUMCOST!G583 -> 0.03356561723 | H182: =SUMCOST!H583 -> 0.04658660676 | I182: =SUMCOST!I583 -> 0.04165121569 | J182: =SUMCOST!J583 -> 0.03664289103 | K182: =SUMCOST!K583 -> 0.03614027713 | L182: =SUMCOST!L583 -> 0.03423160954 | M182: =SUMCOST!M583 -> 0
A183: 21 | B183: Demand | C183: $/kW/mo | F183: =SUMCOST!F584 -> 20.23039046 | G183: =SUMCOST!G584 -> 19.00591674 | H183: =SUMCOST!H584 -> 27.57265664 | I183: =SUMCOST!I584 -> 23.34882417 | J183: =SUMCOST!J584 -> 13.44642385 | K183: =SUMCOST!K584 -> 16.89038026 | L183: =SUMCOST!L584 -> 32.23737646 | M183: =SUMCOST!M584 -> 0
A184: 22 | B184: Customer | C184: $/Cust/mo | F184: =SUMCOST!F585 -> 15.44386699 | G184: =SUMCOST!G585 -> 12.78960701 | H184: =SUMCOST!H585 -> 20.64592792 | I184: =SUMCOST!I585 -> 36.35951177 | J184: =SUMCOST!J585 -> 734.7339399 | K184: =SUMCOST!K585 -> 20.21430969 | L184: =SUMCOST!L585 -> 816.832643 | M184: =SUMCOST!M585 -> 0
B187: Cost Classifications at Uniform Requested Return
A188: 23 | B188: Energy | F188: =SUM(G188:Q188) -> 211236797.6 | G188: =SUMCOST!G635 -> 88634508.04 | H188: =SUMCOST!H635 -> 23388476.53 | I188: =SUMCOST!I635 -> 52799431.42 | J188: =SUMCOST!J635 -> 40537034.05 | K188: =SUMCOST!K635 -> 5009679.213 | L188: =SUMCOST!L635 -> 867668.3079 | M188: =SUMCOST!M635 -> 0 | N188: =SUMCOST!N635 -> 0 | O188: =SUMCOST!O635 -> 0 | P188: =SUMCOST!P635 -> 0 | Q188: =SUMCOST!Q635 -> 0
A189: 24 | B189: Demand | F189: =SUM(G189:Q189) -> 243319498.9 | G189: =SUMCOST!G640 -> 121563718.9 | H189: =SUMCOST!H640 -> 28077330.39 | I189: =SUMCOST!I640 -> 59986403.18 | J189: =SUMCOST!J640 -> 24959910.02 | K189: =SUMCOST!K640 -> 6069086.193 | L189: =SUMCOST!L640 -> 2663050.216 | M189: =SUMCOST!M640 -> 0 | N189: =SUMCOST!N640 -> 0 | O189: =SUMCOST!O640 -> 0 | P189: =SUMCOST!P640 -> 0 | Q189: =SUMCOST!Q640 -> 0
A190: 25 | B190: Customer | F190: =SUM(G190:Q190) -> 48340703.51 | G190: =SUMCOST!G643 -> 35516889.56 | H190: =SUMCOST!H643 -> 6387045.694 | I190: =SUMCOST!I643 -> 755292.5704 | J190: =SUMCOST!J643 -> 185076.8357 | K190: =SUMCOST!K643 -> 610111.897 | L190: =SUMCOST!L643 -> 4886286.95 | M190: =SUMCOST!M643 -> 0 | N190: =SUMCOST!N643 -> 0 | O190: =SUMCOST!O643 -> 0 | P190: =SUMCOST!P643 -> 0 | Q190: =SUMCOST!Q643 -> 0
A191: 26 | B191: Total Uniform Cost | F191: =SUM(F188:F190) -> 502897000 | G191: 245715116.5 | H191: 57852852.62 | I191: 113541127.2 | J191: 65682020.9 | K191: 11688877.3 | L191: 8417005.474 | M191: 0 | N191: 0 | O191: 0 | P191: 0 | Q191: 0
B193: Expressed as Unit Cost
A194: 27 | B194: Energy | C194: $/kWh | F194: =SUMCOST!F650 -> 0.03733013215 | G194: =SUMCOST!G650 -> 0.03752700535 | H194: =SUMCOST!H650 -> 0.03752700535 | I194: =SUMCOST!I650 -> 0.03746077317 | J194: =SUMCOST!J650 -> 0.03660532366 | K194: =SUMCOST!K650 -> 0.03752700535 | L194: =SUMCOST!L650 -> 0.03752700535 | M194: =SUMCOST!M650 -> 0
A195: 28 | B195: Demand | C195: $/kW/mo | F195: =SUMCOST!F651 -> 20.16497146 | G195: =SUMCOST!G651 -> 22.45187823 | H195: =SUMCOST!H651 -> 20.2285659 | I195: =SUMCOST!I651 -> 20.00731206 | J195: =SUMCOST!J651 -> 13.43065753 | K195: =SUMCOST!K651 -> 17.92956547 | L195: =SUMCOST!L651 -> 38.66216922 | M195: =SUMCOST!M651 -> 0
A196: 29 | B196: Customer | C196: $/Cust/mo | F196: =SUMCOST!F652 -> 16.38114844 | G196: =SUMCOST!G652 -> 14.10312046 | H196: =SUMCOST!H652 -> 17.01234217 | I196: =SUMCOST!I652 -> 33.074644 | J196: =SUMCOST!J652 -> 734.4318878 | K196: =SUMCOST!K652 -> 20.89925314 | L196: =SUMCOST!L652 -> 995.5759882 | M196: =SUMCOST!M652 -> 0
A198: 30 | B198: Revenue to Cost Ratio at Proposed Rates | F198: =F179/F191 -> 1 | G198: 0.872526701 | H198: 1.297377685 | I198: 1.140916981 | J198: 1.001080647 | K198: 0.9523583584 | L198: 0.8341446399
A200: 31 | B200: Current Revenue to Proposed Cost Ratio | F200: =F152/F191 -> 1 | G200: =G152/G191 -> 0.872526701 | H200: 1.297377685 | I200: 1.140916981 | J200: 1.001080647 | K200: 0.9523583584 | L200: 0.8341446399 | M200: =M179/M191 -> 
A203: =A64 -> File: WA 2017 Elec Case / Elec COS Allowed Case / Sumcost Exhibits | I203: =$I$64 -> Exhibit No. TLK-3 | L203: Page 3 of 4
B205: =$B$2 -> Sumcost | F205: =$F$2 -> AVISTA UTILITIES | J205: =$J$2 -> Washington Jurisdiction | L205: Exhibit No. ___(NA)
B206: =$B$3 -> Scenario: Allowed Rates Case UE-170485 | F206: Revenue by Functional Component Summary | J206: =$J$3 -> Electric Utility | L206: =$L$3 -> 2018-05-01
B207: =$B$4 -> Load Factor Peak Credit Method | F207: =$F$4 -> For the Twelve Months Ended December 31, 2016 | L207: =$L$4 -> 
B208: =$B$5 -> AS FILED METHOD
B209: =$B$6 -> (b) | C209: =$C$6 -> (c) | D209: =$D$6 -> (d) | E209: =$E$6 -> (e) | F209: =$F$6 -> (f) | G209: =$G$6 -> (g) | H209: =$H$6 -> (h) | I209: =$I$6 -> (i) | J209: =$J$6 -> (j) | K209: =$K$6 -> (k) | L209: =$L$6 -> (l)
B210: =$B$7 ->  | C210: =$C$7 ->  | D210: =$D$7 ->  | E210: =$E$7 ->  | F210: =$F$7 ->  | G210: =$G$7 -> Residential | H210: =$H$7 -> General | I210: =$I$7 -> Large Gen | J210: =$J$7 -> Extra Large | K210: =$K$7 -> Pumping | L210: =$L$7 -> Street &
B211: =$B$8 ->  | C211: =$C$8 ->  | D211: =$D$8 ->  | E211: =$E$8 ->  | F211: =$F$8 -> System | G211: =$G$8 -> Service | H211: =$H$8 -> Service | I211: =$I$8 -> Service | J211: =$J$8 -> Gen Service | K211: =$K$8 -> Service | L211: =$L$8 -> Area Lights
B212: =$B$9 -> Description | C212: =$C$9 ->  | D212: =$D$9 ->  | E212: =$E$9 ->  | F212: =$F$9 -> Total | G212: =$G$9 -> Sch 1-2 | H212: =$H$9 -> Sch 11-12 | I212: =$I$9 -> Sch 21-22 | J212: =$J$9 -> Sch 25 | K212: =$K$9 -> Sch 31-32 | L212: =$L$9 -> Sch 41-49
B213: Revenue From Current Rates by Functional Components
A214: 1 | B214: Production | F214: =SUM(G214:Q214) -> 236813565.4 | G214: =G75 -> 97022855.19 | H214: 30141875.56 | I214: 61393157.74 | J214: 42525169.55 | K214: 5020799.573 | L214: 709707.765
A215: 2 | B215: Transmission | F215: =SUM(G215:Q215) -> 49241824.72 | G215: =G76 -> 16979163.23 | H215: 7918876.619 | I215: 14429715.11 | J215: 8800778.871 | K215: 985036.6384 | L215: 128254.2587
A216: 3 | B216: Distribution | F216: =SUM(G216:Q216) -> 122611840.8 | G216: 56542000.34 | H216: 23159217.04 | I216: 31505883.47 | J216: 3637356.597 | K216: 3060995.52 | L216: 4706387.842
A217: 4 | B217: Common | F217: =SUM(G217:Q217) -> 94229769.09 | G217: 43848981.25 | H217: 13837030.78 | I217: 22212243.69 | J217: 10789694.98 | K217: 2065168.27 | L217: 1476650.135
A218: 5 | B218: Total Current Rate Revenue | F218: =SUM(F214:F217) -> 502897000 | G218: 214393000 | H218: 75057000 | I218: 129541000 | J218: 65753000 | K218: 11132000 | L218: 7021000
B220: Expressed as $/kWh
A221: 6 | B221: Production | F221: =F82 -> 0.04185010279 | G221: 0.04107855153 | H221: 0.04836289033 | I221: 0.04355795307 | J221: 0.03840062875 | K221: 0.03761030685 | L221: 0.03069514797
A222: 7 | B222: Transmission | F222: =F83 -> 0.008702100418 | G222: =G83 -> 0.007188815771 | H222: 0.01270590348 | I222: 0.01023776715 | J222: 0.007947186236 | K222: 0.007378810824 | L222: 0.005547048576
A223: 8 | B223: Distribution | F223: =F84 -> 0.02166817654 | G223: 0.02393934367 | H223: 0.03715915659 | I223: 0.02235317166 | J223: 0.003284567276 | K223: 0.02292961093 | L223: 0.2035531782
A224: 9 | B224: Common | F224: =F85 -> 0.01665244774 | G224: 0.01856524045 | H224: 0.0222016311 | I224: 0.01575940877 | J224: 0.009743196219 | K224: 0.01546996872 | L224: 0.06386571574
A225: 10 | B225: Total Current Melded Rates | F225: =SUM(F221:F224) -> 0.08887282749 | G225: 0.09077195143 | H225: 0.1204295815 | I225: 0.09190830065 | J225: 0.05937557848 | K225: 0.08338869733 | L225: 0.3036610905
B227: Revenue From Current Rates by Functional Components with Common Costs Allocated to Production, Transmission, and Distribution
A228: 11 | B228: Production | F228: =SUM(G228:Q228) -> 278669538.5 | G228: =SUMCOST!G70 -> 113852079.7 | H228: =SUMCOST!H70 -> 35634324.24 | I228: =SUMCOST!I70 -> 72410420.91 | J228: =SUMCOST!J70 -> 50037179.98 | K228: =SUMCOST!K70 -> 5902317.644 | L228: =SUMCOST!L70 -> 833216.0792
A229: 12 | B229: Transmission | F229: =SUM(G229:Q229) -> 61680922.37 | G229: =SUMCOST!G71 -> 21819645.44 | H229: =SUMCOST!H71 -> 9634353.091 | I229: =SUMCOST!I71 -> 17787735.69 | J229: =SUMCOST!J71 -> 11031158.85 | K229: =SUMCOST!K71 -> 1244043.041 | L229: =SUMCOST!L71 -> 163986.2709
A230: 13 | B230: Distribution | F230: =SUM(G230:Q230) -> 162546539.1 | G230: =SUMCOST!G72 -> 78721274.9 | H230: =SUMCOST!H72 -> 29788322.67 | I230: =SUMCOST!I72 -> 39342843.41 | J230: =SUMCOST!J72 -> 4684661.177 | K230: =SUMCOST!K72 -> 3985639.315 | L230: =SUMCOST!L72 -> 6023797.65
A231: 14 | B231: Common | F231: =SUM(G231:Q231) -> 0 | G231: =SUMCOST!G73 -> 0 | H231: =SUMCOST!H73 -> 0 | I231: =SUMCOST!I73 -> 0 | J231: =SUMCOST!J73 -> 0 | K231: =SUMCOST!K73 -> 0 | L231: =SUMCOST!L73 -> 0
A232: 15 | B232: Total Current Rate Revenue | F232: =SUM(F228:F231) -> 502897000 | G232: 214393000 | H232: 75057000 | I232: 129541000 | J232: 65753000 | K232: 11132000 | L232: 7021000
B234: Expressed as $/kWh
A235: 16 | B235: Production | F235: =SUMCOST!F77 -> 0.04924696274 | G235: =SUMCOST!G77 -> 0.04820388467 | H235: =SUMCOST!H77 -> 0.05717556997 | I235: =SUMCOST!I77 -> 0.05137461294 | J235: =SUMCOST!J77 -> 0.04518404494 | K235: =SUMCOST!K77 -> 0.04421367046 | L235: =SUMCOST!L77 -> 0.03603693253
A236: 17 | B236: Transmission | F236: =SUMCOST!F78 -> 0.01090035927 | G236: =SUMCOST!G78 -> 0.009238229774 | H236: =SUMCOST!H78 -> 0.01545839976 | I236: =SUMCOST!I78 -> 0.01262025582 | J236: =SUMCOST!J78 -> 0.009961240368 | K236: =SUMCOST!K78 -> 0.00931900185 | L236: =SUMCOST!L78 -> 0.00709247256
A237: 18 | B237: Distribution | F237: =SUMCOST!F79 -> 0.02872550548 | G237: =SUMCOST!G79 -> 0.03332983699 | H237: =SUMCOST!H79 -> 0.04779561177 | I237: =SUMCOST!I79 -> 0.02791343189 | J237: =SUMCOST!J79 -> 0.004230293179 | K237: =SUMCOST!K79 -> 0.02985602502 | L237: =SUMCOST!L79 -> 0.2605316854
A238: 19 | B238: Common | F238: =SUMCOST!F80 -> 0 | G238: =SUMCOST!G80 -> 0 | H238: =SUMCOST!H80 -> 0 | I238: =SUMCOST!I80 -> 0 | J238: =SUMCOST!J80 -> 0 | K238: =SUMCOST!K80 -> 0 | L238: =SUMCOST!L80 -> 0
A239: 20 | B239: Total Current Melded Rates | F239: =SUM(F235:F238) -> 0.08887282749 | G239: 0.09077195143 | H239: 0.1204295815 | I239: 0.09190830065 | J239: 0.05937557848 | K239: 0.08338869733 | L239: 0.3036610905
B242: Revenue From Proposed Rates by Functional Components
A243: 21 | B243: Production | F243: =SUM(G243:Q243) -> 236813565.4 | G243: =G106 -> 97022855.19 | H243: 30141875.56 | I243: 61393157.74 | J243: 42525169.55 | K243: 5020799.573 | L243: 709707.765
A244: 22 | B244: Transmission | F244: =SUM(G244:Q244) -> 49241824.72 | G244: =G107 -> 16979163.23 | H244: 7918876.619 | I244: 14429715.11 | J244: 8800778.871 | K244: 985036.6384 | L244: 128254.2587
A245: 23 | B245: Distribution | F245: =SUM(G245:Q245) -> 122611840.8 | G245: 56542000.34 | H245: 23159217.04 | I245: 31505883.47 | J245: 3637356.597 | K245: 3060995.52 | L245: 4706387.842
... 64 more rows

Sheet SUMCOST
A1: 1 | B1: Sumcost | E1: AVISTA UTILITIES | J1: =ASSIGN!T1 -> Electric Utility | M1: =ASSIGN!W1 -> Washington Jurisdiction | Q1: Page 1 of 1 | AA1: =E1 -> AVISTA UTILITIES | AD1: Criteria Area | AG1: name of criteria | AJ1: Line | AK1: Account | AL1: Desc1 | AM1: Desc2 | AN1: Notes | AO1: FAlloc | AP1: CAlloc | AQ1: PTotal | AR1: FTotal | AS1: =AS5 -> Sch 1-2 | AT1: Sch 11-12 | AU1: Sch 21-22 | AV1: Sch 25 | AW1: Sch 31-32 | AX1: Sch 41-49 | AY1: Open 1 | AZ1: Open 2 | BA1: Open 3 | BB1: Open 4 | BC1: Open 5
A2: 2 | B2: =CONCATENATE(ASSIGN!K2," ",ASSIGN!L2) -> Scenario: Allowed Rates Case UE-170485 | E2: Cost of Service Basic Summary | Q2: =ASSIGN!AC2 -> 2018-05-01 | W2: =ASSIGN!H1 -> Washington Jurisdiction | X2: =ASSIGN!I1 -> 0 | AA2: =B1 -> Sumcost | AB2: =NOW() -> 2019-02-19T14:00:05.730 | AD2: Line | AE2: Line | AF2: CAlloc | AG2: Crit_1 | AJ2: 5 | AK2: (k) | AL2: (l) | AM2: (m) | AN2: (n) | AO2: (o) | AP2: (p) | AQ2: (q) | AR2: (r) | AS2: (s) | AT2: (t) | AU2: (u) | AV2: (v) | AW2: (w) | AX2: (x) | AY2: (y) | AZ2: (z) | BA2: (aa) | BB2: (ab) | BC2: (ac)
A3: 3 | B3: =ASSIGN!L3 -> Load Factor Peak Credit Method | E3: =ASSIGN!N3 -> For the Twelve Months Ended December 31, 2016 | Q3: =ASSIGN!AC3 ->  | W3: =ASSIGN!H2 -> Electric Utility | X3: =ASSIGN!I2 -> 0 | AA3: =B2 -> Scenario: Allowed Rates Case UE-170485 | AB3: =NOW() -> 42053.5834 | AD3: =">"&TEXT(C664,"0") -> >872 | AE3: ="<="&TEXT(C666,"0") -> <=893 | AG3: S01 | AJ3: 6 | AN3: Notes | AO3: Functional | AP3: Class | AQ3: Proforma | AR3: Functional | AS3: Residential | AT3: General | AU3: Large Gen | AV3: Extra Large | AW3: Pumping | AX3: Street &
A4: 4 | B4: =ASSIGN!L4 -> AS FILED METHOD | W4: =ASSIGN!H3 -> COS Checker | X4: =ASSIGN!I3 -> 0 | AA4: Standard Report Error Check | AD4: Line | AE4: Line | AF4: CAlloc | AG4: Crit1A | AJ4: 7 | AK4: Account Description | AO4: Allocation | AP4: Allocator | AQ4: Totals | AR4: Totals | AS4: Service | AT4: Service | AU4: Service | AV4: Gen Service | AW4: Service | AX4: Area Lights
A5: 5 | B5: (b) | C5: (c) | D5: (d) | E5: (e) | F5: (f) | G5: (g) | H5: (h) | I5: (i) | J5: (j) | K5: (k) | L5: (l) | M5: (m) | N5: (n) | O5: (o) | P5: (p) | Q5: (q) | W5: =ASSIGN!H4 -> 0 | X5: =ASSIGN!I4 -> 0 | AA5: =E3 -> For the Twelve Months Ended December 31, 2016 | AD5: =AD3 -> >872 | AE5: =AE3 -> <=893 | AF5: =E663 -> E* | AJ5: 8 | AS5: Sch 1-2 | AT5: Sch 11-12 | AU5: Sch 21-22 | AV5: Sch 25 | AW5: Sch 31-32 | AX5: Sch 41-49 | AY5: Open 1 | AZ5: Open 2 | BA5: Open 3 | BB5: Open 4 | BC5: Open 5
A6: 6 | G6: =AS3 -> Residential | H6: General | I6: Large Gen | J6: Extra Large | K6: Pumping | L6: Street & | W6: =ASSIGN!H5 -> Checker | X6: =ASSIGN!I5 -> 0 | AD6: Line | AE6: Line | AF6: CAlloc | AG6: Crit1B | AJ6: 9 | AK6: Operation & Maintenance Expenses
A7: 7 | F7: System | G7: Service | H7: Service | I7: Service | J7: Gen Service | K7: Service | L7: Area Lights | W7: =ASSIGN!H6 -> Description | X7: =ASSIGN!I6 -> Amounts | AD7: =AD5 -> >872 | AE7: =AE5 -> <=893 | AF7: =E664 -> D* | AJ7: 10 | AL7: Production Expenses
A8: 8 | B8: Description | E8: Source | F8: Total | G8: Sch 1-2 | H8: Sch 11-12 | I8: Sch 21-22 | J8: Sch 25 | K8: Sch 31-32 | L8: Sch 41-49 | M8: Open 1 | N8: Open 2 | O8: Open 3 | P8: Open 4 | Q8: Open 5 | W8: =ASSIGN!H7 -> 0 | X8: =ASSIGN!I7 -> 0 | AD8: Line | AE8: Line | AF8: CAlloc | AG8: Crit1C | AJ8: 11 | AK8: 500-OP | AL8: Steam | AM8: Supervision & Engineering | AO8: P01 | AQ8: 212000
A9: 9 | B9: Plant In Service | W9: =ASSIGN!H8 -> Key Items for Checking | X9: =ASSIGN!I8 -> 0 | Z9: Error Messages | AD9: =AD7 -> >872 | AE9: =AE7 -> <=893 | AF9: =E665 -> C* | AJ9: 12 | AL9: P | AM9: Coincident Peak | AO9: 37.65 | AP9: D01 | AR9: 79818 | AS9: 39453.13867 | AT9: 8182.902207 | AU9: 17723.8672 | AV9: 12808.34196 | AW9: 1508.622488 | AX9: 141.1274783 | AY9: 0 | AZ9: 0 | BA9: 0 | BB9: 0 | BC9: 0
A10: 10 | B10: Production Plant | D10: Database Line | E10: 893 | F10: =SUM(G10:Q10) -> 947710000 | G10: =VLOOKUP($E10,_xlnm.Database,10) -> 424307750.6 | H10: =VLOOKUP($E10,_xlnm.Database,11) -> 102005357.4 | I10: =VLOOKUP($E10,_xlnm.Database,12) -> 226928510.7 | J10: =VLOOKUP($E10,_xlnm.Database,13) -> 170652625 | K10: =VLOOKUP($E10,_xlnm.Database,14) -> 20757722.83 | L10: =VLOOKUP($E10,_xlnm.Database,15) -> 3058033.432 | M10: =VLOOKUP($E10,_xlnm.Database,16) -> 0 | N10: =VLOOKUP($E10,_xlnm.Database,17) -> 0 | O10: =VLOOKUP($E10,_xlnm.Database,18) -> 0 | P10: =VLOOKUP($E10,_xlnm.Database,19) -> 0 | Q10: =VLOOKUP($E10,_xlnm.Database,20) -> 0 | W10: =ASSIGN!H9 -> 0 | X10: =ASSIGN!I9 -> 0 | Z10: 1 | AA10: =IF(X11=ROUND(F28,0),"Total Rate Base Matches Checker","ERROR! TOTAL RATE BASE DOES NOT MATCH CHECKER") -> Total Rate Base Matches Checker | AD10: Line | AE10: Line | AF10: CAlloc | AG10: Crit1D | AJ10: 13 | AL10: P | AM10: Generation Level Consumption | AO10: 62.35 | AP10: E02 | AR10: 132182 | AS10: 55463.28422 | AT10: 14635.40274 | AU10: 33039.38767 | AV10: 25366.1592 | AW10: 3134.820379 | AX10: 542.9458011 | AY10: 0 | AZ10: 0 | BA10: 0 | BB10: 0 | BC10: 0
A11: 11 | B11: Transmission Plant | D11: Database Line | E11: 932 | F11: =SUM(G11:Q11) -> 446138000 | G11: =VLOOKUP($E11,_xlnm.Database,10) -> 199744448.5 | H11: =VLOOKUP($E11,_xlnm.Database,11) -> 48019400.62 | I11: =VLOOKUP($E11,_xlnm.Database,12) -> 106827438.7 | J11: =VLOOKUP($E11,_xlnm.Database,13) -> 80335356.59 | K11: =VLOOKUP($E11,_xlnm.Database,14) -> 9771775.065 | L11: =VLOOKUP($E11,_xlnm.Database,15) -> 1439580.588 | M11: =VLOOKUP($E11,_xlnm.Database,16) -> 0 | N11: =VLOOKUP($E11,_xlnm.Database,17) -> 0 | O11: =VLOOKUP($E11,_xlnm.Database,18) -> 0 | P11: =VLOOKUP($E11,_xlnm.Database,19) -> 0 | Q11: =VLOOKUP($E11,_xlnm.Database,20) -> 0 | W11: =ASSIGN!H10 -> Rate Base | X11: =ASSIGN!I10 -> 1523129000 | Z11: 2 | AA11: =IF(X12=ROUND(F54,0),"Total Operating Expense Matches Checker","ERROR! TOTAL OPERATING EXPENSE DOES NOT MATCH CHECKER") -> Total Operating Expense Matches Checker | AD11: =AD9 -> >872 | AE11: =AE9 -> <=893 | AF11: =E666 -> R* | AJ11: 14 | AL11: P | AM11: Open | AO11: 0 | AP11: xxx | AR11: 0 | AS11: 0 | AT11: 0 | AU11: 0 | AV11: 0 | AW11: 0 | AX11: 0 | AY11: 0 | AZ11: 0 | BA11: 0 | BB11: 0 | BC11: 0
A12: 12 | B12: Distribution Plant | D12: Database Line | E12: 1089 | F12: =SUM(G12:Q12) -> 1016978000 | G12: =VLOOKUP($E12,_xlnm.Database,10) -> 537562364.6 | H12: =VLOOKUP($E12,_xlnm.Database,11) -> 129711804.5 | I12: =VLOOKUP($E12,_xlnm.Database,12) -> 233690762.4 | J12: =VLOOKUP($E12,_xlnm.Database,13) -> 30656649.28 | K12: =VLOOKUP($E12,_xlnm.Database,14) -> 28740899.86 | L12: =VLOOKUP($E12,_xlnm.Database,15) -> 56615519.25 | M12: =VLOOKUP($E12,_xlnm.Database,16) -> 0 | N12: =VLOOKUP($E12,_xlnm.Database,17) -> 0 | O12: =VLOOKUP($E12,_xlnm.Database,18) -> 0 | P12: =VLOOKUP($E12,_xlnm.Database,19) -> 0 | Q12: =VLOOKUP($E12,_xlnm.Database,20) -> 0 | W12: =ASSIGN!H11 -> Expenses | X12: =ASSIGN!I11 -> 437258000 | Z12: 3 | AA12: =IF(X13=ROUND(F32,0),"Total Operating Revenue Matches Checker","ERROR! TOTAL OPERATING REVENUE DOES NOT MATCH CHECKER") -> Total Operating Revenue Matches Checker | AD12: Line | AE12: Line | AF12: CAlloc | AG12: Crit1E | AJ12: 15 | AL12: P | AM12: Open | AO12: 0 | AP12: xxx | AR12: 0 | AS12: 0 | AT12: 0 | AU12: 0 | AV12: 0 | AW12: 0 | AX12: 0 | AY12: 0 | AZ12: 0 | BA12: 0 | BB12: 0 | BC12: 0
A13: 13 | B13: Intangible Plant | D13: Database Line | E13: 870 | F13: =SUM(G13:Q13) -> 166116000 | G13: =VLOOKUP($E13,_xlnm.Database,10) -> 78243722.76 | H13: =VLOOKUP($E13,_xlnm.Database,11) -> 18723247.66 | I13: =VLOOKUP($E13,_xlnm.Database,12) -> 39061190.86 | J13: =VLOOKUP($E13,_xlnm.Database,13) -> 23517238.16 | K13: =VLOOKUP($E13,_xlnm.Database,14) -> 3883030.757 | L13: =VLOOKUP($E13,_xlnm.Database,15) -> 2687569.799 | M13: =VLOOKUP($E13,_xlnm.Database,16) -> 0 | N13: =VLOOKUP($E13,_xlnm.Database,17) -> 0 | O13: =VLOOKUP($E13,_xlnm.Database,18) -> 0 | P13: =VLOOKUP($E13,_xlnm.Database,19) -> 0 | Q13: =VLOOKUP($E13,_xlnm.Database,20) -> 0 | W13: =ASSIGN!H12 -> Revenue | X13: =ASSIGN!I12 -> 551492000 | Z13: 4 | AA13: =IF(X14=ROUND(F56,0),"Net Income Matches Checker","ERROR! NET INCOME DOES NOT MATCH CHECKER") -> Net Income Matches Checker | AD13: =AD11 -> >872 | AE13: =AE11 -> <=893 | AJ13: 16 | AK13: 501-OP | AL13: Steam | AM13: Fuel | AO13: P01 | AQ13: 20090000
A14: 14 | B14: General Plant | D14: Database Line | E14: 1142 | F14: =SUM(G14:Q14) -> 242579000 | G14: =VLOOKUP($E14,_xlnm.Database,10) -> 129818207.5 | H14: =VLOOKUP($E14,_xlnm.Database,11) -> 28348837.23 | I14: =VLOOKUP($E14,_xlnm.Database,12) -> 48658362.09 | J14: =VLOOKUP($E14,_xlnm.Database,13) -> 25634554.93 | K14: =VLOOKUP($E14,_xlnm.Database,14) -> 5352872.87 | L14: =VLOOKUP($E14,_xlnm.Database,15) -> 4766165.378 | M14: =VLOOKUP($E14,_xlnm.Database,16) -> 0 | N14: =VLOOKUP($E14,_xlnm.Database,17) -> 0 | O14: =VLOOKUP($E14,_xlnm.Database,18) -> 0 | P14: =VLOOKUP($E14,_xlnm.Database,19) -> 0 | Q14: =VLOOKUP($E14,_xlnm.Database,20) -> 0 | W14: =ASSIGN!H13 -> Income | X14: =ASSIGN!I13 -> 114234000 | Z14: 5 | AD14: Line | AE14: Line | AF14: CAlloc | AG14: Crit1F | AJ14: 17 | AL14: P | AM14: Coincident Peak | AO14: 37.65 | AP14: D01 | AR14: 7563885 | AS14: 3738743.188 | AT14: 775445.7799 | AU14: 1679587.226 | AV14: 1213771.651 | AW14: 142963.3292 | AX14: 13373.82565 | AY14: 0 | AZ14: 0 | BA14: 0 | BB14: 0 | BC14: 0
A15: 15 | B15: Total Plant In Service | F15: =SUM(F10:F14) -> 2819521000 | G15: 1369676494 | H15: 326808647.5 | I15: 655166264.8 | J15: 330796423.9 | K15: 68506301.38 | L15: 68566868.45 | M15: 0 | N15: 0 | O15: 0 | P15: 0 | Q15: 0 | W15: =ASSIGN!H14 -> Interest | X15: =ASSIGN!I14 -> 44018000 | Z15: 6 | AD15: =AD13 -> >872 | AE15: =AE13 -> <=893 | AJ15: 18 | AL15: P | AM15: Generation Level Consumption | AO15: 62.35 | AP15: E02 | AR15: 12526115 | AS15: 5255931.038 | AT15: 1386911.514 | AU15: 3130949.52 | AV15: 2403802.539 | AW15: 297068.5915 | AX15: 51451.79785 | AY15: 0 | AZ15: 0 | BA15: 0 | BB15: 0 | BC15: 0
A16: 16 | W16: =ASSIGN!H15 -> SIT | X16: =ASSIGN!I15 -> 0 | Z16: 7 | AD16: Undefined Space | AG16: Crit1G | AJ16: 19 | AL16: P | AM16: Open | AO16: 0 | AP16: xxx | AR16: 0 | AS16: 0 | AT16: 0 | AU16: 0 | AV16: 0 | AW16: 0 | AX16: 0 | AY16: 0 | AZ16: 0 | BA16: 0 | BB16: 0 | BC16: 0
A17: 17 | B17: Accum Depreciation | W17: =ASSIGN!H16 -> FIT | X17: =ASSIGN!I16 -> -26162000 | Z17: 8 | AD17: Available for Expansion | AJ17: 20 | AL17: P | AM17: Open | AO17: 0 | AP17: xxx | AR17: 0 | AS17: 0 | AT17: 0 | AU17: 0 | AV17: 0 | AW17: 0 | AX17: 0 | AY17: 0 | AZ17: 0 | BA17: 0 | BB17: 0 | BC17: 0
A18: 18 | B18: Production Plant | D18: Database Line | E18: 1168 | F18: =SUM(G18:Q18) -> -414005000 | G18: =VLOOKUP($E18,_xlnm.Database,10) -> -185357894.6 | H18: =VLOOKUP($E18,_xlnm.Database,11) -> -44560812.92 | I18: =VLOOKUP($E18,_xlnm.Database,12) -> -99133213.82 | J18: =VLOOKUP($E18,_xlnm.Database,13) -> -74549218.64 | K18: =VLOOKUP($E18,_xlnm.Database,14) -> -9067964.925 | L18: =VLOOKUP($E18,_xlnm.Database,15) -> -1335895.085 | M18: =VLOOKUP($E18,_xlnm.Database,16) -> 0 | N18: =VLOOKUP($E18,_xlnm.Database,17) -> 0 | O18: =VLOOKUP($E18,_xlnm.Database,18) -> 0 | P18: =VLOOKUP($E18,_xlnm.Database,19) -> 0 | Q18: =VLOOKUP($E18,_xlnm.Database,20) -> 0 | W18: =ASSIGN!H17 -> ITC | X18: =ASSIGN!I17 -> -326000 | Z18: 9 | AG18: Crit1H | AJ18: 21 | AK18: 502-OP | AL18: Steam | AM18: Steam Expenses | AO18: P01 | AQ18: 2953000
A19: 19 | B19: Transmission Plant | D19: Database Line | E19: 1207 | F19: =SUM(G19:Q19) -> -136127000 | G19: =VLOOKUP($E19,_xlnm.Database,10) -> -60946641.03 | H19: =VLOOKUP($E19,_xlnm.Database,11) -> -14651827.34 | I19: =VLOOKUP($E19,_xlnm.Database,12) -> -32595516.96 | J19: =VLOOKUP($E19,_xlnm.Database,13) -> -24512171.32 | K19: =VLOOKUP($E19,_xlnm.Database,14) -> -2981594.09 | L19: =VLOOKUP($E19,_xlnm.Database,15) -> -439249.2608 | M19: =VLOOKUP($E19,_xlnm.Database,16) -> 0 | N19: =VLOOKUP($E19,_xlnm.Database,17) -> 0 | O19: =VLOOKUP($E19,_xlnm.Database,18) -> 0 | P19: =VLOOKUP($E19,_xlnm.Database,19) -> 0 | Q19: =VLOOKUP($E19,_xlnm.Database,20) -> 0 | W19: =ASSIGN!H18 -> Deferred Tax | X19: =ASSIGN!I18 -> 40701000 | Z19: 10 | AJ19: 22 | AL19: P | AM19: Coincident Peak | AO19: 37.65 | AP19: D01 | AR19: 1111804.5 | AS19: 549552.4457 | AT19: 113981.652 | AU19: 246880.0936 | AV19: 178410.5368 | AW19: 21013.97268 | AX19: 1965.799261 | AY19: 0 | AZ19: 0 | BA19: 0 | BB19: 0 | BC19: 0
A20: 20 | B20: Distribution Plant | D20: Database Line | E20: 1364 | F20: =SUM(G20:Q20) -> -305222000 | G20: =VLOOKUP($E20,_xlnm.Database,10) -> -164014365.6 | H20: =VLOOKUP($E20,_xlnm.Database,11) -> -38752605.81 | I20: =VLOOKUP($E20,_xlnm.Database,12) -> -68069828.15 | J20: =VLOOKUP($E20,_xlnm.Database,13) -> -8984063.519 | K20: =VLOOKUP($E20,_xlnm.Database,14) -> -8432698.102 | L20: =VLOOKUP($E20,_xlnm.Database,15) -> -16968438.84 | M20: =VLOOKUP($E20,_xlnm.Database,16) -> 0 | N20: =VLOOKUP($E20,_xlnm.Database,17) -> 0 | O20: =VLOOKUP($E20,_xlnm.Database,18) -> 0 | P20: =VLOOKUP($E20,_xlnm.Database,19) -> 0 | Q20: =VLOOKUP($E20,_xlnm.Database,20) -> 0 | W20: =ASSIGN!H19 -> Gen Bus Revenue | X20: =ASSIGN!I19 -> 502897000 | Z20: 11 | AD20: Line | AE20: Line | AF20: CAlloc | AG20: Crit_2 | AJ20: 23 | AL20: P | AM20: Generation Level Consumption | AO20: 62.35 | AP20: E02 | AR20: 1841195.5 | AS20: 772561.6901 | AT20: 203860.1145 | AU20: 460213.7348 | AV20: 353331.4533 | AW20: 43665.68197 | AX20: 7562.825238 | AY20: 0 | AZ20: 0 | BA20: 0 | BB20: 0 | BC20: 0
A21: 21 | B21: Intangible Plant | D21: Database Line | E21: 1439 | F21: =SUM(G21:Q21) -> -36746000 | G21: =VLOOKUP($E21,_xlnm.Database,10) -> -17617633.45 | H21: =VLOOKUP($E21,_xlnm.Database,11) -> -4189472.334 | I21: =VLOOKUP($E21,_xlnm.Database,12) -> -8534642.13 | J21: =VLOOKUP($E21,_xlnm.Database,13) -> -4842564.433 | K21: =VLOOKUP($E21,_xlnm.Database,14) -> -867105.5005 | L21: =VLOOKUP($E21,_xlnm.Database,15) -> -694582.1512 | M21: =VLOOKUP($E21,_xlnm.Database,16) -> 0 | N21: =VLOOKUP($E21,_xlnm.Database,17) -> 0 | O21: =VLOOKUP($E21,_xlnm.Database,18) -> 0 | P21: =VLOOKUP($E21,_xlnm.Database,19) -> 0 | Q21: =VLOOKUP($E21,_xlnm.Database,20) -> 0 | W21: =ASSIGN!H20 -> Allocated Revenue | X21: =ASSIGN!I20 -> 0 | Z21: 12 | AD21: =">"&TEXT(C671,"0") -> >895 | AE21: ="<="&TEXT(C673,"0") -> <=932 | AG21: S02 | AJ21: 24 | AL21: P | AM21: Open | AO21: 0 | AP21: xxx | AR21: 0 | AS21: 0 | AT21: 0 | AU21: 0 | AV21: 0 | AW21: 0 | AX21: 0 | AY21: 0 | AZ21: 0 | BA21: 0 | BB21: 0 | BC21: 0
A22: 22 | B22: General Plant | D22: Database Line | E22: 1417 | F22: =SUM(G22:Q22) -> -83504000 | G22: =VLOOKUP($E22,_xlnm.Database,10) -> -44632215.41 | H22: =VLOOKUP($E22,_xlnm.Database,11) -> -9756725.294 | I22: =VLOOKUP($E22,_xlnm.Database,12) -> -16783760.93 | J22: =VLOOKUP($E22,_xlnm.Database,13) -> -8843404.196 | K22: =VLOOKUP($E22,_xlnm.Database,14) -> -1844698.959 | L22: =VLOOKUP($E22,_xlnm.Database,15) -> -1643195.213 | M22: =VLOOKUP($E22,_xlnm.Database,16) -> 0 | N22: =VLOOKUP($E22,_xlnm.Database,17) -> 0 | O22: =VLOOKUP($E22,_xlnm.Database,18) -> 0 | P22: =VLOOKUP($E22,_xlnm.Database,19) -> 0 | Q22: =VLOOKUP($E22,_xlnm.Database,20) -> 0 | W22: =ASSIGN!H21 -> Secondary Sales | X22: =ASSIGN!I21 -> 35563000 | AD22: Line | AE22: Line | AF22: CAlloc | AG22: Crit2A | AJ22: 25 | AL22: P | AM22: Open | AO22: 0 | AP22: xxx | AR22: 0 | AS22: 0 | AT22: 0 | AU22: 0 | AV22: 0 | AW22: 0 | AX22: 0 | AY22: 0 | AZ22: 0 | BA22: 0 | BB22: 0 | BC22: 0
A23: 23 | B23: Total Accumulated Depreciation | F23: =SUM(F18:F22) -> -975604000 | G23: -472568750.1 | H23: -111911443.7 | I23: -225116962 | J23: -121731422.1 | K23: -23194061.58 | L23: -21081360.55 | M23: 0 | N23: 0 | O23: 0 | P23: 0 | Q23: 0 | W23: =ASSIGN!H22 -> MOPS Revenue | X23: =ASSIGN!I22 -> 0 | AD23: =AD21 -> >895 | AE23: =AE21 -> <=932 | AF23: =E670 -> E* | AJ23: 26 | AK23: 503-OP | AL23: Steam | AM23: From Other Sources | AO23: P01 | AQ23: 0
A24: 24 | W24: =ASSIGN!H23 -> Misc Rev | X24: =ASSIGN!I23 -> 268000 | AD24: Line | AE24: Line | AF24: CAlloc | AG24: Crit2B | AJ24: 27 | AL24: P | AM24: Coincident Peak | AO24: 37.65 | AP24: D01 | AR24: 0 | AS24: 0 | AT24: 0 | AU24: 0 | AV24: 0 | AW24: 0 | AX24: 0 | AY24: 0 | AZ24: 0 | BA24: 0 | BB24: 0 | BC24: 0
A25: 25 | B25: Net Plant | F25: =F15+F23 -> 1843917000 | G25: =G15+G23 -> 897107743.9 | H25: 214897203.8 | I25: 430049302.8 | J25: 209065001.8 | K25: 45312239.8 | L25: 47485507.9 | M25: 0 | N25: 0 | O25: 0 | P25: 0 | Q25: 0 | W25: =ASSIGN!H24 -> Water Sales | X25: =ASSIGN!I24 -> 305000 | AD25: =AD23 -> >895 | AE25: =AE23 -> <=932 | AF25: =E671 -> D* | AJ25: 28 | AL25: P | AM25: Generation Level Consumption | AO25: 62.35 | AP25: E02 | AR25: 0 | AS25: 0 | AT25: 0 | AU25: 0 | AV25: 0 | AW25: 0 | AX25: 0 | AY25: 0 | AZ25: 0 | BA25: 0 | BB25: 0 | BC25: 0
A26: 26 | B26: Accumulated Deferred FIT | C26: DSum | D26: 1445 | E26: 1451 | F26: =SUM(G26:Q26) -> -375998000 | G26: =DSUM(_xlnm.Database,T(G$660),ADFIT) -> -183623698.3 | H26: -43674186.14 | I26: -86915885.32 | J26: -43358563.96 | K26: -9132097.395 | L26: -9293568.839 | M26: 0 | N26: 0 | O26: 0 | P26: 0 | Q26: 0 | S26: Line | T26: Line | V26: ADFIT | W26: =ASSIGN!H25 -> Rent | X26: =ASSIGN!I25 -> 1815000 | AD26: Line | AE26: Line | AF26: CAlloc | AG26: Crit2C | AJ26: 29 | AL26: P | AM26: Open | AO26: 0 | AP26: xxx | AR26: 0 | AS26: 0 | AT26: 0 | AU26: 0 | AV26: 0 | AW26: 0 | AX26: 0 | AY26: 0 | AZ26: 0 | BA26: 0 | BB26: 0 | BC26: 0
